Workbook

Sheet Names
A1: 0 | B1: Names | D1: Tab.
A2: 1 | B2: إبراهيم عرفان السقا | C2: 721 | D2: 1 | F2: =LOOKUP(H2,$I$2:$I$161,$K$2:$K$161) -> هيثم أحمد دياب | G2: =LOOKUP(H2,$I$2:$I$161,$L$2:$L$161) -> 725 | H2: 1 | I2: 1 | J2: =LOOKUP(L2,[1]Rank!$B$9:$B$782,[1]Rank!$E$9:$E$782) -> 0 | K2: =LOOKUP(L2,[1]Rank!$B$9:$B$782,[1]Rank!$F$9:$F$782) -> هيثم أحمد دياب | L2: 725
A3: 2 | B3: مصطفى محمد علي شرف | C3: 449 | F3: مصطفى محمد علي شرف | G3: 449 | H3: 11 | I3: 2 | J3: =LOOKUP(L3,[1]Rank!$B$9:$B$782,[1]Rank!$E$9:$E$782) -> * | K3: =LOOKUP(L3,[1]Rank!$B$9:$B$782,[1]Rank!$F$9:$F$782) -> هيثم محمد أحمد شبانة | L3: 668
A4: 3 | B4: أحمد محمد حمدي صالح | C4: 396 | F4: أحمد محمد حمدي صالح | G4: 396 | H4: 27 | I4: 3 | J4: =LOOKUP(L4,[1]Rank!$B$9:$B$782,[1]Rank!$E$9:$E$782) -> * | K4: =LOOKUP(L4,[1]Rank!$B$9:$B$782,[1]Rank!$F$9:$F$782) -> هيثم عباس عبد الباري العشماوي | L4: 300
A5: 4 | B5: أحمد جميل السيد | C5: 368 | F5: أحمد جميل السيد | G5: 368 | H5: 10 | I5: 4 | J5: =LOOKUP(L5,[1]Rank!$B$9:$B$782,[1]Rank!$E$9:$E$782) -> * | K5: =LOOKUP(L5,[1]Rank!$B$9:$B$782,[1]Rank!$F$9:$F$782) -> أحمد إبراهيم غانم | L5: 366
A6: 5 | B6: أحمد محمد أمين | C6: 358 | D6: 2 | F6: أحمد محمد أمين | G6: 358 | H6: 28 | I6: 5 | J6: =LOOKUP(L6,[1]Rank!$B$9:$B$782,[1]Rank!$E$9:$E$782) -> * | K6: =LOOKUP(L6,[1]Rank!$B$9:$B$782,[1]Rank!$F$9:$F$782) -> يوسف مسعد فراج | L6: 735
A7: 6 | B7: معتز محمد عبد المنعم | C7: 351 | F7: معتز محمد محمد عبد المنعم محمد | G7: 351 | H7: 9 | I7: 6 | J7: =LOOKUP(L7,[1]Rank!$B$9:$B$782,[1]Rank!$E$9:$E$782) -> * | K7: =LOOKUP(L7,[1]Rank!$B$9:$B$782,[1]Rank!$F$9:$F$782) -> محمد حسن عبد القادر إبراهيم حسن | L7: 310
A8: 7 | B8: هيثم محمد شبانة | C8: 668 | F8: هيثم محمد أحمد شبانة | G8: 668 | H8: 2 | I8: 7 | J8: =LOOKUP(L8,[1]Rank!$B$9:$B$782,[1]Rank!$E$9:$E$782) -> * | K8: =LOOKUP(L8,[1]Rank!$B$9:$B$782,[1]Rank!$F$9:$F$782) -> أمير محمد خطاب | L8: 200
A9: 8 | B9: عبد الرحمن محمود عثمان | C9: 596 | G9: 0 | H9: 12 | I9: 8 | J9: =LOOKUP(L9,[1]Rank!$B$9:$B$782,[1]Rank!$E$9:$E$782) -> * | K9: =LOOKUP(L9,[1]Rank!$B$9:$B$782,[1]Rank!$F$9:$F$782) -> علاء شوقي جبريل | L9: 361
A10: 9 | B10: عمرو محمد مصطفى | C10: -- | D10: 3 | F10: طارق عبد الغني محمد السحار | G10: 671 | H10: 26 | I10: 9 | J10: =LOOKUP(L10,[1]Rank!$B$9:$B$782,[1]Rank!$E$9:$E$782) -> * | K10: =LOOKUP(L10,[1]Rank!$B$9:$B$782,[1]Rank!$F$9:$F$782) -> معتز محمد محمد عبد المنعم محمد | L10: 351
A11: 10 | B11: تامر تيمور شكري | C11: 318 | F11: محمد محمود محمد فضل | G11: 379 | H11: 29 | I11: 10 | J11: =LOOKUP(L11,[1]Rank!$B$9:$B$782,[1]Rank!$E$9:$E$782) -> * | K11: =LOOKUP(L11,[1]Rank!$B$9:$B$782,[1]Rank!$F$9:$F$782) -> أحمد جميل السيد | L11: 368
A12: 11 | B12: هيثم العشماوي | C12: 300 | F12: تامر تيمور شكري | G12: 318 | H12: 19 | I12: 11 | J12: =LOOKUP(L12,[1]Rank!$B$9:$B$782,[1]Rank!$E$9:$E$782) -> * | K12: =LOOKUP(L12,[1]Rank!$B$9:$B$782,[1]Rank!$F$9:$F$782) -> مصطفى محمد علي شرف | L12: 449
A13: 12 | B13: أحمد علي السيد شرع | C13: 536 | F13: هيثم عباس عبد الباري العشماوي | G13: 300 | H13: 3 | I13: 12 | J13: =LOOKUP(L13,[1]Rank!$B$9:$B$782,[1]Rank!$E$9:$E$782) ->  | K13: =LOOKUP(L13,[1]Rank!$B$9:$B$782,[1]Rank!$F$9:$F$782) -> 
A14: 13 | B14: عمرو سمير دسوقي | C14: 709 | D14: 4 | F14: أحمد علي السيد علي شرع | G14: 536 | H14: 13 | I14: 13 | J14: =LOOKUP(L14,[1]Rank!$B$9:$B$782,[1]Rank!$E$9:$E$782) -> * | K14: =LOOKUP(L14,[1]Rank!$B$9:$B$782,[1]Rank!$F$9:$F$782) -> أحمد علي السيد علي شرع | L14: 536
A15: 14 | B15: أحمد محمد محمدي | C15: 356 | F15: أحمد فؤاد حسنين | G15: 363 | H15: 40 | I15: 14 | J15: =LOOKUP(L15,[1]Rank!$B$9:$B$782,[1]Rank!$E$9:$E$782) -> * | K15: =LOOKUP(L15,[1]Rank!$B$9:$B$782,[1]Rank!$F$9:$F$782) -> مينا ناجح صبحي | L15: 611
A16: 15 | B16: حسام الدين صلاح أبو الفتوح | C16: 362 | F16: أحمد محمد محمدي يوسف | G16: 356 | H16: 25 | I16: 15 | J16: =LOOKUP(L16,[1]Rank!$B$9:$B$782,[1]Rank!$E$9:$E$782) ->  | K16: جمال احمد محمد جمال | L16: --
A17: 16 | B17: طارق عبد الغني السحار | C17: 671 | F17: حسام الدين صلاح أبو الفتوح | G17: 362 | H17: 36 | I17: 16 | J17: =LOOKUP(L17,[1]Rank!$B$9:$B$782,[1]Rank!$E$9:$E$782) ->  | K17: اسلام نصر الغنام | L17: --
A18: 17 | B18: مينا ناجح صبحي | C18: 611 | D18: 5 | F18: أحمد إبراهيم غانم | G18: 366 | H18: 4 | I18: 17 | J18: =LOOKUP(L18,[1]Rank!$B$9:$B$782,[1]Rank!$E$9:$E$782) ->  | K18: عمرو محمد مصطفى | L18: --
A19: 18 | B19: وليد شعبان إسماعيل علي | C19: 450 | F19: مينا ناجح صبحي | G19: 611 | H19: 14 | I19: 18 | J19: =LOOKUP(L19,[1]Rank!$B$9:$B$782,[1]Rank!$E$9:$E$782) -> * | K19: =LOOKUP(L19,[1]Rank!$B$9:$B$782,[1]Rank!$F$9:$F$782) -> محمد احمد محمد البربري | L19: 699
A20: 19 | B20: محمد أحمد محمد عبد الله | C20: 360 | F20: توفيق حسين توفيق | G20: 369 | H20: 30 | I20: 19 | J20: =LOOKUP(L20,[1]Rank!$B$9:$B$782,[1]Rank!$E$9:$E$782) -> * | K20: =LOOKUP(L20,[1]Rank!$B$9:$B$782,[1]Rank!$F$9:$F$782) -> تامر تيمور شكري | L20: 318
A21: 20 | B21: عصام الدين محمد عبد العاطي | C21: 467 | F21: عصام الدسوقي | G21: -- | H21: 39 | I21: 20 | J21: =LOOKUP(L21,[1]Rank!$B$9:$B$782,[1]Rank!$E$9:$E$782) -> * | K21: =LOOKUP(L21,[1]Rank!$B$9:$B$782,[1]Rank!$F$9:$F$782) -> يامن محمد حسن | L21: 350
A22: 21 | B22: محمد طارق عبد الله | C22: 367 | D22: 6 | F22: إسلام أحمد السيد قنديل | G22: 387 | H22: 24 | I22: 21 | J22: =LOOKUP(L22,[1]Rank!$B$9:$B$782,[1]Rank!$E$9:$E$782) -> * | K22: =LOOKUP(L22,[1]Rank!$B$9:$B$782,[1]Rank!$F$9:$F$782) -> عصام الدين محمد عبد العاطي | L22: 467
A23: 22 | B23: يوسف مسعد فراج | C23: 735 | F23: محمد طارق عبد الله | G23: 367 | H23: 37 | I23: 22 | J23: =LOOKUP(L23,[1]Rank!$B$9:$B$782,[1]Rank!$E$9:$E$782) -> * | K23: =LOOKUP(L23,[1]Rank!$B$9:$B$782,[1]Rank!$F$9:$F$782) -> محمد سعيد زكي الفطاطري | L23: 550
A24: 23 | B24: جمال احمد محمد جمال | C24: -- | F24: يوسف مسعد فراج | G24: 735 | H24: 5 | I24: 23 | J24: =LOOKUP(L24,[1]Rank!$B$9:$B$782,[1]Rank!$E$9:$E$782) -> * | K24: =LOOKUP(L24,[1]Rank!$B$9:$B$782,[1]Rank!$F$9:$F$782) -> خالد حمدي محمد السيد | L24: 316
A25: 24 | B25: يامن محمد حسن | C25: 350 | F25: جمال احمد محمد جمال | G25: -- | H25: 15 | I25: 24 | J25: =LOOKUP(L25,[1]Rank!$B$9:$B$782,[1]Rank!$E$9:$E$782) -> * | K25: =LOOKUP(L25,[1]Rank!$B$9:$B$782,[1]Rank!$F$9:$F$782) -> إسلام أحمد السيد قنديل | L25: 387
A26: 25 | B26: خالد حمدي محمد السيد | C26: 316 | D26: 7 | F26: يامن محمد حسن | G26: 350 | H26: 20 | I26: 25 | J26: =LOOKUP(L26,[1]Rank!$B$9:$B$782,[1]Rank!$E$9:$E$782) -> * | K26: =LOOKUP(L26,[1]Rank!$B$9:$B$782,[1]Rank!$F$9:$F$782) -> أحمد محمد محمدي يوسف | L26: 356
A27: 26 | B27: علاء شوقي جبريل | C27: 361 | F27: خالد حمدي محمد السيد | G27: 316 | H27: 23 | I27: 26 | J27: =LOOKUP(L27,[1]Rank!$B$9:$B$782,[1]Rank!$E$9:$E$782) -> * | K27: =LOOKUP(L27,[1]Rank!$B$9:$B$782,[1]Rank!$F$9:$F$782) -> طارق عبد الغني محمد السحار | L27: 671
A28: 27 | B28: أحمد سمير خلف على | C28: 706 | F28: أحمد محمود عبد الفتاح عرفة | G28: 588 | H28: 31 | I28: 27 | J28: =LOOKUP(L28,[1]Rank!$B$9:$B$782,[1]Rank!$E$9:$E$782) -> * | K28: =LOOKUP(L28,[1]Rank!$B$9:$B$782,[1]Rank!$F$9:$F$782) -> أحمد محمد حمدي صالح | L28: 396
A29: 28 | B29: محمد حسن عبد القادر | C29: 310 | F29: إبراهيم محمد | G29: -- | H29: 38 | I29: 28 | J29: =LOOKUP(L29,[1]Rank!$B$9:$B$782,[1]Rank!$E$9:$E$782) -> * | K29: =LOOKUP(L29,[1]Rank!$B$9:$B$782,[1]Rank!$F$9:$F$782) -> أحمد محمد أمين | L29: 358
A30: 29 | B30: اسلام نصر الغنام | C30: -- | D30: 8 | F30: محمد حسن عبد القادر إبراهيم حسن | G30: 310 | H30: 6 | I30: 29 | J30: =LOOKUP(L30,[1]Rank!$B$9:$B$782,[1]Rank!$E$9:$E$782) -> * | K30: =LOOKUP(L30,[1]Rank!$B$9:$B$782,[1]Rank!$F$9:$F$782) -> محمد محمود محمد فضل | L30: 379
A31: 30 | B31: محمد سعيد الفطاطري | C31: 550 | F31: اسلام نصر الغنام | G31: -- | H31: 16 | I31: 30 | J31: =LOOKUP(L31,[1]Rank!$B$9:$B$782,[1]Rank!$E$9:$E$782) -> * | K31: =LOOKUP(L31,[1]Rank!$B$9:$B$782,[1]Rank!$F$9:$F$782) -> توفيق حسين توفيق | L31: 369
A32: 31 | B32: أحمد بسيوني | C32: 399 | F32: محمد سعيد زكي الفطاطري | G32: 550 | H32: 22 | I32: 31 | J32: =LOOKUP(L32,[1]Rank!$B$9:$B$782,[1]Rank!$E$9:$E$782) -> * | K32: =LOOKUP(L32,[1]Rank!$B$9:$B$782,[1]Rank!$F$9:$F$782) -> أحمد محمود عبد الفتاح عرفة | L32: 588
A33: 32 | B33: أمير محمد خطاب | C33: 200 | F33: أحمد شيرين محمود عز الدين بسيوني | G33: 399 | H33: 32 | I33: 32 | J33: =LOOKUP(L33,[1]Rank!$B$9:$B$782,[1]Rank!$E$9:$E$782) -> * | K33: =LOOKUP(L33,[1]Rank!$B$9:$B$782,[1]Rank!$F$9:$F$782) -> أحمد شيرين محمود عز الدين بسيوني | L33: 399
A34: 33 | B34: أحمد إبراهيم غانم | C34: 366 | D34: 9 | F34: =LOOKUP(H34,$I$2:$I$161,$K$2:$K$161) -> أمير محمد خطاب | G34: =LOOKUP(H34,$I$2:$I$161,$L$2:$L$161) -> 200 | H34: 7 | I34: 33 | J34: =LOOKUP(L34,[1]Rank!$B$9:$B$782,[1]Rank!$E$9:$E$782) -> * | K34: =LOOKUP(L34,[1]Rank!$B$9:$B$782,[1]Rank!$F$9:$F$782) -> عبد الرحمن محمود عبد السميع عثمان | L34: 596
A35: 34 | B35: شريف حلمي | C35: 501 | F35: عمرو محمد مصطفى | G35: -- | H35: 17 | I35: 34 | J35: =LOOKUP(L35,[1]Rank!$B$9:$B$782,[1]Rank!$E$9:$E$782) -> * | K35: =LOOKUP(L35,[1]Rank!$B$9:$B$782,[1]Rank!$F$9:$F$782) -> إبراهيم عرفان السقا | L35: 721
A36: 35 | B36: أحمد فؤاد حسنين | C36: 363 | F36: عمرو سمير دسوقي | G36: 709 | H36: 35 | I36: 35 | J36: =LOOKUP(L36,[1]Rank!$B$9:$B$782,[1]Rank!$E$9:$E$782) -> 0 | K36: =LOOKUP(L36,[1]Rank!$B$9:$B$782,[1]Rank!$F$9:$F$782) -> عمرو سمير دسوقي | L36: 709
A37: 36 | B37: محمد محمود فضل | C37: 379 | F37: عصام الدين محمد عبد العاطي | G37: 467 | H37: 21 | I37: 36 | J37: =LOOKUP(L37,[1]Rank!$B$9:$B$782,[1]Rank!$E$9:$E$782) -> * | K37: =LOOKUP(L37,[1]Rank!$B$9:$B$782,[1]Rank!$F$9:$F$782) -> حسام الدين صلاح أبو الفتوح | L37: 362
A38: 37 | D38: 10 | F38: علاء شوقي جبريل | G38: 361 | H38: 8 | I38: 37 | J38: =LOOKUP(L38,[1]Rank!$B$9:$B$782,[1]Rank!$E$9:$E$782) -> * | K38: =LOOKUP(L38,[1]Rank!$B$9:$B$782,[1]Rank!$F$9:$F$782) -> محمد طارق عبد الله | L38: 367
A39: 38 | F39: محمد احمد محمد البربري | G39: 699 | H39: 18 | I39: 38 | J39: =LOOKUP(L39,[1]Rank!$B$9:$B$782,[1]Rank!$E$9:$E$782) ->  | K39: إبراهيم محمد | L39: --
A40: 39 | F40: عبد الرحمن محمود عبد السميع عثمان | G40: 596 | H40: 33 | I40: 39 | J40: =LOOKUP(L40,[1]Rank!$B$9:$B$782,[1]Rank!$E$9:$E$782) ->  | K40: عصام الدسوقي | L40: --
A41: 40 | F41: إبراهيم عرفان السقا | G41: 721 | H41: 34 | I41: 40 | J41: =LOOKUP(L41,[1]Rank!$B$9:$B$782,[1]Rank!$E$9:$E$782) -> * | K41: =LOOKUP(L41,[1]Rank!$B$9:$B$782,[1]Rank!$F$9:$F$782) -> أحمد فؤاد حسنين | L41: 363
A42: 41 | D42: 11 | F42: أحمد حجازي | G42: 322 | H42: 41 | I42: 41 | J42: =LOOKUP(L42,[1]Rank!$B$9:$B$782,[1]Rank!$E$9:$E$782) -> * | K42: =LOOKUP(L42,[1]Rank!$B$9:$B$782,[1]Rank!$F$9:$F$782) -> أحمد حجازي | L42: 322
A43: 42 | F43: محمد أحمد محمد عبد الله | G43: 360 | H43: 42 | I43: 42 | J43: =LOOKUP(L43,[1]Rank!$B$9:$B$782,[1]Rank!$E$9:$E$782) -> * | K43: =LOOKUP(L43,[1]Rank!$B$9:$B$782,[1]Rank!$F$9:$F$782) -> محمد أحمد محمد عبد الله | L43: 360
A44: 43 | F44: أحمد سمير خلف على | G44: 706 | H44: 43 | I44: 43 | J44: =LOOKUP(L44,[1]Rank!$B$9:$B$782,[1]Rank!$E$9:$E$782) -> 0 | K44: =LOOKUP(L44,[1]Rank!$B$9:$B$782,[1]Rank!$F$9:$F$782) -> أحمد سمير خلف على | L44: 706
A45: 44 | F45: وليد شعبان إسماعيل علي | G45: 450 | H45: 44 | I45: 44 | J45: =LOOKUP(L45,[1]Rank!$B$9:$B$782,[1]Rank!$E$9:$E$782) -> 0 | K45: =LOOKUP(L45,[1]Rank!$B$9:$B$782,[1]Rank!$F$9:$F$782) -> وليد شعبان إسماعيل علي | L45: 450
A46: 45 | D46: 12 | G46: 0 | H46: 45 | I46: 45 | J46: =LOOKUP(L46,[1]Rank!$B$9:$B$782,[1]Rank!$E$9:$E$782) ->  | K46: =LOOKUP(L46,[1]Rank!$B$9:$B$782,[1]Rank!$F$9:$F$782) -> 
A47: 46 | G47: 0 | H47: 46 | I47: 46 | J47: =LOOKUP(L47,[1]Rank!$B$9:$B$782,[1]Rank!$E$9:$E$782) ->  | K47: =LOOKUP(L47,[1]Rank!$B$9:$B$782,[1]Rank!$F$9:$F$782) -> 
A48: 47 | G48: 0 | H48: 47 | I48: 47 | J48: =LOOKUP(L48,[1]Rank!$B$9:$B$782,[1]Rank!$E$9:$E$782) ->  | K48: =LOOKUP(L48,[1]Rank!$B$9:$B$782,[1]Rank!$F$9:$F$782) -> 
A49: 48 | G49: 0 | H49: 48 | I49: 48 | J49: =LOOKUP(L49,[1]Rank!$B$9:$B$782,[1]Rank!$E$9:$E$782) ->  | K49: =LOOKUP(L49,[1]Rank!$B$9:$B$782,[1]Rank!$F$9:$F$782) -> 
A50: 49 | D50: 13 | I50: 49 | J50: =LOOKUP(L50,[1]Rank!$B$9:$B$782,[1]Rank!$E$9:$E$782) ->  | K50: =LOOKUP(L50,[1]Rank!$B$9:$B$782,[1]Rank!$F$9:$F$782) -> 
A51: 50 | I51: 50 | J51: =LOOKUP(L51,[1]Rank!$B$9:$B$782,[1]Rank!$E$9:$E$782) ->  | K51: =LOOKUP(L51,[1]Rank!$B$9:$B$782,[1]Rank!$F$9:$F$782) -> 
A52: 51 | I52: 51 | J52: =LOOKUP(L52,[1]Rank!$B$9:$B$782,[1]Rank!$E$9:$E$782) ->  | K52: =LOOKUP(L52,[1]Rank!$B$9:$B$782,[1]Rank!$F$9:$F$782) -> 
A53: 52 | I53: 52 | J53: =LOOKUP(L53,[1]Rank!$B$9:$B$782,[1]Rank!$E$9:$E$782) ->  | K53: =LOOKUP(L53,[1]Rank!$B$9:$B$782,[1]Rank!$F$9:$F$782) -> 
A54: 53 | D54: 14 | I54: 53 | J54: =LOOKUP(L54,[1]Rank!$B$9:$B$782,[1]Rank!$E$9:$E$782) ->  | K54: =LOOKUP(L54,[1]Rank!$B$9:$B$782,[1]Rank!$F$9:$F$782) -> 
A55: 54 | I55: 54 | J55: =LOOKUP(L55,[1]Rank!$B$9:$B$782,[1]Rank!$E$9:$E$782) ->  | K55: =LOOKUP(L55,[1]Rank!$B$9:$B$782,[1]Rank!$F$9:$F$782) -> 
A56: 55 | I56: 55 | J56: =LOOKUP(L56,[1]Rank!$B$9:$B$782,[1]Rank!$E$9:$E$782) ->  | K56: =LOOKUP(L56,[1]Rank!$B$9:$B$782,[1]Rank!$F$9:$F$782) -> 
A57: 56 | I57: 56 | J57: =LOOKUP(L57,[1]Rank!$B$9:$B$782,[1]Rank!$E$9:$E$782) ->  | K57: =LOOKUP(L57,[1]Rank!$B$9:$B$782,[1]Rank!$F$9:$F$782) -> 
A58: 57 | D58: 15 | I58: 57 | J58: =LOOKUP(L58,[1]Rank!$B$9:$B$782,[1]Rank!$E$9:$E$782) ->  | K58: =LOOKUP(L58,[1]Rank!$B$9:$B$782,[1]Rank!$F$9:$F$782) -> 
A59: 58 | I59: 58 | J59: =LOOKUP(L59,[1]Rank!$B$9:$B$782,[1]Rank!$E$9:$E$782) ->  | K59: =LOOKUP(L59,[1]Rank!$B$9:$B$782,[1]Rank!$F$9:$F$782) -> 
A60: 59 | I60: 59 | J60: =LOOKUP(L60,[1]Rank!$B$9:$B$782,[1]Rank!$E$9:$E$782) ->  | K60: =LOOKUP(L60,[1]Rank!$B$9:$B$782,[1]Rank!$F$9:$F$782) -> 
A61: 60 | I61: 60 | J61: =LOOKUP(L61,[1]Rank!$B$9:$B$782,[1]Rank!$E$9:$E$782) ->  | K61: =LOOKUP(L61,[1]Rank!$B$9:$B$782,[1]Rank!$F$9:$F$782) -> 
A62: 61 | D62: 16 | I62: 61 | J62: =LOOKUP(L62,[1]Rank!$B$9:$B$782,[1]Rank!$E$9:$E$782) ->  | K62: =LOOKUP(L62,[1]Rank!$B$9:$B$782,[1]Rank!$F$9:$F$782) -> 
A63: 62 | I63: 62 | J63: =LOOKUP(L63,[1]Rank!$B$9:$B$782,[1]Rank!$E$9:$E$782) ->  | K63: =LOOKUP(L63,[1]Rank!$B$9:$B$782,[1]Rank!$F$9:$F$782) -> 
A64: 63 | I64: 63 | J64: =LOOKUP(L64,[1]Rank!$B$9:$B$782,[1]Rank!$E$9:$E$782) ->  | K64: =LOOKUP(L64,[1]Rank!$B$9:$B$782,[1]Rank!$F$9:$F$782) -> 
A65: 64 | I65: 64 | J65: =LOOKUP(L65,[1]Rank!$B$9:$B$782,[1]Rank!$E$9:$E$782) ->  | K65: =LOOKUP(L65,[1]Rank!$B$9:$B$782,[1]Rank!$F$9:$F$782) -> 
A66: 65 | D66: 17 | F66: =LOOKUP(H66,$I$2:$I$161,$K$2:$K$161) ->  | G66: =LOOKUP(H66,$I$2:$I$161,$L$2:$L$161) ->  | I66: 65 | J66: =LOOKUP(L66,[1]Rank!$B$9:$B$782,[1]Rank!$E$9:$E$782) ->  | K66: =LOOKUP(L66,[1]Rank!$B$9:$B$782,[1]Rank!$F$9:$F$782) -> 
A67: 66 | I67: 66 | J67: =LOOKUP(L67,[1]Rank!$B$9:$B$782,[1]Rank!$E$9:$E$782) ->  | K67: =LOOKUP(L67,[1]Rank!$B$9:$B$782,[1]Rank!$F$9:$F$782) -> 
A68: 67 | I68: 67 | J68: =LOOKUP(L68,[1]Rank!$B$9:$B$782,[1]Rank!$E$9:$E$782) ->  | K68: =LOOKUP(L68,[1]Rank!$B$9:$B$782,[1]Rank!$F$9:$F$782) -> 
A69: 68 | I69: 68 | J69: =LOOKUP(L69,[1]Rank!$B$9:$B$782,[1]Rank!$E$9:$E$782) ->  | K69: =LOOKUP(L69,[1]Rank!$B$9:$B$782,[1]Rank!$F$9:$F$782) -> 
A70: 69 | D70: 18 | I70: 69 | J70: =LOOKUP(L70,[1]Rank!$B$9:$B$782,[1]Rank!$E$9:$E$782) ->  | K70: =LOOKUP(L70,[1]Rank!$B$9:$B$782,[1]Rank!$F$9:$F$782) -> 
A71: 70 | I71: 70 | J71: =LOOKUP(L71,[1]Rank!$B$9:$B$782,[1]Rank!$E$9:$E$782) ->  | K71: =LOOKUP(L71,[1]Rank!$B$9:$B$782,[1]Rank!$F$9:$F$782) -> 
A72: 71 | I72: 71 | J72: =LOOKUP(L72,[1]Rank!$B$9:$B$782,[1]Rank!$E$9:$E$782) ->  | K72: =LOOKUP(L72,[1]Rank!$B$9:$B$782,[1]Rank!$F$9:$F$782) -> 
A73: 72 | I73: 72 | J73: =LOOKUP(L73,[1]Rank!$B$9:$B$782,[1]Rank!$E$9:$E$782) ->  | K73: =LOOKUP(L73,[1]Rank!$B$9:$B$782,[1]Rank!$F$9:$F$782) -> 
A74: 73 | D74: 19 | I74: 73 | J74: =LOOKUP(L74,[1]Rank!$B$9:$B$782,[1]Rank!$E$9:$E$782) ->  | K74: =LOOKUP(L74,[1]Rank!$B$9:$B$782,[1]Rank!$F$9:$F$782) -> 
A75: 74 | I75: 74 | J75: =LOOKUP(L75,[1]Rank!$B$9:$B$782,[1]Rank!$E$9:$E$782) ->  | K75: =LOOKUP(L75,[1]Rank!$B$9:$B$782,[1]Rank!$F$9:$F$782) -> 
A76: 75 | I76: 75 | J76: =LOOKUP(L76,[1]Rank!$B$9:$B$782,[1]Rank!$E$9:$E$782) ->  | K76: =LOOKUP(L76,[1]Rank!$B$9:$B$782,[1]Rank!$F$9:$F$782) -> 
A77: 76 | I77: 76 | J77: =LOOKUP(L77,[1]Rank!$B$9:$B$782,[1]Rank!$E$9:$E$782) ->  | K77: =LOOKUP(L77,[1]Rank!$B$9:$B$782,[1]Rank!$F$9:$F$782) -> 
A78: 77 | D78: 20 | I78: 77 | J78: =LOOKUP(L78,[1]Rank!$B$9:$B$782,[1]Rank!$E$9:$E$782) ->  | K78: =LOOKUP(L78,[1]Rank!$B$9:$B$782,[1]Rank!$F$9:$F$782) -> 
A79: 78 | I79: 78 | J79: =LOOKUP(L79,[1]Rank!$B$9:$B$782,[1]Rank!$E$9:$E$782) ->  | K79: =LOOKUP(L79,[1]Rank!$B$9:$B$782,[1]Rank!$F$9:$F$782) -> 
A80: 79 | I80: 79 | J80: =LOOKUP(L80,[1]Rank!$B$9:$B$782,[1]Rank!$E$9:$E$782) ->  | K80: =LOOKUP(L80,[1]Rank!$B$9:$B$782,[1]Rank!$F$9:$F$782) -> 
A81: 80 | I81: 80 | J81: =LOOKUP(L81,[1]Rank!$B$9:$B$782,[1]Rank!$E$9:$E$782) ->  | K81: =LOOKUP(L81,[1]Rank!$B$9:$B$782,[1]Rank!$F$9:$F$782) -> 
A82: 81 | B82: راجي محمد صبحي | C82: 111 | D82: 21 | F82: أحمد عبد العظيم عثمان طنطاوي | G82: 670 | H82: 81 | I82: 81 | J82: =LOOKUP(L82,[1]Rank!$B$9:$B$782,[1]Rank!$E$9:$E$782) -> * | K82: =LOOKUP(L82,[1]Rank!$B$9:$B$782,[1]Rank!$F$9:$F$782) -> أحمد عبد العظيم عثمان طنطاوي | L82: 670
A83: 82 | B83: أحمد صلاح الدين دياب | C83: 510 | F83: أحمد صلاح الدين محمد دياب | G83: 510 | H83: 91 | I83: 82 | J83: =LOOKUP(L83,[1]Rank!$B$9:$B$782,[1]Rank!$E$9:$E$782) ->  | K83: =LOOKUP(L83,[1]Rank!$B$9:$B$782,[1]Rank!$F$9:$F$782) -> 
A84: 83 | B84: أسامة لطفى نجيب | C84: 751 | F84: محمد حسن | G84: -- | H84: 107 | I84: 83 | J84: =LOOKUP(L84,[1]Rank!$B$9:$B$782,[1]Rank!$E$9:$E$782) -> * | K84: =LOOKUP(L84,[1]Rank!$B$9:$B$782,[1]Rank!$F$9:$F$782) -> أحمد مصطفى سعد أحمد راشد | L84: 306
A85: 84 | B85: أحمد عز العرب السماحي | C85: 655 | F85: أحمد عادل عز العرب السماحي | G85: 655 | H85: 90 | I85: 84 | J85: =LOOKUP(L85,[1]Rank!$B$9:$B$782,[1]Rank!$E$9:$E$782) -> * | K85: =LOOKUP(L85,[1]Rank!$B$9:$B$782,[1]Rank!$F$9:$F$782) -> أحمد رمزي الديب | L85: 547
A86: 85 | B86: محمد عبد الهادي أبو القاسم | C86: 393 | D86: 22 | F86: محمد عبد الهادي أحمد أبو القاسم | G86: 393 | H86: 108 | I86: 85 | J86: =LOOKUP(L86,[1]Rank!$B$9:$B$782,[1]Rank!$E$9:$E$782) -> * | K86: =LOOKUP(L86,[1]Rank!$B$9:$B$782,[1]Rank!$F$9:$F$782) -> أحمد محمد شوقى عبد الحميد | L86: 477
A87: 86 | B87: ايهاب يوسف عمارة | C87: 756 | F87: ايهاب يوسف عبد القادرعمارة | G87: 756 | H87: 89 | I87: 86 | J87: =LOOKUP(L87,[1]Rank!$B$9:$B$782,[1]Rank!$E$9:$E$782) -> 0 | K87: =LOOKUP(L87,[1]Rank!$B$9:$B$782,[1]Rank!$F$9:$F$782) -> أحمد عبد العزيز العطار | L87: 572
A88: 87 | B88: ياسر شاهين | C88: 660 | G88: 0 | H88: 82 | I88: 87 | J88: =LOOKUP(L88,[1]Rank!$B$9:$B$782,[1]Rank!$E$9:$E$782) -> * | K88: =LOOKUP(L88,[1]Rank!$B$9:$B$782,[1]Rank!$F$9:$F$782) -> أسامة أحمد زكي محمد | L88: 603
A89: 88 | B89: أحمد علي خليل حسن | C89: 664 | F89: أحمد علي خليل حسن | G89: 664 | H89: 92 | I89: 88 | J89: =LOOKUP(L89,[1]Rank!$B$9:$B$782,[1]Rank!$E$9:$E$782) -> * | K89: =LOOKUP(L89,[1]Rank!$B$9:$B$782,[1]Rank!$F$9:$F$782) -> أسامة لطفى نجيب | L89: 751
A90: 89 | B90: محمد بلبع | C90: 324 | D90: 23 | F90: محمد بلبع | G90: 324 | H90: 106 | I90: 89 | J90: =LOOKUP(L90,[1]Rank!$B$9:$B$782,[1]Rank!$E$9:$E$782) -> * | K90: =LOOKUP(L90,[1]Rank!$B$9:$B$782,[1]Rank!$F$9:$F$782) -> ايهاب يوسف عبد القادرعمارة | L90: 756
A91: 90 | B91: محمد علي حسن طه الأمام | C91: 305 | F91: محمد علي حسن طه الأمام | G91: 305 | H91: 109 | I91: 90 | J91: =LOOKUP(L91,[1]Rank!$B$9:$B$782,[1]Rank!$E$9:$E$782) -> * | K91: =LOOKUP(L91,[1]Rank!$B$9:$B$782,[1]Rank!$F$9:$F$782) -> أحمد عادل عز العرب السماحي | L91: 655
A92: 91 | B92: عماد محمد فؤاد مرسي | C92: 681 | F92: عماد محمد فؤاد مرسي | G92: 681 | H92: 99 | I92: 91 | J92: =LOOKUP(L92,[1]Rank!$B$9:$B$782,[1]Rank!$E$9:$E$782) -> * | K92: =LOOKUP(L92,[1]Rank!$B$9:$B$782,[1]Rank!$F$9:$F$782) -> أحمد صلاح الدين محمد دياب | L92: 510
A93: 92 | B93: أحمد مصطفى راشد | C93: 306 | F93: أحمد مصطفى سعد أحمد راشد | G93: 306 | H93: 83 | I93: 92 | J93: =LOOKUP(L93,[1]Rank!$B$9:$B$782,[1]Rank!$E$9:$E$782) -> * | K93: =LOOKUP(L93,[1]Rank!$B$9:$B$782,[1]Rank!$F$9:$F$782) -> أحمد علي خليل حسن | L93: 664
A94: 93 | B94: جمال السيد توفيق | C94: 758 | D94: 24 | F94: جمال السيد توفيق | G94: 758 | H94: 93 | I94: 93 | J94: =LOOKUP(L94,[1]Rank!$B$9:$B$782,[1]Rank!$E$9:$E$782) -> * | K94: =LOOKUP(L94,[1]Rank!$B$9:$B$782,[1]Rank!$F$9:$F$782) -> جمال السيد توفيق | L94: 758
A95: 94 | B95: محمد عصام الدين القاضي | C95: 304 | G95: 0 | H95: 120 | I95: 94 | J95: =LOOKUP(L95,[1]Rank!$B$9:$B$782,[1]Rank!$E$9:$E$782) -> * | K95: =LOOKUP(L95,[1]Rank!$B$9:$B$782,[1]Rank!$F$9:$F$782) -> خالد محمد شبارة | L95: 6
A96: 95 | B96: احمد طنطاوى | C96: 670 | F96: محمد عصام الدين محمد القاضي | G96: 304 | H96: 105 | I96: 95 | J96: =LOOKUP(L96,[1]Rank!$B$9:$B$782,[1]Rank!$E$9:$E$782) -> * | K96: =LOOKUP(L96,[1]Rank!$B$9:$B$782,[1]Rank!$F$9:$F$782) -> سامي محمود عادل الفولي | L96: 383
A97: 96 | B97: أحمد رمزي الديب | C97: 547 | F97: راجي محمد صبحي | G97: 111 | H97: 116 | I97: 96 | J97: =LOOKUP(L97,[1]Rank!$B$9:$B$782,[1]Rank!$E$9:$E$782) -> * | K97: =LOOKUP(L97,[1]Rank!$B$9:$B$782,[1]Rank!$F$9:$F$782) -> شادي أحمد محمود وهبة | L97: 458
A98: 97 | B98: خالد محمد شبارة | C98: 6 | D98: 25 | F98: =LOOKUP(H98,$I$2:$I$161,$K$2:$K$161) -> أحمد رمزي الديب | G98: =LOOKUP(H98,$I$2:$I$161,$L$2:$L$161) -> 547 | H98: 84 | I98: 97 | J98: =LOOKUP(L98,[1]Rank!$B$9:$B$782,[1]Rank!$E$9:$E$782) -> * | K98: =LOOKUP(L98,[1]Rank!$B$9:$B$782,[1]Rank!$F$9:$F$782) -> عادل محمد أبو زيد | L98: 757
A99: 98 | B99: محمد محمود شعبان رمضان | C99: 486 | F99: خالد محمد شبارة | G99: 6 | H99: 94 | I99: 98 | J99: =LOOKUP(L99,[1]Rank!$B$9:$B$782,[1]Rank!$E$9:$E$782) -> * | K99: =LOOKUP(L99,[1]Rank!$B$9:$B$782,[1]Rank!$F$9:$F$782) -> عصام الدين حامد أحمد منصور | L99: 302
A100: 99 | B100: ماجد محمد فكري | C100: 649 | F100: محمد محمود شعبان رمضان | G100: 486 | H100: 110 | I100: 99 | J100: =LOOKUP(L100,[1]Rank!$B$9:$B$782,[1]Rank!$E$9:$E$782) -> * | K100: =LOOKUP(L100,[1]Rank!$B$9:$B$782,[1]Rank!$F$9:$F$782) -> عماد محمد فؤاد مرسي | L100: 681
A101: 100 | B101: عبد الرحمن الدمراوى | C101: - | G101: 0 | H101: 119 | I101: 100 | J101: =LOOKUP(L101,[1]Rank!$B$9:$B$782,[1]Rank!$E$9:$E$782) -> * | K101: =LOOKUP(L101,[1]Rank!$B$9:$B$782,[1]Rank!$F$9:$F$782) -> عمرو عماد الدين أبو العلا | L101: 454
A102: 101 | B102: أحمد محمد شوقى عبد الحميد | C102: 477 | D102: 26 | F102: ماجد محمد فكري إبراهيم | G102: 649 | H102: 104 | I102: 101 | J102: =LOOKUP(L102,[1]Rank!$B$9:$B$782,[1]Rank!$E$9:$E$782) -> * | K102: =LOOKUP(L102,[1]Rank!$B$9:$B$782,[1]Rank!$F$9:$F$782) -> عمرو محمد محسن فرج | L102: 390
A103: 102 | B103: سامي محمود الفولي | C103: 383 | F103: عادل تادرس مرقص | G103: 556 | H103: 117 | I103: 102 | J103: =LOOKUP(L103,[1]Rank!$B$9:$B$782,[1]Rank!$E$9:$E$782) ->  | K103: كريم احمد ناصر | L103: --
A104: 103 | B104: عمرو عماد الدين أبو العلا | C104: 454 | F104: أحمد محمد شوقى عبد الحميد | G104: 477 | H104: 85 | I104: 103 | J104: =LOOKUP(L104,[1]Rank!$B$9:$B$782,[1]Rank!$E$9:$E$782) -> * | K104: =LOOKUP(L104,[1]Rank!$B$9:$B$782,[1]Rank!$F$9:$F$782) -> كريم إيهاب عامر | L104: 606
A105: 104 | B105: كريم إيهاب عامر | C105: 606 | F105: سامي محمود عادل الفولي | G105: 383 | H105: 95 | I105: 104 | J105: =LOOKUP(L105,[1]Rank!$B$9:$B$782,[1]Rank!$E$9:$E$782) -> * | K105: =LOOKUP(L105,[1]Rank!$B$9:$B$782,[1]Rank!$F$9:$F$782) -> ماجد محمد فكري إبراهيم | L105: 649
A106: 105 | B106: مصطفى عبد الحفيظ علي | C106: 669 | D106: 27 | F106: عمرو عماد الدين أبو العلا | G106: 454 | H106: 100 | I106: 105 | J106: =LOOKUP(L106,[1]Rank!$B$9:$B$782,[1]Rank!$E$9:$E$782) -> * | K106: =LOOKUP(L106,[1]Rank!$B$9:$B$782,[1]Rank!$F$9:$F$782) -> محمد عصام الدين محمد القاضي | L106: 304
A107: 106 | B107: أحمد عبد العزيز العطار | C107: 572 | F107: كريم إيهاب عامر | G107: 606 | H107: 103 | I107: 106 | J107: =LOOKUP(L107,[1]Rank!$B$9:$B$782,[1]Rank!$E$9:$E$782) -> * | K107: =LOOKUP(L107,[1]Rank!$B$9:$B$782,[1]Rank!$F$9:$F$782) -> محمد بلبع | L107: 324
A108: 107 | B108: شادي أحمد محمود وهبة | C108: 458 | F108: مصطفى عبد الحفيظ علي | G108: 669 | H108: 111 | I108: 107 | J108: =LOOKUP(L108,[1]Rank!$B$9:$B$782,[1]Rank!$E$9:$E$782) ->  | K108: محمد حسن | L108: --
A109: 108 | B109: كريم احمد ناصر | C109: -- | G109: 0 | H109: 118 | I109: 108 | J109: =LOOKUP(L109,[1]Rank!$B$9:$B$782,[1]Rank!$E$9:$E$782) -> * | K109: =LOOKUP(L109,[1]Rank!$B$9:$B$782,[1]Rank!$F$9:$F$782) -> محمد عبد الهادي أحمد أبو القاسم | L109: 393
A110: 109 | B110: نبيل خلف زكي | C110: 392 | D110: 28 | F110: أحمد عبد العزيز العطار | G110: 572 | H110: 86 | I110: 109 | J110: =LOOKUP(L110,[1]Rank!$B$9:$B$782,[1]Rank!$E$9:$E$782) -> * | K110: =LOOKUP(L110,[1]Rank!$B$9:$B$782,[1]Rank!$F$9:$F$782) -> محمد علي حسن طه الأمام | L110: 305
A111: 110 | B111: أسامة أحمد زكي | C111: 603 | F111: شادي أحمد محمود وهبة | G111: 458 | H111: 96 | I111: 110 | J111: =LOOKUP(L111,[1]Rank!$B$9:$B$782,[1]Rank!$E$9:$E$782) -> * | K111: =LOOKUP(L111,[1]Rank!$B$9:$B$782,[1]Rank!$F$9:$F$782) -> محمد محمود شعبان رمضان | L111: 486
A112: 111 | B112: عادل محمد أبو زيد | C112: 757 | F112: كريم احمد ناصر | G112: -- | H112: 102 | I112: 111 | J112: =LOOKUP(L112,[1]Rank!$B$9:$B$782,[1]Rank!$E$9:$E$782) -> * | K112: =LOOKUP(L112,[1]Rank!$B$9:$B$782,[1]Rank!$F$9:$F$782) -> مصطفى عبد الحفيظ علي | L112: 669
A113: 112 | B113: عمرو محمد محسن | C113: 390 | F113: نبيل خلف زكي حسنين | G113: 392 | H113: 112 | I113: 112 | J113: =LOOKUP(L113,[1]Rank!$B$9:$B$782,[1]Rank!$E$9:$E$782) -> * | K113: =LOOKUP(L113,[1]Rank!$B$9:$B$782,[1]Rank!$F$9:$F$782) -> نبيل خلف زكي حسنين | L113: 392
A114: 113 | B114: محمد حسن فهيم | C114: جديد | D114: 29 | F114: أسامة أحمد زكي محمد | G114: 603 | H114: 87 | I114: 113 | J114: =LOOKUP(L114,[1]Rank!$B$9:$B$782,[1]Rank!$E$9:$E$782) -> * | K114: =LOOKUP(L114,[1]Rank!$B$9:$B$782,[1]Rank!$F$9:$F$782) -> هشام علي حسن أبو غربية | L114: 389
A115: 114 | B115: احمد سردينة | C115: 317 | F115: عادل محمد أبو زيد | G115: 757 | H115: 97 | I115: 114 | J115: =LOOKUP(L115,[1]Rank!$B$9:$B$782,[1]Rank!$E$9:$E$782) -> * | K115: =LOOKUP(L115,[1]Rank!$B$9:$B$782,[1]Rank!$F$9:$F$782) -> ياسر شاهين | L115: 660
A116: 115 | B116: خالد عبد العظيم | C116: - | F116: فؤاد عزت الضلعي | G116: 250 | H116: 115 | I116: 115 | J116: =LOOKUP(L116,[1]Rank!$B$9:$B$782,[1]Rank!$E$9:$E$782) -> * | K116: =LOOKUP(L116,[1]Rank!$B$9:$B$782,[1]Rank!$F$9:$F$782) -> فؤاد عزت الضلعي | L116: 250
A117: 116 | B117: اسامة قاسم | C117: - | F117: هشام علي حسن أبو غربية | G117: 389 | H117: 113 | I117: 116 | J117: =LOOKUP(L117,[1]Rank!$B$9:$B$782,[1]Rank!$E$9:$E$782) -> * | K117: =LOOKUP(L117,[1]Rank!$B$9:$B$782,[1]Rank!$F$9:$F$782) -> راجي محمد صبحي | L117: 111
A118: 117 | D118: 30 | F118: أسامة لطفى نجيب | G118: 751 | H118: 88 | I118: 117 | J118: =LOOKUP(L118,[1]Rank!$B$9:$B$782,[1]Rank!$E$9:$E$782) -> * | K118: =LOOKUP(L118,[1]Rank!$B$9:$B$782,[1]Rank!$F$9:$F$782) -> عادل تادرس مرقص | L118: 556
A119: 118 | F119: عصام الدين حامد أحمد منصور | G119: 302 | H119: 98 | I119: 118 | J119: =LOOKUP(L119,[1]Rank!$B$9:$B$782,[1]Rank!$E$9:$E$782) ->  | K119: =LOOKUP(L119,[1]Rank!$B$9:$B$782,[1]Rank!$F$9:$F$782) -> 
A120: 119 | F120: عمرو محمد محسن فرج | G120: 390 | H120: 101 | I120: 119 | J120: =LOOKUP(L120,[1]Rank!$B$9:$B$782,[1]Rank!$E$9:$E$782) ->  | K120: =LOOKUP(L120,[1]Rank!$B$9:$B$782,[1]Rank!$F$9:$F$782) -> 
A121: 120 | F121: ياسر شاهين | G121: 660 | H121: 114 | I121: 120 | J121: =LOOKUP(L121,[1]Rank!$B$9:$B$782,[1]Rank!$E$9:$E$782) ->  | K121: =LOOKUP(L121,[1]Rank!$B$9:$B$782,[1]Rank!$F$9:$F$782) -> 
A122: 121 | D122: 31 | G122: 0 | H122: 121 | I122: 121 | J122: =LOOKUP(L122,[1]Rank!$B$9:$B$782,[1]Rank!$E$9:$E$782) ->  | K122: =LOOKUP(L122,[1]Rank!$B$9:$B$782,[1]Rank!$F$9:$F$782) -> 
A123: 122 | G123: 0 | H123: 122 | I123: 122 | J123: =LOOKUP(L123,[1]Rank!$B$9:$B$782,[1]Rank!$E$9:$E$782) ->  | K123: =LOOKUP(L123,[1]Rank!$B$9:$B$782,[1]Rank!$F$9:$F$782) -> 
A124: 123 | G124: 0 | H124: 123 | I124: 123 | J124: =LOOKUP(L124,[1]Rank!$B$9:$B$782,[1]Rank!$E$9:$E$782) ->  | K124: =LOOKUP(L124,[1]Rank!$B$9:$B$782,[1]Rank!$F$9:$F$782) -> 
A125: 124 | G125: 0 | H125: 124 | I125: 124 | J125: =LOOKUP(L125,[1]Rank!$B$9:$B$782,[1]Rank!$E$9:$E$782) ->  | K125: =LOOKUP(L125,[1]Rank!$B$9:$B$782,[1]Rank!$F$9:$F$782) -> 
A126: 125 | D126: 32 | G126: 0 | H126: 125 | I126: 125 | J126: =LOOKUP(L126,[1]Rank!$B$9:$B$782,[1]Rank!$E$9:$E$782) ->  | K126: =LOOKUP(L126,[1]Rank!$B$9:$B$782,[1]Rank!$F$9:$F$782) -> 
A127: 126 | G127: 0 | H127: 126 | I127: 126 | J127: =LOOKUP(L127,[1]Rank!$B$9:$B$782,[1]Rank!$E$9:$E$782) ->  | K127: =LOOKUP(L127,[1]Rank!$B$9:$B$782,[1]Rank!$F$9:$F$782) -> 
A128: 127 | G128: 0 | H128: 127 | I128: 127 | J128: =LOOKUP(L128,[1]Rank!$B$9:$B$782,[1]Rank!$E$9:$E$782) ->  | K128: =LOOKUP(L128,[1]Rank!$B$9:$B$782,[1]Rank!$F$9:$F$782) -> 
A129: 128 | G129: 0 | H129: 128 | I129: 128 | J129: =LOOKUP(L129,[1]Rank!$B$9:$B$782,[1]Rank!$E$9:$E$782) ->  | K129: =LOOKUP(L129,[1]Rank!$B$9:$B$782,[1]Rank!$F$9:$F$782) -> 
A130: 129 | D130: 33 | F130: =LOOKUP(H130,$I$2:$I$161,$K$2:$K$161) ->  | G130: =LOOKUP(H130,$I$2:$I$161,$L$2:$L$161) -> 0 | H130: 129 | I130: 129 | J130: =LOOKUP(L130,[1]Rank!$B$9:$B$782,[1]Rank!$E$9:$E$782) ->  | K130: =LOOKUP(L130,[1]Rank!$B$9:$B$782,[1]Rank!$F$9:$F$782) -> 
A131: 130 | G131: 0 | H131: 130 | I131: 130 | J131: =LOOKUP(L131,[1]Rank!$B$9:$B$782,[1]Rank!$E$9:$E$782) ->  | K131: =LOOKUP(L131,[1]Rank!$B$9:$B$782,[1]Rank!$F$9:$F$782) -> 
A132: 131 | G132: 0 | H132: 131 | I132: 131 | J132: =LOOKUP(L132,[1]Rank!$B$9:$B$782,[1]Rank!$E$9:$E$782) ->  | K132: =LOOKUP(L132,[1]Rank!$B$9:$B$782,[1]Rank!$F$9:$F$782) -> 
A133: 132 | G133: 0 | H133: 132 | I133: 132 | J133: =LOOKUP(L133,[1]Rank!$B$9:$B$782,[1]Rank!$E$9:$E$782) ->  | K133: =LOOKUP(L133,[1]Rank!$B$9:$B$782,[1]Rank!$F$9:$F$782) -> 
A134: 133 | D134: 34 | G134: 0 | H134: 133 | I134: 133 | J134: =LOOKUP(L134,[1]Rank!$B$9:$B$782,[1]Rank!$E$9:$E$782) ->  | K134: =LOOKUP(L134,[1]Rank!$B$9:$B$782,[1]Rank!$F$9:$F$782) -> 
A135: 134 | G135: 0 | H135: 134 | I135: 134 | J135: =LOOKUP(L135,[1]Rank!$B$9:$B$782,[1]Rank!$E$9:$E$782) ->  | K135: =LOOKUP(L135,[1]Rank!$B$9:$B$782,[1]Rank!$F$9:$F$782) -> 
A136: 135 | G136: 0 | H136: 135 | I136: 135 | J136: =LOOKUP(L136,[1]Rank!$B$9:$B$782,[1]Rank!$E$9:$E$782) ->  | K136: =LOOKUP(L136,[1]Rank!$B$9:$B$782,[1]Rank!$F$9:$F$782) -> 
A137: 136 | G137: 0 | H137: 136 | I137: 136 | J137: =LOOKUP(L137,[1]Rank!$B$9:$B$782,[1]Rank!$E$9:$E$782) ->  | K137: =LOOKUP(L137,[1]Rank!$B$9:$B$782,[1]Rank!$F$9:$F$782) -> 
A138: 137 | D138: 35 | I138: 137 | J138: =LOOKUP(L138,[1]Rank!$B$9:$B$782,[1]Rank!$E$9:$E$782) ->  | K138: =LOOKUP(L138,[1]Rank!$B$9:$B$782,[1]Rank!$F$9:$F$782) -> 
A139: 138 | I139: 138 | J139: =LOOKUP(L139,[1]Rank!$B$9:$B$782,[1]Rank!$E$9:$E$782) ->  | K139: =LOOKUP(L139,[1]Rank!$B$9:$B$782,[1]Rank!$F$9:$F$782) -> 
A140: 139 | I140: 139 | J140: =LOOKUP(L140,[1]Rank!$B$9:$B$782,[1]Rank!$E$9:$E$782) ->  | K140: =LOOKUP(L140,[1]Rank!$B$9:$B$782,[1]Rank!$F$9:$F$782) -> 
A141: 140 | I141: 140 | J141: =LOOKUP(L141,[1]Rank!$B$9:$B$782,[1]Rank!$E$9:$E$782) ->  | K141: =LOOKUP(L141,[1]Rank!$B$9:$B$782,[1]Rank!$F$9:$F$782) -> 
A142: 141 | D142: 36 | I142: 141 | J142: =LOOKUP(L142,[1]Rank!$B$9:$B$782,[1]Rank!$E$9:$E$782) ->  | K142: =LOOKUP(L142,[1]Rank!$B$9:$B$782,[1]Rank!$F$9:$F$782) -> 
A143: 142 | I143: 142 | J143: =LOOKUP(L143,[1]Rank!$B$9:$B$782,[1]Rank!$E$9:$E$782) ->  | K143: =LOOKUP(L143,[1]Rank!$B$9:$B$782,[1]Rank!$F$9:$F$782) -> 
A144: 143 | I144: 143 | J144: =LOOKUP(L144,[1]Rank!$B$9:$B$782,[1]Rank!$E$9:$E$782) ->  | K144: =LOOKUP(L144,[1]Rank!$B$9:$B$782,[1]Rank!$F$9:$F$782) -> 
A145: 144 | I145: 144 | J145: =LOOKUP(L145,[1]Rank!$B$9:$B$782,[1]Rank!$E$9:$E$782) ->  | K145: =LOOKUP(L145,[1]Rank!$B$9:$B$782,[1]Rank!$F$9:$F$782) -> 
A146: 145 | D146: 37 | I146: 145 | J146: =LOOKUP(L146,[1]Rank!$B$9:$B$782,[1]Rank!$E$9:$E$782) ->  | K146: =LOOKUP(L146,[1]Rank!$B$9:$B$782,[1]Rank!$F$9:$F$782) -> 
A147: 146 | I147: 146 | J147: =LOOKUP(L147,[1]Rank!$B$9:$B$782,[1]Rank!$E$9:$E$782) ->  | K147: =LOOKUP(L147,[1]Rank!$B$9:$B$782,[1]Rank!$F$9:$F$782) -> 
A148: 147 | I148: 147 | J148: =LOOKUP(L148,[1]Rank!$B$9:$B$782,[1]Rank!$E$9:$E$782) ->  | K148: =LOOKUP(L148,[1]Rank!$B$9:$B$782,[1]Rank!$F$9:$F$782) -> 
A149: 148 | I149: 148 | J149: =LOOKUP(L149,[1]Rank!$B$9:$B$782,[1]Rank!$E$9:$E$782) ->  | K149: =LOOKUP(L149,[1]Rank!$B$9:$B$782,[1]Rank!$F$9:$F$782) -> 
A150: 149 | D150: 38 | I150: 149 | J150: =LOOKUP(L150,[1]Rank!$B$9:$B$782,[1]Rank!$E$9:$E$782) ->  | K150: =LOOKUP(L150,[1]Rank!$B$9:$B$782,[1]Rank!$F$9:$F$782) -> 
A151: 150 | I151: 150 | J151: =LOOKUP(L151,[1]Rank!$B$9:$B$782,[1]Rank!$E$9:$E$782) ->  | K151: =LOOKUP(L151,[1]Rank!$B$9:$B$782,[1]Rank!$F$9:$F$782) -> 
A152: 151 | I152: 151 | J152: =LOOKUP(L152,[1]Rank!$B$9:$B$782,[1]Rank!$E$9:$E$782) ->  | K152: =LOOKUP(L152,[1]Rank!$B$9:$B$782,[1]Rank!$F$9:$F$782) -> 
A153: 152 | I153: 152 | J153: =LOOKUP(L153,[1]Rank!$B$9:$B$782,[1]Rank!$E$9:$E$782) ->  | K153: =LOOKUP(L153,[1]Rank!$B$9:$B$782,[1]Rank!$F$9:$F$782) -> 
A154: 153 | D154: 39 | I154: 153 | J154: =LOOKUP(L154,[1]Rank!$B$9:$B$782,[1]Rank!$E$9:$E$782) ->  | K154: =LOOKUP(L154,[1]Rank!$B$9:$B$782,[1]Rank!$F$9:$F$782) -> 
A155: 154 | I155: 154 | J155: =LOOKUP(L155,[1]Rank!$B$9:$B$782,[1]Rank!$E$9:$E$782) ->  | K155: =LOOKUP(L155,[1]Rank!$B$9:$B$782,[1]Rank!$F$9:$F$782) -> 
A156: 155 | I156: 155 | J156: =LOOKUP(L156,[1]Rank!$B$9:$B$782,[1]Rank!$E$9:$E$782) ->  | K156: =LOOKUP(L156,[1]Rank!$B$9:$B$782,[1]Rank!$F$9:$F$782) -> 
A157: 156 | I157: 156 | J157: =LOOKUP(L157,[1]Rank!$B$9:$B$782,[1]Rank!$E$9:$E$782) ->  | K157: =LOOKUP(L157,[1]Rank!$B$9:$B$782,[1]Rank!$F$9:$F$782) -> 
A158: 157 | D158: 40 | I158: 157 | J158: =LOOKUP(L158,[1]Rank!$B$9:$B$782,[1]Rank!$E$9:$E$782) ->  | K158: =LOOKUP(L158,[1]Rank!$B$9:$B$782,[1]Rank!$F$9:$F$782) -> 
A159: 158 | I159: 158 | J159: =LOOKUP(L159,[1]Rank!$B$9:$B$782,[1]Rank!$E$9:$E$782) ->  | K159: =LOOKUP(L159,[1]Rank!$B$9:$B$782,[1]Rank!$F$9:$F$782) -> 
A160: 159 | I160: 159 | J160: =LOOKUP(L160,[1]Rank!$B$9:$B$782,[1]Rank!$E$9:$E$782) ->  | K160: =LOOKUP(L160,[1]Rank!$B$9:$B$782,[1]Rank!$F$9:$F$782) -> 
A161: 160 | I161: 160 | J161: =LOOKUP(L161,[1]Rank!$B$9:$B$782,[1]Rank!$E$9:$E$782) ->  | K161: =LOOKUP(L161,[1]Rank!$B$9:$B$782,[1]Rank!$F$9:$F$782) -> 
B162: =COUNTA(B2:B49) -> 36 | C162: =COUNTA(B82:B129) -> 36
B163: =B162/4 -> 9 | C163: =C162/4 -> 9

Sheet Score
G1: ESTIMATION | Q1: بطولة الاتحاد الثامنة للفردي المفتوح | AA1: Date : | AI1: 2023-06-17
A3: Tabel | C3: P. | D3: Names | E3: Round ( 1 ) | I3: P. | J3: Names | K3: Round ( 2 ) | O3: P. | P3: Names | Q3: Round ( 3 ) | V3: P. No. | W3: Names | AA3: F I N A L | AK3: R.
E4: Score | F4: Tab | G4: Axe | H4: TOT | K4: Score | L4: Tab | M4: Axe | N4: TOT | Q4: Score | R4: Tab | S4: Axe | T4: TOT | X4: 1 | Y4: 2 | Z4: 3 | AA4: Score | AB4: 1 | AC4: 2 | AD4: 3 | AE4: Tab | AF4: 1 | AG4: 2 | AH4: 3 | AI4: Axe | AJ4: TOT
A5: Tabel ( 1 ) | B5: N | C5: 1 | D5: =LOOKUP(C5,Names!$A$2:$A$161,Names!$B$2:$B$161) -> إبراهيم عرفان السقا | E5: 135 | F5: 2.85 | G5: 8 | H5: =F5+G5 -> 10.85 | I5: 1 | J5: =LOOKUP(I5,Names!$A$2:$A$161,Names!$B$2:$B$161) -> إبراهيم عرفان السقا | K5: 165 | L5: 4.75 | M5: 10.5 | N5: =L5+M5 -> 15.25 | O5: 1 | P5: =LOOKUP(O5,Names!$A$2:$A$161,Names!$B$2:$B$161) -> إبراهيم عرفان السقا | Q5: 166 | R5: 2.85 | S5: 11 | T5: =R5+S5 -> 13.85 | V5: 27 | W5: =LOOKUP(V5,Names!$A$2:$A$161,Names!$B$2:$B$161) -> أحمد سمير خلف على | X5: =IF(ISNA(VLOOKUP(V5,$C$5:$H$164,3,FALSE))=TRUE,"",VLOOKUP(V5,$C$5:$H$164,3,FALSE)) -> 191 | Y5: =IF(ISNA(VLOOKUP(V5,$I$5:$N$164,3,FALSE))=TRUE,"",VLOOKUP(V5,$I$5:$N$164,3,FALSE)) -> 233 | Z5: =IF(ISNA(VLOOKUP(V5,$O$5:$T$164,3,FALSE))=TRUE,"",VLOOKUP(V5,$O$5:$T$164,3,FALSE)) -> 186 | AA5: =SUM(X5:Z5) -> 610 | AB5: =IF(ISNA(VLOOKUP(V5,$C$5:$H$164,4,FALSE))=TRUE,"",VLOOKUP(V5,$C$5:$H$164,4,FALSE)) -> 4.75 | AC5: =IF(ISNA(VLOOKUP(V5,$I$5:$N$164,4,FALSE))=TRUE,"",VLOOKUP(V5,$I$5:$N$164,4,FALSE)) -> 4.75 | AD5: =IF(ISNA(VLOOKUP(V5,$O$5:$T$164,4,FALSE))=TRUE,"",VLOOKUP(V5,$O$5:$T$164,4,FALSE)) -> 4.75 | AE5: =SUM(AB5:AD5) -> 14.25 | AF5: =IF(ISNA(VLOOKUP(V5,$C$5:$H$164,5,FALSE))=TRUE,"",VLOOKUP(V5,$C$5:$H$164,5,FALSE)) -> 15 | AG5: =IF(ISNA(VLOOKUP(V5,$I$5:$N$164,5,FALSE))=TRUE,"",VLOOKUP(V5,$I$5:$N$164,5,FALSE)) -> 17 | AH5: =IF(ISNA(VLOOKUP(V5,$O$5:$T$164,5,FALSE))=TRUE,"",VLOOKUP(V5,$O$5:$T$164,5,FALSE)) -> 16 | AI5: =SUM(AF5:AH5) -> 48 | AJ5: =AE5+AI5 -> 62.25 | AK5: 1
B6: W | C6: 17 | D6: =LOOKUP(C6,Names!$A$2:$A$161,Names!$B$2:$B$161) -> مينا ناجح صبحي | E6: 114 | F6: 0 | G6: 6 | H6: 6 | I6: 5 | J6: =LOOKUP(I6,Names!$A$2:$A$161,Names!$B$2:$B$161) -> أحمد محمد أمين | K6: 154 | L6: 2.85 | M6: 13 | N6: 15.85 | O6: 2 | P6: =LOOKUP(O6,Names!$A$2:$A$161,Names!$B$2:$B$161) -> مصطفى محمد علي شرف | Q6: 135 | R6: 0 | S6: 4 | T6: 4 | V6: 104 | W6: =LOOKUP(V6,Names!$A$2:$A$161,Names!$B$2:$B$161) -> كريم إيهاب عامر | X6: 200 | Y6: 221 | Z6: 186 | AA6: 607 | AB6: 4.75 | AC6: 4.75 | AD6: 4.75 | AE6: 14.25 | AF6: 19 | AG6: 14 | AH6: 14 | AI6: 47 | AJ6: 61.25 | AK6: 2
B7: S | C7: 33 | D7: =LOOKUP(C7,Names!$A$2:$A$161,Names!$B$2:$B$161) -> أحمد إبراهيم غانم | E7: 224 | F7: 4.75 | G7: 19 | H7: 23.75 | I7: 9 | J7: =LOOKUP(I7,Names!$A$2:$A$161,Names!$B$2:$B$161) -> عمرو محمد مصطفى | K7: 68 | L7: 0 | M7: 3 | N7: 3 | O7: 3 | P7: =LOOKUP(O7,Names!$A$2:$A$161,Names!$B$2:$B$161) -> أحمد محمد حمدي صالح | Q7: 187 | R7: 4.75 | S7: 17 | T7: 21.75 | V7: 87 | W7: =LOOKUP(V7,Names!$A$2:$A$161,Names!$B$2:$B$161) -> ياسر شاهين | X7: 216 | Y7: 160 | Z7: 370 | AA7: 746 | AB7: 4.75 | AC7: 1.9 | AD7: 4.75 | AE7: 11.4 | AF7: 17 | AG7: 12 | AH7: 19 | AI7: 48 | AJ7: 59.4 | AK7: 3
B8: E | C8: 14 | D8: =LOOKUP(C8,Names!$A$2:$A$161,Names!$B$2:$B$161) -> أحمد محمد محمدي | E8: 133 | F8: 1.9 | G8: 10 | H8: 11.9 | I8: 13 | J8: =LOOKUP(I8,Names!$A$2:$A$161,Names!$B$2:$B$161) -> عمرو سمير دسوقي | K8: 143 | L8: 1.9 | M8: 10 | N8: 11.9 | O8: 4 | P8: =LOOKUP(O8,Names!$A$2:$A$161,Names!$B$2:$B$161) -> أحمد جميل السيد | Q8: 149 | R8: 1.9 | S8: 10 | T8: 11.9 | V8: 33 | W8: =LOOKUP(V8,Names!$A$2:$A$161,Names!$B$2:$B$161) -> أحمد إبراهيم غانم | X8: 224 | Y8: 165 | Z8: 176 | AA8: 565 | AB8: 4.75 | AC8: 2.85 | AD8: 4.75 | AE8: 12.35 | AF8: 19 | AG8: 10.5 | AH8: 12 | AI8: 41.5 | AJ8: 53.85 | AK8: 4
A9: Tabel ( 2 ) | B9: N | C9: 30 | D9: =LOOKUP(C9,Names!$A$2:$A$161,Names!$B$2:$B$161) -> محمد سعيد الفطاطري | E9: 176 | F9: 2.85 | G9: 14 | H9: 16.85 | I9: 17 | J9: =LOOKUP(I9,Names!$A$2:$A$161,Names!$B$2:$B$161) -> مينا ناجح صبحي | K9: 228 | L9: 4.75 | M9: 16 | N9: 20.75 | O9: 5 | P9: =LOOKUP(O9,Names!$A$2:$A$161,Names!$B$2:$B$161) -> أحمد محمد أمين | Q9: 51 | R9: 0 | S9: 2 | T9: 2 | V9: 97 | W9: =LOOKUP(V9,Names!$A$2:$A$161,Names!$B$2:$B$161) -> خالد محمد شبارة | X9: 200 | Y9: 167 | Z9: 167 | AA9: 534 | AB9: 4.75 | AC9: 1.9 | AD9: 4.75 | AE9: 11.4 | AF9: 19 | AG9: 12 | AH9: 11 | AI9: 42 | AJ9: 53.4 | AK9: 5
B10: W | C10: 11 | D10: =LOOKUP(C10,Names!$A$2:$A$161,Names!$B$2:$B$161) -> هيثم العشماوي | E10: 100 | F10: 1.9 | G10: 2 | H10: 3.9 | I10: 21 | J10: =LOOKUP(I10,Names!$A$2:$A$161,Names!$B$2:$B$161) -> محمد طارق عبد الله | K10: 102 | L10: 1.9 | M10: 1 | N10: 2.9 | O10: 6 | P10: =LOOKUP(O10,Names!$A$2:$A$161,Names!$B$2:$B$161) -> معتز محمد عبد المنعم | Q10: 163 | R10: 2.85 | S10: 9 | T10: 11.85 | V10: 113 | W10: =LOOKUP(V10,Names!$A$2:$A$161,Names!$B$2:$B$161) -> محمد حسن فهيم | X10: 187 | Y10: 181 | Z10: 159 | AA10: 527 | AB10: 4.75 | AC10: 2.85 | AD10: 2.85 | AE10: 10.45 | AF10: 16.5 | AG10: 13 | AH10: 12 | AI10: 41.5 | AJ10: 51.95 | AK10: 6
B11: S | C11: 27 | D11: =LOOKUP(C11,Names!$A$2:$A$161,Names!$B$2:$B$161) -> أحمد سمير خلف على | E11: 191 | F11: 4.75 | G11: 15 | H11: 19.75 | I11: 25 | J11: =LOOKUP(I11,Names!$A$2:$A$161,Names!$B$2:$B$161) -> خالد حمدي محمد السيد | K11: 127 | L11: 2.85 | M11: 9 | N11: 11.85 | O11: 7 | P11: =LOOKUP(O11,Names!$A$2:$A$161,Names!$B$2:$B$161) -> هيثم محمد شبانة | Q11: 180 | R11: 4.75 | S11: 14 | T11: 18.75 | V11: 106 | W11: =LOOKUP(V11,Names!$A$2:$A$161,Names!$B$2:$B$161) -> أحمد عبد العزيز العطار | X11: 171 | Y11: 113 | Z11: 204 | AA11: 488 | AB11: 4.75 | AC11: 1.9 | AD11: 4.75 | AE11: 11.4 | AF11: 14.5 | AG11: 6 | AH11: 19 | AI11: 39.5 | AJ11: 50.9 | AK11: 7
B12: E | C12: 8 | D12: =LOOKUP(C12,Names!$A$2:$A$161,Names!$B$2:$B$161) -> عبد الرحمن محمود عثمان | E12: 95 | F12: 0 | G12: 2.5 | H12: 2.5 | I12: 29 | J12: =LOOKUP(I12,Names!$A$2:$A$161,Names!$B$2:$B$161) -> اسلام نصر الغنام | K12: 29 | L12: 0 | M12: 1 | N12: 1 | O12: 8 | P12: =LOOKUP(O12,Names!$A$2:$A$161,Names!$B$2:$B$161) -> عبد الرحمن محمود عثمان | Q12: 101 | R12: 1.9 | S12: 3 | T12: 4.9 | V12: 114 | W12: =LOOKUP(V12,Names!$A$2:$A$161,Names!$B$2:$B$161) -> احمد سردينة | X12: 140 | Y12: 183 | Z12: 184 | AA12: 507 | AB12: 2.85 | AC12: 2.85 | AD12: 4.75 | AE12: 10.45 | AF12: 11 | AG12: 14 | AH12: 14.5 | AI12: 39.5 | AJ12: 49.95 | AK12: 8
A13: Tabel ( 3 ) | B13: N | C13: 24 | D13: =LOOKUP(C13,Names!$A$2:$A$161,Names!$B$2:$B$161) -> يامن محمد حسن | E13: 96 | F13: 0 | G13: 2 | H13: 2 | I13: 33 | J13: =LOOKUP(I13,Names!$A$2:$A$161,Names!$B$2:$B$161) -> أحمد إبراهيم غانم | K13: 165 | L13: 2.85 | M13: 10.5 | N13: 13.35 | O13: 9 | P13: =LOOKUP(O13,Names!$A$2:$A$161,Names!$B$2:$B$161) -> عمرو محمد مصطفى | Q13: 82 | R13: 1.9 | S13: 4 | T13: 5.9 | V13: 19 | W13: =LOOKUP(V13,Names!$A$2:$A$161,Names!$B$2:$B$161) -> محمد أحمد محمد عبد الله | X13: 208 | Y13: 203 | Z13: 69 | AA13: 480 | AB13: 2.85 | AC13: 4.75 | AD13: 0 | AE13: 7.6 | AF13: 19 | AG13: 19 | AH13: 4 | AI13: 42 | AJ13: 49.6 | AK13: 9
B14: W | C14: 5 | D14: =LOOKUP(C14,Names!$A$2:$A$161,Names!$B$2:$B$161) -> أحمد محمد أمين | E14: 98 | F14: 1.9 | G14: 1 | H14: 2.9 | I14: 2 | J14: =LOOKUP(I14,Names!$A$2:$A$161,Names!$B$2:$B$161) -> مصطفى محمد علي شرف | K14: 190 | L14: 4.75 | M14: 15 | N14: 19.75 | O14: 10 | P14: =LOOKUP(O14,Names!$A$2:$A$161,Names!$B$2:$B$161) -> تامر تيمور شكري | Q14: 43 | R14: 0 | S14: 1 | T14: 1 | V14: 94 | W14: =LOOKUP(V14,Names!$A$2:$A$161,Names!$B$2:$B$161) -> محمد عصام الدين القاضي | X14: 196 | Y14: 250 | Z14: 106 | AA14: 552 | AB14: 4.75 | AC14: 4.75 | AD14: 0 | AE14: 9.5 | AF14: 17 | AG14: 19 | AH14: 4 | AI14: 40 | AJ14: 49.5 | AK14: 10
B15: S | C15: 18 | D15: =LOOKUP(C15,Names!$A$2:$A$161,Names!$B$2:$B$161) -> وليد شعبان إسماعيل علي | E15: 136 | F15: 2.85 | G15: 8 | H15: 10.85 | I15: 6 | J15: =LOOKUP(I15,Names!$A$2:$A$161,Names!$B$2:$B$161) -> معتز محمد عبد المنعم | K15: 60 | L15: 0 | M15: 2 | N15: 2 | O15: 11 | P15: =LOOKUP(O15,Names!$A$2:$A$161,Names!$B$2:$B$161) -> هيثم العشماوي | Q15: 230 | R15: 4.75 | S15: 19 | T15: 23.75 | V15: 34 | W15: =LOOKUP(V15,Names!$A$2:$A$161,Names!$B$2:$B$161) -> شريف حلمي | X15: 182 | Y15: 153 | Z15: 167 | AA15: 502 | AB15: 2.85 | AC15: 4.75 | AD15: 2.85 | AE15: 10.45 | AF15: 16 | AG15: 12 | AH15: 11 | AI15: 39 | AJ15: 49.45 | AK15: 11
B16: E | C16: 2 | D16: =LOOKUP(C16,Names!$A$2:$A$161,Names!$B$2:$B$161) -> مصطفى محمد علي شرف | E16: 144 | F16: 4.75 | G16: 11 | H16: 15.75 | I16: 10 | J16: =LOOKUP(I16,Names!$A$2:$A$161,Names!$B$2:$B$161) -> تامر تيمور شكري | K16: 159 | L16: 1.9 | M16: 11 | N16: 12.9 | O16: 12 | P16: =LOOKUP(O16,Names!$A$2:$A$161,Names!$B$2:$B$161) -> أحمد علي السيد شرع | Q16: 128 | R16: 2.85 | S16: 6 | T16: 8.85 | V16: 111 | W16: =LOOKUP(V16,Names!$A$2:$A$161,Names!$B$2:$B$161) -> عادل محمد أبو زيد | X16: 148 | Y16: 206 | Z16: 160 | AA16: 514 | AB16: 2.85 | AC16: 2.85 | AD16: 1.9 | AE16: 7.6 | AF16: 10 | AG16: 17 | AH16: 14 | AI16: 41 | AJ16: 48.6 | AK16: 12
A17: Tabel ( 4 ) | B17: N | C17: 21 | D17: =LOOKUP(C17,Names!$A$2:$A$161,Names!$B$2:$B$161) -> محمد طارق عبد الله | E17: 187 | F17: 4.75 | G17: 16.5 | H17: 21.25 | I17: 14 | J17: =LOOKUP(I17,Names!$A$2:$A$161,Names!$B$2:$B$161) -> أحمد محمد محمدي | K17: 146 | L17: 1.9 | M17: 6.5 | N17: 8.4 | O17: 13 | P17: =LOOKUP(O17,Names!$A$2:$A$161,Names!$B$2:$B$161) -> عمرو سمير دسوقي | Q17: 115 | R17: 0 | S17: 7 | T17: 7 | V17: 22 | W17: =LOOKUP(V17,Names!$A$2:$A$161,Names!$B$2:$B$161) -> يوسف مسعد فراج | X17: 103 | Y17: 184 | Z17: 215 | AA17: 502 | AB17: 0 | AC17: 4.75 | AD17: 2.85 | AE17: 7.6 | AF17: 5 | AG17: 16 | AH17: 19 | AI17: 40 | AJ17: 47.6 | AK17: 13
B18: W | C18: 34 | D18: =LOOKUP(C18,Names!$A$2:$A$161,Names!$B$2:$B$161) -> شريف حلمي | E18: 182 | F18: 2.85 | G18: 16 | H18: 18.85 | I18: 18 | J18: =LOOKUP(I18,Names!$A$2:$A$161,Names!$B$2:$B$161) -> وليد شعبان إسماعيل علي | K18: 148 | L18: 2.85 | M18: 10 | N18: 12.85 | O18: 14 | P18: =LOOKUP(O18,Names!$A$2:$A$161,Names!$B$2:$B$161) -> أحمد محمد محمدي | Q18: 154 | R18: 3.8 | S18: 7 | T18: 10.8 | V18: 28 | W18: =LOOKUP(V18,Names!$A$2:$A$161,Names!$B$2:$B$161) -> محمد حسن عبد القادر | X18: 137 | Y18: 237 | Z18: 133 | AA18: 507 | AB18: 2.85 | AC18: 4.75 | AD18: 2.85 | AE18: 10.45 | AF18: 10 | AG18: 19 | AH18: 7 | AI18: 36 | AJ18: 46.45 | AK18: 14
B19: S | C19: 15 | D19: =LOOKUP(C19,Names!$A$2:$A$161,Names!$B$2:$B$161) -> حسام الدين صلاح أبو الفتوح | E19: 134 | F19: 1.9 | G19: 7 | H19: 8.9 | I19: 22 | J19: =LOOKUP(I19,Names!$A$2:$A$161,Names!$B$2:$B$161) -> يوسف مسعد فراج | K19: 184 | L19: 4.75 | M19: 16 | N19: 20.75 | O19: 15 | P19: =LOOKUP(O19,Names!$A$2:$A$161,Names!$B$2:$B$161) -> حسام الدين صلاح أبو الفتوح | Q19: 144 | R19: 1.9 | S19: 11 | T19: 12.9 | V19: 112 | W19: =LOOKUP(V19,Names!$A$2:$A$161,Names!$B$2:$B$161) -> عمرو محمد محسن | X19: 146 | Y19: 129 | Z19: 202 | AA19: 477 | AB19: 1.9 | AC19: 1.9 | AD19: 2.85 | AE19: 6.65 | AF19: 12.5 | AG19: 11 | AH19: 16 | AI19: 39.5 | AJ19: 46.15 | AK19: 15
B20: E | C20: 31 | D20: =LOOKUP(C20,Names!$A$2:$A$161,Names!$B$2:$B$161) -> أحمد بسيوني | E20: 104 | F20: 0 | G20: 6 | H20: 6 | I20: 26 | J20: =LOOKUP(I20,Names!$A$2:$A$161,Names!$B$2:$B$161) -> علاء شوقي جبريل | K20: 105 | L20: 0 | M20: 5 | N20: 5 | O20: 16 | P20: =LOOKUP(O20,Names!$A$2:$A$161,Names!$B$2:$B$161) -> طارق عبد الغني السحار | Q20: 154 | R20: 3.8 | S20: 12 | T20: 15.8 | V20: 21 | W20: =LOOKUP(V20,Names!$A$2:$A$161,Names!$B$2:$B$161) -> محمد طارق عبد الله | X20: 187 | Y20: 102 | Z20: 249 | AA20: 538 | AB20: 4.75 | AC20: 1.9 | AD20: 4.75 | AE20: 11.4 | AF20: 16.5 | AG20: 1 | AH20: 17 | AI20: 34.5 | AJ20: 45.9 | AK20: 16
A21: Tabel ( 5 ) | B21: N | C21: 12 | D21: =LOOKUP(C21,Names!$A$2:$A$161,Names!$B$2:$B$161) -> أحمد علي السيد شرع | E21: 167 | F21: 4.75 | G21: 12 | H21: 16.75 | I21: 30 | J21: =LOOKUP(I21,Names!$A$2:$A$161,Names!$B$2:$B$161) -> محمد سعيد الفطاطري | K21: 146 | L21: 2.85 | M21: 6.5 | N21: 9.35 | O21: 17 | P21: =LOOKUP(O21,Names!$A$2:$A$161,Names!$B$2:$B$161) -> مينا ناجح صبحي | Q21: 145 | R21: 1.9 | S21: 9 | T21: 10.9 | V21: 3 | W21: =LOOKUP(V21,Names!$A$2:$A$161,Names!$B$2:$B$161) -> أحمد محمد حمدي صالح | X21: 175 | Y21: 112 | Z21: 187 | AA21: 474 | AB21: 1.9 | AC21: 0 | AD21: 4.75 | AE21: 6.65 | AF21: 13 | AG21: 8 | AH21: 17 | AI21: 38 | AJ21: 44.65 | AK21: 17
B22: W | C22: 28 | D22: =LOOKUP(C22,Names!$A$2:$A$161,Names!$B$2:$B$161) -> محمد حسن عبد القادر | E22: 137 | F22: 2.85 | G22: 10 | H22: 12.85 | I22: 34 | J22: =LOOKUP(I22,Names!$A$2:$A$161,Names!$B$2:$B$161) -> شريف حلمي | K22: 153 | L22: 4.75 | M22: 12 | N22: 16.75 | O22: 18 | P22: =LOOKUP(O22,Names!$A$2:$A$161,Names!$B$2:$B$161) -> وليد شعبان إسماعيل علي | Q22: 155 | R22: 2.85 | S22: 8 | T22: 10.85 | V22: 89 | W22: =LOOKUP(V22,Names!$A$2:$A$161,Names!$B$2:$B$161) -> محمد بلبع | X22: 129 | Y22: 128 | Z22: 206 | AA22: 463 | AB22: 1.9 | AC22: 2.85 | AD22: 4.75 | AE22: 9.5 | AF22: 6 | AG22: 10 | AH22: 17 | AI22: 33 | AJ22: 42.5 | AK22: 18
B23: S | C23: 6 | D23: =LOOKUP(C23,Names!$A$2:$A$161,Names!$B$2:$B$161) -> معتز محمد عبد المنعم | E23: 129 | F23: 1.9 | G23: 5 | H23: 6.9 | I23: 3 | J23: =LOOKUP(I23,Names!$A$2:$A$161,Names!$B$2:$B$161) -> أحمد محمد حمدي صالح | K23: 112 | L23: 0 | M23: 8 | N23: 8 | O23: 19 | P23: =LOOKUP(O23,Names!$A$2:$A$161,Names!$B$2:$B$161) -> محمد أحمد محمد عبد الله | Q23: 69 | R23: 0 | S23: 4 | T23: 4 | V23: 108 | W23: =LOOKUP(V23,Names!$A$2:$A$161,Names!$B$2:$B$161) -> كريم احمد ناصر | X23: 146 | Y23: 137 | Z23: 173 | AA23: 456 | AB23: 2.85 | AC23: 2.85 | AD23: 2.85 | AE23: 8.55 | AF23: 12.5 | AG23: 8 | AH23: 13 | AI23: 33.5 | AJ23: 42.05 | AK23: 19
B24: E | C24: 22 | D24: =LOOKUP(C24,Names!$A$2:$A$161,Names!$B$2:$B$161) -> يوسف مسعد فراج | E24: 103 | F24: 0 | G24: 5 | H24: 5 | I24: 7 | J24: =LOOKUP(I24,Names!$A$2:$A$161,Names!$B$2:$B$161) -> هيثم محمد شبانة | K24: 120 | L24: 1.9 | M24: 7 | N24: 8.9 | O24: 20 | P24: =LOOKUP(O24,Names!$A$2:$A$161,Names!$B$2:$B$161) -> عصام الدين محمد عبد العاطي | Q24: 161 | R24: 4.75 | S24: 15 | T24: 19.75 | V24: 30 | W24: =LOOKUP(V24,Names!$A$2:$A$161,Names!$B$2:$B$161) -> محمد سعيد الفطاطري | X24: 176 | Y24: 146 | Z24: 167 | AA24: 489 | AB24: 2.85 | AC24: 2.85 | AD24: 4.75 | AE24: 10.45 | AF24: 14 | AG24: 6.5 | AH24: 11 | AI24: 31.5 | AJ24: 41.95 | AK24: 20
A25: Tabel ( 6 ) | B25: N | C25: 3 | D25: =LOOKUP(C25,Names!$A$2:$A$161,Names!$B$2:$B$161) -> أحمد محمد حمدي صالح | E25: 175 | F25: 1.9 | G25: 13 | H25: 14.9 | I25: 11 | J25: =LOOKUP(I25,Names!$A$2:$A$161,Names!$B$2:$B$161) -> هيثم العشماوي | K25: 140 | L25: 2.85 | M25: 4 | N25: 6.85 | O25: 21 | P25: =LOOKUP(O25,Names!$A$2:$A$161,Names!$B$2:$B$161) -> محمد طارق عبد الله | Q25: 249 | R25: 4.75 | S25: 17 | T25: 21.75 | V25: 91 | W25: =LOOKUP(V25,Names!$A$2:$A$161,Names!$B$2:$B$161) -> عماد محمد فؤاد مرسي | X25: 133 | Y25: 164 | Z25: 184 | AA25: 481 | AB25: 2.85 | AC25: 4.75 | AD25: 4.75 | AE25: 12.35 | AF25: 6 | AG25: 9 | AH25: 14.5 | AI25: 29.5 | AJ25: 41.85 | AK25: 21
B26: W | C26: 19 | D26: =LOOKUP(C26,Names!$A$2:$A$161,Names!$B$2:$B$161) -> محمد أحمد محمد عبد الله | E26: 208 | F26: 2.85 | G26: 19 | H26: 21.85 | I26: 15 | J26: =LOOKUP(I26,Names!$A$2:$A$161,Names!$B$2:$B$161) -> حسام الدين صلاح أبو الفتوح | K26: 114 | L26: 0 | M26: 3 | N26: 3 | O26: 22 | P26: =LOOKUP(O26,Names!$A$2:$A$161,Names!$B$2:$B$161) -> يوسف مسعد فراج | Q26: 215 | R26: 2.85 | S26: 19 | T26: 21.85 | V26: 36 | W26: =LOOKUP(V26,Names!$A$2:$A$161,Names!$B$2:$B$161) -> محمد محمود فضل | X26: 183 | Y26: 84 | Z26: 164 | AA26: 431 | AB26: 4.75 | AC26: 0 | AD26: 1.9 | AE26: 6.65 | AF26: 16 | AG26: 3 | AH26: 16 | AI26: 35 | AJ26: 41.65 | AK26: 22
B27: S | C27: 35 | D27: =LOOKUP(C27,Names!$A$2:$A$161,Names!$B$2:$B$161) -> أحمد فؤاد حسنين | E27: 212 | F27: 4.75 | G27: 16 | H27: 20.75 | I27: 19 | J27: =LOOKUP(I27,Names!$A$2:$A$161,Names!$B$2:$B$161) -> محمد أحمد محمد عبد الله | K27: 203 | L27: 4.75 | M27: 19 | N27: 23.75 | O27: 23 | P27: =LOOKUP(O27,Names!$A$2:$A$161,Names!$B$2:$B$161) -> جمال احمد محمد جمال | Q27: 70 | R27: 0 | S27: 5 | T27: 5 | V27: 4 | W27: =LOOKUP(V27,Names!$A$2:$A$161,Names!$B$2:$B$161) -> أحمد جميل السيد | X27: 137 | Y27: 163 | Z27: 149 | AA27: 449 | AB27: 4.75 | AC27: 2.85 | AD27: 1.9 | AE27: 9.5 | AF27: 9 | AG27: 13 | AH27: 10 | AI27: 32 | AJ27: 41.5 | AK27: 23
B28: E | C28: 16 | D28: =LOOKUP(C28,Names!$A$2:$A$161,Names!$B$2:$B$161) -> طارق عبد الغني السحار | E28: 100 | F28: 0 | G28: 4 | H28: 4 | I28: 23 | J28: =LOOKUP(I28,Names!$A$2:$A$161,Names!$B$2:$B$161) -> جمال احمد محمد جمال | K28: 134 | L28: 1.9 | M28: 9 | N28: 10.9 | O28: 24 | P28: =LOOKUP(O28,Names!$A$2:$A$161,Names!$B$2:$B$161) -> يامن محمد حسن | Q28: 126 | R28: 1.9 | S28: 5 | T28: 6.9 | V28: 12 | W28: =LOOKUP(V28,Names!$A$2:$A$161,Names!$B$2:$B$161) -> أحمد علي السيد شرع | X28: 167 | Y28: 149 | Z28: 128 | AA28: 444 | AB28: 4.75 | AC28: 4.75 | AD28: 2.85 | AE28: 12.35 | AF28: 12 | AG28: 11 | AH28: 6 | AI28: 29 | AJ28: 41.35 | AK28: 24
A29: Tabel ( 7 ) | B29: N | C29: 32 | D29: =LOOKUP(C29,Names!$A$2:$A$161,Names!$B$2:$B$161) -> أمير محمد خطاب | E29: 84 | F29: 0 | G29: 1 | H29: 1 | I29: 27 | J29: =LOOKUP(I29,Names!$A$2:$A$161,Names!$B$2:$B$161) -> أحمد سمير خلف على | K29: 233 | L29: 4.75 | M29: 17 | N29: 21.75 | O29: 25 | P29: =LOOKUP(O29,Names!$A$2:$A$161,Names!$B$2:$B$161) -> خالد حمدي محمد السيد | Q29: 25 | R29: 0 | S29: 1 | T29: 1 | V29: 84 | W29: =LOOKUP(V29,Names!$A$2:$A$161,Names!$B$2:$B$161) -> أحمد عز العرب السماحي | X29: 162 | Y29: 229 | Z29: 30 | AA29: 421 | AB29: 0 | AC29: 4.75 | AD29: 0 | AE29: 4.75 | AF29: 15 | AG29: 19 | AH29: 2 | AI29: 36 | AJ29: 40.75 | AK29: 24
B30: W | C30: 13 | D30: =LOOKUP(C30,Names!$A$2:$A$161,Names!$B$2:$B$161) -> عمرو سمير دسوقي | E30: 158 | F30: 4.75 | G30: 13 | H30: 17.75 | I30: 31 | J30: =LOOKUP(I30,Names!$A$2:$A$161,Names!$B$2:$B$161) -> أحمد بسيوني | K30: 121 | L30: 1.9 | M30: 5 | N30: 6.9 | O30: 26 | P30: =LOOKUP(O30,Names!$A$2:$A$161,Names!$B$2:$B$161) -> علاء شوقي جبريل | Q30: 132 | R30: 1.9 | S30: 3 | T30: 4.9 | V30: 96 | W30: =LOOKUP(V30,Names!$A$2:$A$161,Names!$B$2:$B$161) -> أحمد رمزي الديب | X30: 189 | Y30: 201 | Z30: 15 | AA30: 405 | AB30: 2.85 | AC30: 2.85 | AD30: 0 | AE30: 5.7 | AF30: 17 | AG30: 17 | AH30: 1 | AI30: 35 | AJ30: 40.7 | AK30: 26
B31: S | C31: 10 | D31: =LOOKUP(C31,Names!$A$2:$A$161,Names!$B$2:$B$161) -> تامر تيمور شكري | E31: 157 | F31: 2.85 | G31: 12 | H31: 14.85 | I31: 35 | J31: =LOOKUP(I31,Names!$A$2:$A$161,Names!$B$2:$B$161) -> أحمد فؤاد حسنين | K31: 43 | L31: 0 | M31: 1 | N31: 1 | O31: 27 | P31: =LOOKUP(O31,Names!$A$2:$A$161,Names!$B$2:$B$161) -> أحمد سمير خلف على | Q31: 186 | R31: 4.75 | S31: 16 | T31: 20.75 | V31: 109 | W31: =LOOKUP(V31,Names!$A$2:$A$161,Names!$B$2:$B$161) -> نبيل خلف زكي | X31: 162 | Y31: 206 | Z31: 80 | AA31: 448 | AB31: 4.75 | AC31: 4.75 | AD31: 2.85 | AE31: 12.35 | AF31: 10 | AG31: 16 | AH31: 2 | AI31: 28 | AJ31: 40.35 | AK31: 27
B32: E | C32: 26 | D32: =LOOKUP(C32,Names!$A$2:$A$161,Names!$B$2:$B$161) -> علاء شوقي جبريل | E32: 150 | F32: 1.9 | G32: 14 | H32: 15.9 | I32: 4 | J32: =LOOKUP(I32,Names!$A$2:$A$161,Names!$B$2:$B$161) -> أحمد جميل السيد | K32: 163 | L32: 2.85 | M32: 13 | N32: 15.85 | O32: 28 | P32: =LOOKUP(O32,Names!$A$2:$A$161,Names!$B$2:$B$161) -> محمد حسن عبد القادر | Q32: 133 | R32: 2.85 | S32: 7 | T32: 9.85 | V32: 1 | W32: =LOOKUP(V32,Names!$A$2:$A$161,Names!$B$2:$B$161) -> إبراهيم عرفان السقا | X32: 135 | Y32: 165 | Z32: 166 | AA32: 466 | AB32: 2.85 | AC32: 4.75 | AD32: 2.85 | AE32: 10.45 | AF32: 8 | AG32: 10.5 | AH32: 11 | AI32: 29.5 | AJ32: 39.95 | AK32: 28
A33: Tabel ( 8 ) | B33: N | C33: 7 | D33: =LOOKUP(C33,Names!$A$2:$A$161,Names!$B$2:$B$161) -> هيثم محمد شبانة | E33: 114 | F33: 1.9 | G33: 5 | H33: 6.9 | I33: 8 | J33: =LOOKUP(I33,Names!$A$2:$A$161,Names!$B$2:$B$161) -> عبد الرحمن محمود عثمان | K33: 94 | L33: 0 | M33: 1 | N33: 1 | O33: 29 | P33: =LOOKUP(O33,Names!$A$2:$A$161,Names!$B$2:$B$161) -> اسلام نصر الغنام | Q33: 106 | R33: 1.9 | S33: 5 | T33: 6.9 | V33: 2 | W33: =LOOKUP(V33,Names!$A$2:$A$161,Names!$B$2:$B$161) -> مصطفى محمد علي شرف | X33: 144 | Y33: 190 | Z33: 135 | AA33: 469 | AB33: 4.75 | AC33: 4.75 | AD33: 0 | AE33: 9.5 | AF33: 11 | AG33: 15 | AH33: 4 | AI33: 30 | AJ33: 39.5 | AK33: 29
B34: W | C34: 23 | D34: =LOOKUP(C34,Names!$A$2:$A$161,Names!$B$2:$B$161) -> جمال احمد محمد جمال | E34: 122 | F34: 2.85 | G34: 7 | H34: 9.85 | I34: 12 | J34: =LOOKUP(I34,Names!$A$2:$A$161,Names!$B$2:$B$161) -> أحمد علي السيد شرع | K34: 149 | L34: 4.75 | M34: 11 | N34: 15.75 | O34: 30 | P34: =LOOKUP(O34,Names!$A$2:$A$161,Names!$B$2:$B$161) -> محمد سعيد الفطاطري | Q34: 167 | R34: 4.75 | S34: 11 | T34: 15.75 | V34: 90 | W34: =LOOKUP(V34,Names!$A$2:$A$161,Names!$B$2:$B$161) -> محمد علي حسن طه الأمام | X34: 149 | Y34: 217 | Z34: 27 | AA34: 393 | AB34: 4.75 | AC34: 4.75 | AD34: 0 | AE34: 9.5 | AF34: 12 | AG34: 17 | AH34: 1 | AI34: 30 | AJ34: 39.5 | AK34: 29
B35: S | C35: 4 | D35: =LOOKUP(C35,Names!$A$2:$A$161,Names!$B$2:$B$161) -> أحمد جميل السيد | E35: 137 | F35: 4.75 | G35: 9 | H35: 13.75 | I35: 16 | J35: =LOOKUP(I35,Names!$A$2:$A$161,Names!$B$2:$B$161) -> طارق عبد الغني السحار | K35: 99 | L35: 1.9 | M35: 6 | N35: 7.9 | O35: 31 | P35: =LOOKUP(O35,Names!$A$2:$A$161,Names!$B$2:$B$161) -> أحمد بسيوني | Q35: 42 | R35: 0 | S35: 3 | T35: 3 | V35: 95 | W35: =LOOKUP(V35,Names!$A$2:$A$161,Names!$B$2:$B$161) -> احمد طنطاوى | X35: 174 | Y35: 135 | Z35: 169 | AA35: 478 | AB35: 1.9 | AC35: 1.9 | AD35: 2.85 | AE35: 6.65 | AF35: 13 | AG35: 6 | AH35: 13 | AI35: 32 | AJ35: 38.65 | AK35: 29
B36: E | C36: 29 | D36: =LOOKUP(C36,Names!$A$2:$A$161,Names!$B$2:$B$161) -> اسلام نصر الغنام | E36: 95 | F36: 0 | G36: 2.5 | H36: 2.5 | I36: 20 | J36: =LOOKUP(I36,Names!$A$2:$A$161,Names!$B$2:$B$161) -> عصام الدين محمد عبد العاطي | K36: 127 | L36: 2.85 | M36: 8 | N36: 10.85 | O36: 32 | P36: =LOOKUP(O36,Names!$A$2:$A$161,Names!$B$2:$B$161) -> أمير محمد خطاب | Q36: 144 | R36: 2.85 | S36: 9 | T36: 11.85 | V36: 110 | W36: =LOOKUP(V36,Names!$A$2:$A$161,Names!$B$2:$B$161) -> أسامة أحمد زكي | X36: 101 | Y36: 224 | Z36: 181 | AA36: 506 | AB36: 0 | AC36: 4.75 | AD36: 2.85 | AE36: 7.6 | AF36: 3 | AG36: 15 | AH36: 13 | AI36: 31 | AJ36: 38.6 | AK36: 32
A37: Tabel ( 9 ) | B37: N | C37: 20 | D37: =LOOKUP(C37,Names!$A$2:$A$161,Names!$B$2:$B$161) -> عصام الدين محمد عبد العاطي | E37: 108 | F37: 0 | G37: 3 | H37: 3 | I37: 24 | J37: =LOOKUP(I37,Names!$A$2:$A$161,Names!$B$2:$B$161) -> يامن محمد حسن | K37: 160 | L37: 2.85 | M37: 8 | N37: 10.85 | O37: 33 | P37: =LOOKUP(O37,Names!$A$2:$A$161,Names!$B$2:$B$161) -> أحمد إبراهيم غانم | Q37: 176 | R37: 4.75 | S37: 12 | T37: 16.75 | V37: 83 | W37: =LOOKUP(V37,Names!$A$2:$A$161,Names!$B$2:$B$161) -> أسامة لطفى نجيب | X37: =IF(ISNA(VLOOKUP(V37,$C$5:$H$164,3,FALSE))=TRUE,"",VLOOKUP(V37,$C$5:$H$164,3,FALSE)) -> 187 | Y37: =IF(ISNA(VLOOKUP(V37,$I$5:$N$164,3,FALSE))=TRUE,"",VLOOKUP(V37,$I$5:$N$164,3,FALSE)) -> 111 | Z37: =IF(ISNA(VLOOKUP(V37,$O$5:$T$164,3,FALSE))=TRUE,"",VLOOKUP(V37,$O$5:$T$164,3,FALSE)) -> 162 | AA37: =SUM(X37:Z37) -> 460 | AB37: =IF(ISNA(VLOOKUP(V37,$C$5:$H$164,4,FALSE))=TRUE,"",VLOOKUP(V37,$C$5:$H$164,4,FALSE)) -> 4.75 | AC37: =IF(ISNA(VLOOKUP(V37,$I$5:$N$164,4,FALSE))=TRUE,"",VLOOKUP(V37,$I$5:$N$164,4,FALSE)) -> 0 | AD37: =IF(ISNA(VLOOKUP(V37,$O$5:$T$164,4,FALSE))=TRUE,"",VLOOKUP(V37,$O$5:$T$164,4,FALSE)) -> 2.85 | AE37: =SUM(AB37:AD37) -> 7.6 | AF37: =IF(ISNA(VLOOKUP(V37,$C$5:$H$164,5,FALSE))=TRUE,"",VLOOKUP(V37,$C$5:$H$164,5,FALSE)) -> 14 | AG37: =IF(ISNA(VLOOKUP(V37,$I$5:$N$164,5,FALSE))=TRUE,"",VLOOKUP(V37,$I$5:$N$164,5,FALSE)) -> 7 | AH37: =IF(ISNA(VLOOKUP(V37,$O$5:$T$164,5,FALSE))=TRUE,"",VLOOKUP(V37,$O$5:$T$164,5,FALSE)) -> 10 | AI37: =SUM(AF37:AH37) -> 31 | AJ37: =AE37+AI37 -> 38.6 | AK37: 32
B38: W | C38: 9 | D38: =LOOKUP(C38,Names!$A$2:$A$161,Names!$B$2:$B$161) -> عمرو محمد مصطفى | E38: 127 | F38: 2.85 | G38: 8 | H38: 10.85 | I38: 28 | J38: =LOOKUP(I38,Names!$A$2:$A$161,Names!$B$2:$B$161) -> محمد حسن عبد القادر | K38: 237 | L38: 4.75 | M38: 19 | N38: 23.75 | O38: 34 | P38: =LOOKUP(O38,Names!$A$2:$A$161,Names!$B$2:$B$161) -> شريف حلمي | Q38: 167 | R38: 2.85 | S38: 11 | T38: 13.85 | V38: 105 | W38: =LOOKUP(V38,Names!$A$2:$A$161,Names!$B$2:$B$161) -> مصطفى عبد الحفيظ علي | X38: 144 | Y38: 175 | Z38: 104 | AA38: 423 | AB38: 1.9 | AC38: 2.85 | AD38: 0 | AE38: 4.75 | AF38: 9 | AG38: 15 | AH38: 9 | AI38: 33 | AJ38: 37.75 | AK38: 34
B39: S | C39: 25 | D39: =LOOKUP(C39,Names!$A$2:$A$161,Names!$B$2:$B$161) -> خالد حمدي محمد السيد | E39: 119 | F39: 1.9 | G39: 3 | H39: 4.9 | I39: 32 | J39: =LOOKUP(I39,Names!$A$2:$A$161,Names!$B$2:$B$161) -> أمير محمد خطاب | K39: 131 | L39: 1.9 | M39: 13 | N39: 14.9 | O39: 35 | P39: =LOOKUP(O39,Names!$A$2:$A$161,Names!$B$2:$B$161) -> أحمد فؤاد حسنين | Q39: 72 | R39: 0 | S39: 6 | T39: 6 | V39: 17 | W39: =LOOKUP(V39,Names!$A$2:$A$161,Names!$B$2:$B$161) -> مينا ناجح صبحي | X39: 114 | Y39: 228 | Z39: 145 | AA39: 487 | AB39: 0 | AC39: 4.75 | AD39: 1.9 | AE39: 6.65 | AF39: 6 | AG39: 16 | AH39: 9 | AI39: 31 | AJ39: 37.65 | AK39: 35
B40: E | C40: 36 | D40: =LOOKUP(C40,Names!$A$2:$A$161,Names!$B$2:$B$161) -> محمد محمود فضل | E40: 183 | F40: 4.75 | G40: 16 | H40: 20.75 | I40: 36 | J40: =LOOKUP(I40,Names!$A$2:$A$161,Names!$B$2:$B$161) -> محمد محمود فضل | K40: 84 | L40: 0 | M40: 3 | N40: 3 | O40: 36 | P40: =LOOKUP(O40,Names!$A$2:$A$161,Names!$B$2:$B$161) -> محمد محمود فضل | Q40: 164 | R40: 1.9 | S40: 16 | T40: 17.9 | V40: 86 | W40: =LOOKUP(V40,Names!$A$2:$A$161,Names!$B$2:$B$161) -> ايهاب يوسف عمارة | X40: 131 | Y40: 173 | Z40: 121 | AA40: 425 | AB40: 1.9 | AC40: 1.9 | AD40: 0 | AE40: 3.8 | AF40: 9 | AG40: 14 | AH40: 10 | AI40: 33 | AJ40: 36.8 | AK40: 36
A41: Tabel ( 10 ) | B41: N | C41: 37 | D41: =LOOKUP(C41,Names!$A$2:$A$161,Names!$B$2:$B$161) -> 0 | G41: 0 | H41: 0 | J41: =LOOKUP(I41,Names!$A$2:$A$161,Names!$B$2:$B$161) ->  | M41: 0 | N41: 0 | O41: 37 | P41: =LOOKUP(O41,Names!$A$2:$A$161,Names!$B$2:$B$161) -> 0 | S41: 0 | T41: 0 | V41: 37 | W41: =LOOKUP(V41,Names!$A$2:$A$161,Names!$B$2:$B$161) -> 0 | X41: 0 | Z41: 0 | AA41: 0 | AB41: 0 | AD41: 0 | AE41: 0 | AF41: 0 | AH41: 0 | AI41: 0 | AJ41: 0
B42: W | C42: 38 | D42: =LOOKUP(C42,Names!$A$2:$A$161,Names!$B$2:$B$161) -> 0 | G42: 0 | H42: 0 | J42: =LOOKUP(I42,Names!$A$2:$A$161,Names!$B$2:$B$161) ->  | M42: 0 | N42: 0 | O42: 38 | P42: =LOOKUP(O42,Names!$A$2:$A$161,Names!$B$2:$B$161) -> 0 | S42: 0 | T42: 0 | V42: 38 | W42: =LOOKUP(V42,Names!$A$2:$A$161,Names!$B$2:$B$161) -> 0 | X42: 0 | Z42: 0 | AA42: 0 | AB42: 0 | AD42: 0 | AE42: 0 | AF42: 0 | AH42: 0 | AI42: 0 | AJ42: 0
B43: S | C43: 39 | D43: =LOOKUP(C43,Names!$A$2:$A$161,Names!$B$2:$B$161) -> 0 | G43: 0 | H43: 0 | J43: =LOOKUP(I43,Names!$A$2:$A$161,Names!$B$2:$B$161) ->  | M43: 0 | N43: 0 | O43: 39 | P43: =LOOKUP(O43,Names!$A$2:$A$161,Names!$B$2:$B$161) -> 0 | S43: 0 | T43: 0 | V43: 39 | W43: =LOOKUP(V43,Names!$A$2:$A$161,Names!$B$2:$B$161) -> 0 | X43: 0 | Z43: 0 | AA43: 0 | AB43: 0 | AD43: 0 | AE43: 0 | AF43: 0 | AH43: 0 | AI43: 0 | AJ43: 0
B44: E | C44: 40 | D44: =LOOKUP(C44,Names!$A$2:$A$161,Names!$B$2:$B$161) -> 0 | G44: 0 | H44: 0 | J44: =LOOKUP(I44,Names!$A$2:$A$161,Names!$B$2:$B$161) ->  | M44: 0 | N44: 0 | O44: 40 | P44: =LOOKUP(O44,Names!$A$2:$A$161,Names!$B$2:$B$161) -> 0 | S44: 0 | T44: 0 | V44: 40 | W44: =LOOKUP(V44,Names!$A$2:$A$161,Names!$B$2:$B$161) -> 0 | X44: 0 | Z44: 0 | AA44: 0 | AB44: 0 | AD44: 0 | AE44: 0 | AF44: 0 | AH44: 0 | AI44: 0 | AJ44: 0
A45: Tabel ( 11 ) | B45: N | C45: 41 | D45: =LOOKUP(C45,Names!$A$2:$A$161,Names!$B$2:$B$161) -> 0 | G45: 0 | H45: 0 | J45: =LOOKUP(I45,Names!$A$2:$A$161,Names!$B$2:$B$161) ->  | M45: 0 | N45: 0 | O45: 41 | P45: =LOOKUP(O45,Names!$A$2:$A$161,Names!$B$2:$B$161) -> 0 | S45: 0 | T45: 0 | V45: 41 | W45: =LOOKUP(V45,Names!$A$2:$A$161,Names!$B$2:$B$161) -> 0 | X45: 0 | Z45: 0 | AA45: 0 | AB45: 0 | AD45: 0 | AE45: 0 | AF45: 0 | AH45: 0 | AI45: 0 | AJ45: 0
B46: W | C46: 42 | D46: =LOOKUP(C46,Names!$A$2:$A$161,Names!$B$2:$B$161) -> 0 | G46: 0 | H46: 0 | J46: =LOOKUP(I46,Names!$A$2:$A$161,Names!$B$2:$B$161) ->  | M46: 0 | N46: 0 | O46: 42 | P46: =LOOKUP(O46,Names!$A$2:$A$161,Names!$B$2:$B$161) -> 0 | S46: 0 | T46: 0 | V46: 42 | W46: =LOOKUP(V46,Names!$A$2:$A$161,Names!$B$2:$B$161) -> 0 | X46: 0 | Z46: 0 | AA46: 0 | AB46: 0 | AD46: 0 | AE46: 0 | AF46: 0 | AH46: 0 | AI46: 0 | AJ46: 0
B47: S | C47: 43 | D47: =LOOKUP(C47,Names!$A$2:$A$161,Names!$B$2:$B$161) -> 0 | G47: 0 | H47: 0 | J47: =LOOKUP(I47,Names!$A$2:$A$161,Names!$B$2:$B$161) ->  | M47: 0 | N47: 0 | O47: 43 | P47: =LOOKUP(O47,Names!$A$2:$A$161,Names!$B$2:$B$161) -> 0 | S47: 0 | T47: 0 | V47: 43 | W47: =LOOKUP(V47,Names!$A$2:$A$161,Names!$B$2:$B$161) -> 0 | X47: 0 | Z47: 0 | AA47: 0 | AB47: 0 | AD47: 0 | AE47: 0 | AF47: 0 | AH47: 0 | AI47: 0 | AJ47: 0
B48: E | C48: 44 | D48: =LOOKUP(C48,Names!$A$2:$A$161,Names!$B$2:$B$161) -> 0 | G48: 0 | H48: 0 | J48: =LOOKUP(I48,Names!$A$2:$A$161,Names!$B$2:$B$161) ->  | M48: 0 | N48: 0 | O48: 44 | P48: =LOOKUP(O48,Names!$A$2:$A$161,Names!$B$2:$B$161) -> 0 | S48: 0 | T48: 0 | V48: 44 | W48: =LOOKUP(V48,Names!$A$2:$A$161,Names!$B$2:$B$161) -> 0 | X48: 0 | Z48: 0 | AA48: 0 | AB48: 0 | AD48: 0 | AE48: 0 | AF48: 0 | AH48: 0 | AI48: 0 | AJ48: 0
A49: Tabel ( 12 ) | B49: N | C49: 45 | D49: =LOOKUP(C49,Names!$A$2:$A$161,Names!$B$2:$B$161) -> 0 | G49: 0 | H49: 0 | J49: =LOOKUP(I49,Names!$A$2:$A$161,Names!$B$2:$B$161) ->  | M49: 0 | N49: 0 | O49: 45 | P49: =LOOKUP(O49,Names!$A$2:$A$161,Names!$B$2:$B$161) -> 0 | S49: 0 | T49: 0 | V49: 45 | W49: =LOOKUP(V49,Names!$A$2:$A$161,Names!$B$2:$B$161) -> 0 | X49: 0 | Z49: 0 | AA49: 0 | AB49: 0 | AD49: 0 | AE49: 0 | AF49: 0 | AH49: 0 | AI49: 0 | AJ49: 0
B50: W | C50: 46 | D50: =LOOKUP(C50,Names!$A$2:$A$161,Names!$B$2:$B$161) -> 0 | G50: 0 | H50: 0 | J50: =LOOKUP(I50,Names!$A$2:$A$161,Names!$B$2:$B$161) ->  | M50: 0 | N50: 0 | O50: 46 | P50: =LOOKUP(O50,Names!$A$2:$A$161,Names!$B$2:$B$161) -> 0 | S50: 0 | T50: 0 | V50: 46 | W50: =LOOKUP(V50,Names!$A$2:$A$161,Names!$B$2:$B$161) -> 0 | X50: 0 | Z50: 0 | AA50: 0 | AB50: 0 | AD50: 0 | AE50: 0 | AF50: 0 | AH50: 0 | AI50: 0 | AJ50: 0
B51: S | C51: 47 | D51: =LOOKUP(C51,Names!$A$2:$A$161,Names!$B$2:$B$161) -> 0 | G51: 0 | H51: 0 | J51: =LOOKUP(I51,Names!$A$2:$A$161,Names!$B$2:$B$161) ->  | M51: 0 | N51: 0 | O51: 47 | P51: =LOOKUP(O51,Names!$A$2:$A$161,Names!$B$2:$B$161) -> 0 | S51: 0 | T51: 0 | V51: 47 | W51: =LOOKUP(V51,Names!$A$2:$A$161,Names!$B$2:$B$161) -> 0 | X51: 0 | Z51: 0 | AA51: 0 | AB51: 0 | AD51: 0 | AE51: 0 | AF51: 0 | AH51: 0 | AI51: 0 | AJ51: 0
B52: E | C52: 48 | D52: =LOOKUP(C52,Names!$A$2:$A$161,Names!$B$2:$B$161) -> 0 | G52: 0 | H52: 0 | J52: =LOOKUP(I52,Names!$A$2:$A$161,Names!$B$2:$B$161) ->  | M52: 0 | N52: 0 | O52: 48 | P52: =LOOKUP(O52,Names!$A$2:$A$161,Names!$B$2:$B$161) -> 0 | S52: 0 | T52: 0 | V52: 48 | W52: =LOOKUP(V52,Names!$A$2:$A$161,Names!$B$2:$B$161) -> 0 | X52: 0 | Z52: 0 | AA52: 0 | AB52: 0 | AD52: 0 | AE52: 0 | AF52: 0 | AH52: 0 | AI52: 0 | AJ52: 0
A53: Tabel ( 13 ) | B53: N | C53: 49 | D53: =LOOKUP(C53,Names!$A$2:$A$161,Names!$B$2:$B$161) -> 0 | G53: 0 | H53: 0 | J53: =LOOKUP(I53,Names!$A$2:$A$161,Names!$B$2:$B$161) ->  | K53: 0 | L53: 4.75 | M53: 0 | N53: 4.75 | O53: 49 | P53: =LOOKUP(O53,Names!$A$2:$A$161,Names!$B$2:$B$161) -> 0 | Q53: 0 | R53: 4.75 | S53: 0 | T53: 4.75 | V53: 49 | W53: =LOOKUP(V53,Names!$A$2:$A$161,Names!$B$2:$B$161) -> 0 | X53: 0 | Z53: 0 | AA53: 0 | AB53: 0 | AD53: 4.75 | AE53: 4.75 | AF53: 0 | AH53: 0 | AI53: 0 | AJ53: 4.75
B54: W | C54: 50 | D54: =LOOKUP(C54,Names!$A$2:$A$161,Names!$B$2:$B$161) -> 0 | G54: 0 | H54: 0 | J54: =LOOKUP(I54,Names!$A$2:$A$161,Names!$B$2:$B$161) ->  | K54: 0 | L54: 2.85 | M54: 0 | N54: 2.85 | O54: 50 | P54: =LOOKUP(O54,Names!$A$2:$A$161,Names!$B$2:$B$161) -> 0 | Q54: 0 | R54: 2.85 | S54: 0 | T54: 2.85 | V54: 50 | W54: =LOOKUP(V54,Names!$A$2:$A$161,Names!$B$2:$B$161) -> 0 | X54: 0 | Z54: 0 | AA54: 0 | AB54: 0 | AD54: 2.85 | AE54: 2.85 | AF54: 0 | AH54: 0 | AI54: 0 | AJ54: 2.85
B55: S | C55: 51 | D55: =LOOKUP(C55,Names!$A$2:$A$161,Names!$B$2:$B$161) -> 0 | G55: 0 | H55: 0 | J55: =LOOKUP(I55,Names!$A$2:$A$161,Names!$B$2:$B$161) ->  | K55: 0 | L55: 1.9 | M55: 0 | N55: 1.9 | O55: 51 | P55: =LOOKUP(O55,Names!$A$2:$A$161,Names!$B$2:$B$161) -> 0 | Q55: 0 | R55: 1.9 | S55: 0 | T55: 1.9 | V55: 51 | W55: =LOOKUP(V55,Names!$A$2:$A$161,Names!$B$2:$B$161) -> 0 | X55: 0 | Z55: 0 | AA55: 0 | AB55: 0 | AD55: 1.9 | AE55: 1.9 | AF55: 0 | AH55: 0 | AI55: 0 | AJ55: 1.9
B56: E | C56: 52 | D56: =LOOKUP(C56,Names!$A$2:$A$161,Names!$B$2:$B$161) -> 0 | G56: 0 | H56: 0 | J56: =LOOKUP(I56,Names!$A$2:$A$161,Names!$B$2:$B$161) ->  | K56: 0 | L56: 0 | M56: 0 | N56: 0 | O56: 52 | P56: =LOOKUP(O56,Names!$A$2:$A$161,Names!$B$2:$B$161) -> 0 | Q56: 0 | R56: 0 | S56: 0 | T56: 0 | V56: 52 | W56: =LOOKUP(V56,Names!$A$2:$A$161,Names!$B$2:$B$161) -> 0 | X56: 0 | Z56: 0 | AA56: 0 | AB56: 0 | AD56: 0 | AE56: 0 | AF56: 0 | AH56: 0 | AI56: 0 | AJ56: 0
A57: Tabel ( 14 ) | B57: N | C57: 53 | D57: =LOOKUP(C57,Names!$A$2:$A$161,Names!$B$2:$B$161) -> 0 | G57: 0 | H57: 0 | J57: =LOOKUP(I57,Names!$A$2:$A$161,Names!$B$2:$B$161) ->  | K57: 0 | L57: 4.75 | M57: 0 | N57: 4.75 | O57: 53 | P57: =LOOKUP(O57,Names!$A$2:$A$161,Names!$B$2:$B$161) -> 0 | Q57: 0 | R57: 4.75 | S57: 0 | T57: 4.75 | V57: 53 | W57: =LOOKUP(V57,Names!$A$2:$A$161,Names!$B$2:$B$161) -> 0 | X57: 0 | Z57: 0 | AA57: 0 | AB57: 0 | AD57: 4.75 | AE57: 4.75 | AF57: 0 | AH57: 0 | AI57: 0 | AJ57: 4.75
B58: W | C58: 54 | D58: =LOOKUP(C58,Names!$A$2:$A$161,Names!$B$2:$B$161) -> 0 | G58: 0 | H58: 0 | J58: =LOOKUP(I58,Names!$A$2:$A$161,Names!$B$2:$B$161) ->  | K58: 0 | L58: 2.85 | M58: 0 | N58: 2.85 | O58: 54 | P58: =LOOKUP(O58,Names!$A$2:$A$161,Names!$B$2:$B$161) -> 0 | Q58: 0 | R58: 2.85 | S58: 0 | T58: 2.85 | V58: 54 | W58: =LOOKUP(V58,Names!$A$2:$A$161,Names!$B$2:$B$161) -> 0 | X58: 0 | Z58: 0 | AA58: 0 | AB58: 0 | AD58: 2.85 | AE58: 2.85 | AF58: 0 | AH58: 0 | AI58: 0 | AJ58: 2.85
B59: S | C59: 55 | D59: =LOOKUP(C59,Names!$A$2:$A$161,Names!$B$2:$B$161) -> 0 | G59: 0 | H59: 0 | J59: =LOOKUP(I59,Names!$A$2:$A$161,Names!$B$2:$B$161) ->  | K59: 0 | L59: 1.9 | M59: 0 | N59: 1.9 | O59: 55 | P59: =LOOKUP(O59,Names!$A$2:$A$161,Names!$B$2:$B$161) -> 0 | Q59: 0 | R59: 1.9 | S59: 0 | T59: 1.9 | V59: 55 | W59: =LOOKUP(V59,Names!$A$2:$A$161,Names!$B$2:$B$161) -> 0 | X59: 0 | Z59: 0 | AA59: 0 | AB59: 0 | AD59: 1.9 | AE59: 1.9 | AF59: 0 | AH59: 0 | AI59: 0 | AJ59: 1.9
B60: E | C60: 56 | D60: =LOOKUP(C60,Names!$A$2:$A$161,Names!$B$2:$B$161) -> 0 | G60: 0 | H60: 0 | J60: =LOOKUP(I60,Names!$A$2:$A$161,Names!$B$2:$B$161) ->  | K60: 0 | L60: 0 | M60: 0 | N60: 0 | O60: 56 | P60: =LOOKUP(O60,Names!$A$2:$A$161,Names!$B$2:$B$161) -> 0 | Q60: 0 | R60: 0 | S60: 0 | T60: 0 | V60: 56 | W60: =LOOKUP(V60,Names!$A$2:$A$161,Names!$B$2:$B$161) -> 0 | X60: 0 | Z60: 0 | AA60: 0 | AB60: 0 | AD60: 0 | AE60: 0 | AF60: 0 | AH60: 0 | AI60: 0 | AJ60: 0
A61: Tabel ( 15 ) | B61: N | C61: 57 | D61: =LOOKUP(C61,Names!$A$2:$A$161,Names!$B$2:$B$161) -> 0 | G61: 0 | H61: 0 | J61: =LOOKUP(I61,Names!$A$2:$A$161,Names!$B$2:$B$161) ->  | K61: 0 | L61: 4.75 | M61: 0 | N61: 4.75 | O61: 57 | P61: =LOOKUP(O61,Names!$A$2:$A$161,Names!$B$2:$B$161) -> 0 | Q61: 0 | R61: 4.75 | S61: 0 | T61: 4.75 | V61: 57 | W61: =LOOKUP(V61,Names!$A$2:$A$161,Names!$B$2:$B$161) -> 0 | X61: 0 | Z61: 0 | AA61: 0 | AB61: 0 | AD61: 4.75 | AE61: 4.75 | AF61: 0 | AH61: 0 | AI61: 0 | AJ61: 4.75
B62: W | C62: 58 | D62: =LOOKUP(C62,Names!$A$2:$A$161,Names!$B$2:$B$161) -> 0 | G62: 0 | H62: 0 | J62: =LOOKUP(I62,Names!$A$2:$A$161,Names!$B$2:$B$161) ->  | K62: 0 | L62: 2.85 | M62: 0 | N62: 2.85 | O62: 58 | P62: =LOOKUP(O62,Names!$A$2:$A$161,Names!$B$2:$B$161) -> 0 | Q62: 0 | R62: 2.85 | S62: 0 | T62: 2.85 | V62: 58 | W62: =LOOKUP(V62,Names!$A$2:$A$161,Names!$B$2:$B$161) -> 0 | X62: 0 | Z62: 0 | AA62: 0 | AB62: 0 | AD62: 2.85 | AE62: 2.85 | AF62: 0 | AH62: 0 | AI62: 0 | AJ62: 2.85
B63: S | C63: 59 | D63: =LOOKUP(C63,Names!$A$2:$A$161,Names!$B$2:$B$161) -> 0 | G63: 0 | H63: 0 | J63: =LOOKUP(I63,Names!$A$2:$A$161,Names!$B$2:$B$161) ->  | K63: 0 | L63: 1.9 | M63: 0 | N63: 1.9 | O63: 59 | P63: =LOOKUP(O63,Names!$A$2:$A$161,Names!$B$2:$B$161) -> 0 | Q63: 0 | R63: 1.9 | S63: 0 | T63: 1.9 | V63: 59 | W63: =LOOKUP(V63,Names!$A$2:$A$161,Names!$B$2:$B$161) -> 0 | X63: 0 | Z63: 0 | AA63: 0 | AB63: 0 | AD63: 1.9 | AE63: 1.9 | AF63: 0 | AH63: 0 | AI63: 0 | AJ63: 1.9
B64: E | C64: 60 | D64: =LOOKUP(C64,Names!$A$2:$A$161,Names!$B$2:$B$161) -> 0 | G64: 0 | H64: 0 | J64: =LOOKUP(I64,Names!$A$2:$A$161,Names!$B$2:$B$161) ->  | K64: 0 | L64: 0 | M64: 0 | N64: 0 | O64: 60 | P64: =LOOKUP(O64,Names!$A$2:$A$161,Names!$B$2:$B$161) -> 0 | Q64: 0 | R64: 0 | S64: 0 | T64: 0 | V64: 60 | W64: =LOOKUP(V64,Names!$A$2:$A$161,Names!$B$2:$B$161) -> 0 | X64: 0 | Z64: 0 | AA64: 0 | AB64: 0 | AD64: 0 | AE64: 0 | AF64: 0 | AH64: 0 | AI64: 0 | AJ64: 0
A65: Tabel ( 16 ) | B65: N | C65: 61 | D65: =LOOKUP(C65,Names!$A$2:$A$161,Names!$B$2:$B$161) -> 0 | G65: 0 | H65: 0 | J65: =LOOKUP(I65,Names!$A$2:$A$161,Names!$B$2:$B$161) ->  | K65: 0 | L65: 4.75 | M65: 0 | N65: 4.75 | O65: 61 | P65: =LOOKUP(O65,Names!$A$2:$A$161,Names!$B$2:$B$161) -> 0 | Q65: 0 | R65: 4.75 | S65: 0 | T65: 4.75 | V65: 61 | W65: =LOOKUP(V65,Names!$A$2:$A$161,Names!$B$2:$B$161) -> 0 | X65: 0 | Z65: 0 | AA65: 0 | AB65: 0 | AD65: 4.75 | AE65: 4.75 | AF65: 0 | AH65: 0 | AI65: 0 | AJ65: 4.75
B66: W | C66: 62 | D66: =LOOKUP(C66,Names!$A$2:$A$161,Names!$B$2:$B$161) -> 0 | G66: 0 | H66: 0 | J66: =LOOKUP(I66,Names!$A$2:$A$161,Names!$B$2:$B$161) ->  | K66: 0 | L66: 2.85 | M66: 0 | N66: 2.85 | O66: 62 | P66: =LOOKUP(O66,Names!$A$2:$A$161,Names!$B$2:$B$161) -> 0 | Q66: 0 | R66: 2.85 | S66: 0 | T66: 2.85 | V66: 62 | W66: =LOOKUP(V66,Names!$A$2:$A$161,Names!$B$2:$B$161) -> 0 | X66: 0 | Z66: 0 | AA66: 0 | AB66: 0 | AD66: 2.85 | AE66: 2.85 | AF66: 0 | AH66: 0 | AI66: 0 | AJ66: 2.85
B67: S | C67: 63 | D67: =LOOKUP(C67,Names!$A$2:$A$161,Names!$B$2:$B$161) -> 0 | G67: 0 | H67: 0 | J67: =LOOKUP(I67,Names!$A$2:$A$161,Names!$B$2:$B$161) ->  | K67: 0 | L67: 1.9 | M67: 0 | N67: 1.9 | O67: 63 | P67: =LOOKUP(O67,Names!$A$2:$A$161,Names!$B$2:$B$161) -> 0 | Q67: 0 | R67: 1.9 | S67: 0 | T67: 1.9 | V67: 63 | W67: =LOOKUP(V67,Names!$A$2:$A$161,Names!$B$2:$B$161) -> 0 | X67: 0 | Z67: 0 | AA67: 0 | AB67: 0 | AD67: 1.9 | AE67: 1.9 | AF67: 0 | AH67: 0 | AI67: 0 | AJ67: 1.9
B68: E | C68: 64 | D68: =LOOKUP(C68,Names!$A$2:$A$161,Names!$B$2:$B$161) -> 0 | G68: 0 | H68: 0 | J68: =LOOKUP(I68,Names!$A$2:$A$161,Names!$B$2:$B$161) ->  | K68: 0 | L68: 0 | M68: 0 | N68: 0 | O68: 64 | P68: =LOOKUP(O68,Names!$A$2:$A$161,Names!$B$2:$B$161) -> 0 | Q68: 0 | R68: 0 | S68: 0 | T68: 0 | V68: 64 | W68: =LOOKUP(V68,Names!$A$2:$A$161,Names!$B$2:$B$161) -> 0 | X68: 0 | Z68: 0 | AA68: 0 | AB68: 0 | AD68: 0 | AE68: 0 | AF68: 0 | AH68: 0 | AI68: 0 | AJ68: 0
A69: Tabel ( 17 ) | B69: N | C69: 65 | D69: =LOOKUP(C69,Names!$A$2:$A$161,Names!$B$2:$B$161) -> 0 | G69: 0 | H69: =F69+G69 -> 0 | J69: =LOOKUP(I69,Names!$A$2:$A$161,Names!$B$2:$B$161) ->  | K69: 0 | L69: 4.75 | M69: 0 | N69: =L69+M69 -> 4.75 | O69: 65 | P69: =LOOKUP(O69,Names!$A$2:$A$161,Names!$B$2:$B$161) -> 0 | Q69: 0 | R69: 4.75 | S69: 0 | T69: =R69+S69 -> 4.75 | V69: 65 | W69: =LOOKUP(V69,Names!$A$2:$A$161,Names!$B$2:$B$161) -> 0 | X69: =IF(ISNA(VLOOKUP(V69,$C$5:$H$164,3,FALSE))=TRUE,"",VLOOKUP(V69,$C$5:$H$164,3,FALSE)) -> 0 | Y69: =IF(ISNA(VLOOKUP(V69,$I$5:$N$164,3,FALSE))=TRUE,"",VLOOKUP(V69,$I$5:$N$164,3,FALSE)) ->  | Z69: =IF(ISNA(VLOOKUP(V69,$O$5:$T$164,3,FALSE))=TRUE,"",VLOOKUP(V69,$O$5:$T$164,3,FALSE)) -> 0 | AA69: =SUM(X69:Z69) -> 0 | AB69: =IF(ISNA(VLOOKUP(V69,$C$5:$H$164,4,FALSE))=TRUE,"",VLOOKUP(V69,$C$5:$H$164,4,FALSE)) -> 0 | AC69: =IF(ISNA(VLOOKUP(V69,$I$5:$N$164,4,FALSE))=TRUE,"",VLOOKUP(V69,$I$5:$N$164,4,FALSE)) ->  | AD69: =IF(ISNA(VLOOKUP(V69,$O$5:$T$164,4,FALSE))=TRUE,"",VLOOKUP(V69,$O$5:$T$164,4,FALSE)) -> 4.75 | AE69: =SUM(AB69:AD69) -> 4.75 | AF69: =IF(ISNA(VLOOKUP(V69,$C$5:$H$164,5,FALSE))=TRUE,"",VLOOKUP(V69,$C$5:$H$164,5,FALSE)) -> 0 | AG69: =IF(ISNA(VLOOKUP(V69,$I$5:$N$164,5,FALSE))=TRUE,"",VLOOKUP(V69,$I$5:$N$164,5,FALSE)) ->  | AH69: =IF(ISNA(VLOOKUP(V69,$O$5:$T$164,5,FALSE))=TRUE,"",VLOOKUP(V69,$O$5:$T$164,5,FALSE)) -> 0 | AI69: =SUM(AF69:AH69) -> 0 | AJ69: =AE69+AI69 -> 4.75
B70: W | C70: 66 | D70: =LOOKUP(C70,Names!$A$2:$A$161,Names!$B$2:$B$161) -> 0 | G70: 0 | H70: 0 | J70: =LOOKUP(I70,Names!$A$2:$A$161,Names!$B$2:$B$161) ->  | K70: 0 | L70: 2.85 | M70: 0 | N70: 2.85 | O70: 66 | P70: =LOOKUP(O70,Names!$A$2:$A$161,Names!$B$2:$B$161) -> 0 | Q70: 0 | R70: 2.85 | S70: 0 | T70: 2.85 | V70: 66 | W70: =LOOKUP(V70,Names!$A$2:$A$161,Names!$B$2:$B$161) -> 0 | X70: 0 | Z70: 0 | AA70: 0 | AB70: 0 | AD70: 2.85 | AE70: 2.85 | AF70: 0 | AH70: 0 | AI70: 0 | AJ70: 2.85
B71: S | C71: 67 | D71: =LOOKUP(C71,Names!$A$2:$A$161,Names!$B$2:$B$161) -> 0 | G71: 0 | H71: 0 | J71: =LOOKUP(I71,Names!$A$2:$A$161,Names!$B$2:$B$161) ->  | K71: 0 | L71: 1.9 | M71: 0 | N71: 1.9 | O71: 67 | P71: =LOOKUP(O71,Names!$A$2:$A$161,Names!$B$2:$B$161) -> 0 | Q71: 0 | R71: 1.9 | S71: 0 | T71: 1.9 | V71: 67 | W71: =LOOKUP(V71,Names!$A$2:$A$161,Names!$B$2:$B$161) -> 0 | X71: 0 | Z71: 0 | AA71: 0 | AB71: 0 | AD71: 1.9 | AE71: 1.9 | AF71: 0 | AH71: 0 | AI71: 0 | AJ71: 1.9
B72: E | C72: 68 | D72: =LOOKUP(C72,Names!$A$2:$A$161,Names!$B$2:$B$161) -> 0 | G72: 0 | H72: 0 | J72: =LOOKUP(I72,Names!$A$2:$A$161,Names!$B$2:$B$161) ->  | K72: 0 | L72: 0 | M72: 0 | N72: 0 | O72: 68 | P72: =LOOKUP(O72,Names!$A$2:$A$161,Names!$B$2:$B$161) -> 0 | Q72: 0 | R72: 0 | S72: 0 | T72: 0 | V72: 68 | W72: =LOOKUP(V72,Names!$A$2:$A$161,Names!$B$2:$B$161) -> 0 | X72: 0 | Z72: 0 | AA72: 0 | AB72: 0 | AD72: 0 | AE72: 0 | AF72: 0 | AH72: 0 | AI72: 0 | AJ72: 0
A73: Tabel ( 18 ) | B73: N | C73: 69 | D73: =LOOKUP(C73,Names!$A$2:$A$161,Names!$B$2:$B$161) -> 0 | G73: 0 | H73: 0 | J73: =LOOKUP(I73,Names!$A$2:$A$161,Names!$B$2:$B$161) ->  | K73: 0 | L73: 4.75 | M73: 0 | N73: 4.75 | O73: 69 | P73: =LOOKUP(O73,Names!$A$2:$A$161,Names!$B$2:$B$161) -> 0 | Q73: 0 | R73: 4.75 | S73: 0 | T73: 4.75 | V73: 69 | W73: =LOOKUP(V73,Names!$A$2:$A$161,Names!$B$2:$B$161) -> 0 | X73: 0 | Z73: 0 | AA73: 0 | AB73: 0 | AD73: 4.75 | AE73: 4.75 | AF73: 0 | AH73: 0 | AI73: 0 | AJ73: 4.75
B74: W | C74: 70 | D74: =LOOKUP(C74,Names!$A$2:$A$161,Names!$B$2:$B$161) -> 0 | G74: 0 | H74: 0 | J74: =LOOKUP(I74,Names!$A$2:$A$161,Names!$B$2:$B$161) ->  | K74: 0 | L74: 2.85 | M74: 0 | N74: 2.85 | O74: 70 | P74: =LOOKUP(O74,Names!$A$2:$A$161,Names!$B$2:$B$161) -> 0 | Q74: 0 | R74: 2.85 | S74: 0 | T74: 2.85 | V74: 70 | W74: =LOOKUP(V74,Names!$A$2:$A$161,Names!$B$2:$B$161) -> 0 | X74: 0 | Z74: 0 | AA74: 0 | AB74: 0 | AD74: 2.85 | AE74: 2.85 | AF74: 0 | AH74: 0 | AI74: 0 | AJ74: 2.85
B75: S | C75: 71 | D75: =LOOKUP(C75,Names!$A$2:$A$161,Names!$B$2:$B$161) -> 0 | G75: 0 | H75: 0 | J75: =LOOKUP(I75,Names!$A$2:$A$161,Names!$B$2:$B$161) ->  | K75: 0 | L75: 1.9 | M75: 0 | N75: 1.9 | O75: 71 | P75: =LOOKUP(O75,Names!$A$2:$A$161,Names!$B$2:$B$161) -> 0 | Q75: 0 | R75: 1.9 | S75: 0 | T75: 1.9 | V75: 71 | W75: =LOOKUP(V75,Names!$A$2:$A$161,Names!$B$2:$B$161) -> 0 | X75: 0 | Z75: 0 | AA75: 0 | AB75: 0 | AD75: 1.9 | AE75: 1.9 | AF75: 0 | AH75: 0 | AI75: 0 | AJ75: 1.9
B76: E | C76: 72 | D76: =LOOKUP(C76,Names!$A$2:$A$161,Names!$B$2:$B$161) -> 0 | G76: 0 | H76: 0 | J76: =LOOKUP(I76,Names!$A$2:$A$161,Names!$B$2:$B$161) ->  | K76: 0 | L76: 0 | M76: 0 | N76: 0 | O76: 72 | P76: =LOOKUP(O76,Names!$A$2:$A$161,Names!$B$2:$B$161) -> 0 | Q76: 0 | R76: 0 | S76: 0 | T76: 0 | V76: 72 | W76: =LOOKUP(V76,Names!$A$2:$A$161,Names!$B$2:$B$161) -> 0 | X76: 0 | Z76: 0 | AA76: 0 | AB76: 0 | AD76: 0 | AE76: 0 | AF76: 0 | AH76: 0 | AI76: 0 | AJ76: 0
A77: Tabel ( 19 ) | B77: N | C77: 73 | D77: =LOOKUP(C77,Names!$A$2:$A$161,Names!$B$2:$B$161) -> 0 | G77: 0 | H77: 0 | J77: =LOOKUP(I77,Names!$A$2:$A$161,Names!$B$2:$B$161) ->  | K77: 0 | L77: 4.75 | M77: 0 | N77: 4.75 | O77: 73 | P77: =LOOKUP(O77,Names!$A$2:$A$161,Names!$B$2:$B$161) -> 0 | Q77: 0 | R77: 4.75 | S77: 0 | T77: 4.75 | V77: 73 | W77: =LOOKUP(V77,Names!$A$2:$A$161,Names!$B$2:$B$161) -> 0 | X77: 0 | Z77: 0 | AA77: 0 | AB77: 0 | AD77: 4.75 | AE77: 4.75 | AF77: 0 | AH77: 0 | AI77: 0 | AJ77: 4.75
B78: W | C78: 74 | D78: =LOOKUP(C78,Names!$A$2:$A$161,Names!$B$2:$B$161) -> 0 | G78: 0 | H78: 0 | J78: =LOOKUP(I78,Names!$A$2:$A$161,Names!$B$2:$B$161) ->  | K78: 0 | L78: 2.85 | M78: 0 | N78: 2.85 | O78: 74 | P78: =LOOKUP(O78,Names!$A$2:$A$161,Names!$B$2:$B$161) -> 0 | Q78: 0 | R78: 2.85 | S78: 0 | T78: 2.85 | V78: 74 | W78: =LOOKUP(V78,Names!$A$2:$A$161,Names!$B$2:$B$161) -> 0 | X78: 0 | Z78: 0 | AA78: 0 | AB78: 0 | AD78: 2.85 | AE78: 2.85 | AF78: 0 | AH78: 0 | AI78: 0 | AJ78: 2.85
B79: S | C79: 75 | D79: =LOOKUP(C79,Names!$A$2:$A$161,Names!$B$2:$B$161) -> 0 | G79: 0 | H79: 0 | J79: =LOOKUP(I79,Names!$A$2:$A$161,Names!$B$2:$B$161) ->  | K79: 0 | L79: 1.9 | M79: 0 | N79: 1.9 | O79: 75 | P79: =LOOKUP(O79,Names!$A$2:$A$161,Names!$B$2:$B$161) -> 0 | Q79: 0 | R79: 1.9 | S79: 0 | T79: 1.9 | V79: 75 | W79: =LOOKUP(V79,Names!$A$2:$A$161,Names!$B$2:$B$161) -> 0 | X79: 0 | Z79: 0 | AA79: 0 | AB79: 0 | AD79: 1.9 | AE79: 1.9 | AF79: 0 | AH79: 0 | AI79: 0 | AJ79: 1.9
B80: E | C80: 76 | D80: =LOOKUP(C80,Names!$A$2:$A$161,Names!$B$2:$B$161) -> 0 | G80: 0 | H80: 0 | J80: =LOOKUP(I80,Names!$A$2:$A$161,Names!$B$2:$B$161) ->  | K80: 0 | L80: 0 | M80: 0 | N80: 0 | O80: 76 | P80: =LOOKUP(O80,Names!$A$2:$A$161,Names!$B$2:$B$161) -> 0 | Q80: 0 | R80: 0 | S80: 0 | T80: 0 | V80: 76 | W80: =LOOKUP(V80,Names!$A$2:$A$161,Names!$B$2:$B$161) -> 0 | X80: 0 | Z80: 0 | AA80: 0 | AB80: 0 | AD80: 0 | AE80: 0 | AF80: 0 | AH80: 0 | AI80: 0 | AJ80: 0
A81: Tabel ( 20 ) | B81: N | C81: 77 | D81: =LOOKUP(C81,Names!$A$2:$A$161,Names!$B$2:$B$161) -> 0 | G81: 0 | H81: 0 | J81: =LOOKUP(I81,Names!$A$2:$A$161,Names!$B$2:$B$161) ->  | K81: 0 | L81: 4.75 | M81: 0 | N81: 4.75 | O81: 77 | P81: =LOOKUP(O81,Names!$A$2:$A$161,Names!$B$2:$B$161) -> 0 | Q81: 0 | R81: 4.75 | S81: 0 | T81: 4.75 | V81: 77 | W81: =LOOKUP(V81,Names!$A$2:$A$161,Names!$B$2:$B$161) -> 0 | X81: 0 | Z81: 0 | AA81: 0 | AB81: 0 | AD81: 4.75 | AE81: 4.75 | AF81: 0 | AH81: 0 | AI81: 0 | AJ81: 4.75
B82: W | C82: 78 | D82: =LOOKUP(C82,Names!$A$2:$A$161,Names!$B$2:$B$161) -> 0 | G82: 0 | H82: 0 | J82: =LOOKUP(I82,Names!$A$2:$A$161,Names!$B$2:$B$161) ->  | K82: 0 | L82: 2.85 | M82: 0 | N82: 2.85 | O82: 78 | P82: =LOOKUP(O82,Names!$A$2:$A$161,Names!$B$2:$B$161) -> 0 | Q82: 0 | R82: 2.85 | S82: 0 | T82: 2.85 | V82: 78 | W82: =LOOKUP(V82,Names!$A$2:$A$161,Names!$B$2:$B$161) -> 0 | X82: 0 | Z82: 0 | AA82: 0 | AB82: 0 | AD82: 2.85 | AE82: 2.85 | AF82: 0 | AH82: 0 | AI82: 0 | AJ82: 2.85
B83: S | C83: 79 | D83: =LOOKUP(C83,Names!$A$2:$A$161,Names!$B$2:$B$161) -> 0 | G83: 0 | H83: 0 | J83: =LOOKUP(I83,Names!$A$2:$A$161,Names!$B$2:$B$161) ->  | K83: 0 | L83: 1.9 | M83: 0 | N83: 1.9 | O83: 79 | P83: =LOOKUP(O83,Names!$A$2:$A$161,Names!$B$2:$B$161) -> 0 | Q83: 0 | R83: 1.9 | S83: 0 | T83: 1.9 | V83: 79 | W83: =LOOKUP(V83,Names!$A$2:$A$161,Names!$B$2:$B$161) -> 0 | X83: 0 | Z83: 0 | AA83: 0 | AB83: 0 | AD83: 1.9 | AE83: 1.9 | AF83: 0 | AH83: 0 | AI83: 0 | AJ83: 1.9
B84: E | C84: 80 | D84: =LOOKUP(C84,Names!$A$2:$A$161,Names!$B$2:$B$161) -> 0 | G84: 0 | H84: 0 | J84: =LOOKUP(I84,Names!$A$2:$A$161,Names!$B$2:$B$161) ->  | K84: 0 | L84: 0 | M84: 0 | N84: 0 | O84: 80 | P84: =LOOKUP(O84,Names!$A$2:$A$161,Names!$B$2:$B$161) -> 0 | Q84: 0 | R84: 0 | S84: 0 | T84: 0 | V84: 80 | W84: =LOOKUP(V84,Names!$A$2:$A$161,Names!$B$2:$B$161) -> 0 | X84: 0 | Z84: 0 | AA84: 0 | AB84: 0 | AD84: 0 | AE84: 0 | AF84: 0 | AH84: 0 | AI84: 0 | AJ84: 0
A85: Tabel ( 21 ) | B85: N | C85: 81 | D85: =LOOKUP(C85,Names!$A$2:$A$161,Names!$B$2:$B$161) -> راجي محمد صبحي | E85: 185 | F85: 2.85 | G85: 15 | H85: 17.85 | I85: 81 | J85: =LOOKUP(I85,Names!$A$2:$A$161,Names!$B$2:$B$161) -> راجي محمد صبحي | K85: 113 | L85: 1.9 | M85: 2 | N85: 3.9 | O85: 81 | P85: =LOOKUP(O85,Names!$A$2:$A$161,Names!$B$2:$B$161) -> راجي محمد صبحي | Q85: 107 | R85: 1.9 | S85: 6 | T85: 7.9 | V85: 100 | W85: =LOOKUP(V85,Names!$A$2:$A$161,Names!$B$2:$B$161) -> عبد الرحمن الدمراوى | X85: 106 | Y85: 205 | Z85: 125 | AA85: 436 | AB85: 0 | AC85: 4.75 | AD85: 1.9 | AE85: 6.65 | AF85: 7 | AG85: 15 | AH85: 8 | AI85: 30 | AJ85: 36.65 | AK85: 37
B86: W | C86: 82 | D86: =LOOKUP(C86,Names!$A$2:$A$161,Names!$B$2:$B$161) -> أحمد صلاح الدين دياب | E86: 171 | F86: 1.9 | G86: 14.5 | H86: 16.4 | I86: 85 | J86: =LOOKUP(I86,Names!$A$2:$A$161,Names!$B$2:$B$161) -> محمد عبد الهادي أبو القاسم | K86: 109 | L86: 0 | M86: 2 | N86: 2 | O86: 97 | P86: =LOOKUP(O86,Names!$A$2:$A$161,Names!$B$2:$B$161) -> خالد محمد شبارة | Q86: 167 | R86: 4.75 | S86: 11 | T86: 15.75 | V86: 13 | W86: =LOOKUP(V86,Names!$A$2:$A$161,Names!$B$2:$B$161) -> عمرو سمير دسوقي | X86: 158 | Y86: 143 | Z86: 115 | AA86: 416 | AB86: 4.75 | AC86: 1.9 | AD86: 0 | AE86: 6.65 | AF86: 13 | AG86: 10 | AH86: 7 | AI86: 30 | AJ86: 36.65 | AK86: 38
B87: S | C87: 83 | D87: =LOOKUP(C87,Names!$A$2:$A$161,Names!$B$2:$B$161) -> أسامة لطفى نجيب | E87: 187 | F87: 4.75 | G87: 14 | H87: 18.75 | I87: 89 | J87: =LOOKUP(I87,Names!$A$2:$A$161,Names!$B$2:$B$161) -> محمد بلبع | K87: 128 | L87: 2.85 | M87: 10 | N87: 12.85 | O87: 113 | P87: =LOOKUP(O87,Names!$A$2:$A$161,Names!$B$2:$B$161) -> محمد حسن فهيم | Q87: 159 | R87: 2.85 | S87: 12 | T87: 14.85 | V87: 85 | W87: =LOOKUP(V87,Names!$A$2:$A$161,Names!$B$2:$B$161) -> محمد عبد الهادي أبو القاسم | X87: 164 | Y87: 109 | Z87: 185 | AA87: 458 | AB87: 2.85 | AC87: 0 | AD87: 2.85 | AE87: 5.7 | AF87: 11 | AG87: 2 | AH87: 16 | AI87: 29 | AJ87: 34.7 | AK87: 39
B88: E | C88: 84 | D88: =LOOKUP(C88,Names!$A$2:$A$161,Names!$B$2:$B$161) -> أحمد عز العرب السماحي | E88: 162 | F88: 0 | G88: 15 | H88: 15 | I88: 93 | J88: =LOOKUP(I88,Names!$A$2:$A$161,Names!$B$2:$B$161) -> جمال السيد توفيق | K88: 172 | L88: 4.75 | M88: 14 | N88: 18.75 | O88: 94 | P88: =LOOKUP(O88,Names!$A$2:$A$161,Names!$B$2:$B$161) -> محمد عصام الدين القاضي | Q88: 106 | R88: 0 | S88: 4 | T88: 4 | V88: 18 | W88: =LOOKUP(V88,Names!$A$2:$A$161,Names!$B$2:$B$161) -> وليد شعبان إسماعيل علي | X88: 136 | Y88: 148 | Z88: 155 | AA88: 439 | AB88: 2.85 | AC88: 2.85 | AD88: 2.85 | AE88: 8.55 | AF88: 8 | AG88: 10 | AH88: 8 | AI88: 26 | AJ88: 34.55 | AK88: 40
A89: Tabel ( 22 ) | B89: N | C89: 85 | D89: =LOOKUP(C89,Names!$A$2:$A$161,Names!$B$2:$B$161) -> محمد عبد الهادي أبو القاسم | E89: 164 | F89: 2.85 | G89: 11 | H89: 13.85 | I89: 97 | J89: =LOOKUP(I89,Names!$A$2:$A$161,Names!$B$2:$B$161) -> خالد محمد شبارة | K89: 167 | L89: 1.9 | M89: 12 | N89: 13.9 | O89: 110 | P89: =LOOKUP(O89,Names!$A$2:$A$161,Names!$B$2:$B$161) -> أسامة أحمد زكي | Q89: 181 | R89: 2.85 | S89: 13 | T89: 15.85 | V89: 7 | W89: =LOOKUP(V89,Names!$A$2:$A$161,Names!$B$2:$B$161) -> هيثم محمد شبانة | X89: 114 | Y89: 120 | Z89: 180 | AA89: 414 | AB89: 1.9 | AC89: 1.9 | AD89: 4.75 | AE89: 8.55 | AF89: 5 | AG89: 7 | AH89: 14 | AI89: 26 | AJ89: 34.55 | AK89: 40
B90: W | C90: 86 | D90: =LOOKUP(C90,Names!$A$2:$A$161,Names!$B$2:$B$161) -> ايهاب يوسف عمارة | E90: 131 | F90: 1.9 | G90: 9 | H90: 10.9 | I90: 101 | J90: =LOOKUP(I90,Names!$A$2:$A$161,Names!$B$2:$B$161) -> أحمد محمد شوقى عبد الحميد | K90: 136 | L90: 0 | M90: 7 | N90: 7 | O90: 91 | P90: =LOOKUP(O90,Names!$A$2:$A$161,Names!$B$2:$B$161) -> عماد محمد فؤاد مرسي | Q90: 184 | R90: 4.75 | S90: 14.5 | T90: 19.25 | V90: 11 | W90: =LOOKUP(V90,Names!$A$2:$A$161,Names!$B$2:$B$161) -> هيثم العشماوي | X90: 100 | Y90: 140 | Z90: 230 | AA90: 470 | AB90: 1.9 | AC90: 2.85 | AD90: 4.75 | AE90: 9.5 | AF90: 2 | AG90: 4 | AH90: 19 | AI90: 25 | AJ90: 34.5 | AK90: 42
B91: S | C91: 87 | D91: =LOOKUP(C91,Names!$A$2:$A$161,Names!$B$2:$B$161) -> ياسر شاهين | E91: 216 | F91: 4.75 | G91: 17 | H91: 21.75 | I91: 105 | J91: =LOOKUP(I91,Names!$A$2:$A$161,Names!$B$2:$B$161) -> مصطفى عبد الحفيظ علي | K91: 175 | L91: 2.85 | M91: 15 | N91: 17.85 | O91: 107 | P91: =LOOKUP(O91,Names!$A$2:$A$161,Names!$B$2:$B$161) -> شادي أحمد محمود وهبة | Q91: 92 | R91: 0 | S91: 7 | T91: 7 | V91: 20 | W91: =LOOKUP(V91,Names!$A$2:$A$161,Names!$B$2:$B$161) -> عصام الدين محمد عبد العاطي | X91: 108 | Y91: 127 | Z91: 161 | AA91: 396 | AB91: 0 | AC91: 2.85 | AD91: 4.75 | AE91: 7.6 | AF91: 3 | AG91: 8 | AH91: 15 | AI91: 26 | AJ91: 33.6 | AK91: 43
B92: E | C92: 88 | D92: =LOOKUP(C92,Names!$A$2:$A$161,Names!$B$2:$B$161) -> أحمد علي خليل حسن | E92: 118 | F92: 0 | G92: 8 | H92: 8 | I92: 109 | J92: =LOOKUP(I92,Names!$A$2:$A$161,Names!$B$2:$B$161) -> نبيل خلف زكي | K92: 206 | L92: 4.75 | M92: 16 | N92: 20.75 | O92: 88 | P92: =LOOKUP(O92,Names!$A$2:$A$161,Names!$B$2:$B$161) -> أحمد علي خليل حسن | Q92: 178 | R92: 1.9 | S92: 17 | T92: 18.9 | V92: 82 | W92: =LOOKUP(V92,Names!$A$2:$A$161,Names!$B$2:$B$161) -> أحمد صلاح الدين دياب | X92: 171 | Y92: 118 | Z92: 152 | AA92: 441 | AB92: 1.9 | AC92: 0 | AD92: 1.9 | AE92: 3.8 | AF92: 14.5 | AG92: 4 | AH92: 11 | AI92: 29.5 | AJ92: 33.3 | AK92: 44
A93: Tabel ( 23 ) | B93: N | C93: 89 | D93: =LOOKUP(C93,Names!$A$2:$A$161,Names!$B$2:$B$161) -> محمد بلبع | E93: 129 | F93: 1.9 | G93: 6 | H93: 7.9 | I93: 113 | J93: =LOOKUP(I93,Names!$A$2:$A$161,Names!$B$2:$B$161) -> محمد حسن فهيم | K93: 181 | L93: 2.85 | M93: 13 | N93: 15.85 | O93: 104 | P93: =LOOKUP(O93,Names!$A$2:$A$161,Names!$B$2:$B$161) -> كريم إيهاب عامر | Q93: 186 | R93: 4.75 | S93: 14 | T93: 18.75 | V93: 98 | W93: =LOOKUP(V93,Names!$A$2:$A$161,Names!$B$2:$B$161) -> محمد محمود شعبان رمضان | X93: 110 | Y93: 205 | Z93: 96 | AA93: 411 | AB93: 1.9 | AC93: 2.85 | AD93: 0 | AE93: 4.75 | AF93: 4 | AG93: 16 | AH93: 8 | AI93: 28 | AJ93: 32.75 | AK93: 45
B94: W | C94: 90 | D94: =LOOKUP(C94,Names!$A$2:$A$161,Names!$B$2:$B$161) -> محمد علي حسن طه الأمام | E94: 149 | F94: 4.75 | G94: 12 | H94: 16.75 | I94: 82 | J94: =LOOKUP(I94,Names!$A$2:$A$161,Names!$B$2:$B$161) -> أحمد صلاح الدين دياب | K94: 118 | L94: 0 | M94: 4 | N94: 4 | O94: 85 | P94: =LOOKUP(O94,Names!$A$2:$A$161,Names!$B$2:$B$161) -> محمد عبد الهادي أبو القاسم | Q94: 185 | R94: 2.85 | S94: 16 | T94: 18.85 | V94: 88 | W94: =LOOKUP(V94,Names!$A$2:$A$161,Names!$B$2:$B$161) -> أحمد علي خليل حسن | X94: 118 | Y94: 143 | Z94: 178 | AA94: 439 | AB94: 0 | AC94: 0 | AD94: 1.9 | AE94: 1.9 | AF94: 8 | AG94: 5 | AH94: 17 | AI94: 30 | AJ94: 31.9 | AK94: 46
B95: S | C95: 91 | D95: =LOOKUP(C95,Names!$A$2:$A$161,Names!$B$2:$B$161) -> عماد محمد فؤاد مرسي | E95: 133 | F95: 2.85 | G95: 6 | H95: 8.85 | I95: 86 | J95: =LOOKUP(I95,Names!$A$2:$A$161,Names!$B$2:$B$161) -> ايهاب يوسف عمارة | K95: 173 | L95: 1.9 | M95: 14 | N95: 15.9 | O95: 98 | P95: =LOOKUP(O95,Names!$A$2:$A$161,Names!$B$2:$B$161) -> محمد محمود شعبان رمضان | Q95: 96 | R95: 0 | S95: 8 | T95: 8 | V95: 92 | W95: =LOOKUP(V95,Names!$A$2:$A$161,Names!$B$2:$B$161) -> أحمد مصطفى راشد | X95: 67 | Y95: 146 | Z95: 198 | AA95: 411 | AB95: 0 | AC95: 1.9 | AD95: 4.75 | AE95: 6.65 | AF95: 1 | AG95: 9 | AH95: 15 | AI95: 25 | AJ95: 31.65 | AK95: 47
B96: E | C96: 92 | D96: =LOOKUP(C96,Names!$A$2:$A$161,Names!$B$2:$B$161) -> أحمد مصطفى راشد | E96: 67 | F96: 0 | G96: 1 | H96: 1 | I96: 90 | J96: =LOOKUP(I96,Names!$A$2:$A$161,Names!$B$2:$B$161) -> محمد علي حسن طه الأمام | K96: 217 | L96: 4.75 | M96: 17 | N96: 21.75 | O96: 82 | P96: =LOOKUP(O96,Names!$A$2:$A$161,Names!$B$2:$B$161) -> أحمد صلاح الدين دياب | Q96: 152 | R96: 1.9 | S96: 11 | T96: 12.9 | V96: 14 | W96: =LOOKUP(V96,Names!$A$2:$A$161,Names!$B$2:$B$161) -> أحمد محمد محمدي | X96: 133 | Y96: 146 | Z96: 154 | AA96: 433 | AB96: 1.9 | AC96: 1.9 | AD96: 3.8 | AE96: 7.6 | AF96: 10 | AG96: 6.5 | AH96: 7 | AI96: 23.5 | AJ96: 31.1 | AK96: 48
A97: Tabel ( 24 ) | B97: N | C97: 93 | D97: =LOOKUP(C97,Names!$A$2:$A$161,Names!$B$2:$B$161) -> جمال السيد توفيق | E97: 109 | F97: 0 | G97: 4 | H97: 4 | I97: 94 | J97: =LOOKUP(I97,Names!$A$2:$A$161,Names!$B$2:$B$161) -> محمد عصام الدين القاضي | K97: 250 | L97: 4.75 | M97: 19 | N97: 23.75 | O97: 101 | P97: =LOOKUP(O97,Names!$A$2:$A$161,Names!$B$2:$B$161) -> أحمد محمد شوقى عبد الحميد | Q97: 55 | R97: 0 | S97: 3 | T97: 3 | V97: 116 | W97: =LOOKUP(V97,Names!$A$2:$A$161,Names!$B$2:$B$161) -> اسامة قاسم | X97: 124 | Y97: 88 | Z97: 156 | AA97: 368 | AB97: 1.9 | AC97: 0 | AD97: 2.85 | AE97: 4.75 | AF97: 9 | AG97: 4 | AH97: 13 | AI97: 26 | AJ97: 30.75 | AK97: 49
B98: W | C98: 94 | D98: =LOOKUP(C98,Names!$A$2:$A$161,Names!$B$2:$B$161) -> محمد عصام الدين القاضي | E98: 196 | F98: 4.75 | G98: 17 | H98: 21.75 | I98: 98 | J98: =LOOKUP(I98,Names!$A$2:$A$161,Names!$B$2:$B$161) -> محمد محمود شعبان رمضان | K98: 205 | L98: 2.85 | M98: 16 | N98: 18.85 | O98: 114 | P98: =LOOKUP(O98,Names!$A$2:$A$161,Names!$B$2:$B$161) -> احمد سردينة | Q98: 184 | R98: 4.75 | S98: 14.5 | T98: 19.25 | V98: 93 | W98: =LOOKUP(V98,Names!$A$2:$A$161,Names!$B$2:$B$161) -> جمال السيد توفيق | X98: 109 | Y98: 172 | Z98: 141 | AA98: 422 | AB98: 0 | AC98: 4.75 | AD98: 1.9 | AE98: 6.65 | AF98: 4 | AG98: 14 | AH98: 5 | AI98: 23 | AJ98: 29.65 | AK98: 50
B99: S | C99: 95 | D99: =LOOKUP(C99,Names!$A$2:$A$161,Names!$B$2:$B$161) -> احمد طنطاوى | E99: 174 | F99: 1.9 | G99: 13 | H99: 14.9 | I99: 102 | J99: =LOOKUP(I99,Names!$A$2:$A$161,Names!$B$2:$B$161) -> سامي محمود الفولي | K99: 97 | L99: 0 | M99: 5 | N99: 5 | O99: 95 | P99: =LOOKUP(O99,Names!$A$2:$A$161,Names!$B$2:$B$161) -> احمد طنطاوى | Q99: 169 | R99: 2.85 | S99: 13 | T99: 15.85 | V99: 81 | W99: =LOOKUP(V99,Names!$A$2:$A$161,Names!$B$2:$B$161) -> راجي محمد صبحي | X99: 185 | Y99: 113 | Z99: 107 | AA99: 405 | AB99: 2.85 | AC99: 1.9 | AD99: 1.9 | AE99: 6.65 | AF99: 15 | AG99: 2 | AH99: 6 | AI99: 23 | AJ99: 29.65 | AK99: 51
B100: E | C100: 96 | D100: =LOOKUP(C100,Names!$A$2:$A$161,Names!$B$2:$B$161) -> أحمد رمزي الديب | E100: 189 | F100: 2.85 | G100: 17 | H100: 19.85 | I100: 106 | J100: =LOOKUP(I100,Names!$A$2:$A$161,Names!$B$2:$B$161) -> أحمد عبد العزيز العطار | K100: 113 | L100: 1.9 | M100: 6 | N100: 7.9 | O100: 111 | P100: =LOOKUP(O100,Names!$A$2:$A$161,Names!$B$2:$B$161) -> عادل محمد أبو زيد | Q100: 160 | R100: 1.9 | S100: 14 | T100: 15.9 | V100: 99 | W100: =LOOKUP(V100,Names!$A$2:$A$161,Names!$B$2:$B$161) -> ماجد محمد فكري | X100: 121 | Y100: 130 | Z100: 152 | AA100: 403 | AB100: 2.85 | AC100: 2.85 | AD100: 1.9 | AE100: 7.6 | AF100: 4 | AG100: 12 | AH100: 6 | AI100: 22 | AJ100: 29.6 | AK100: 52
A101: Tabel ( 25 ) | B101: N | C101: 97 | D101: =LOOKUP(C101,Names!$A$2:$A$161,Names!$B$2:$B$161) -> خالد محمد شبارة | E101: 200 | F101: 4.75 | G101: 19 | H101: 23.75 | I101: 110 | J101: =LOOKUP(I101,Names!$A$2:$A$161,Names!$B$2:$B$161) -> أسامة أحمد زكي | K101: 224 | L101: 4.75 | M101: 15 | N101: 19.75 | O101: 92 | P101: =LOOKUP(O101,Names!$A$2:$A$161,Names!$B$2:$B$161) -> أحمد مصطفى راشد | Q101: 198 | R101: 4.75 | S101: 15 | T101: 19.75 | V101: 10 | W101: =LOOKUP(V101,Names!$A$2:$A$161,Names!$B$2:$B$161) -> تامر تيمور شكري | X101: =IF(ISNA(VLOOKUP(V101,$C$5:$H$164,3,FALSE))=TRUE,"",VLOOKUP(V101,$C$5:$H$164,3,FALSE)) -> 157 | Y101: =IF(ISNA(VLOOKUP(V101,$I$5:$N$164,3,FALSE))=TRUE,"",VLOOKUP(V101,$I$5:$N$164,3,FALSE)) -> 159 | Z101: =IF(ISNA(VLOOKUP(V101,$O$5:$T$164,3,FALSE))=TRUE,"",VLOOKUP(V101,$O$5:$T$164,3,FALSE)) -> 43 | AA101: =SUM(X101:Z101) -> 359 | AB101: =IF(ISNA(VLOOKUP(V101,$C$5:$H$164,4,FALSE))=TRUE,"",VLOOKUP(V101,$C$5:$H$164,4,FALSE)) -> 2.85 | AC101: =IF(ISNA(VLOOKUP(V101,$I$5:$N$164,4,FALSE))=TRUE,"",VLOOKUP(V101,$I$5:$N$164,4,FALSE)) -> 1.9 | AD101: =IF(ISNA(VLOOKUP(V101,$O$5:$T$164,4,FALSE))=TRUE,"",VLOOKUP(V101,$O$5:$T$164,4,FALSE)) -> 0 | AE101: =SUM(AB101:AD101) -> 4.75 | AF101: =IF(ISNA(VLOOKUP(V101,$C$5:$H$164,5,FALSE))=TRUE,"",VLOOKUP(V101,$C$5:$H$164,5,FALSE)) -> 12 | AG101: =IF(ISNA(VLOOKUP(V101,$I$5:$N$164,5,FALSE))=TRUE,"",VLOOKUP(V101,$I$5:$N$164,5,FALSE)) -> 11 | AH101: =IF(ISNA(VLOOKUP(V101,$O$5:$T$164,5,FALSE))=TRUE,"",VLOOKUP(V101,$O$5:$T$164,5,FALSE)) -> 1 | AI101: =SUM(AF101:AH101) -> 24 | AJ101: =AE101+AI101 -> 28.75 | AK101: 53
B102: W | C102: 98 | D102: =LOOKUP(C102,Names!$A$2:$A$161,Names!$B$2:$B$161) -> محمد محمود شعبان رمضان | E102: 110 | F102: 1.9 | G102: 4 | H102: 5.9 | I102: 114 | J102: =LOOKUP(I102,Names!$A$2:$A$161,Names!$B$2:$B$161) -> احمد سردينة | K102: 183 | L102: 2.85 | M102: 14 | N102: 16.85 | O102: 108 | P102: =LOOKUP(O102,Names!$A$2:$A$161,Names!$B$2:$B$161) -> كريم احمد ناصر | Q102: 173 | R102: 2.85 | S102: 13 | T102: 15.85 | V102: 32 | W102: =LOOKUP(V102,Names!$A$2:$A$161,Names!$B$2:$B$161) -> أمير محمد خطاب | X102: 84 | Y102: 131 | Z102: 144 | AA102: 359 | AB102: 0 | AC102: 1.9 | AD102: 2.85 | AE102: 4.75 | AF102: 1 | AG102: 13 | AH102: 9 | AI102: 23 | AJ102: 27.75 | AK102: 54
B103: S | C103: 99 | D103: =LOOKUP(C103,Names!$A$2:$A$161,Names!$B$2:$B$161) -> ماجد محمد فكري | E103: 121 | F103: 2.85 | G103: 4 | H103: 6.85 | I103: 83 | J103: =LOOKUP(I103,Names!$A$2:$A$161,Names!$B$2:$B$161) -> أسامة لطفى نجيب | K103: 111 | L103: 0 | M103: 7 | N103: 7 | O103: 86 | P103: =LOOKUP(O103,Names!$A$2:$A$161,Names!$B$2:$B$161) -> ايهاب يوسف عمارة | Q103: 121 | R103: 0 | S103: 10 | T103: 10 | V103: 35 | W103: =LOOKUP(V103,Names!$A$2:$A$161,Names!$B$2:$B$161) -> أحمد فؤاد حسنين | X103: 212 | Y103: 43 | Z103: 72 | AA103: 327 | AB103: 4.75 | AC103: 0 | AD103: 0 | AE103: 4.75 | AF103: 16 | AG103: 1 | AH103: 6 | AI103: 23 | AJ103: 27.75 | AK103: 54
B104: E | C104: 100 | D104: =LOOKUP(C104,Names!$A$2:$A$161,Names!$B$2:$B$161) -> عبد الرحمن الدمراوى | E104: 106 | F104: 0 | G104: 7 | H104: 7 | I104: 87 | J104: =LOOKUP(I104,Names!$A$2:$A$161,Names!$B$2:$B$161) -> ياسر شاهين | K104: 160 | L104: 1.9 | M104: 12 | N104: 13.9 | O104: 102 | P104: =LOOKUP(O104,Names!$A$2:$A$161,Names!$B$2:$B$161) -> سامي محمود الفولي | Q104: 135 | R104: 1.9 | S104: 8 | T104: 9.9 | V104: 16 | W104: =LOOKUP(V104,Names!$A$2:$A$161,Names!$B$2:$B$161) -> طارق عبد الغني السحار | X104: 100 | Y104: 99 | Z104: 154 | AA104: 353 | AB104: 0 | AC104: 1.9 | AD104: 3.8 | AE104: 5.7 | AF104: 4 | AG104: 6 | AH104: 12 | AI104: 22 | AJ104: 27.7 | AK104: 56
A105: Tabel ( 26 ) | B105: N | C105: 101 | D105: =LOOKUP(C105,Names!$A$2:$A$161,Names!$B$2:$B$161) -> أحمد محمد شوقى عبد الحميد | E105: 130 | F105: 1.9 | G105: 7 | H105: 8.9 | I105: 91 | J105: =LOOKUP(I105,Names!$A$2:$A$161,Names!$B$2:$B$161) -> عماد محمد فؤاد مرسي | K105: 164 | L105: 4.75 | M105: 9 | N105: 13.75 | O105: 83 | P105: =LOOKUP(O105,Names!$A$2:$A$161,Names!$B$2:$B$161) -> أسامة لطفى نجيب | Q105: 162 | R105: 2.85 | S105: 10 | T105: 12.85 | V105: 26 | W105: =LOOKUP(V105,Names!$A$2:$A$161,Names!$B$2:$B$161) -> علاء شوقي جبريل | X105: 150 | Y105: 105 | Z105: 132 | AA105: 387 | AB105: 1.9 | AC105: 0 | AD105: 1.9 | AE105: 3.8 | AF105: 14 | AG105: 5 | AH105: 3 | AI105: 22 | AJ105: 25.8 | AK105: 57
B106: W | C106: 102 | D106: =LOOKUP(C106,Names!$A$2:$A$161,Names!$B$2:$B$161) -> سامي محمود الفولي | E106: 113 | F106: 0 | G106: 5 | H106: 5 | I106: 95 | J106: =LOOKUP(I106,Names!$A$2:$A$161,Names!$B$2:$B$161) -> احمد طنطاوى | K106: 135 | L106: 1.9 | M106: 6 | N106: 7.9 | O106: 99 | P106: =LOOKUP(O106,Names!$A$2:$A$161,Names!$B$2:$B$161) -> ماجد محمد فكري | Q106: 152 | R106: 1.9 | S106: 6 | T106: 7.9 | V106: 23 | W106: =LOOKUP(V106,Names!$A$2:$A$161,Names!$B$2:$B$161) -> جمال احمد محمد جمال | X106: 122 | Y106: 134 | Z106: 70 | AA106: 326 | AB106: 2.85 | AC106: 1.9 | AD106: 0 | AE106: 4.75 | AF106: 7 | AG106: 9 | AH106: 5 | AI106: 21 | AJ106: 25.75 | AK106: 58
B107: S | C107: 103 | D107: =LOOKUP(C107,Names!$A$2:$A$161,Names!$B$2:$B$161) -> عمرو عماد الدين أبو العلا | E107: 155 | F107: 2.85 | G107: 11 | H107: 13.85 | I107: 99 | J107: =LOOKUP(I107,Names!$A$2:$A$161,Names!$B$2:$B$161) -> ماجد محمد فكري | K107: 130 | L107: 2.85 | M107: 12 | N107: 14.85 | O107: 115 | P107: =LOOKUP(O107,Names!$A$2:$A$161,Names!$B$2:$B$161) -> خالد عبد العظيم | Q107: 185 | R107: 4.75 | S107: 15 | T107: 19.75 | V107: 15 | W107: =LOOKUP(V107,Names!$A$2:$A$161,Names!$B$2:$B$161) -> حسام الدين صلاح أبو الفتوح | X107: 134 | Y107: 114 | Z107: 144 | AA107: 392 | AB107: 1.9 | AC107: 0 | AD107: 1.9 | AE107: 3.8 | AF107: 7 | AG107: 3 | AH107: 11 | AI107: 21 | AJ107: 24.8 | AK107: 59
B108: E | C108: 104 | D108: =LOOKUP(C108,Names!$A$2:$A$161,Names!$B$2:$B$161) -> كريم إيهاب عامر | E108: 200 | F108: 4.75 | G108: 19 | H108: 23.75 | I108: 103 | J108: =LOOKUP(I108,Names!$A$2:$A$161,Names!$B$2:$B$161) -> عمرو عماد الدين أبو العلا | K108: 34 | L108: 0 | M108: 2 | N108: 2 | O108: 96 | P108: =LOOKUP(O108,Names!$A$2:$A$161,Names!$B$2:$B$161) -> أحمد رمزي الديب | Q108: 15 | R108: 0 | S108: 1 | T108: 1 | V108: 115 | W108: =LOOKUP(V108,Names!$A$2:$A$161,Names!$B$2:$B$161) -> خالد عبد العظيم | X108: 75 | Y108: 77 | Z108: 185 | AA108: 337 | AB108: 0 | AC108: 0 | AD108: 4.75 | AE108: 4.75 | AF108: 1 | AG108: 4 | AH108: 15 | AI108: 20 | AJ108: 24.75 | AK108: 60
A109: Tabel ( 27 ) | B109: N | C109: 105 | D109: =LOOKUP(C109,Names!$A$2:$A$161,Names!$B$2:$B$161) -> مصطفى عبد الحفيظ علي | E109: 144 | F109: 1.9 | G109: 9 | H109: 10.9 | I109: 107 | J109: =LOOKUP(I109,Names!$A$2:$A$161,Names!$B$2:$B$161) -> شادي أحمد محمود وهبة | K109: 130 | L109: 1.9 | M109: 3 | N109: 4.9 | O109: 112 | P109: =LOOKUP(O109,Names!$A$2:$A$161,Names!$B$2:$B$161) -> عمرو محمد محسن | Q109: 202 | R109: 2.85 | S109: 16 | T109: 18.85 | V109: 6 | W109: =LOOKUP(V109,Names!$A$2:$A$161,Names!$B$2:$B$161) -> معتز محمد عبد المنعم | X109: 129 | Y109: 60 | Z109: 163 | AA109: 352 | AB109: 1.9 | AC109: 0 | AD109: 2.85 | AE109: 4.75 | AF109: 5 | AG109: 2 | AH109: 9 | AI109: 16 | AJ109: 20.75 | AK109: 61
B110: W | C110: 106 | D110: =LOOKUP(C110,Names!$A$2:$A$161,Names!$B$2:$B$161) -> أحمد عبد العزيز العطار | E110: 171 | F110: 4.75 | G110: 14.5 | H110: 19.25 | I110: 111 | J110: =LOOKUP(I110,Names!$A$2:$A$161,Names!$B$2:$B$161) -> عادل محمد أبو زيد | K110: 206 | L110: 2.85 | M110: 17 | N110: 19.85 | O110: 93 | P110: =LOOKUP(O110,Names!$A$2:$A$161,Names!$B$2:$B$161) -> جمال السيد توفيق | Q110: 141 | R110: 1.9 | S110: 5 | T110: 6.9 | V110: 5 | W110: =LOOKUP(V110,Names!$A$2:$A$161,Names!$B$2:$B$161) -> أحمد محمد أمين | X110: 98 | Y110: 154 | Z110: 51 | AA110: 303 | AB110: 1.9 | AC110: 2.85 | AD110: 0 | AE110: 4.75 | AF110: 1 | AG110: 13 | AH110: 2 | AI110: 16 | AJ110: 20.75 | AK110: 61
B111: S | C111: 107 | D111: =LOOKUP(C111,Names!$A$2:$A$161,Names!$B$2:$B$161) -> شادي أحمد محمود وهبة | E111: 118 | F111: 0 | G111: 2 | H111: 2 | I111: 115 | J111: =LOOKUP(I111,Names!$A$2:$A$161,Names!$B$2:$B$161) -> خالد عبد العظيم | K111: 77 | L111: 0 | M111: 4 | N111: 4 | O111: 90 | P111: =LOOKUP(O111,Names!$A$2:$A$161,Names!$B$2:$B$161) -> محمد علي حسن طه الأمام | Q111: 27 | R111: 0 | S111: 1 | T111: 1 | V111: 102 | W111: =LOOKUP(V111,Names!$A$2:$A$161,Names!$B$2:$B$161) -> سامي محمود الفولي | X111: 113 | Y111: 97 | Z111: 135 | AA111: 345 | AB111: 0 | AC111: 0 | AD111: 1.9 | AE111: 1.9 | AF111: 5 | AG111: 5 | AH111: 8 | AI111: 18 | AJ111: 19.9 | AK111: 63
B112: E | C112: 108 | D112: =LOOKUP(C112,Names!$A$2:$A$161,Names!$B$2:$B$161) -> كريم احمد ناصر | E112: 146 | F112: 2.85 | G112: 12.5 | H112: 15.35 | I112: 84 | J112: =LOOKUP(I112,Names!$A$2:$A$161,Names!$B$2:$B$161) -> أحمد عز العرب السماحي | K112: 229 | L112: 4.75 | M112: 19 | N112: 23.75 | O112: 106 | P112: =LOOKUP(O112,Names!$A$2:$A$161,Names!$B$2:$B$161) -> أحمد عبد العزيز العطار | Q112: 204 | R112: 4.75 | S112: 19 | T112: 23.75 | V112: 24 | W112: =LOOKUP(V112,Names!$A$2:$A$161,Names!$B$2:$B$161) -> يامن محمد حسن | X112: 96 | Y112: 160 | Z112: 126 | AA112: 382 | AB112: 0 | AC112: 2.85 | AD112: 1.9 | AE112: 4.75 | AF112: 2 | AG112: 8 | AH112: 5 | AI112: 15 | AJ112: 19.75 | AK112: 64
A113: Tabel ( 28 ) | B113: N | C113: 109 | D113: =LOOKUP(C113,Names!$A$2:$A$161,Names!$B$2:$B$161) -> نبيل خلف زكي | E113: 162 | F113: 4.75 | G113: 10 | H113: 14.75 | I113: 88 | J113: =LOOKUP(I113,Names!$A$2:$A$161,Names!$B$2:$B$161) -> أحمد علي خليل حسن | K113: 143 | L113: 0 | M113: 5 | N113: 5 | O113: 87 | P113: =LOOKUP(O113,Names!$A$2:$A$161,Names!$B$2:$B$161) -> ياسر شاهين | Q113: 370 | R113: 4.75 | S113: 19 | T113: 23.75 | V113: 9 | W113: =LOOKUP(V113,Names!$A$2:$A$161,Names!$B$2:$B$161) -> عمرو محمد مصطفى | X113: 127 | Y113: 68 | Z113: 82 | AA113: 277 | AB113: 2.85 | AC113: 0 | AD113: 1.9 | AE113: 4.75 | AF113: 8 | AG113: 3 | AH113: 4 | AI113: 15 | AJ113: 19.75 | AK113: 64
B114: W | C114: 110 | D114: =LOOKUP(C114,Names!$A$2:$A$161,Names!$B$2:$B$161) -> أسامة أحمد زكي | E114: 101 | F114: 0 | G114: 3 | H114: 3 | I114: 92 | J114: =LOOKUP(I114,Names!$A$2:$A$161,Names!$B$2:$B$161) -> أحمد مصطفى راشد | K114: 146 | L114: 1.9 | M114: 9 | N114: 10.9 | O114: 103 | P114: =LOOKUP(O114,Names!$A$2:$A$161,Names!$B$2:$B$161) -> عمرو عماد الدين أبو العلا | Q114: 65 | R114: 1.9 | S114: 2 | T114: 3.9 | V114: 103 | W114: =LOOKUP(V114,Names!$A$2:$A$161,Names!$B$2:$B$161) -> عمرو عماد الدين أبو العلا | X114: 155 | Y114: 34 | Z114: 65 | AA114: 254 | AB114: 2.85 | AC114: 0 | AD114: 1.9 | AE114: 4.75 | AF114: 11 | AG114: 2 | AH114: 2 | AI114: 15 | AJ114: 19.75 | AK114: 64
B115: S | C115: 111 | D115: =LOOKUP(C115,Names!$A$2:$A$161,Names!$B$2:$B$161) -> عادل محمد أبو زيد | E115: 148 | F115: 2.85 | G115: 10 | H115: 12.85 | I115: 96 | J115: =LOOKUP(I115,Names!$A$2:$A$161,Names!$B$2:$B$161) -> أحمد رمزي الديب | K115: 201 | L115: 2.85 | M115: 17 | N115: 19.85 | O115: 84 | P115: =LOOKUP(O115,Names!$A$2:$A$161,Names!$B$2:$B$161) -> أحمد عز العرب السماحي | Q115: 30 | R115: 0 | S115: 2 | T115: 2 | V115: 101 | W115: =LOOKUP(V115,Names!$A$2:$A$161,Names!$B$2:$B$161) -> أحمد محمد شوقى عبد الحميد | X115: 130 | Y115: 136 | Z115: 55 | AA115: 321 | AB115: 1.9 | AC115: 0 | AD115: 0 | AE115: 1.9 | AF115: 7 | AG115: 7 | AH115: 3 | AI115: 17 | AJ115: 18.9 | AK115: 67
B116: E | C116: 112 | D116: =LOOKUP(C116,Names!$A$2:$A$161,Names!$B$2:$B$161) -> عمرو محمد محسن | E116: 146 | F116: 1.9 | G116: 12.5 | H116: 14.4 | I116: 100 | J116: =LOOKUP(I116,Names!$A$2:$A$161,Names!$B$2:$B$161) -> عبد الرحمن الدمراوى | K116: 205 | L116: 4.75 | M116: 15 | N116: 19.75 | O116: 109 | P116: =LOOKUP(O116,Names!$A$2:$A$161,Names!$B$2:$B$161) -> نبيل خلف زكي | Q116: 80 | R116: 2.85 | S116: 2 | T116: 4.85 | V116: 25 | W116: =LOOKUP(V116,Names!$A$2:$A$161,Names!$B$2:$B$161) -> خالد حمدي محمد السيد | X116: 119 | Y116: 127 | Z116: 25 | AA116: 271 | AB116: 1.9 | AC116: 2.85 | AD116: 0 | AE116: 4.75 | AF116: 3 | AG116: 9 | AH116: 1 | AI116: 13 | AJ116: 17.75 | AK116: 68
A117: Tabel ( 29 ) | B117: N | C117: 113 | D117: =LOOKUP(C117,Names!$A$2:$A$161,Names!$B$2:$B$161) -> محمد حسن فهيم | E117: 187 | F117: 4.75 | G117: 16.5 | H117: 21.25 | I117: 104 | J117: =LOOKUP(I117,Names!$A$2:$A$161,Names!$B$2:$B$161) -> كريم إيهاب عامر | K117: 221 | L117: 4.75 | M117: 14 | N117: 18.75 | O117: 100 | P117: =LOOKUP(O117,Names!$A$2:$A$161,Names!$B$2:$B$161) -> عبد الرحمن الدمراوى | Q117: 125 | R117: 1.9 | S117: 8 | T117: 9.9 | V117: 31 | W117: =LOOKUP(V117,Names!$A$2:$A$161,Names!$B$2:$B$161) -> أحمد بسيوني | X117: 104 | Y117: 121 | Z117: 42 | AA117: 267 | AB117: 0 | AC117: 1.9 | AD117: 0 | AE117: 1.9 | AF117: 6 | AG117: 5 | AH117: 3 | AI117: 14 | AJ117: 15.9 | AK117: 69
B118: W | C118: 114 | D118: =LOOKUP(C118,Names!$A$2:$A$161,Names!$B$2:$B$161) -> احمد سردينة | E118: 140 | F118: 2.85 | G118: 11 | H118: 13.85 | I118: 108 | J118: =LOOKUP(I118,Names!$A$2:$A$161,Names!$B$2:$B$161) -> كريم احمد ناصر | K118: 137 | L118: 2.85 | M118: 8 | N118: 10.85 | O118: 89 | P118: =LOOKUP(O118,Names!$A$2:$A$161,Names!$B$2:$B$161) -> محمد بلبع | Q118: 206 | R118: 4.75 | S118: 17 | T118: 21.75 | V118: 107 | W118: =LOOKUP(V118,Names!$A$2:$A$161,Names!$B$2:$B$161) -> شادي أحمد محمود وهبة | X118: 118 | Y118: 130 | Z118: 92 | AA118: 340 | AB118: 0 | AC118: 1.9 | AD118: 0 | AE118: 1.9 | AF118: 2 | AG118: 3 | AH118: 7 | AI118: 12 | AJ118: 13.9 | AK118: 70
B119: S | C119: 115 | D119: =LOOKUP(C119,Names!$A$2:$A$161,Names!$B$2:$B$161) -> خالد عبد العظيم | E119: 75 | F119: 0 | G119: 1 | H119: 1 | I119: 112 | J119: =LOOKUP(I119,Names!$A$2:$A$161,Names!$B$2:$B$161) -> عمرو محمد محسن | K119: 129 | L119: 1.9 | M119: 11 | N119: 12.9 | O119: 105 | P119: =LOOKUP(O119,Names!$A$2:$A$161,Names!$B$2:$B$161) -> مصطفى عبد الحفيظ علي | Q119: 104 | R119: 0 | S119: 9 | T119: 9 | V119: 29 | W119: =LOOKUP(V119,Names!$A$2:$A$161,Names!$B$2:$B$161) -> اسلام نصر الغنام | X119: 95 | Y119: 29 | Z119: 106 | AA119: 230 | AB119: 0 | AC119: 0 | AD119: 1.9 | AE119: 1.9 | AF119: 2.5 | AG119: 1 | AH119: 5 | AI119: 8.5 | AJ119: 10.4 | AK119: 71
B120: E | C120: 116 | D120: =LOOKUP(C120,Names!$A$2:$A$161,Names!$B$2:$B$161) -> اسامة قاسم | E120: 124 | F120: 1.9 | G120: 9 | H120: 10.9 | I120: 116 | J120: =LOOKUP(I120,Names!$A$2:$A$161,Names!$B$2:$B$161) -> اسامة قاسم | K120: 88 | L120: 0 | M120: 4 | N120: 4 | O120: 116 | P120: =LOOKUP(O120,Names!$A$2:$A$161,Names!$B$2:$B$161) -> اسامة قاسم | Q120: 156 | R120: 2.85 | S120: 13 | T120: 15.85 | V120: 8 | W120: =LOOKUP(V120,Names!$A$2:$A$161,Names!$B$2:$B$161) -> عبد الرحمن محمود عثمان | X120: 95 | Y120: 94 | Z120: 101 | AA120: 290 | AB120: 0 | AC120: 0 | AD120: 1.9 | AE120: 1.9 | AF120: 2.5 | AG120: 1 | AH120: 3 | AI120: 6.5 | AJ120: 8.4 | AK120: 72
A121: Tabel ( 30 ) | B121: N | C121: 117 | D121: =LOOKUP(C121,Names!$A$2:$A$161,Names!$B$2:$B$161) -> 0 | G121: 0 | H121: 0 | J121: =LOOKUP(I121,Names!$A$2:$A$161,Names!$B$2:$B$161) ->  | M121: 0 | N121: 0 | P121: =LOOKUP(O121,Names!$A$2:$A$161,Names!$B$2:$B$161) ->  | S121: 0 | T121: 0 | V121: 117 | W121: =LOOKUP(V121,Names!$A$2:$A$161,Names!$B$2:$B$161) -> 0 | X121: =IF(ISNA(VLOOKUP(V121,$C$5:$H$164,3,FALSE))=TRUE,"",VLOOKUP(V121,$C$5:$H$164,3,FALSE)) -> 0 | Y121: =IF(ISNA(VLOOKUP(V121,$I$5:$N$164,3,FALSE))=TRUE,"",VLOOKUP(V121,$I$5:$N$164,3,FALSE)) ->  | Z121: =IF(ISNA(VLOOKUP(V121,$O$5:$T$164,3,FALSE))=TRUE,"",VLOOKUP(V121,$O$5:$T$164,3,FALSE)) ->  | AA121: =SUM(X121:Z121) -> 0 | AB121: =IF(ISNA(VLOOKUP(V121,$C$5:$H$164,4,FALSE))=TRUE,"",VLOOKUP(V121,$C$5:$H$164,4,FALSE)) -> 0 | AC121: =IF(ISNA(VLOOKUP(V121,$I$5:$N$164,4,FALSE))=TRUE,"",VLOOKUP(V121,$I$5:$N$164,4,FALSE)) ->  | AD121: =IF(ISNA(VLOOKUP(V121,$O$5:$T$164,4,FALSE))=TRUE,"",VLOOKUP(V121,$O$5:$T$164,4,FALSE)) ->  | AE121: =SUM(AB121:AD121) -> 0 | AF121: =IF(ISNA(VLOOKUP(V121,$C$5:$H$164,5,FALSE))=TRUE,"",VLOOKUP(V121,$C$5:$H$164,5,FALSE)) -> 0 | AG121: =IF(ISNA(VLOOKUP(V121,$I$5:$N$164,5,FALSE))=TRUE,"",VLOOKUP(V121,$I$5:$N$164,5,FALSE)) ->  | AH121: =IF(ISNA(VLOOKUP(V121,$O$5:$T$164,5,FALSE))=TRUE,"",VLOOKUP(V121,$O$5:$T$164,5,FALSE)) ->  | AI121: =SUM(AF121:AH121) -> 0 | AJ121: =AE121+AI121 -> 0
B122: W | C122: 118 | D122: =LOOKUP(C122,Names!$A$2:$A$161,Names!$B$2:$B$161) -> 0 | G122: 0 | H122: 0 | J122: =LOOKUP(I122,Names!$A$2:$A$161,Names!$B$2:$B$161) ->  | M122: 0 | N122: 0 | P122: =LOOKUP(O122,Names!$A$2:$A$161,Names!$B$2:$B$161) ->  | S122: 0 | T122: 0 | V122: 118 | W122: =LOOKUP(V122,Names!$A$2:$A$161,Names!$B$2:$B$161) -> 0 | X122: 0 | AA122: 0 | AB122: 0 | AE122: 0 | AF122: 0 | AI122: 0 | AJ122: 0
B123: S | C123: 119 | D123: =LOOKUP(C123,Names!$A$2:$A$161,Names!$B$2:$B$161) -> 0 | G123: 0 | H123: 0 | J123: =LOOKUP(I123,Names!$A$2:$A$161,Names!$B$2:$B$161) ->  | M123: 0 | N123: 0 | P123: =LOOKUP(O123,Names!$A$2:$A$161,Names!$B$2:$B$161) ->  | S123: 0 | T123: 0 | V123: 119 | W123: =LOOKUP(V123,Names!$A$2:$A$161,Names!$B$2:$B$161) -> 0 | X123: 0 | AA123: 0 | AB123: 0 | AE123: 0 | AF123: 0 | AI123: 0 | AJ123: 0
B124: E | C124: 120 | D124: =LOOKUP(C124,Names!$A$2:$A$161,Names!$B$2:$B$161) -> 0 | G124: 0 | H124: 0 | J124: =LOOKUP(I124,Names!$A$2:$A$161,Names!$B$2:$B$161) ->  | M124: 0 | N124: 0 | P124: =LOOKUP(O124,Names!$A$2:$A$161,Names!$B$2:$B$161) ->  | S124: 0 | T124: 0 | V124: 120 | W124: =LOOKUP(V124,Names!$A$2:$A$161,Names!$B$2:$B$161) -> 0 | X124: 0 | AA124: 0 | AB124: 0 | AE124: 0 | AF124: 0 | AI124: 0 | AJ124: 0
A125: Tabel ( 31 ) | B125: N | C125: 121 | D125: =LOOKUP(C125,Names!$A$2:$A$161,Names!$B$2:$B$161) -> 0 | G125: 0 | H125: 0 | J125: =LOOKUP(I125,Names!$A$2:$A$161,Names!$B$2:$B$161) ->  | M125: 0 | N125: 0 | P125: =LOOKUP(O125,Names!$A$2:$A$161,Names!$B$2:$B$161) ->  | S125: 0 | T125: 0 | V125: 121 | W125: =LOOKUP(V125,Names!$A$2:$A$161,Names!$B$2:$B$161) -> 0 | X125: 0 | AA125: 0 | AB125: 0 | AE125: 0 | AF125: 0 | AI125: 0 | AJ125: 0
B126: W | C126: 122 | D126: =LOOKUP(C126,Names!$A$2:$A$161,Names!$B$2:$B$161) -> 0 | G126: 0 | H126: 0 | J126: =LOOKUP(I126,Names!$A$2:$A$161,Names!$B$2:$B$161) ->  | M126: 0 | N126: 0 | P126: =LOOKUP(O126,Names!$A$2:$A$161,Names!$B$2:$B$161) ->  | S126: 0 | T126: 0 | V126: 122 | W126: =LOOKUP(V126,Names!$A$2:$A$161,Names!$B$2:$B$161) -> 0 | X126: 0 | AA126: 0 | AB126: 0 | AE126: 0 | AF126: 0 | AI126: 0 | AJ126: 0
B127: S | C127: 123 | D127: =LOOKUP(C127,Names!$A$2:$A$161,Names!$B$2:$B$161) -> 0 | G127: 0 | H127: 0 | J127: =LOOKUP(I127,Names!$A$2:$A$161,Names!$B$2:$B$161) ->  | M127: 0 | N127: 0 | P127: =LOOKUP(O127,Names!$A$2:$A$161,Names!$B$2:$B$161) ->  | S127: 0 | T127: 0 | V127: 123 | W127: =LOOKUP(V127,Names!$A$2:$A$161,Names!$B$2:$B$161) -> 0 | X127: 0 | AA127: 0 | AB127: 0 | AE127: 0 | AF127: 0 | AI127: 0 | AJ127: 0
B128: E | C128: 124 | D128: =LOOKUP(C128,Names!$A$2:$A$161,Names!$B$2:$B$161) -> 0 | G128: 0 | H128: 0 | J128: =LOOKUP(I128,Names!$A$2:$A$161,Names!$B$2:$B$161) ->  | M128: 0 | N128: 0 | P128: =LOOKUP(O128,Names!$A$2:$A$161,Names!$B$2:$B$161) ->  | S128: 0 | T128: 0 | V128: 124 | W128: =LOOKUP(V128,Names!$A$2:$A$161,Names!$B$2:$B$161) -> 0 | X128: 0 | AA128: 0 | AB128: 0 | AE128: 0 | AF128: 0 | AI128: 0 | AJ128: 0
A129: Tabel ( 32 ) | B129: N | C129: 125 | D129: =LOOKUP(C129,Names!$A$2:$A$161,Names!$B$2:$B$161) -> 0 | G129: 0 | H129: 0 | J129: =LOOKUP(I129,Names!$A$2:$A$161,Names!$B$2:$B$161) ->  | M129: 0 | N129: 0 | P129: =LOOKUP(O129,Names!$A$2:$A$161,Names!$B$2:$B$161) ->  | S129: 0 | T129: 0 | V129: 125 | W129: =LOOKUP(V129,Names!$A$2:$A$161,Names!$B$2:$B$161) -> 0 | X129: 0 | AA129: 0 | AB129: 0 | AE129: 0 | AF129: 0 | AI129: 0 | AJ129: 0
B130: W | C130: 126 | D130: =LOOKUP(C130,Names!$A$2:$A$161,Names!$B$2:$B$161) -> 0 | G130: 0 | H130: 0 | J130: =LOOKUP(I130,Names!$A$2:$A$161,Names!$B$2:$B$161) ->  | M130: 0 | N130: 0 | P130: =LOOKUP(O130,Names!$A$2:$A$161,Names!$B$2:$B$161) ->  | S130: 0 | T130: 0 | V130: 126 | W130: =LOOKUP(V130,Names!$A$2:$A$161,Names!$B$2:$B$161) -> 0 | X130: 0 | AA130: 0 | AB130: 0 | AE130: 0 | AF130: 0 | AI130: 0 | AJ130: 0
B131: S | C131: 127 | D131: =LOOKUP(C131,Names!$A$2:$A$161,Names!$B$2:$B$161) -> 0 | G131: 0 | H131: 0 | J131: =LOOKUP(I131,Names!$A$2:$A$161,Names!$B$2:$B$161) ->  | M131: 0 | N131: 0 | P131: =LOOKUP(O131,Names!$A$2:$A$161,Names!$B$2:$B$161) ->  | S131: 0 | T131: 0 | V131: 127 | W131: =LOOKUP(V131,Names!$A$2:$A$161,Names!$B$2:$B$161) -> 0 | X131: 0 | AA131: 0 | AB131: 0 | AE131: 0 | AF131: 0 | AI131: 0 | AJ131: 0
B132: E | C132: 128 | D132: =LOOKUP(C132,Names!$A$2:$A$161,Names!$B$2:$B$161) -> 0 | G132: 0 | H132: 0 | J132: =LOOKUP(I132,Names!$A$2:$A$161,Names!$B$2:$B$161) ->  | M132: 0 | N132: 0 | P132: =LOOKUP(O132,Names!$A$2:$A$161,Names!$B$2:$B$161) ->  | S132: 0 | T132: 0 | V132: 128 | W132: =LOOKUP(V132,Names!$A$2:$A$161,Names!$B$2:$B$161) -> 0 | X132: 0 | AA132: 0 | AB132: 0 | AE132: 0 | AF132: 0 | AI132: 0 | AJ132: 0
A133: Tabel ( 33 ) | B133: N | C133: 129 | D133: =LOOKUP(C133,Names!$A$2:$A$161,Names!$B$2:$B$161) -> 0 | G133: 0 | H133: =F133+G133 -> 0 | J133: =LOOKUP(I133,Names!$A$2:$A$161,Names!$B$2:$B$161) ->  | K133: 0 | L133: 4.75 | M133: 0 | N133: =L133+M133 -> 4.75 | P133: =LOOKUP(O133,Names!$A$2:$A$161,Names!$B$2:$B$161) ->  | Q133: 0 | R133: 4.75 | S133: 0 | T133: =R133+S133 -> 4.75 | V133: 129 | W133: =LOOKUP(V133,Names!$A$2:$A$161,Names!$B$2:$B$161) -> 0 | X133: =IF(ISNA(VLOOKUP(V133,$C$5:$H$164,3,FALSE))=TRUE,"",VLOOKUP(V133,$C$5:$H$164,3,FALSE)) -> 0 | Y133: =IF(ISNA(VLOOKUP(V133,$I$5:$N$164,3,FALSE))=TRUE,"",VLOOKUP(V133,$I$5:$N$164,3,FALSE)) ->  | Z133: =IF(ISNA(VLOOKUP(V133,$O$5:$T$164,3,FALSE))=TRUE,"",VLOOKUP(V133,$O$5:$T$164,3,FALSE)) ->  | AA133: =SUM(X133:Z133) -> 0 | AB133: =IF(ISNA(VLOOKUP(V133,$C$5:$H$164,4,FALSE))=TRUE,"",VLOOKUP(V133,$C$5:$H$164,4,FALSE)) -> 0 | AC133: =IF(ISNA(VLOOKUP(V133,$I$5:$N$164,4,FALSE))=TRUE,"",VLOOKUP(V133,$I$5:$N$164,4,FALSE)) ->  | AD133: =IF(ISNA(VLOOKUP(V133,$O$5:$T$164,4,FALSE))=TRUE,"",VLOOKUP(V133,$O$5:$T$164,4,FALSE)) ->  | AE133: =SUM(AB133:AD133) -> 0 | AF133: =IF(ISNA(VLOOKUP(V133,$C$5:$H$164,5,FALSE))=TRUE,"",VLOOKUP(V133,$C$5:$H$164,5,FALSE)) -> 0 | AG133: =IF(ISNA(VLOOKUP(V133,$I$5:$N$164,5,FALSE))=TRUE,"",VLOOKUP(V133,$I$5:$N$164,5,FALSE)) ->  | AH133: =IF(ISNA(VLOOKUP(V133,$O$5:$T$164,5,FALSE))=TRUE,"",VLOOKUP(V133,$O$5:$T$164,5,FALSE)) ->  | AI133: =SUM(AF133:AH133) -> 0 | AJ133: =AE133+AI133 -> 0
B134: W | C134: 130 | D134: =LOOKUP(C134,Names!$A$2:$A$161,Names!$B$2:$B$161) -> 0 | G134: 0 | H134: 0 | J134: =LOOKUP(I134,Names!$A$2:$A$161,Names!$B$2:$B$161) ->  | K134: 0 | L134: 2.85 | M134: 0 | N134: 2.85 | P134: =LOOKUP(O134,Names!$A$2:$A$161,Names!$B$2:$B$161) ->  | Q134: 0 | R134: 2.85 | S134: 0 | T134: 2.85 | V134: 130 | W134: =LOOKUP(V134,Names!$A$2:$A$161,Names!$B$2:$B$161) -> 0 | X134: 0 | AA134: 0 | AB134: 0 | AE134: 0 | AF134: 0 | AI134: 0 | AJ134: 0
B135: S | C135: 131 | D135: =LOOKUP(C135,Names!$A$2:$A$161,Names!$B$2:$B$161) -> 0 | G135: 0 | H135: 0 | J135: =LOOKUP(I135,Names!$A$2:$A$161,Names!$B$2:$B$161) ->  | K135: 0 | L135: 1.9 | M135: 0 | N135: 1.9 | P135: =LOOKUP(O135,Names!$A$2:$A$161,Names!$B$2:$B$161) ->  | Q135: 0 | R135: 1.9 | S135: 0 | T135: 1.9 | V135: 131 | W135: =LOOKUP(V135,Names!$A$2:$A$161,Names!$B$2:$B$161) -> 0 | X135: 0 | AA135: 0 | AB135: 0 | AE135: 0 | AF135: 0 | AI135: 0 | AJ135: 0
B136: E | C136: 132 | D136: =LOOKUP(C136,Names!$A$2:$A$161,Names!$B$2:$B$161) -> 0 | G136: 0 | H136: 0 | J136: =LOOKUP(I136,Names!$A$2:$A$161,Names!$B$2:$B$161) ->  | K136: 0 | L136: 0 | M136: 0 | N136: 0 | P136: =LOOKUP(O136,Names!$A$2:$A$161,Names!$B$2:$B$161) ->  | Q136: 0 | R136: 0 | S136: 0 | T136: 0 | V136: 132 | W136: =LOOKUP(V136,Names!$A$2:$A$161,Names!$B$2:$B$161) -> 0 | X136: 0 | AA136: 0 | AB136: 0 | AE136: 0 | AF136: 0 | AI136: 0 | AJ136: 0
A137: Tabel ( 34 ) | B137: N | C137: 133 | D137: =LOOKUP(C137,Names!$A$2:$A$161,Names!$B$2:$B$161) -> 0 | G137: 0 | H137: 0 | J137: =LOOKUP(I137,Names!$A$2:$A$161,Names!$B$2:$B$161) ->  | K137: 0 | L137: 4.75 | M137: 0 | N137: 4.75 | P137: =LOOKUP(O137,Names!$A$2:$A$161,Names!$B$2:$B$161) ->  | Q137: 0 | R137: 4.75 | S137: 0 | T137: 4.75 | V137: 133 | W137: =LOOKUP(V137,Names!$A$2:$A$161,Names!$B$2:$B$161) -> 0 | X137: 0 | AA137: 0 | AB137: 0 | AE137: 0 | AF137: 0 | AI137: 0 | AJ137: 0
B138: W | C138: 134 | D138: =LOOKUP(C138,Names!$A$2:$A$161,Names!$B$2:$B$161) -> 0 | G138: 0 | H138: 0 | J138: =LOOKUP(I138,Names!$A$2:$A$161,Names!$B$2:$B$161) ->  | K138: 0 | L138: 2.85 | M138: 0 | N138: 2.85 | P138: =LOOKUP(O138,Names!$A$2:$A$161,Names!$B$2:$B$161) ->  | Q138: 0 | R138: 2.85 | S138: 0 | T138: 2.85 | V138: 134 | W138: =LOOKUP(V138,Names!$A$2:$A$161,Names!$B$2:$B$161) -> 0 | X138: 0 | AA138: 0 | AB138: 0 | AE138: 0 | AF138: 0 | AI138: 0 | AJ138: 0
B139: S | C139: 135 | D139: =LOOKUP(C139,Names!$A$2:$A$161,Names!$B$2:$B$161) -> 0 | G139: 0 | H139: 0 | J139: =LOOKUP(I139,Names!$A$2:$A$161,Names!$B$2:$B$161) ->  | K139: 0 | L139: 1.9 | M139: 0 | N139: 1.9 | P139: =LOOKUP(O139,Names!$A$2:$A$161,Names!$B$2:$B$161) ->  | Q139: 0 | R139: 1.9 | S139: 0 | T139: 1.9 | V139: 135 | W139: =LOOKUP(V139,Names!$A$2:$A$161,Names!$B$2:$B$161) -> 0 | X139: 0 | AA139: 0 | AB139: 0 | AE139: 0 | AF139: 0 | AI139: 0 | AJ139: 0
B140: E | C140: 136 | D140: =LOOKUP(C140,Names!$A$2:$A$161,Names!$B$2:$B$161) -> 0 | G140: 0 | H140: 0 | J140: =LOOKUP(I140,Names!$A$2:$A$161,Names!$B$2:$B$161) ->  | K140: 0 | L140: 0 | M140: 0 | N140: 0 | P140: =LOOKUP(O140,Names!$A$2:$A$161,Names!$B$2:$B$161) ->  | Q140: 0 | R140: 0 | S140: 0 | T140: 0 | V140: 136 | W140: =LOOKUP(V140,Names!$A$2:$A$161,Names!$B$2:$B$161) -> 0 | X140: 0 | AA140: 0 | AB140: 0 | AE140: 0 | AF140: 0 | AI140: 0 | AJ140: 0
A141: Tabel ( 35 ) | B141: N | C141: 137 | D141: =LOOKUP(C141,Names!$A$2:$A$161,Names!$B$2:$B$161) -> 0 | G141: 0 | H141: 0 | J141: =LOOKUP(I141,Names!$A$2:$A$161,Names!$B$2:$B$161) ->  | K141: 0 | L141: 4.75 | M141: 0 | N141: 0 | P141: =LOOKUP(O141,Names!$A$2:$A$161,Names!$B$2:$B$161) ->  | Q141: 0 | R141: 4.75 | S141: 0 | T141: 0 | V141: 137 | W141: =LOOKUP(V141,Names!$A$2:$A$161,Names!$B$2:$B$161) -> 0 | X141: 0 | AA141: 0 | AB141: 0 | AE141: 0 | AF141: 0 | AI141: 0 | AJ141: 0
B142: W | C142: 138 | D142: =LOOKUP(C142,Names!$A$2:$A$161,Names!$B$2:$B$161) -> 0 | G142: 0 | H142: 0 | J142: =LOOKUP(I142,Names!$A$2:$A$161,Names!$B$2:$B$161) ->  | K142: 0 | L142: 2.85 | M142: 0 | N142: 0 | P142: =LOOKUP(O142,Names!$A$2:$A$161,Names!$B$2:$B$161) ->  | Q142: 0 | R142: 2.85 | S142: 0 | T142: 0 | V142: 138 | W142: =LOOKUP(V142,Names!$A$2:$A$161,Names!$B$2:$B$161) -> 0 | X142: 0 | AA142: 0 | AB142: 0 | AE142: 0 | AF142: 0 | AI142: 0 | AJ142: 0
B143: S | C143: 139 | D143: =LOOKUP(C143,Names!$A$2:$A$161,Names!$B$2:$B$161) -> 0 | G143: 0 | H143: 0 | J143: =LOOKUP(I143,Names!$A$2:$A$161,Names!$B$2:$B$161) ->  | K143: 0 | L143: 1.9 | M143: 0 | N143: 0 | P143: =LOOKUP(O143,Names!$A$2:$A$161,Names!$B$2:$B$161) ->  | Q143: 0 | R143: 1.9 | S143: 0 | T143: 0 | V143: 139 | W143: =LOOKUP(V143,Names!$A$2:$A$161,Names!$B$2:$B$161) -> 0 | X143: 0 | AA143: 0 | AB143: 0 | AE143: 0 | AF143: 0 | AI143: 0 | AJ143: 0
B144: E | C144: 140 | D144: =LOOKUP(C144,Names!$A$2:$A$161,Names!$B$2:$B$161) -> 0 | G144: 0 | H144: 0 | J144: =LOOKUP(I144,Names!$A$2:$A$161,Names!$B$2:$B$161) ->  | K144: 0 | L144: 0 | M144: 0 | N144: 0 | P144: =LOOKUP(O144,Names!$A$2:$A$161,Names!$B$2:$B$161) ->  | Q144: 0 | R144: 0 | S144: 0 | T144: 0 | V144: 140 | W144: =LOOKUP(V144,Names!$A$2:$A$161,Names!$B$2:$B$161) -> 0 | X144: 0 | AA144: 0 | AB144: 0 | AE144: 0 | AF144: 0 | AI144: 0 | AJ144: 0
A145: Tabel ( 36 ) | B145: N | C145: 141 | D145: =LOOKUP(C145,Names!$A$2:$A$161,Names!$B$2:$B$161) -> 0 | G145: 0 | H145: 0 | J145: =LOOKUP(I145,Names!$A$2:$A$161,Names!$B$2:$B$161) ->  | K145: 0 | L145: 4.75 | M145: 0 | N145: 0 | P145: =LOOKUP(O145,Names!$A$2:$A$161,Names!$B$2:$B$161) ->  | Q145: 0 | R145: 4.75 | S145: 0 | T145: 0 | V145: 141 | W145: =LOOKUP(V145,Names!$A$2:$A$161,Names!$B$2:$B$161) -> 0 | X145: 0 | AA145: 0 | AB145: 0 | AE145: 0 | AF145: 0 | AI145: 0 | AJ145: 0
B146: W | C146: 142 | D146: =LOOKUP(C146,Names!$A$2:$A$161,Names!$B$2:$B$161) -> 0 | G146: 0 | H146: 0 | J146: =LOOKUP(I146,Names!$A$2:$A$161,Names!$B$2:$B$161) ->  | K146: 0 | L146: 2.85 | M146: 0 | N146: 0 | P146: =LOOKUP(O146,Names!$A$2:$A$161,Names!$B$2:$B$161) ->  | Q146: 0 | R146: 2.85 | S146: 0 | T146: 0 | V146: 142 | W146: =LOOKUP(V146,Names!$A$2:$A$161,Names!$B$2:$B$161) -> 0 | X146: 0 | AA146: 0 | AB146: 0 | AE146: 0 | AF146: 0 | AI146: 0 | AJ146: 0
B147: S | C147: 143 | D147: =LOOKUP(C147,Names!$A$2:$A$161,Names!$B$2:$B$161) -> 0 | G147: 0 | H147: 0 | J147: =LOOKUP(I147,Names!$A$2:$A$161,Names!$B$2:$B$161) ->  | K147: 0 | L147: 1.9 | M147: 0 | N147: 0 | P147: =LOOKUP(O147,Names!$A$2:$A$161,Names!$B$2:$B$161) ->  | Q147: 0 | R147: 1.9 | S147: 0 | T147: 0 | V147: 143 | W147: =LOOKUP(V147,Names!$A$2:$A$161,Names!$B$2:$B$161) -> 0 | X147: 0 | AA147: 0 | AB147: 0 | AE147: 0 | AF147: 0 | AI147: 0 | AJ147: 0
B148: E | C148: 144 | D148: =LOOKUP(C148,Names!$A$2:$A$161,Names!$B$2:$B$161) -> 0 | G148: 0 | H148: 0 | J148: =LOOKUP(I148,Names!$A$2:$A$161,Names!$B$2:$B$161) ->  | K148: 0 | L148: 0 | M148: 0 | N148: 0 | P148: =LOOKUP(O148,Names!$A$2:$A$161,Names!$B$2:$B$161) ->  | Q148: 0 | R148: 0 | S148: 0 | T148: 0 | V148: 144 | W148: =LOOKUP(V148,Names!$A$2:$A$161,Names!$B$2:$B$161) -> 0 | X148: 0 | AA148: 0 | AB148: 0 | AE148: 0 | AF148: 0 | AI148: 0 | AJ148: 0
A149: Tabel ( 37 ) | B149: N | C149: 145 | D149: =LOOKUP(C149,Names!$A$2:$A$161,Names!$B$2:$B$161) -> 0 | G149: 0 | H149: 0 | J149: =LOOKUP(I149,Names!$A$2:$A$161,Names!$B$2:$B$161) ->  | K149: 0 | L149: 4.75 | M149: 0 | N149: 0 | P149: =LOOKUP(O149,Names!$A$2:$A$161,Names!$B$2:$B$161) ->  | Q149: 0 | R149: 4.75 | S149: 0 | T149: 0 | V149: 145 | W149: =LOOKUP(V149,Names!$A$2:$A$161,Names!$B$2:$B$161) -> 0 | X149: 0 | AA149: 0 | AB149: 0 | AE149: 0 | AF149: 0 | AI149: 0 | AJ149: 0
B150: W | C150: 146 | D150: =LOOKUP(C150,Names!$A$2:$A$161,Names!$B$2:$B$161) -> 0 | G150: 0 | H150: 0 | J150: =LOOKUP(I150,Names!$A$2:$A$161,Names!$B$2:$B$161) ->  | K150: 0 | L150: 2.85 | M150: 0 | N150: 0 | P150: =LOOKUP(O150,Names!$A$2:$A$161,Names!$B$2:$B$161) ->  | Q150: 0 | R150: 2.85 | S150: 0 | T150: 0 | V150: 146 | W150: =LOOKUP(V150,Names!$A$2:$A$161,Names!$B$2:$B$161) -> 0 | X150: 0 | AA150: 0 | AB150: 0 | AE150: 0 | AF150: 0 | AI150: 0 | AJ150: 0
B151: S | C151: 147 | D151: =LOOKUP(C151,Names!$A$2:$A$161,Names!$B$2:$B$161) -> 0 | G151: 0 | H151: 0 | J151: =LOOKUP(I151,Names!$A$2:$A$161,Names!$B$2:$B$161) ->  | K151: 0 | L151: 1.9 | M151: 0 | N151: 0 | P151: =LOOKUP(O151,Names!$A$2:$A$161,Names!$B$2:$B$161) ->  | Q151: 0 | R151: 1.9 | S151: 0 | T151: 0 | V151: 147 | W151: =LOOKUP(V151,Names!$A$2:$A$161,Names!$B$2:$B$161) -> 0 | X151: 0 | AA151: 0 | AB151: 0 | AE151: 0 | AF151: 0 | AI151: 0 | AJ151: 0
B152: E | C152: 148 | D152: =LOOKUP(C152,Names!$A$2:$A$161,Names!$B$2:$B$161) -> 0 | G152: 0 | H152: 0 | J152: =LOOKUP(I152,Names!$A$2:$A$161,Names!$B$2:$B$161) ->  | K152: 0 | L152: 0 | M152: 0 | N152: 0 | P152: =LOOKUP(O152,Names!$A$2:$A$161,Names!$B$2:$B$161) ->  | Q152: 0 | R152: 0 | S152: 0 | T152: 0 | V152: 148 | W152: =LOOKUP(V152,Names!$A$2:$A$161,Names!$B$2:$B$161) -> 0 | X152: 0 | AA152: 0 | AB152: 0 | AE152: 0 | AF152: 0 | AI152: 0 | AJ152: 0
A153: Tabel ( 38 ) | B153: N | C153: 149 | D153: =LOOKUP(C153,Names!$A$2:$A$161,Names!$B$2:$B$161) -> 0 | G153: 0 | H153: 0 | J153: =LOOKUP(I153,Names!$A$2:$A$161,Names!$B$2:$B$161) ->  | K153: 0 | L153: 4.75 | M153: 0 | N153: 0 | P153: =LOOKUP(O153,Names!$A$2:$A$161,Names!$B$2:$B$161) ->  | Q153: 0 | R153: 4.75 | S153: 0 | T153: 0 | V153: 149 | W153: =LOOKUP(V153,Names!$A$2:$A$161,Names!$B$2:$B$161) -> 0 | X153: 0 | AA153: 0 | AB153: 0 | AE153: 0 | AF153: 0 | AI153: 0 | AJ153: 0
B154: W | C154: 150 | D154: =LOOKUP(C154,Names!$A$2:$A$161,Names!$B$2:$B$161) -> 0 | G154: 0 | H154: 0 | J154: =LOOKUP(I154,Names!$A$2:$A$161,Names!$B$2:$B$161) ->  | K154: 0 | L154: 2.85 | M154: 0 | N154: 0 | P154: =LOOKUP(O154,Names!$A$2:$A$161,Names!$B$2:$B$161) ->  | Q154: 0 | R154: 2.85 | S154: 0 | T154: 0 | V154: 150 | W154: =LOOKUP(V154,Names!$A$2:$A$161,Names!$B$2:$B$161) -> 0 | X154: 0 | AA154: 0 | AB154: 0 | AE154: 0 | AF154: 0 | AI154: 0 | AJ154: 0
B155: S | C155: 151 | D155: =LOOKUP(C155,Names!$A$2:$A$161,Names!$B$2:$B$161) -> 0 | G155: 0 | H155: 0 | J155: =LOOKUP(I155,Names!$A$2:$A$161,Names!$B$2:$B$161) ->  | K155: 0 | L155: 1.9 | M155: 0 | N155: 0 | P155: =LOOKUP(O155,Names!$A$2:$A$161,Names!$B$2:$B$161) ->  | Q155: 0 | R155: 1.9 | S155: 0 | T155: 0 | V155: 151 | W155: =LOOKUP(V155,Names!$A$2:$A$161,Names!$B$2:$B$161) -> 0 | X155: 0 | AA155: 0 | AB155: 0 | AE155: 0 | AF155: 0 | AI155: 0 | AJ155: 0
B156: E | C156: 152 | D156: =LOOKUP(C156,Names!$A$2:$A$161,Names!$B$2:$B$161) -> 0 | G156: 0 | H156: 0 | J156: =LOOKUP(I156,Names!$A$2:$A$161,Names!$B$2:$B$161) ->  | K156: 0 | L156: 0 | M156: 0 | N156: 0 | P156: =LOOKUP(O156,Names!$A$2:$A$161,Names!$B$2:$B$161) ->  | Q156: 0 | R156: 0 | S156: 0 | T156: 0 | V156: 152 | W156: =LOOKUP(V156,Names!$A$2:$A$161,Names!$B$2:$B$161) -> 0 | X156: 0 | AA156: 0 | AB156: 0 | AE156: 0 | AF156: 0 | AI156: 0 | AJ156: 0
A157: Tabel ( 39 ) | B157: N | C157: 153 | D157: =LOOKUP(C157,Names!$A$2:$A$161,Names!$B$2:$B$161) -> 0 | G157: 0 | H157: 0 | J157: =LOOKUP(I157,Names!$A$2:$A$161,Names!$B$2:$B$161) ->  | K157: 0 | L157: 4.75 | M157: 0 | N157: 0 | P157: =LOOKUP(O157,Names!$A$2:$A$161,Names!$B$2:$B$161) ->  | Q157: 0 | R157: 4.75 | S157: 0 | T157: 0 | V157: 153 | W157: =LOOKUP(V157,Names!$A$2:$A$161,Names!$B$2:$B$161) -> 0 | X157: 0 | AA157: 0 | AB157: 0 | AE157: 0 | AF157: 0 | AI157: 0 | AJ157: 0
B158: W | C158: 154 | D158: =LOOKUP(C158,Names!$A$2:$A$161,Names!$B$2:$B$161) -> 0 | G158: 0 | H158: 0 | J158: =LOOKUP(I158,Names!$A$2:$A$161,Names!$B$2:$B$161) ->  | K158: 0 | L158: 2.85 | M158: 0 | N158: 0 | P158: =LOOKUP(O158,Names!$A$2:$A$161,Names!$B$2:$B$161) ->  | Q158: 0 | R158: 2.85 | S158: 0 | T158: 0 | V158: 154 | W158: =LOOKUP(V158,Names!$A$2:$A$161,Names!$B$2:$B$161) -> 0 | X158: 0 | AA158: 0 | AB158: 0 | AE158: 0 | AF158: 0 | AI158: 0 | AJ158: 0
B159: S | C159: 155 | D159: =LOOKUP(C159,Names!$A$2:$A$161,Names!$B$2:$B$161) -> 0 | G159: 0 | H159: 0 | J159: =LOOKUP(I159,Names!$A$2:$A$161,Names!$B$2:$B$161) ->  | K159: 0 | L159: 1.9 | M159: 0 | N159: 0 | P159: =LOOKUP(O159,Names!$A$2:$A$161,Names!$B$2:$B$161) ->  | Q159: 0 | R159: 1.9 | S159: 0 | T159: 0 | V159: 155 | W159: =LOOKUP(V159,Names!$A$2:$A$161,Names!$B$2:$B$161) -> 0 | X159: 0 | AA159: 0 | AB159: 0 | AE159: 0 | AF159: 0 | AI159: 0 | AJ159: 0
B160: E | C160: 156 | D160: =LOOKUP(C160,Names!$A$2:$A$161,Names!$B$2:$B$161) -> 0 | G160: 0 | H160: 0 | J160: =LOOKUP(I160,Names!$A$2:$A$161,Names!$B$2:$B$161) ->  | K160: 0 | L160: 0 | M160: 0 | N160: 0 | P160: =LOOKUP(O160,Names!$A$2:$A$161,Names!$B$2:$B$161) ->  | Q160: 0 | R160: 0 | S160: 0 | T160: 0 | V160: 156 | W160: =LOOKUP(V160,Names!$A$2:$A$161,Names!$B$2:$B$161) -> 0 | X160: 0 | AA160: 0 | AB160: 0 | AE160: 0 | AF160: 0 | AI160: 0 | AJ160: 0
A161: Tabel ( 40 ) | B161: N | C161: 157 | D161: =LOOKUP(C161,Names!$A$2:$A$161,Names!$B$2:$B$161) -> 0 | G161: 0 | H161: 0 | J161: =LOOKUP(I161,Names!$A$2:$A$161,Names!$B$2:$B$161) ->  | K161: 0 | L161: 4.75 | M161: 0 | N161: 0 | P161: =LOOKUP(O161,Names!$A$2:$A$161,Names!$B$2:$B$161) ->  | Q161: 0 | R161: 4.75 | S161: 0 | T161: 0 | V161: 157 | W161: =LOOKUP(V161,Names!$A$2:$A$161,Names!$B$2:$B$161) -> 0 | X161: 0 | AA161: 0 | AB161: 0 | AE161: 0 | AF161: 0 | AI161: 0 | AJ161: 0
B162: W | C162: 158 | D162: =LOOKUP(C162,Names!$A$2:$A$161,Names!$B$2:$B$161) -> 0 | G162: 0 | H162: 0 | J162: =LOOKUP(I162,Names!$A$2:$A$161,Names!$B$2:$B$161) ->  | K162: 0 | L162: 2.85 | M162: 0 | N162: 0 | P162: =LOOKUP(O162,Names!$A$2:$A$161,Names!$B$2:$B$161) ->  | Q162: 0 | R162: 2.85 | S162: 0 | T162: 0 | V162: 158 | W162: =LOOKUP(V162,Names!$A$2:$A$161,Names!$B$2:$B$161) -> 0 | X162: 0 | AA162: 0 | AB162: 0 | AE162: 0 | AF162: 0 | AI162: 0 | AJ162: 0
B163: S | C163: 159 | D163: =LOOKUP(C163,Names!$A$2:$A$161,Names!$B$2:$B$161) -> 0 | G163: 0 | H163: 0 | J163: =LOOKUP(I163,Names!$A$2:$A$161,Names!$B$2:$B$161) ->  | K163: 0 | L163: 1.9 | M163: 0 | N163: 0 | P163: =LOOKUP(O163,Names!$A$2:$A$161,Names!$B$2:$B$161) ->  | Q163: 0 | R163: 1.9 | S163: 0 | T163: 0 | V163: 159 | W163: =LOOKUP(V163,Names!$A$2:$A$161,Names!$B$2:$B$161) -> 0 | X163: 0 | AA163: 0 | AB163: 0 | AE163: 0 | AF163: 0 | AI163: 0 | AJ163: 0
B164: E | C164: 160 | D164: =LOOKUP(C164,Names!$A$2:$A$161,Names!$B$2:$B$161) -> 0 | G164: 0 | H164: 0 | J164: =LOOKUP(I164,Names!$A$2:$A$161,Names!$B$2:$B$161) ->  | K164: 0 | L164: 0 | M164: 0 | N164: 0 | P164: =LOOKUP(O164,Names!$A$2:$A$161,Names!$B$2:$B$161) ->  | Q164: 0 | R164: 0 | S164: 0 | T164: 0 | V164: 160 | W164: =LOOKUP(V164,Names!$A$2:$A$161,Names!$B$2:$B$161) -> 0 | X164: 0 | AA164: 0 | AB164: 0 | AE164: 0 | AF164: 0 | AI164: 0 | AJ164: 0

Sheet R1
L1: Round ( 1 ) | Y1: =Score!Q1 -> بطولة الاتحاد الثامنة للفردي المفتوح
L3: Tab.
D4: 1 | K4: 2 | R4: 3 | Y4: 4
D5: Names | E5: Sc. | F5: Tab | K5: Names | L5: Sc. | M5: Tab | R5: Names | S5: Sc. | T5: Tab | Y5: Names | Z5: Sc. | AA5: Tab
A6: N | B6: 1 | C6: =Score!C5 -> 1 | D6: =LOOKUP(C6,Names!$A$2:$A$161,Names!$B$2:$B$161) -> إبراهيم عرفان السقا | E6: 135 | F6: =Sheet1!$M$5 -> 2.85 | G6: =F69 -> 8 | H6: N | I6: 1 | J6: =Score!C9 -> 30 | K6: =LOOKUP(J6,Names!$A$2:$A$161,Names!$B$2:$B$161) -> محمد سعيد الفطاطري | L6: 176 | M6: =Sheet1!$M$5 -> 2.85 | N6: =F70 -> 14 | O6: N | P6: 1 | Q6: =Score!C13 -> 24 | R6: =LOOKUP(Q6,Names!$A$2:$A$161,Names!$B$2:$B$161) -> يامن محمد حسن | S6: 96 | T6: =Sheet1!$M$7 -> 0 | U6: =F71 -> 2 | V6: N | W6: 1 | X6: =Score!C17 -> 21 | Y6: =LOOKUP(X6,Names!$A$2:$A$161,Names!$B$2:$B$161) -> محمد طارق عبد الله | Z6: 187 | AA6: =Sheet1!$M$4 -> 4.75 | AB6: =F72 -> 16.5
A7: W | B7: 2 | C7: =Score!C6 -> 17 | D7: =LOOKUP(C7,Names!$A$2:$A$161,Names!$B$2:$B$161) -> مينا ناجح صبحي | E7: 114 | F7: =Sheet1!$M$7 -> 0 | G7: =M69 -> 6 | H7: W | I7: 2 | J7: =Score!C10 -> 11 | K7: =LOOKUP(J7,Names!$A$2:$A$161,Names!$B$2:$B$161) -> هيثم العشماوي | L7: 100 | M7: =Sheet1!$M$6 -> 1.9 | N7: =M70 -> 2 | O7: W | P7: 2 | Q7: =Score!C14 -> 5 | R7: =LOOKUP(Q7,Names!$A$2:$A$161,Names!$B$2:$B$161) -> أحمد محمد أمين | S7: 98 | T7: =Sheet1!$M$6 -> 1.9 | U7: =M71 -> 1 | V7: W | W7: 2 | X7: =Score!C18 -> 34 | Y7: =LOOKUP(X7,Names!$A$2:$A$161,Names!$B$2:$B$161) -> شريف حلمي | Z7: 182 | AA7: =Sheet1!$M$5 -> 2.85 | AB7: =M72 -> 16
A8: S | B8: 3 | C8: =Score!C7 -> 33 | D8: =LOOKUP(C8,Names!$A$2:$A$161,Names!$B$2:$B$161) -> أحمد إبراهيم غانم | E8: 224 | F8: =Sheet1!$M$4 -> 4.75 | G8: =T69 -> 19 | H8: S | I8: 3 | J8: =Score!C11 -> 27 | K8: =LOOKUP(J8,Names!$A$2:$A$161,Names!$B$2:$B$161) -> أحمد سمير خلف على | L8: 191 | M8: =Sheet1!$M$4 -> 4.75 | N8: =T70 -> 15 | O8: S | P8: 3 | Q8: =Score!C15 -> 18 | R8: =LOOKUP(Q8,Names!$A$2:$A$161,Names!$B$2:$B$161) -> وليد شعبان إسماعيل علي | S8: 136 | T8: =Sheet1!$M$5 -> 2.85 | U8: =T71 -> 8 | V8: S | W8: 3 | X8: =Score!C19 -> 15 | Y8: =LOOKUP(X8,Names!$A$2:$A$161,Names!$B$2:$B$161) -> حسام الدين صلاح أبو الفتوح | Z8: 134 | AA8: =Sheet1!$M$6 -> 1.9 | AB8: =T72 -> 7
A9: E | B9: 4 | C9: =Score!C8 -> 14 | D9: =LOOKUP(C9,Names!$A$2:$A$161,Names!$B$2:$B$161) -> أحمد محمد محمدي | E9: 133 | F9: =Sheet1!$M$6 -> 1.9 | G9: =AA69 -> 10 | H9: E | I9: 4 | J9: =Score!C12 -> 8 | K9: =LOOKUP(J9,Names!$A$2:$A$161,Names!$B$2:$B$161) -> عبد الرحمن محمود عثمان | L9: 95 | M9: =Sheet1!$M$7 -> 0 | N9: =AA70 -> 2.5 | O9: E | P9: 4 | Q9: =Score!C16 -> 2 | R9: =LOOKUP(Q9,Names!$A$2:$A$161,Names!$B$2:$B$161) -> مصطفى محمد علي شرف | S9: 144 | T9: =Sheet1!$M$4 -> 4.75 | U9: =AA71 -> 11 | V9: E | W9: 4 | X9: =Score!C20 -> 31 | Y9: =LOOKUP(X9,Names!$A$2:$A$161,Names!$B$2:$B$161) -> أحمد بسيوني | Z9: 104 | AA9: =Sheet1!$M$7 -> 0 | AB9: =AA72 -> 6
D10: 5 | K10: 6 | R10: 7 | Y10: 8
D11: Names | E11: Sc. | F11: Tab | K11: Names | L11: Sc. | M11: Tab | R11: Names | S11: Sc. | T11: Tab | Y11: Names | Z11: Sc. | AA11: Tab
A12: N | B12: 1 | C12: =Score!C21 -> 12 | D12: =LOOKUP(C12,Names!$A$2:$A$161,Names!$B$2:$B$161) -> أحمد علي السيد شرع | E12: 167 | F12: =Sheet1!$M$4 -> 4.75 | G12: =F73 -> 12 | H12: N | I12: 1 | J12: =Score!C25 -> 3 | K12: =LOOKUP(J12,Names!$A$2:$A$161,Names!$B$2:$B$161) -> أحمد محمد حمدي صالح | L12: 175 | M12: =Sheet1!$M$6 -> 1.9 | N12: =F74 -> 13 | O12: N | P12: 1 | Q12: =Score!C29 -> 32 | R12: =LOOKUP(Q12,Names!$A$2:$A$161,Names!$B$2:$B$161) -> أمير محمد خطاب | S12: 84 | T12: =Sheet1!$M$7 -> 0 | U12: =F75 -> 1 | V12: N | W12: 1 | X12: =Score!C33 -> 7 | Y12: =LOOKUP(X12,Names!$A$2:$A$161,Names!$B$2:$B$161) -> هيثم محمد شبانة | Z12: 114 | AA12: =Sheet1!$M$6 -> 1.9 | AB12: =F76 -> 5
A13: W | B13: 2 | C13: =Score!C22 -> 28 | D13: =LOOKUP(C13,Names!$A$2:$A$161,Names!$B$2:$B$161) -> محمد حسن عبد القادر | E13: 137 | F13: =Sheet1!$M$5 -> 2.85 | G13: =M73 -> 10 | H13: W | I13: 2 | J13: =Score!C26 -> 19 | K13: =LOOKUP(J13,Names!$A$2:$A$161,Names!$B$2:$B$161) -> محمد أحمد محمد عبد الله | L13: 208 | M13: =Sheet1!$M$5 -> 2.85 | N13: =M74 -> 19 | O13: W | P13: 2 | Q13: =Score!C30 -> 13 | R13: =LOOKUP(Q13,Names!$A$2:$A$161,Names!$B$2:$B$161) -> عمرو سمير دسوقي | S13: 158 | T13: =Sheet1!$M$4 -> 4.75 | U13: =M75 -> 13 | V13: W | W13: 2 | X13: =Score!C34 -> 23 | Y13: =LOOKUP(X13,Names!$A$2:$A$161,Names!$B$2:$B$161) -> جمال احمد محمد جمال | Z13: 122 | AA13: =Sheet1!$M$5 -> 2.85 | AB13: =M76 -> 7
A14: S | B14: 3 | C14: =Score!C23 -> 6 | D14: =LOOKUP(C14,Names!$A$2:$A$161,Names!$B$2:$B$161) -> معتز محمد عبد المنعم | E14: 129 | F14: =Sheet1!$M$6 -> 1.9 | G14: =T73 -> 5 | H14: S | I14: 3 | J14: =Score!C27 -> 35 | K14: =LOOKUP(J14,Names!$A$2:$A$161,Names!$B$2:$B$161) -> أحمد فؤاد حسنين | L14: 212 | M14: =Sheet1!$M$4 -> 4.75 | N14: =T74 -> 16 | O14: S | P14: 3 | Q14: =Score!C31 -> 10 | R14: =LOOKUP(Q14,Names!$A$2:$A$161,Names!$B$2:$B$161) -> تامر تيمور شكري | S14: 157 | T14: =Sheet1!$M$5 -> 2.85 | U14: =T75 -> 12 | V14: S | W14: 3 | X14: =Score!C35 -> 4 | Y14: =LOOKUP(X14,Names!$A$2:$A$161,Names!$B$2:$B$161) -> أحمد جميل السيد | Z14: 137 | AA14: =Sheet1!$M$4 -> 4.75 | AB14: =T76 -> 9
A15: E | B15: 4 | C15: =Score!C24 -> 22 | D15: =LOOKUP(C15,Names!$A$2:$A$161,Names!$B$2:$B$161) -> يوسف مسعد فراج | E15: 103 | F15: =Sheet1!$M$7 -> 0 | G15: =AA73 -> 5 | H15: E | I15: 4 | J15: =Score!C28 -> 16 | K15: =LOOKUP(J15,Names!$A$2:$A$161,Names!$B$2:$B$161) -> طارق عبد الغني السحار | L15: 100 | M15: =Sheet1!$M$7 -> 0 | N15: =AA74 -> 4 | O15: E | P15: 4 | Q15: =Score!C32 -> 26 | R15: =LOOKUP(Q15,Names!$A$2:$A$161,Names!$B$2:$B$161) -> علاء شوقي جبريل | S15: 150 | T15: =Sheet1!$M$6 -> 1.9 | U15: =AA75 -> 14 | V15: E | W15: 4 | X15: =Score!C36 -> 29 | Y15: =LOOKUP(X15,Names!$A$2:$A$161,Names!$B$2:$B$161) -> اسلام نصر الغنام | Z15: 95 | AA15: =Sheet1!$M$7 -> 0 | AB15: =AA76 -> 2.5
D16: 9 | K16: 10 | R16: 11 | Y16: 12
D17: Names | E17: Sc. | F17: Tab | K17: Names | L17: Sc. | M17: Tab | R17: Names | S17: Sc. | T17: Tab | Y17: Names | Z17: Sc. | AA17: Tab
A18: N | B18: 1 | C18: =Score!C37 -> 20 | D18: =LOOKUP(C18,Names!$A$2:$A$161,Names!$B$2:$B$161) -> عصام الدين محمد عبد العاطي | E18: 108 | F18: =Sheet1!$M$7 -> 0 | G18: =F77 -> 3 | H18: N | I18: 1 | J18: =Score!C41 -> 37 | K18: =LOOKUP(J18,Names!$A$2:$A$161,Names!$B$2:$B$161) -> 0 | N18: =F78 -> 0 | O18: N | P18: 1 | Q18: =Score!C45 -> 41 | R18: =LOOKUP(Q18,Names!$A$2:$A$161,Names!$B$2:$B$161) -> 0 | U18: =F79 -> 0 | V18: N | W18: 1 | X18: =Score!C49 -> 45 | Y18: =LOOKUP(X18,Names!$A$2:$A$161,Names!$B$2:$B$161) -> 0 | AB18: =F80 -> 0
A19: W | B19: 2 | C19: =Score!C38 -> 9 | D19: =LOOKUP(C19,Names!$A$2:$A$161,Names!$B$2:$B$161) -> عمرو محمد مصطفى | E19: 127 | F19: =Sheet1!$M$5 -> 2.85 | G19: =M77 -> 8 | H19: W | I19: 2 | J19: =Score!C42 -> 38 | K19: =LOOKUP(J19,Names!$A$2:$A$161,Names!$B$2:$B$161) -> 0 | N19: =M78 -> 0 | O19: W | P19: 2 | Q19: =Score!C46 -> 42 | R19: =LOOKUP(Q19,Names!$A$2:$A$161,Names!$B$2:$B$161) -> 0 | U19: =M79 -> 0 | V19: W | W19: 2 | X19: =Score!C50 -> 46 | Y19: =LOOKUP(X19,Names!$A$2:$A$161,Names!$B$2:$B$161) -> 0 | AB19: =M80 -> 0
A20: S | B20: 3 | C20: =Score!C39 -> 25 | D20: =LOOKUP(C20,Names!$A$2:$A$161,Names!$B$2:$B$161) -> خالد حمدي محمد السيد | E20: 119 | F20: =Sheet1!$M$6 -> 1.9 | G20: =T77 -> 3 | H20: S | I20: 3 | J20: =Score!C43 -> 39 | K20: =LOOKUP(J20,Names!$A$2:$A$161,Names!$B$2:$B$161) -> 0 | N20: =T78 -> 0 | O20: S | P20: 3 | Q20: =Score!C47 -> 43 | R20: =LOOKUP(Q20,Names!$A$2:$A$161,Names!$B$2:$B$161) -> 0 | U20: =T79 -> 0 | V20: S | W20: 3 | X20: =Score!C51 -> 47 | Y20: =LOOKUP(X20,Names!$A$2:$A$161,Names!$B$2:$B$161) -> 0 | AB20: =T80 -> 0
A21: E | B21: 4 | C21: =Score!C40 -> 36 | D21: =LOOKUP(C21,Names!$A$2:$A$161,Names!$B$2:$B$161) -> محمد محمود فضل | E21: 183 | F21: =Sheet1!$M$4 -> 4.75 | G21: =AA77 -> 16 | H21: E | I21: 4 | J21: =Score!C44 -> 40 | K21: =LOOKUP(J21,Names!$A$2:$A$161,Names!$B$2:$B$161) -> 0 | N21: =AA78 -> 0 | O21: E | P21: 4 | Q21: =Score!C48 -> 44 | R21: =LOOKUP(Q21,Names!$A$2:$A$161,Names!$B$2:$B$161) -> 0 | U21: =AA79 -> 0 | V21: E | W21: 4 | X21: =Score!C52 -> 48 | Y21: =LOOKUP(X21,Names!$A$2:$A$161,Names!$B$2:$B$161) -> 0 | AB21: =AA80 -> 0
D22: 13 | K22: 14 | R22: 15 | Y22: 16
D23: Names | E23: Sc. | F23: Tab | K23: Names | L23: Sc. | M23: Tab | R23: Names | S23: Sc. | T23: Tab | Y23: Names | Z23: Sc. | AA23: Tab
A24: N | B24: 1 | C24: =Score!C53 -> 49 | D24: =LOOKUP(C24,Names!$A$2:$A$161,Names!$B$2:$B$161) -> 0 | G24: =F81 -> 0 | H24: N | I24: 1 | J24: =Score!C57 -> 53 | K24: =LOOKUP(J24,Names!$A$2:$A$161,Names!$B$2:$B$161) -> 0 | N24: =F82 -> 0 | O24: N | P24: 1 | Q24: =Score!C61 -> 57 | R24: =LOOKUP(Q24,Names!$A$2:$A$161,Names!$B$2:$B$161) -> 0 | U24: =F83 -> 0 | V24: N | W24: 1 | X24: =Score!C65 -> 61 | Y24: =LOOKUP(X24,Names!$A$2:$A$161,Names!$B$2:$B$161) -> 0 | AB24: =F84 -> 0
A25: W | B25: 2 | C25: =Score!C54 -> 50 | D25: =LOOKUP(C25,Names!$A$2:$A$161,Names!$B$2:$B$161) -> 0 | G25: =M81 -> 0 | H25: W | I25: 2 | J25: =Score!C58 -> 54 | K25: =LOOKUP(J25,Names!$A$2:$A$161,Names!$B$2:$B$161) -> 0 | N25: =M82 -> 0 | O25: W | P25: 2 | Q25: =Score!C62 -> 58 | R25: =LOOKUP(Q25,Names!$A$2:$A$161,Names!$B$2:$B$161) -> 0 | U25: =M83 -> 0 | V25: W | W25: 2 | X25: =Score!C66 -> 62 | Y25: =LOOKUP(X25,Names!$A$2:$A$161,Names!$B$2:$B$161) -> 0 | AB25: =M84 -> 0
A26: S | B26: 3 | C26: =Score!C55 -> 51 | D26: =LOOKUP(C26,Names!$A$2:$A$161,Names!$B$2:$B$161) -> 0 | G26: =T81 -> 0 | H26: S | I26: 3 | J26: =Score!C59 -> 55 | K26: =LOOKUP(J26,Names!$A$2:$A$161,Names!$B$2:$B$161) -> 0 | N26: =T82 -> 0 | O26: S | P26: 3 | Q26: =Score!C63 -> 59 | R26: =LOOKUP(Q26,Names!$A$2:$A$161,Names!$B$2:$B$161) -> 0 | U26: =T83 -> 0 | V26: S | W26: 3 | X26: =Score!C67 -> 63 | Y26: =LOOKUP(X26,Names!$A$2:$A$161,Names!$B$2:$B$161) -> 0 | AB26: =T84 -> 0
A27: E | B27: 4 | C27: =Score!C56 -> 52 | D27: =LOOKUP(C27,Names!$A$2:$A$161,Names!$B$2:$B$161) -> 0 | G27: =AA81 -> 0 | H27: E | I27: 4 | J27: =Score!C60 -> 56 | K27: =LOOKUP(J27,Names!$A$2:$A$161,Names!$B$2:$B$161) -> 0 | N27: =AA82 -> 0 | O27: E | P27: 4 | Q27: =Score!C64 -> 60 | R27: =LOOKUP(Q27,Names!$A$2:$A$161,Names!$B$2:$B$161) -> 0 | U27: =AA83 -> 0 | V27: E | W27: 4 | X27: =Score!C68 -> 64 | Y27: =LOOKUP(X27,Names!$A$2:$A$161,Names!$B$2:$B$161) -> 0 | AB27: =AA84 -> 0
D28: 17 | K28: 18 | R28: 19 | Y28: 20
D29: Names | E29: Sc. | F29: Tab | K29: Names | L29: Sc. | M29: Tab | R29: Names | S29: Sc. | T29: Tab | Y29: Names | Z29: Sc. | AA29: Tab
A30: N | B30: 1 | C30: =Score!C69 -> 65 | D30: =LOOKUP(C30,Names!$A$2:$A$161,Names!$B$2:$B$161) -> 0 | G30: =F85 -> 0 | H30: N | I30: 1 | J30: =Score!C73 -> 69 | K30: =LOOKUP(J30,Names!$A$2:$A$161,Names!$B$2:$B$161) -> 0 | N30: =F86 -> 0 | O30: N | P30: 1 | Q30: =Score!C77 -> 73 | R30: =LOOKUP(Q30,Names!$A$2:$A$161,Names!$B$2:$B$161) -> 0 | U30: =F87 -> 0 | V30: N | W30: 1 | X30: =Score!C81 -> 77 | Y30: =LOOKUP(X30,Names!$A$2:$A$161,Names!$B$2:$B$161) -> 0 | AB30: =F88 -> 0
A31: W | B31: 2 | C31: =Score!C70 -> 66 | D31: =LOOKUP(C31,Names!$A$2:$A$161,Names!$B$2:$B$161) -> 0 | G31: =M85 -> 0 | H31: W | I31: 2 | J31: =Score!C74 -> 70 | K31: =LOOKUP(J31,Names!$A$2:$A$161,Names!$B$2:$B$161) -> 0 | N31: =M86 -> 0 | O31: W | P31: 2 | Q31: =Score!C78 -> 74 | R31: =LOOKUP(Q31,Names!$A$2:$A$161,Names!$B$2:$B$161) -> 0 | U31: =M87 -> 0 | V31: W | W31: 2 | X31: =Score!C82 -> 78 | Y31: =LOOKUP(X31,Names!$A$2:$A$161,Names!$B$2:$B$161) -> 0 | AB31: =M88 -> 0
A32: S | B32: 3 | C32: =Score!C71 -> 67 | D32: =LOOKUP(C32,Names!$A$2:$A$161,Names!$B$2:$B$161) -> 0 | G32: =T85 -> 0 | H32: S | I32: 3 | J32: =Score!C75 -> 71 | K32: =LOOKUP(J32,Names!$A$2:$A$161,Names!$B$2:$B$161) -> 0 | N32: =T86 -> 0 | O32: S | P32: 3 | Q32: =Score!C79 -> 75 | R32: =LOOKUP(Q32,Names!$A$2:$A$161,Names!$B$2:$B$161) -> 0 | U32: =T87 -> 0 | V32: S | W32: 3 | X32: =Score!C83 -> 79 | Y32: =LOOKUP(X32,Names!$A$2:$A$161,Names!$B$2:$B$161) -> 0 | AB32: =T88 -> 0
A33: E | B33: 4 | C33: =Score!C72 -> 68 | D33: =LOOKUP(C33,Names!$A$2:$A$161,Names!$B$2:$B$161) -> 0 | G33: =AA85 -> 0 | H33: E | I33: 4 | J33: =Score!C76 -> 72 | K33: =LOOKUP(J33,Names!$A$2:$A$161,Names!$B$2:$B$161) -> 0 | N33: =AA86 -> 0 | O33: E | P33: 4 | Q33: =Score!C80 -> 76 | R33: =LOOKUP(Q33,Names!$A$2:$A$161,Names!$B$2:$B$161) -> 0 | U33: =AA87 -> 0 | V33: E | W33: 4 | X33: =Score!C84 -> 80 | Y33: =LOOKUP(X33,Names!$A$2:$A$161,Names!$B$2:$B$161) -> 0 | AB33: =AA88 -> 0
D35: 21 | K35: 22 | R35: 23 | Y35: 24
D36: Names | E36: Sc. | F36: Tab | K36: Names | L36: Sc. | M36: Tab | R36: Names | S36: Sc. | T36: Tab | Y36: Names | Z36: Sc. | AA36: Tab
A37: N | B37: 1 | C37: =Score!C85 -> 81 | D37: =LOOKUP(C37,Names!$A$2:$A$161,Names!$B$2:$B$161) -> راجي محمد صبحي | E37: 185 | F37: =Sheet1!$M$5 -> 2.85 | G37: =F89 -> 15 | H37: N | I37: 1 | J37: =Score!C89 -> 85 | K37: =LOOKUP(J37,Names!$A$2:$A$161,Names!$B$2:$B$161) -> محمد عبد الهادي أبو القاسم | L37: 164 | M37: =Sheet1!$M$5 -> 2.85 | N37: =F90 -> 11 | O37: N | P37: 1 | Q37: =Score!C93 -> 89 | R37: =LOOKUP(Q37,Names!$A$2:$A$161,Names!$B$2:$B$161) -> محمد بلبع | S37: 129 | T37: =Sheet1!$M$6 -> 1.9 | U37: =F91 -> 6 | V37: N | W37: 1 | X37: =Score!C97 -> 93 | Y37: =LOOKUP(X37,Names!$A$2:$A$161,Names!$B$2:$B$161) -> جمال السيد توفيق | Z37: 109 | AA37: =Sheet1!$M$7 -> 0 | AB37: =F92 -> 4
A38: W | B38: 2 | C38: =Score!C86 -> 82 | D38: =LOOKUP(C38,Names!$A$2:$A$161,Names!$B$2:$B$161) -> أحمد صلاح الدين دياب | E38: 171 | F38: =Sheet1!$M$6 -> 1.9 | G38: =M89 -> 14.5 | H38: W | I38: 2 | J38: =Score!C90 -> 86 | K38: =LOOKUP(J38,Names!$A$2:$A$161,Names!$B$2:$B$161) -> ايهاب يوسف عمارة | L38: 131 | M38: =Sheet1!$M$6 -> 1.9 | N38: =M90 -> 9 | O38: W | P38: 2 | Q38: =Score!C94 -> 90 | R38: =LOOKUP(Q38,Names!$A$2:$A$161,Names!$B$2:$B$161) -> محمد علي حسن طه الأمام | S38: 149 | T38: =Sheet1!$M$4 -> 4.75 | U38: =M91 -> 12 | V38: W | W38: 2 | X38: =Score!C98 -> 94 | Y38: =LOOKUP(X38,Names!$A$2:$A$161,Names!$B$2:$B$161) -> محمد عصام الدين القاضي | Z38: 196 | AA38: =Sheet1!$M$4 -> 4.75 | AB38: =M92 -> 17
A39: S | B39: 3 | C39: =Score!C87 -> 83 | D39: =LOOKUP(C39,Names!$A$2:$A$161,Names!$B$2:$B$161) -> أسامة لطفى نجيب | E39: 187 | F39: =Sheet1!$M$4 -> 4.75 | G39: =T89 -> 14 | H39: S | I39: 3 | J39: =Score!C91 -> 87 | K39: =LOOKUP(J39,Names!$A$2:$A$161,Names!$B$2:$B$161) -> ياسر شاهين | L39: 216 | M39: =Sheet1!$M$4 -> 4.75 | N39: =T90 -> 17 | O39: S | P39: 3 | Q39: =Score!C95 -> 91 | R39: =LOOKUP(Q39,Names!$A$2:$A$161,Names!$B$2:$B$161) -> عماد محمد فؤاد مرسي | S39: 133 | T39: =Sheet1!$M$5 -> 2.85 | U39: =T91 -> 6 | V39: S | W39: 3 | X39: =Score!C99 -> 95 | Y39: =LOOKUP(X39,Names!$A$2:$A$161,Names!$B$2:$B$161) -> احمد طنطاوى | Z39: 174 | AA39: =Sheet1!$M$6 -> 1.9 | AB39: =T92 -> 13
A40: E | B40: 4 | C40: =Score!C88 -> 84 | D40: =LOOKUP(C40,Names!$A$2:$A$161,Names!$B$2:$B$161) -> أحمد عز العرب السماحي | E40: 162 | F40: =Sheet1!$M$7 -> 0 | G40: =AA89 -> 15 | H40: E | I40: 4 | J40: =Score!C92 -> 88 | K40: =LOOKUP(J40,Names!$A$2:$A$161,Names!$B$2:$B$161) -> أحمد علي خليل حسن | L40: 118 | M40: =Sheet1!$M$7 -> 0 | N40: =AA90 -> 8 | O40: E | P40: 4 | Q40: =Score!C96 -> 92 | R40: =LOOKUP(Q40,Names!$A$2:$A$161,Names!$B$2:$B$161) -> أحمد مصطفى راشد | S40: 67 | T40: =Sheet1!$M$7 -> 0 | U40: =AA91 -> 1 | V40: E | W40: 4 | X40: =Score!C100 -> 96 | Y40: =LOOKUP(X40,Names!$A$2:$A$161,Names!$B$2:$B$161) -> أحمد رمزي الديب | Z40: 189 | AA40: =Sheet1!$M$5 -> 2.85 | AB40: =AA92 -> 17
D41: 25 | K41: 26 | R41: 27 | Y41: 28
D42: Names | E42: Sc. | F42: Tab | K42: Names | L42: Sc. | M42: Tab | R42: Names | S42: Sc. | T42: Tab | Y42: Names | Z42: Sc. | AA42: Tab
A43: N | B43: 1 | C43: =Score!C101 -> 97 | D43: =LOOKUP(C43,Names!$A$2:$A$161,Names!$B$2:$B$161) -> خالد محمد شبارة | E43: 200 | F43: =Sheet1!$M$4 -> 4.75 | G43: =F93 -> 19 | H43: N | I43: 1 | J43: =Score!C105 -> 101 | K43: =LOOKUP(J43,Names!$A$2:$A$161,Names!$B$2:$B$161) -> أحمد محمد شوقى عبد الحميد | L43: 130 | M43: =Sheet1!$M$6 -> 1.9 | N43: =F94 -> 7 | O43: N | P43: 1 | Q43: =Score!C109 -> 105 | R43: =LOOKUP(Q43,Names!$A$2:$A$161,Names!$B$2:$B$161) -> مصطفى عبد الحفيظ علي | S43: 144 | T43: =Sheet1!$M$6 -> 1.9 | U43: =F95 -> 9 | V43: N | W43: 1 | X43: =Score!C113 -> 109 | Y43: =LOOKUP(X43,Names!$A$2:$A$161,Names!$B$2:$B$161) -> نبيل خلف زكي | Z43: 162 | AA43: =Sheet1!$M$4 -> 4.75 | AB43: =F96 -> 10
A44: W | B44: 2 | C44: =Score!C102 -> 98 | D44: =LOOKUP(C44,Names!$A$2:$A$161,Names!$B$2:$B$161) -> محمد محمود شعبان رمضان | E44: 110 | F44: =Sheet1!$M$6 -> 1.9 | G44: =M93 -> 4 | H44: W | I44: 2 | J44: =Score!C106 -> 102 | K44: =LOOKUP(J44,Names!$A$2:$A$161,Names!$B$2:$B$161) -> سامي محمود الفولي | L44: 113 | M44: =Sheet1!$M$7 -> 0 | N44: =M94 -> 5 | O44: W | P44: 2 | Q44: =Score!C110 -> 106 | R44: =LOOKUP(Q44,Names!$A$2:$A$161,Names!$B$2:$B$161) -> أحمد عبد العزيز العطار | S44: 171 | T44: =Sheet1!$M$4 -> 4.75 | U44: =M95 -> 14.5 | V44: W | W44: 2 | X44: =Score!C114 -> 110 | Y44: =LOOKUP(X44,Names!$A$2:$A$161,Names!$B$2:$B$161) -> أسامة أحمد زكي | Z44: 101 | AA44: =Sheet1!$M$7 -> 0 | AB44: =M96 -> 3
A45: S | B45: 3 | C45: =Score!C103 -> 99 | D45: =LOOKUP(C45,Names!$A$2:$A$161,Names!$B$2:$B$161) -> ماجد محمد فكري | E45: 121 | F45: =Sheet1!$M$5 -> 2.85 | G45: =T93 -> 4 | H45: S | I45: 3 | J45: =Score!C107 -> 103 | K45: =LOOKUP(J45,Names!$A$2:$A$161,Names!$B$2:$B$161) -> عمرو عماد الدين أبو العلا | L45: 155 | M45: =Sheet1!$M$5 -> 2.85 | N45: =T94 -> 11 | O45: S | P45: 3 | Q45: =Score!C111 -> 107 | R45: =LOOKUP(Q45,Names!$A$2:$A$161,Names!$B$2:$B$161) -> شادي أحمد محمود وهبة | S45: 118 | T45: =Sheet1!$M$7 -> 0 | U45: =T95 -> 2 | V45: S | W45: 3 | X45: =Score!C115 -> 111 | Y45: =LOOKUP(X45,Names!$A$2:$A$161,Names!$B$2:$B$161) -> عادل محمد أبو زيد | Z45: 148 | AA45: =Sheet1!$M$5 -> 2.85 | AB45: =T96 -> 10
A46: E | B46: 4 | C46: =Score!C104 -> 100 | D46: =LOOKUP(C46,Names!$A$2:$A$161,Names!$B$2:$B$161) -> عبد الرحمن الدمراوى | E46: 106 | F46: =Sheet1!$M$7 -> 0 | G46: =AA93 -> 7 | H46: E | I46: 4 | J46: =Score!C108 -> 104 | K46: =LOOKUP(J46,Names!$A$2:$A$161,Names!$B$2:$B$161) -> كريم إيهاب عامر | L46: 200 | M46: =Sheet1!$M$4 -> 4.75 | N46: =AA94 -> 19 | O46: E | P46: 4 | Q46: =Score!C112 -> 108 | R46: =LOOKUP(Q46,Names!$A$2:$A$161,Names!$B$2:$B$161) -> كريم احمد ناصر | S46: 146 | T46: =Sheet1!$M$5 -> 2.85 | U46: =AA95 -> 12.5 | V46: E | W46: 4 | X46: =Score!C116 -> 112 | Y46: =LOOKUP(X46,Names!$A$2:$A$161,Names!$B$2:$B$161) -> عمرو محمد محسن | Z46: 146 | AA46: =Sheet1!$M$6 -> 1.9 | AB46: =AA96 -> 12.5
D47: 29 | K47: 30 | R47: 31 | Y47: 32
D48: Names | E48: Sc. | F48: Tab | K48: Names | L48: Sc. | M48: Tab | R48: Names | S48: Sc. | T48: Tab | Y48: Names | Z48: Sc. | AA48: Tab
A49: N | B49: 1 | C49: =Score!C117 -> 113 | D49: =LOOKUP(C49,Names!$A$2:$A$161,Names!$B$2:$B$161) -> محمد حسن فهيم | E49: 187 | F49: =Sheet1!$M$4 -> 4.75 | G49: =F97 -> 16.5 | H49: N | I49: 1 | J49: =Score!C121 -> 117 | K49: =LOOKUP(J49,Names!$A$2:$A$161,Names!$B$2:$B$161) -> 0 | N49: =F98 -> 0 | O49: N | P49: 1 | Q49: =Score!C125 -> 121 | R49: =LOOKUP(Q49,Names!$A$2:$A$161,Names!$B$2:$B$161) -> 0 | U49: =F99 -> 0 | V49: N | W49: 1 | X49: =Score!C129 -> 125 | Y49: =LOOKUP(X49,Names!$A$2:$A$161,Names!$B$2:$B$161) -> 0 | AB49: =F100 -> 0
A50: W | B50: 2 | C50: =Score!C118 -> 114 | D50: =LOOKUP(C50,Names!$A$2:$A$161,Names!$B$2:$B$161) -> احمد سردينة | E50: 140 | F50: =Sheet1!$M$5 -> 2.85 | G50: =M97 -> 11 | H50: W | I50: 2 | J50: =Score!C122 -> 118 | K50: =LOOKUP(J50,Names!$A$2:$A$161,Names!$B$2:$B$161) -> 0 | N50: =M98 -> 0 | O50: W | P50: 2 | Q50: =Score!C126 -> 122 | R50: =LOOKUP(Q50,Names!$A$2:$A$161,Names!$B$2:$B$161) -> 0 | U50: =M99 -> 0 | V50: W | W50: 2 | X50: =Score!C130 -> 126 | Y50: =LOOKUP(X50,Names!$A$2:$A$161,Names!$B$2:$B$161) -> 0 | AB50: =M100 -> 0
A51: S | B51: 3 | C51: =Score!C119 -> 115 | D51: =LOOKUP(C51,Names!$A$2:$A$161,Names!$B$2:$B$161) -> خالد عبد العظيم | E51: 75 | F51: =Sheet1!$M$7 -> 0 | G51: =T97 -> 1 | H51: S | I51: 3 | J51: =Score!C123 -> 119 | K51: =LOOKUP(J51,Names!$A$2:$A$161,Names!$B$2:$B$161) -> 0 | N51: =T98 -> 0 | O51: S | P51: 3 | Q51: =Score!C127 -> 123 | R51: =LOOKUP(Q51,Names!$A$2:$A$161,Names!$B$2:$B$161) -> 0 | U51: =T99 -> 0 | V51: S | W51: 3 | X51: =Score!C131 -> 127 | Y51: =LOOKUP(X51,Names!$A$2:$A$161,Names!$B$2:$B$161) -> 0 | AB51: =T100 -> 0
A52: E | B52: 4 | C52: =Score!C120 -> 116 | D52: =LOOKUP(C52,Names!$A$2:$A$161,Names!$B$2:$B$161) -> اسامة قاسم | E52: 124 | F52: =Sheet1!$M$6 -> 1.9 | G52: =AA97 -> 9 | H52: E | I52: 4 | J52: =Score!C124 -> 120 | K52: =LOOKUP(J52,Names!$A$2:$A$161,Names!$B$2:$B$161) -> 0 | N52: =AA98 -> 0 | O52: E | P52: 4 | Q52: =Score!C128 -> 124 | R52: =LOOKUP(Q52,Names!$A$2:$A$161,Names!$B$2:$B$161) -> 0 | U52: =AA99 -> 0 | V52: E | W52: 4 | X52: =Score!C132 -> 128 | Y52: =LOOKUP(X52,Names!$A$2:$A$161,Names!$B$2:$B$161) -> 0 | AB52: =AA100 -> 0
D53: 33 | K53: 34 | R53: 35 | Y53: 36
D54: Names | E54: Sc. | F54: Tab | K54: Names | L54: Sc. | M54: Tab | R54: Names | S54: Sc. | T54: Tab | Y54: Names | Z54: Sc. | AA54: Tab
A55: N | B55: 1 | C55: =Score!C133 -> 129 | D55: =LOOKUP(C55,Names!$A$2:$A$161,Names!$B$2:$B$161) -> 0 | G55: =F101 -> 0 | H55: N | I55: 1 | J55: =Score!C137 -> 133 | K55: =LOOKUP(J55,Names!$A$2:$A$161,Names!$B$2:$B$161) -> 0 | N55: =F102 -> 0 | O55: N | P55: 1 | Q55: =Score!C141 -> 137 | R55: =LOOKUP(Q55,Names!$A$2:$A$161,Names!$B$2:$B$161) -> 0 | U55: =F103 -> 0 | V55: N | W55: 1 | X55: =Score!C145 -> 141 | Y55: =LOOKUP(X55,Names!$A$2:$A$161,Names!$B$2:$B$161) -> 0 | AB55: =F104 -> 0
A56: W | B56: 2 | C56: =Score!C134 -> 130 | D56: =LOOKUP(C56,Names!$A$2:$A$161,Names!$B$2:$B$161) -> 0 | G56: =M101 -> 0 | H56: W | I56: 2 | J56: =Score!C138 -> 134 | K56: =LOOKUP(J56,Names!$A$2:$A$161,Names!$B$2:$B$161) -> 0 | N56: =M102 -> 0 | O56: W | P56: 2 | Q56: =Score!C142 -> 138 | R56: =LOOKUP(Q56,Names!$A$2:$A$161,Names!$B$2:$B$161) -> 0 | U56: =M103 -> 0 | V56: W | W56: 2 | X56: =Score!C146 -> 142 | Y56: =LOOKUP(X56,Names!$A$2:$A$161,Names!$B$2:$B$161) -> 0 | AB56: =M104 -> 0
A57: S | B57: 3 | C57: =Score!C135 -> 131 | D57: =LOOKUP(C57,Names!$A$2:$A$161,Names!$B$2:$B$161) -> 0 | G57: =T101 -> 0 | H57: S | I57: 3 | J57: =Score!C139 -> 135 | K57: =LOOKUP(J57,Names!$A$2:$A$161,Names!$B$2:$B$161) -> 0 | N57: =T102 -> 0 | O57: S | P57: 3 | Q57: =Score!C143 -> 139 | R57: =LOOKUP(Q57,Names!$A$2:$A$161,Names!$B$2:$B$161) -> 0 | U57: =T103 -> 0 | V57: S | W57: 3 | X57: =Score!C147 -> 143 | Y57: =LOOKUP(X57,Names!$A$2:$A$161,Names!$B$2:$B$161) -> 0 | AB57: =T104 -> 0
A58: E | B58: 4 | C58: =Score!C136 -> 132 | D58: =LOOKUP(C58,Names!$A$2:$A$161,Names!$B$2:$B$161) -> 0 | G58: =AA101 -> 0 | H58: E | I58: 4 | J58: =Score!C140 -> 136 | K58: =LOOKUP(J58,Names!$A$2:$A$161,Names!$B$2:$B$161) -> 0 | N58: =AA102 -> 0 | O58: E | P58: 4 | Q58: =Score!C144 -> 140 | R58: =LOOKUP(Q58,Names!$A$2:$A$161,Names!$B$2:$B$161) -> 0 | U58: =AA103 -> 0 | V58: E | W58: 4 | X58: =Score!C148 -> 144 | Y58: =LOOKUP(X58,Names!$A$2:$A$161,Names!$B$2:$B$161) -> 0 | AB58: =AA104 -> 0
D59: 37 | K59: 38 | R59: 39 | Y59: 40
D60: Names | E60: Sc. | F60: Tab | K60: Names | L60: Sc. | M60: Tab | R60: Names | S60: Sc. | T60: Tab | Y60: Names | Z60: Sc. | AA60: Tab
A61: N | B61: 1 | C61: =Score!C149 -> 145 | D61: =LOOKUP(C61,Names!$A$2:$A$161,Names!$B$2:$B$161) -> 0 | G61: =F105 -> 0 | H61: N | I61: 1 | J61: =Score!C153 -> 149 | K61: =LOOKUP(J61,Names!$A$2:$A$161,Names!$B$2:$B$161) -> 0 | N61: =F106 -> 0 | O61: N | P61: 1 | Q61: =Score!C157 -> 153 | R61: =LOOKUP(Q61,Names!$A$2:$A$161,Names!$B$2:$B$161) -> 0 | U61: =F107 -> 0 | V61: N | W61: 1 | X61: =Score!C161 -> 157 | Y61: =LOOKUP(X61,Names!$A$2:$A$161,Names!$B$2:$B$161) -> 0 | AB61: =F108 -> 0
A62: W | B62: 2 | C62: =Score!C150 -> 146 | D62: =LOOKUP(C62,Names!$A$2:$A$161,Names!$B$2:$B$161) -> 0 | G62: =M105 -> 0 | H62: W | I62: 2 | J62: =Score!C154 -> 150 | K62: =LOOKUP(J62,Names!$A$2:$A$161,Names!$B$2:$B$161) -> 0 | N62: =M106 -> 0 | O62: W | P62: 2 | Q62: =Score!C158 -> 154 | R62: =LOOKUP(Q62,Names!$A$2:$A$161,Names!$B$2:$B$161) -> 0 | U62: =M107 -> 0 | V62: W | W62: 2 | X62: =Score!C162 -> 158 | Y62: =LOOKUP(X62,Names!$A$2:$A$161,Names!$B$2:$B$161) -> 0 | AB62: =M108 -> 0
A63: S | B63: 3 | C63: =Score!C151 -> 147 | D63: =LOOKUP(C63,Names!$A$2:$A$161,Names!$B$2:$B$161) -> 0 | G63: =T105 -> 0 | H63: S | I63: 3 | J63: =Score!C155 -> 151 | K63: =LOOKUP(J63,Names!$A$2:$A$161,Names!$B$2:$B$161) -> 0 | N63: =T106 -> 0 | O63: S | P63: 3 | Q63: =Score!C159 -> 155 | R63: =LOOKUP(Q63,Names!$A$2:$A$161,Names!$B$2:$B$161) -> 0 | U63: =T107 -> 0 | V63: S | W63: 3 | X63: =Score!C163 -> 159 | Y63: =LOOKUP(X63,Names!$A$2:$A$161,Names!$B$2:$B$161) -> 0 | AB63: =T108 -> 0
A64: E | B64: 4 | C64: =Score!C152 -> 148 | D64: =LOOKUP(C64,Names!$A$2:$A$161,Names!$B$2:$B$161) -> 0 | G64: =AA105 -> 0 | H64: E | I64: 4 | J64: =Score!C156 -> 152 | K64: =LOOKUP(J64,Names!$A$2:$A$161,Names!$B$2:$B$161) -> 0 | N64: =AA106 -> 0 | O64: E | P64: 4 | Q64: =Score!C160 -> 156 | R64: =LOOKUP(Q64,Names!$A$2:$A$161,Names!$B$2:$B$161) -> 0 | U64: =AA107 -> 0 | V64: E | W64: 4 | X64: =Score!C164 -> 160 | Y64: =LOOKUP(X64,Names!$A$2:$A$161,Names!$B$2:$B$161) -> 0 | AB64: =AA108 -> 0
K66: Axe
D67: North | K67: West | R67: South | Y67: East
D68: Names | E68: Sc. | F68: Axe | K68: Names | L68: Sc. | M68: Axe | R68: Names | S68: Sc. | T68: Axe | Y68: Names | Z68: Sc. | AA68: Axe
A69: 1 | B69: 1 | C69: =$C$6 -> 1 | D69: =LOOKUP(C69,Names!$A$2:$A$161,Names!$B$2:$B$161) -> إبراهيم عرفان السقا | E69: =$E$6 -> 135 | F69: =Sheet1!L13 -> 8 | I69: 1 | J69: =$C$7 -> 17 | K69: =LOOKUP(J69,Names!$A$2:$A$161,Names!$B$2:$B$161) -> مينا ناجح صبحي | L69: =$E$7 -> 114 | M69: =Sheet1!L15 -> 6 | P69: 1 | Q69: =$C$8 -> 33 | R69: =LOOKUP(Q69,Names!$A$2:$A$161,Names!$B$2:$B$161) -> أحمد إبراهيم غانم | S69: =$E$8 -> 224 | T69: =Sheet1!L3 -> 19 | W69: 1 | X69: =$C$9 -> 14 | Y69: =LOOKUP(X69,Names!$A$2:$A$161,Names!$B$2:$B$161) -> أحمد محمد محمدي | Z69: =$E$9 -> 133 | AA69: =Sheet1!L11 -> 10
A70: 2 | B70: 2 | C70: =$J$6 -> 30 | D70: =LOOKUP(C70,Names!$A$2:$A$161,Names!$B$2:$B$161) -> محمد سعيد الفطاطري | E70: =$L$6 -> 176 | F70: =Sheet1!L7 -> 14 | I70: 2 | J70: =$J$7 -> 11 | K70: =LOOKUP(J70,Names!$A$2:$A$161,Names!$B$2:$B$161) -> هيثم العشماوي | L70: =$L$7 -> 100 | M70: =Sheet1!L19 -> 2 | P70: 2 | Q70: =$J$8 -> 27 | R70: =LOOKUP(Q70,Names!$A$2:$A$161,Names!$B$2:$B$161) -> أحمد سمير خلف على | S70: =$L$8 -> 191 | T70: =Sheet1!L6 -> 15 | W70: 2 | X70: =$J$9 -> 8 | Y70: =LOOKUP(X70,Names!$A$2:$A$161,Names!$B$2:$B$161) -> عبد الرحمن محمود عثمان | Z70: =$L$9 -> 95 | AA70: 2.5
A71: 3 | B71: 3 | C71: =$Q$6 -> 24 | D71: =LOOKUP(C71,Names!$A$2:$A$161,Names!$B$2:$B$161) -> يامن محمد حسن | E71: =$S$6 -> 96 | F71: =Sheet1!L19 -> 2 | I71: 3 | J71: =$Q$7 -> 5 | K71: =LOOKUP(J71,Names!$A$2:$A$161,Names!$B$2:$B$161) -> أحمد محمد أمين | L71: =$S$7 -> 98 | M71: =Sheet1!L20 -> 1 | P71: 3 | Q71: =$Q$8 -> 18 | R71: =LOOKUP(Q71,Names!$A$2:$A$161,Names!$B$2:$B$161) -> وليد شعبان إسماعيل علي | S71: =$S$8 -> 136 | T71: =Sheet1!L13 -> 8 | W71: 3 | X71: =$Q$9 -> 2 | Y71: =LOOKUP(X71,Names!$A$2:$A$161,Names!$B$2:$B$161) -> مصطفى محمد علي شرف | Z71: =$S$9 -> 144 | AA71: =Sheet1!L10 -> 11
A72: 4 | B72: 4 | C72: =$X$6 -> 21 | D72: =LOOKUP(C72,Names!$A$2:$A$161,Names!$B$2:$B$161) -> محمد طارق عبد الله | E72: =$Z$6 -> 187 | F72: 16.5 | I72: 4 | J72: =$X$7 -> 34 | K72: =LOOKUP(J72,Names!$A$2:$A$161,Names!$B$2:$B$161) -> شريف حلمي | L72: =$Z$7 -> 182 | M72: =Sheet1!L5 -> 16 | P72: 4 | Q72: =$X$8 -> 15 | R72: =LOOKUP(Q72,Names!$A$2:$A$161,Names!$B$2:$B$161) -> حسام الدين صلاح أبو الفتوح | S72: =$Z$8 -> 134 | T72: =Sheet1!L14 -> 7 | W72: 4 | X72: =$X$9 -> 31 | Y72: =LOOKUP(X72,Names!$A$2:$A$161,Names!$B$2:$B$161) -> أحمد بسيوني | Z72: =$Z$9 -> 104 | AA72: =Sheet1!L15 -> 6
A73: 5 | B73: 5 | C73: =$C$12 -> 12 | D73: =LOOKUP(C73,Names!$A$2:$A$161,Names!$B$2:$B$161) -> أحمد علي السيد شرع | E73: =$E$12 -> 167 | F73: =Sheet1!L9 -> 12 | I73: 5 | J73: =$C$13 -> 28 | K73: =LOOKUP(J73,Names!$A$2:$A$161,Names!$B$2:$B$161) -> محمد حسن عبد القادر | L73: =$E$13 -> 137 | M73: =Sheet1!L11 -> 10 | P73: 5 | Q73: =$C$14 -> 6 | R73: =LOOKUP(Q73,Names!$A$2:$A$161,Names!$B$2:$B$161) -> معتز محمد عبد المنعم | S73: =$E$14 -> 129 | T73: =Sheet1!L16 -> 5 | W73: 5 | X73: =$C$15 -> 22 | Y73: =LOOKUP(X73,Names!$A$2:$A$161,Names!$B$2:$B$161) -> يوسف مسعد فراج | Z73: =$E$15 -> 103 | AA73: =Sheet1!L16 -> 5
A74: 6 | B74: 6 | C74: =$J$12 -> 3 | D74: =LOOKUP(C74,Names!$A$2:$A$161,Names!$B$2:$B$161) -> أحمد محمد حمدي صالح | E74: =$L$12 -> 175 | F74: =Sheet1!L8 -> 13 | I74: 6 | J74: =$J$13 -> 19 | K74: =LOOKUP(J74,Names!$A$2:$A$161,Names!$B$2:$B$161) -> محمد أحمد محمد عبد الله | L74: =$L$13 -> 208 | M74: =Sheet1!L3 -> 19 | P74: 6 | Q74: =$J$14 -> 35 | R74: =LOOKUP(Q74,Names!$A$2:$A$161,Names!$B$2:$B$161) -> أحمد فؤاد حسنين | S74: =$L$14 -> 212 | T74: =Sheet1!L5 -> 16 | W74: 6 | X74: =$J$15 -> 16 | Y74: =LOOKUP(X74,Names!$A$2:$A$161,Names!$B$2:$B$161) -> طارق عبد الغني السحار | Z74: =$L$15 -> 100 | AA74: =Sheet1!L17 -> 4
A75: 7 | B75: 7 | C75: =$Q$12 -> 32 | D75: =LOOKUP(C75,Names!$A$2:$A$161,Names!$B$2:$B$161) -> أمير محمد خطاب | E75: =$S$12 -> 84 | F75: =Sheet1!L20 -> 1 | I75: 7 | J75: =$Q$13 -> 13 | K75: =LOOKUP(J75,Names!$A$2:$A$161,Names!$B$2:$B$161) -> عمرو سمير دسوقي | L75: =$S$13 -> 158 | M75: =Sheet1!L8 -> 13 | P75: 7 | Q75: =$Q$14 -> 10 | R75: =LOOKUP(Q75,Names!$A$2:$A$161,Names!$B$2:$B$161) -> تامر تيمور شكري | S75: =$S$14 -> 157 | T75: =Sheet1!L9 -> 12 | W75: 7 | X75: =$Q$15 -> 26 | Y75: =LOOKUP(X75,Names!$A$2:$A$161,Names!$B$2:$B$161) -> علاء شوقي جبريل | Z75: =$S$15 -> 150 | AA75: =Sheet1!L7 -> 14
A76: 8 | B76: 8 | C76: =$X$12 -> 7 | D76: =LOOKUP(C76,Names!$A$2:$A$161,Names!$B$2:$B$161) -> هيثم محمد شبانة | E76: =$Z$12 -> 114 | F76: =Sheet1!L16 -> 5 | I76: 8 | J76: =$X$13 -> 23 | K76: =LOOKUP(J76,Names!$A$2:$A$161,Names!$B$2:$B$161) -> جمال احمد محمد جمال | L76: =$Z$13 -> 122 | M76: =Sheet1!L14 -> 7 | P76: 8 | Q76: =$X$14 -> 4 | R76: =LOOKUP(Q76,Names!$A$2:$A$161,Names!$B$2:$B$161) -> أحمد جميل السيد | S76: =$Z$14 -> 137 | T76: =Sheet1!L12 -> 9 | W76: 8 | X76: =$X$15 -> 29 | Y76: =LOOKUP(X76,Names!$A$2:$A$161,Names!$B$2:$B$161) -> اسلام نصر الغنام | Z76: =$Z$15 -> 95 | AA76: 2.5
A77: 9 | B77: 9 | C77: =$C$18 -> 20 | D77: =LOOKUP(C77,Names!$A$2:$A$161,Names!$B$2:$B$161) -> عصام الدين محمد عبد العاطي | E77: =$E$18 -> 108 | F77: =Sheet1!L18 -> 3 | I77: 9 | J77: =$C$19 -> 9 | K77: =LOOKUP(J77,Names!$A$2:$A$161,Names!$B$2:$B$161) -> عمرو محمد مصطفى | L77: =$E$19 -> 127 | M77: =Sheet1!L13 -> 8 | P77: 9 | Q77: =$C$20 -> 25 | R77: =LOOKUP(Q77,Names!$A$2:$A$161,Names!$B$2:$B$161) -> خالد حمدي محمد السيد | S77: =$E$20 -> 119 | T77: =Sheet1!L18 -> 3 | W77: 9 | X77: =$C$21 -> 36 | Y77: =LOOKUP(X77,Names!$A$2:$A$161,Names!$B$2:$B$161) -> محمد محمود فضل | Z77: =$E$21 -> 183 | AA77: =Sheet1!L5 -> 16
A78: 10 | B78: 10 | C78: =$J$18 -> 37 | D78: =LOOKUP(C78,Names!$A$2:$A$161,Names!$B$2:$B$161) -> 0 | E78: =$L$18 -> 0 | F78: =Sheet1!L21 -> 0 | I78: 10 | J78: =$J$19 -> 38 | K78: =LOOKUP(J78,Names!$A$2:$A$161,Names!$B$2:$B$161) -> 0 | L78: =$L$19 -> 0 | M78: =Sheet1!L21 -> 0 | P78: 10 | Q78: =$J$20 -> 39 | R78: =LOOKUP(Q78,Names!$A$2:$A$161,Names!$B$2:$B$161) -> 0 | S78: =$L$20 -> 0 | T78: =Sheet1!L21 -> 0 | W78: 10 | X78: =$J$21 -> 40 | Y78: =LOOKUP(X78,Names!$A$2:$A$161,Names!$B$2:$B$161) -> 0 | Z78: =$L$21 -> 0 | AA78: =Sheet1!L21 -> 0
A79: 11 | B79: 11 | C79: =$Q$18 -> 41 | D79: =LOOKUP(C79,Names!$A$2:$A$161,Names!$B$2:$B$161) -> 0 | I79: 11 | J79: =$Q$19 -> 42 | K79: =LOOKUP(J79,Names!$A$2:$A$161,Names!$B$2:$B$161) -> 0 | P79: 11 | Q79: =$Q$20 -> 43 | R79: =LOOKUP(Q79,Names!$A$2:$A$161,Names!$B$2:$B$161) -> 0 | W79: 11 | X79: =$Q$21 -> 44 | Y79: =LOOKUP(X79,Names!$A$2:$A$161,Names!$B$2:$B$161) -> 0
A80: 12 | B80: 12 | C80: =$X$18 -> 45 | D80: =LOOKUP(C80,Names!$A$2:$A$161,Names!$B$2:$B$161) -> 0 | I80: 12 | J80: =$X$19 -> 46 | K80: =LOOKUP(J80,Names!$A$2:$A$161,Names!$B$2:$B$161) -> 0 | P80: 12 | Q80: =$X$20 -> 47 | R80: =LOOKUP(Q80,Names!$A$2:$A$161,Names!$B$2:$B$161) -> 0 | W80: 12 | X80: =$X$21 -> 48 | Y80: =LOOKUP(X80,Names!$A$2:$A$161,Names!$B$2:$B$161) -> 0
A81: 13 | B81: 13 | C81: =$C$24 -> 49 | D81: =LOOKUP(C81,Names!$A$2:$A$161,Names!$B$2:$B$161) -> 0 | I81: 13 | J81: =$C$25 -> 50 | K81: =LOOKUP(J81,Names!$A$2:$A$161,Names!$B$2:$B$161) -> 0 | P81: 13 | Q81: =$C$26 -> 51 | R81: =LOOKUP(Q81,Names!$A$2:$A$161,Names!$B$2:$B$161) -> 0 | W81: 13 | X81: =$C$27 -> 52 | Y81: =LOOKUP(X81,Names!$A$2:$A$161,Names!$B$2:$B$161) -> 0
A82: 14 | B82: 14 | C82: =$J$24 -> 53 | D82: =LOOKUP(C82,Names!$A$2:$A$161,Names!$B$2:$B$161) -> 0 | I82: 14 | J82: =$J$25 -> 54 | K82: =LOOKUP(J82,Names!$A$2:$A$161,Names!$B$2:$B$161) -> 0 | P82: 14 | Q82: =$J$26 -> 55 | R82: =LOOKUP(Q82,Names!$A$2:$A$161,Names!$B$2:$B$161) -> 0 | W82: 14 | X82: =$J$27 -> 56 | Y82: =LOOKUP(X82,Names!$A$2:$A$161,Names!$B$2:$B$161) -> 0
A83: 15 | B83: 15 | C83: =$Q$24 -> 57 | D83: =LOOKUP(C83,Names!$A$2:$A$161,Names!$B$2:$B$161) -> 0 | I83: 15 | J83: =$Q$25 -> 58 | K83: =LOOKUP(J83,Names!$A$2:$A$161,Names!$B$2:$B$161) -> 0 | P83: 15 | Q83: =$Q$26 -> 59 | R83: =LOOKUP(Q83,Names!$A$2:$A$161,Names!$B$2:$B$161) -> 0 | W83: 15 | X83: =$Q$27 -> 60 | Y83: =LOOKUP(X83,Names!$A$2:$A$161,Names!$B$2:$B$161) -> 0
A84: 16 | B84: 16 | C84: =$X$24 -> 61 | D84: =LOOKUP(C84,Names!$A$2:$A$161,Names!$B$2:$B$161) -> 0 | I84: 16 | J84: =$X$25 -> 62 | K84: =LOOKUP(J84,Names!$A$2:$A$161,Names!$B$2:$B$161) -> 0 | P84: 16 | Q84: =$X$26 -> 63 | R84: =LOOKUP(Q84,Names!$A$2:$A$161,Names!$B$2:$B$161) -> 0 | W84: 16 | X84: =$X$27 -> 64 | Y84: =LOOKUP(X84,Names!$A$2:$A$161,Names!$B$2:$B$161) -> 0
A85: 17 | B85: 17 | C85: =$C$30 -> 65 | D85: =LOOKUP(C85,Names!$A$2:$A$161,Names!$B$2:$B$161) -> 0 | I85: 17 | J85: =$C$31 -> 66 | K85: =LOOKUP(J85,Names!$A$2:$A$161,Names!$B$2:$B$161) -> 0 | P85: 17 | Q85: =$C$32 -> 67 | R85: =LOOKUP(Q85,Names!$A$2:$A$161,Names!$B$2:$B$161) -> 0 | W85: 17 | X85: =$C$33 -> 68 | Y85: =LOOKUP(X85,Names!$A$2:$A$161,Names!$B$2:$B$161) -> 0
A86: 18 | B86: 18 | C86: =$J$30 -> 69 | D86: =LOOKUP(C86,Names!$A$2:$A$161,Names!$B$2:$B$161) -> 0 | I86: 18 | J86: =$J$31 -> 70 | K86: =LOOKUP(J86,Names!$A$2:$A$161,Names!$B$2:$B$161) -> 0 | P86: 18 | Q86: =$J$32 -> 71 | R86: =LOOKUP(Q86,Names!$A$2:$A$161,Names!$B$2:$B$161) -> 0 | W86: 18 | X86: =$J$33 -> 72 | Y86: =LOOKUP(X86,Names!$A$2:$A$161,Names!$B$2:$B$161) -> 0
A87: 19 | B87: 19 | C87: =$Q$30 -> 73 | D87: =LOOKUP(C87,Names!$A$2:$A$161,Names!$B$2:$B$161) -> 0 | I87: 19 | J87: =$Q$31 -> 74 | K87: =LOOKUP(J87,Names!$A$2:$A$161,Names!$B$2:$B$161) -> 0 | P87: 19 | Q87: =$Q$32 -> 75 | R87: =LOOKUP(Q87,Names!$A$2:$A$161,Names!$B$2:$B$161) -> 0 | W87: 19 | X87: =$Q$33 -> 76 | Y87: =LOOKUP(X87,Names!$A$2:$A$161,Names!$B$2:$B$161) -> 0
A88: 20 | B88: 20 | C88: =$X$30 -> 77 | D88: =LOOKUP(C88,Names!$A$2:$A$161,Names!$B$2:$B$161) -> 0 | I88: 20 | J88: =$X$31 -> 78 | K88: =LOOKUP(J88,Names!$A$2:$A$161,Names!$B$2:$B$161) -> 0 | P88: 20 | Q88: =$X$32 -> 79 | R88: =LOOKUP(Q88,Names!$A$2:$A$161,Names!$B$2:$B$161) -> 0 | W88: 20 | X88: =$X$33 -> 80 | Y88: =LOOKUP(X88,Names!$A$2:$A$161,Names!$B$2:$B$161) -> 0
A89: 21 | B89: 21 | C89: =$C$37 -> 81 | D89: =LOOKUP(C89,Names!$A$2:$A$161,Names!$B$2:$B$161) -> راجي محمد صبحي | E89: =$E$37 -> 185 | F89: =Sheet1!L6 -> 15 | I89: 21 | J89: =$C$38 -> 82 | K89: =LOOKUP(J89,Names!$A$2:$A$161,Names!$B$2:$B$161) -> أحمد صلاح الدين دياب | L89: =$E$38 -> 171 | M89: 14.5 | P89: 21 | Q89: =$C$39 -> 83 | R89: =LOOKUP(Q89,Names!$A$2:$A$161,Names!$B$2:$B$161) -> أسامة لطفى نجيب | S89: =$E$39 -> 187 | T89: =Sheet1!L7 -> 14 | W89: 21 | X89: =$C$40 -> 84 | Y89: =LOOKUP(X89,Names!$A$2:$A$161,Names!$B$2:$B$161) -> أحمد عز العرب السماحي | Z89: =$E$40 -> 162 | AA89: =Sheet1!L6 -> 15
A90: 22 | B90: 22 | C90: =$J$37 -> 85 | D90: =LOOKUP(C90,Names!$A$2:$A$161,Names!$B$2:$B$161) -> محمد عبد الهادي أبو القاسم | E90: =$L$37 -> 164 | F90: =Sheet1!L10 -> 11 | I90: 22 | J90: =$J$38 -> 86 | K90: =LOOKUP(J90,Names!$A$2:$A$161,Names!$B$2:$B$161) -> ايهاب يوسف عمارة | L90: =$L$38 -> 131 | M90: =Sheet1!L12 -> 9 | P90: 22 | Q90: =$J$39 -> 87 | R90: =LOOKUP(Q90,Names!$A$2:$A$161,Names!$B$2:$B$161) -> ياسر شاهين | S90: =$L$39 -> 216 | T90: =Sheet1!L4 -> 17 | W90: 22 | X90: =$J$40 -> 88 | Y90: =LOOKUP(X90,Names!$A$2:$A$161,Names!$B$2:$B$161) -> أحمد علي خليل حسن | Z90: =$L$40 -> 118 | AA90: =Sheet1!L13 -> 8
A91: 23 | B91: 23 | C91: =$Q$37 -> 89 | D91: =LOOKUP(C91,Names!$A$2:$A$161,Names!$B$2:$B$161) -> محمد بلبع | E91: =$S$37 -> 129 | F91: =Sheet1!L15 -> 6 | I91: 23 | J91: =$Q$38 -> 90 | K91: =LOOKUP(J91,Names!$A$2:$A$161,Names!$B$2:$B$161) -> محمد علي حسن طه الأمام | L91: =$S$38 -> 149 | M91: =Sheet1!L9 -> 12 | P91: 23 | Q91: =$Q$39 -> 91 | R91: =LOOKUP(Q91,Names!$A$2:$A$161,Names!$B$2:$B$161) -> عماد محمد فؤاد مرسي | S91: =$S$39 -> 133 | T91: =Sheet1!L15 -> 6 | W91: 23 | X91: =$Q$40 -> 92 | Y91: =LOOKUP(X91,Names!$A$2:$A$161,Names!$B$2:$B$161) -> أحمد مصطفى راشد | Z91: =$S$40 -> 67 | AA91: =Sheet1!L20 -> 1
A92: 24 | B92: 24 | C92: =$X$37 -> 93 | D92: =LOOKUP(C92,Names!$A$2:$A$161,Names!$B$2:$B$161) -> جمال السيد توفيق | E92: =$Z$37 -> 109 | F92: =Sheet1!L17 -> 4 | I92: 24 | J92: =$X$38 -> 94 | K92: =LOOKUP(J92,Names!$A$2:$A$161,Names!$B$2:$B$161) -> محمد عصام الدين القاضي | L92: =$Z$38 -> 196 | M92: =Sheet1!L4 -> 17 | P92: 24 | Q92: =$X$39 -> 95 | R92: =LOOKUP(Q92,Names!$A$2:$A$161,Names!$B$2:$B$161) -> احمد طنطاوى | S92: =$Z$39 -> 174 | T92: =Sheet1!L8 -> 13 | W92: 24 | X92: =$X$40 -> 96 | Y92: =LOOKUP(X92,Names!$A$2:$A$161,Names!$B$2:$B$161) -> أحمد رمزي الديب | Z92: =$Z$40 -> 189 | AA92: =Sheet1!L4 -> 17
A93: 25 | B93: 25 | C93: =$C$43 -> 97 | D93: =LOOKUP(C93,Names!$A$2:$A$161,Names!$B$2:$B$161) -> خالد محمد شبارة | E93: =$E$43 -> 200 | F93: =Sheet1!L3 -> 19 | I93: 25 | J93: =$C$44 -> 98 | K93: =LOOKUP(J93,Names!$A$2:$A$161,Names!$B$2:$B$161) -> محمد محمود شعبان رمضان | L93: =$E$44 -> 110 | M93: =Sheet1!L17 -> 4 | P93: 25 | Q93: =$C$45 -> 99 | R93: =LOOKUP(Q93,Names!$A$2:$A$161,Names!$B$2:$B$161) -> ماجد محمد فكري | S93: =$E$45 -> 121 | T93: =Sheet1!L17 -> 4 | W93: 25 | X93: =$C$46 -> 100 | Y93: =LOOKUP(X93,Names!$A$2:$A$161,Names!$B$2:$B$161) -> عبد الرحمن الدمراوى | Z93: =$E$46 -> 106 | AA93: =Sheet1!L14 -> 7
A94: 26 | B94: 26 | C94: =$J$43 -> 101 | D94: =LOOKUP(C94,Names!$A$2:$A$161,Names!$B$2:$B$161) -> أحمد محمد شوقى عبد الحميد | E94: =$L$43 -> 130 | F94: =Sheet1!L14 -> 7 | I94: 26 | J94: =$J$44 -> 102 | K94: =LOOKUP(J94,Names!$A$2:$A$161,Names!$B$2:$B$161) -> سامي محمود الفولي | L94: =$L$44 -> 113 | M94: =Sheet1!L16 -> 5 | P94: 26 | Q94: =$J$45 -> 103 | R94: =LOOKUP(Q94,Names!$A$2:$A$161,Names!$B$2:$B$161) -> عمرو عماد الدين أبو العلا | S94: =$L$45 -> 155 | T94: =Sheet1!L10 -> 11 | W94: 26 | X94: =$J$46 -> 104 | Y94: =LOOKUP(X94,Names!$A$2:$A$161,Names!$B$2:$B$161) -> كريم إيهاب عامر | Z94: =$L$46 -> 200 | AA94: =Sheet1!L3 -> 19
A95: 27 | B95: 27 | C95: =$Q$43 -> 105 | D95: =LOOKUP(C95,Names!$A$2:$A$161,Names!$B$2:$B$161) -> مصطفى عبد الحفيظ علي | E95: =$S$43 -> 144 | F95: =Sheet1!L12 -> 9 | I95: 27 | J95: =$Q$44 -> 106 | K95: =LOOKUP(J95,Names!$A$2:$A$161,Names!$B$2:$B$161) -> أحمد عبد العزيز العطار | L95: =$S$44 -> 171 | M95: 14.5 | P95: 27 | Q95: =$Q$45 -> 107 | R95: =LOOKUP(Q95,Names!$A$2:$A$161,Names!$B$2:$B$161) -> شادي أحمد محمود وهبة | S95: =$S$45 -> 118 | T95: =Sheet1!L19 -> 2 | W95: 27 | X95: =$Q$46 -> 108 | Y95: =LOOKUP(X95,Names!$A$2:$A$161,Names!$B$2:$B$161) -> كريم احمد ناصر | Z95: =$S$46 -> 146 | AA95: 12.5
A96: 28 | B96: 28 | C96: =$X$43 -> 109 | D96: =LOOKUP(C96,Names!$A$2:$A$161,Names!$B$2:$B$161) -> نبيل خلف زكي | E96: =$Z$43 -> 162 | F96: =Sheet1!L11 -> 10 | I96: 28 | J96: =$X$44 -> 110 | K96: =LOOKUP(J96,Names!$A$2:$A$161,Names!$B$2:$B$161) -> أسامة أحمد زكي | L96: =$Z$44 -> 101 | M96: =Sheet1!L18 -> 3 | P96: 28 | Q96: =$X$45 -> 111 | R96: =LOOKUP(Q96,Names!$A$2:$A$161,Names!$B$2:$B$161) -> عادل محمد أبو زيد | S96: =$Z$45 -> 148 | T96: =Sheet1!L11 -> 10 | W96: 28 | X96: =$X$46 -> 112 | Y96: =LOOKUP(X96,Names!$A$2:$A$161,Names!$B$2:$B$161) -> عمرو محمد محسن | Z96: =$Z$46 -> 146 | AA96: 12.5
A97: 29 | B97: 29 | C97: =$C$49 -> 113 | D97: =LOOKUP(C97,Names!$A$2:$A$161,Names!$B$2:$B$161) -> محمد حسن فهيم | E97: =$E$49 -> 187 | F97: 16.5 | I97: 29 | J97: =$C$50 -> 114 | K97: =LOOKUP(J97,Names!$A$2:$A$161,Names!$B$2:$B$161) -> احمد سردينة | L97: =$E$50 -> 140 | M97: =Sheet1!L10 -> 11 | P97: 29 | Q97: =$C$51 -> 115 | R97: =LOOKUP(Q97,Names!$A$2:$A$161,Names!$B$2:$B$161) -> خالد عبد العظيم | S97: =$E$51 -> 75 | T97: =Sheet1!L20 -> 1 | W97: 29 | X97: =$C$52 -> 116 | Y97: =LOOKUP(X97,Names!$A$2:$A$161,Names!$B$2:$B$161) -> اسامة قاسم | Z97: =$E$52 -> 124 | AA97: =Sheet1!L12 -> 9
A98: 30 | B98: 30 | C98: =$J$49 -> 117 | D98: =LOOKUP(C98,Names!$A$2:$A$161,Names!$B$2:$B$161) -> 0 | I98: 30 | J98: =$J$50 -> 118 | K98: =LOOKUP(J98,Names!$A$2:$A$161,Names!$B$2:$B$161) -> 0 | P98: 30 | Q98: =$J$51 -> 119 | R98: =LOOKUP(Q98,Names!$A$2:$A$161,Names!$B$2:$B$161) -> 0 | W98: 30 | X98: =$J$52 -> 120 | Y98: =LOOKUP(X98,Names!$A$2:$A$161,Names!$B$2:$B$161) -> 0
A99: 31 | B99: 31 | C99: =$Q$49 -> 121 | D99: =LOOKUP(C99,Names!$A$2:$A$161,Names!$B$2:$B$161) -> 0 | I99: 31 | J99: =$Q$50 -> 122 | K99: =LOOKUP(J99,Names!$A$2:$A$161,Names!$B$2:$B$161) -> 0 | P99: 31 | Q99: =$Q$51 -> 123 | R99: =LOOKUP(Q99,Names!$A$2:$A$161,Names!$B$2:$B$161) -> 0 | W99: 31 | X99: =$Q$52 -> 124 | Y99: =LOOKUP(X99,Names!$A$2:$A$161,Names!$B$2:$B$161) -> 0
A100: 32 | B100: 32 | C100: =$X$49 -> 125 | D100: =LOOKUP(C100,Names!$A$2:$A$161,Names!$B$2:$B$161) -> 0 | I100: 32 | J100: =$X$50 -> 126 | K100: =LOOKUP(J100,Names!$A$2:$A$161,Names!$B$2:$B$161) -> 0 | P100: 32 | Q100: =$X$51 -> 127 | R100: =LOOKUP(Q100,Names!$A$2:$A$161,Names!$B$2:$B$161) -> 0 | W100: 32 | X100: =$X$52 -> 128 | Y100: =LOOKUP(X100,Names!$A$2:$A$161,Names!$B$2:$B$161) -> 0
A101: 33 | B101: 33 | C101: =$C$55 -> 129 | D101: =LOOKUP(C101,Names!$A$2:$A$161,Names!$B$2:$B$161) -> 0 | I101: 33 | J101: =$C$56 -> 130 | K101: =LOOKUP(J101,Names!$A$2:$A$161,Names!$B$2:$B$161) -> 0 | P101: 33 | Q101: =$C$57 -> 131 | R101: =LOOKUP(Q101,Names!$A$2:$A$161,Names!$B$2:$B$161) -> 0 | W101: 33 | X101: =$C$58 -> 132 | Y101: =LOOKUP(X101,Names!$A$2:$A$161,Names!$B$2:$B$161) -> 0
A102: 34 | B102: 34 | C102: =$J$55 -> 133 | D102: =LOOKUP(C102,Names!$A$2:$A$161,Names!$B$2:$B$161) -> 0 | I102: 34 | J102: =$J$56 -> 134 | K102: =LOOKUP(J102,Names!$A$2:$A$161,Names!$B$2:$B$161) -> 0 | P102: 34 | Q102: =$J$57 -> 135 | R102: =LOOKUP(Q102,Names!$A$2:$A$161,Names!$B$2:$B$161) -> 0 | W102: 34 | X102: =$J$58 -> 136 | Y102: =LOOKUP(X102,Names!$A$2:$A$161,Names!$B$2:$B$161) -> 0
A103: 35 | B103: 35 | C103: =$Q$55 -> 137 | D103: =LOOKUP(C103,Names!$A$2:$A$161,Names!$B$2:$B$161) -> 0 | I103: 35 | J103: =$Q$56 -> 138 | K103: =LOOKUP(J103,Names!$A$2:$A$161,Names!$B$2:$B$161) -> 0 | P103: 35 | Q103: =$Q$57 -> 139 | R103: =LOOKUP(Q103,Names!$A$2:$A$161,Names!$B$2:$B$161) -> 0 | W103: 35 | X103: =$Q$58 -> 140 | Y103: =LOOKUP(X103,Names!$A$2:$A$161,Names!$B$2:$B$161) -> 0
A104: 36 | B104: 36 | C104: =$X$55 -> 141 | D104: =LOOKUP(C104,Names!$A$2:$A$161,Names!$B$2:$B$161) -> 0 | I104: 36 | J104: =$X$56 -> 142 | K104: =LOOKUP(J104,Names!$A$2:$A$161,Names!$B$2:$B$161) -> 0 | P104: 36 | Q104: =$X$57 -> 143 | R104: =LOOKUP(Q104,Names!$A$2:$A$161,Names!$B$2:$B$161) -> 0 | W104: 36 | X104: =$X$58 -> 144 | Y104: =LOOKUP(X104,Names!$A$2:$A$161,Names!$B$2:$B$161) -> 0
A105: 37 | B105: 37 | C105: =$C$61 -> 145 | D105: =LOOKUP(C105,Names!$A$2:$A$161,Names!$B$2:$B$161) -> 0 | I105: 37 | J105: =$C$62 -> 146 | K105: =LOOKUP(J105,Names!$A$2:$A$161,Names!$B$2:$B$161) -> 0 | P105: 37 | Q105: =$C$63 -> 147 | R105: =LOOKUP(Q105,Names!$A$2:$A$161,Names!$B$2:$B$161) -> 0 | W105: 37 | X105: =$C$64 -> 148 | Y105: =LOOKUP(X105,Names!$A$2:$A$161,Names!$B$2:$B$161) -> 0
A106: 38 | B106: 38 | C106: =$J$61 -> 149 | D106: =LOOKUP(C106,Names!$A$2:$A$161,Names!$B$2:$B$161) -> 0 | I106: 38 | J106: =$J$62 -> 150 | K106: =LOOKUP(J106,Names!$A$2:$A$161,Names!$B$2:$B$161) -> 0 | P106: 38 | Q106: =$J$63 -> 151 | R106: =LOOKUP(Q106,Names!$A$2:$A$161,Names!$B$2:$B$161) -> 0 | W106: 38 | X106: =$J$64 -> 152 | Y106: =LOOKUP(X106,Names!$A$2:$A$161,Names!$B$2:$B$161) -> 0
A107: 39 | B107: 39 | C107: =$Q$61 -> 153 | D107: =LOOKUP(C107,Names!$A$2:$A$161,Names!$B$2:$B$161) -> 0 | I107: 39 | J107: =$Q$62 -> 154 | K107: =LOOKUP(J107,Names!$A$2:$A$161,Names!$B$2:$B$161) -> 0 | P107: 39 | Q107: =$Q$63 -> 155 | R107: =LOOKUP(Q107,Names!$A$2:$A$161,Names!$B$2:$B$161) -> 0 | W107: 39 | X107: =$Q$64 -> 156 | Y107: =LOOKUP(X107,Names!$A$2:$A$161,Names!$B$2:$B$161) -> 0
A108: 40 | B108: 40 | C108: =$X$61 -> 157 | D108: =LOOKUP(C108,Names!$A$2:$A$161,Names!$B$2:$B$161) -> 0 | I108: 40 | J108: =$X$62 -> 158 | K108: =LOOKUP(J108,Names!$A$2:$A$161,Names!$B$2:$B$161) -> 0 | P108: 40 | Q108: =$X$63 -> 159 | R108: =LOOKUP(Q108,Names!$A$2:$A$161,Names!$B$2:$B$161) -> 0 | W108: 40 | X108: =$X$64 -> 160 | Y108: =LOOKUP(X108,Names!$A$2:$A$161,Names!$B$2:$B$161) -> 0

Sheet R2
L1: Round ( 2 ) | Y1: =Score!Q1 -> بطولة الاتحاد الثامنة للفردي المفتوح
L3: Tab.
D4: 1 | K4: 2 | R4: 3 | Y4: 4
D5: Names | E5: Sc. | F5: Tab | K5: Names | L5: Sc. | M5: Tab | R5: Names | S5: Sc. | T5: Tab | Y5: Names | Z5: Sc. | AA5: Tab
A6: N | B6: 1 | C6: =Score!I5 -> 1 | D6: =LOOKUP(C6,Names!$A$2:$A$161,Names!$B$2:$B$161) -> إبراهيم عرفان السقا | E6: 165 | F6: =Sheet1!$M$4 -> 4.75 | G6: =F69 -> 10.5 | H6: N | I6: 1 | J6: =Score!I9 -> 17 | K6: =LOOKUP(J6,Names!$A$2:$A$161,Names!$B$2:$B$161) -> مينا ناجح صبحي | L6: 228 | M6: =Sheet1!$M$4 -> 4.75 | N6: =F70 -> 16 | O6: N | P6: 1 | Q6: =Score!I13 -> 33 | R6: =LOOKUP(Q6,Names!$A$2:$A$161,Names!$B$2:$B$161) -> أحمد إبراهيم غانم | S6: 165 | T6: =Sheet1!$M$5 -> 2.85 | U6: =F71 -> 10.5 | V6: N | W6: 1 | X6: =Score!I17 -> 14 | Y6: =LOOKUP(X6,Names!$A$2:$A$161,Names!$B$2:$B$161) -> أحمد محمد محمدي | Z6: 146 | AA6: =Sheet1!$M$6 -> 1.9 | AB6: =F72 -> 6.5
A7: W | B7: 2 | C7: =Score!I6 -> 5 | D7: =LOOKUP(C7,Names!$A$2:$A$161,Names!$B$2:$B$161) -> أحمد محمد أمين | E7: 154 | F7: =Sheet1!$M$5 -> 2.85 | G7: =M69 -> 13 | H7: W | I7: 2 | J7: =Score!I10 -> 21 | K7: =LOOKUP(J7,Names!$A$2:$A$161,Names!$B$2:$B$161) -> محمد طارق عبد الله | L7: 102 | M7: =Sheet1!$M$6 -> 1.9 | N7: =M70 -> 1 | O7: W | P7: 2 | Q7: =Score!I14 -> 2 | R7: =LOOKUP(Q7,Names!$A$2:$A$161,Names!$B$2:$B$161) -> مصطفى محمد علي شرف | S7: 190 | T7: =Sheet1!$M$4 -> 4.75 | U7: =M71 -> 15 | V7: W | W7: 2 | X7: =Score!I18 -> 18 | Y7: =LOOKUP(X7,Names!$A$2:$A$161,Names!$B$2:$B$161) -> وليد شعبان إسماعيل علي | Z7: 148 | AA7: =Sheet1!$M$5 -> 2.85 | AB7: =M72 -> 10
A8: S | B8: 3 | C8: =Score!I7 -> 9 | D8: =LOOKUP(C8,Names!$A$2:$A$161,Names!$B$2:$B$161) -> عمرو محمد مصطفى | E8: 68 | F8: =Sheet1!$M$7 -> 0 | G8: =T69 -> 3 | H8: S | I8: 3 | J8: =Score!I11 -> 25 | K8: =LOOKUP(J8,Names!$A$2:$A$161,Names!$B$2:$B$161) -> خالد حمدي محمد السيد | L8: 127 | M8: =Sheet1!$M$5 -> 2.85 | N8: =T70 -> 9 | O8: S | P8: 3 | Q8: =Score!I15 -> 6 | R8: =LOOKUP(Q8,Names!$A$2:$A$161,Names!$B$2:$B$161) -> معتز محمد عبد المنعم | S8: 60 | T8: =Sheet1!$M$7 -> 0 | U8: =T71 -> 2 | V8: S | W8: 3 | X8: =Score!I19 -> 22 | Y8: =LOOKUP(X8,Names!$A$2:$A$161,Names!$B$2:$B$161) -> يوسف مسعد فراج | Z8: 184 | AA8: =Sheet1!$M$4 -> 4.75 | AB8: =T72 -> 16
A9: E | B9: 4 | C9: =Score!I8 -> 13 | D9: =LOOKUP(C9,Names!$A$2:$A$161,Names!$B$2:$B$161) -> عمرو سمير دسوقي | E9: 143 | F9: =Sheet1!$M$6 -> 1.9 | G9: =AA69 -> 10 | H9: E | I9: 4 | J9: =Score!I12 -> 29 | K9: =LOOKUP(J9,Names!$A$2:$A$161,Names!$B$2:$B$161) -> اسلام نصر الغنام | L9: 29 | M9: =Sheet1!$M$7 -> 0 | N9: =AA70 -> 1 | O9: E | P9: 4 | Q9: =Score!I16 -> 10 | R9: =LOOKUP(Q9,Names!$A$2:$A$161,Names!$B$2:$B$161) -> تامر تيمور شكري | S9: 159 | T9: =Sheet1!$M$6 -> 1.9 | U9: =AA71 -> 11 | V9: E | W9: 4 | X9: =Score!I20 -> 26 | Y9: =LOOKUP(X9,Names!$A$2:$A$161,Names!$B$2:$B$161) -> علاء شوقي جبريل | Z9: 105 | AA9: =Sheet1!$M$7 -> 0 | AB9: =AA72 -> 5
D10: 5 | K10: 6 | R10: 7 | Y10: 8
D11: Names | E11: Sc. | F11: Tab | K11: Names | L11: Sc. | M11: Tab | R11: Names | S11: Sc. | T11: Tab | Y11: Names | Z11: Sc. | AA11: Tab
A12: N | B12: 1 | C12: =Score!I21 -> 30 | D12: =LOOKUP(C12,Names!$A$2:$A$161,Names!$B$2:$B$161) -> محمد سعيد الفطاطري | E12: 146 | F12: =Sheet1!$M$5 -> 2.85 | G12: =F73 -> 6.5 | H12: N | I12: 1 | J12: =Score!I25 -> 11 | K12: =LOOKUP(J12,Names!$A$2:$A$161,Names!$B$2:$B$161) -> هيثم العشماوي | L12: 140 | M12: =Sheet1!$M$5 -> 2.85 | N12: =F74 -> 4 | O12: N | P12: 1 | Q12: =Score!I29 -> 27 | R12: =LOOKUP(Q12,Names!$A$2:$A$161,Names!$B$2:$B$161) -> أحمد سمير خلف على | S12: 233 | T12: =Sheet1!$M$4 -> 4.75 | U12: =F75 -> 17 | V12: N | W12: 1 | X12: =Score!I33 -> 8 | Y12: =LOOKUP(X12,Names!$A$2:$A$161,Names!$B$2:$B$161) -> عبد الرحمن محمود عثمان | Z12: 94 | AA12: =Sheet1!$M$7 -> 0 | AB12: =F76 -> 1
A13: W | B13: 2 | C13: =Score!I22 -> 34 | D13: =LOOKUP(C13,Names!$A$2:$A$161,Names!$B$2:$B$161) -> شريف حلمي | E13: 153 | F13: =Sheet1!$M$4 -> 4.75 | G13: =M73 -> 12 | H13: W | I13: 2 | J13: =Score!I26 -> 15 | K13: =LOOKUP(J13,Names!$A$2:$A$161,Names!$B$2:$B$161) -> حسام الدين صلاح أبو الفتوح | L13: 114 | M13: =Sheet1!$M$7 -> 0 | N13: =M74 -> 3 | O13: W | P13: 2 | Q13: =Score!I30 -> 31 | R13: =LOOKUP(Q13,Names!$A$2:$A$161,Names!$B$2:$B$161) -> أحمد بسيوني | S13: 121 | T13: =Sheet1!$M$6 -> 1.9 | U13: =M75 -> 5 | V13: W | W13: 2 | X13: =Score!I34 -> 12 | Y13: =LOOKUP(X13,Names!$A$2:$A$161,Names!$B$2:$B$161) -> أحمد علي السيد شرع | Z13: 149 | AA13: =Sheet1!$M$4 -> 4.75 | AB13: =M76 -> 11
A14: S | B14: 3 | C14: =Score!I23 -> 3 | D14: =LOOKUP(C14,Names!$A$2:$A$161,Names!$B$2:$B$161) -> أحمد محمد حمدي صالح | E14: 112 | F14: =Sheet1!$M$7 -> 0 | G14: =T73 -> 8 | H14: S | I14: 3 | J14: =Score!I27 -> 19 | K14: =LOOKUP(J14,Names!$A$2:$A$161,Names!$B$2:$B$161) -> محمد أحمد محمد عبد الله | L14: 203 | M14: =Sheet1!$M$4 -> 4.75 | N14: =T74 -> 19 | O14: S | P14: 3 | Q14: =Score!I31 -> 35 | R14: =LOOKUP(Q14,Names!$A$2:$A$161,Names!$B$2:$B$161) -> أحمد فؤاد حسنين | S14: 43 | T14: =Sheet1!$M$7 -> 0 | U14: =T75 -> 1 | V14: S | W14: 3 | X14: =Score!I35 -> 16 | Y14: =LOOKUP(X14,Names!$A$2:$A$161,Names!$B$2:$B$161) -> طارق عبد الغني السحار | Z14: 99 | AA14: =Sheet1!$M$6 -> 1.9 | AB14: =T76 -> 6
A15: E | B15: 4 | C15: =Score!I24 -> 7 | D15: =LOOKUP(C15,Names!$A$2:$A$161,Names!$B$2:$B$161) -> هيثم محمد شبانة | E15: 120 | F15: =Sheet1!$M$6 -> 1.9 | G15: =AA73 -> 7 | H15: E | I15: 4 | J15: =Score!I28 -> 23 | K15: =LOOKUP(J15,Names!$A$2:$A$161,Names!$B$2:$B$161) -> جمال احمد محمد جمال | L15: 134 | M15: =Sheet1!$M$6 -> 1.9 | N15: =AA74 -> 9 | O15: E | P15: 4 | Q15: =Score!I32 -> 4 | R15: =LOOKUP(Q15,Names!$A$2:$A$161,Names!$B$2:$B$161) -> أحمد جميل السيد | S15: 163 | T15: =Sheet1!$M$5 -> 2.85 | U15: =AA75 -> 13 | V15: E | W15: 4 | X15: =Score!I36 -> 20 | Y15: =LOOKUP(X15,Names!$A$2:$A$161,Names!$B$2:$B$161) -> عصام الدين محمد عبد العاطي | Z15: 127 | AA15: =Sheet1!$M$5 -> 2.85 | AB15: =AA76 -> 8
D16: 9 | K16: 10 | R16: 11 | Y16: 12
D17: Names | E17: Sc. | F17: Tab | K17: Names | L17: Sc. | M17: Tab | R17: Names | S17: Sc. | T17: Tab | Y17: Names | Z17: Sc. | AA17: Tab
A18: N | B18: 1 | C18: =Score!I37 -> 24 | D18: =LOOKUP(C18,Names!$A$2:$A$161,Names!$B$2:$B$161) -> يامن محمد حسن | E18: 160 | F18: =Sheet1!$M$5 -> 2.85 | G18: =F77 -> 8 | H18: N | I18: 1 | J18: =Score!I41 -> 0 | K18: =LOOKUP(J18,Names!$A$2:$A$161,Names!$B$2:$B$161) ->  | N18: =F78 -> 0 | O18: N | P18: 1 | Q18: =Score!I45 -> 0 | R18: =LOOKUP(Q18,Names!$A$2:$A$161,Names!$B$2:$B$161) ->  | U18: =F79 -> 0 | V18: N | W18: 1 | X18: =Score!I49 -> 0 | Y18: =LOOKUP(X18,Names!$A$2:$A$161,Names!$B$2:$B$161) ->  | AB18: =F80 -> 0
A19: W | B19: 2 | C19: =Score!I38 -> 28 | D19: =LOOKUP(C19,Names!$A$2:$A$161,Names!$B$2:$B$161) -> محمد حسن عبد القادر | E19: 237 | F19: =Sheet1!$M$4 -> 4.75 | G19: =M77 -> 19 | H19: W | I19: 2 | J19: =Score!I42 -> 0 | K19: =LOOKUP(J19,Names!$A$2:$A$161,Names!$B$2:$B$161) ->  | N19: =M78 -> 0 | O19: W | P19: 2 | Q19: =Score!I46 -> 0 | R19: =LOOKUP(Q19,Names!$A$2:$A$161,Names!$B$2:$B$161) ->  | U19: =M79 -> 0 | V19: W | W19: 2 | X19: =Score!I50 -> 0 | Y19: =LOOKUP(X19,Names!$A$2:$A$161,Names!$B$2:$B$161) ->  | AB19: =M80 -> 0
A20: S | B20: 3 | C20: =Score!I39 -> 32 | D20: =LOOKUP(C20,Names!$A$2:$A$161,Names!$B$2:$B$161) -> أمير محمد خطاب | E20: 131 | F20: =Sheet1!$M$6 -> 1.9 | G20: =T77 -> 13 | H20: S | I20: 3 | J20: =Score!I43 -> 0 | K20: =LOOKUP(J20,Names!$A$2:$A$161,Names!$B$2:$B$161) ->  | N20: =T78 -> 0 | O20: S | P20: 3 | Q20: =Score!I47 -> 0 | R20: =LOOKUP(Q20,Names!$A$2:$A$161,Names!$B$2:$B$161) ->  | U20: =T79 -> 0 | V20: S | W20: 3 | X20: =Score!I51 -> 0 | Y20: =LOOKUP(X20,Names!$A$2:$A$161,Names!$B$2:$B$161) ->  | AB20: =T80 -> 0
A21: E | B21: 4 | C21: =Score!I40 -> 36 | D21: =LOOKUP(C21,Names!$A$2:$A$161,Names!$B$2:$B$161) -> محمد محمود فضل | E21: 84 | F21: =Sheet1!$M$7 -> 0 | G21: =AA77 -> 3 | H21: E | I21: 4 | J21: =Score!I44 -> 0 | K21: =LOOKUP(J21,Names!$A$2:$A$161,Names!$B$2:$B$161) ->  | N21: =AA78 -> 0 | O21: E | P21: 4 | Q21: =Score!I48 -> 0 | R21: =LOOKUP(Q21,Names!$A$2:$A$161,Names!$B$2:$B$161) ->  | U21: =AA79 -> 0 | V21: E | W21: 4 | X21: =Score!I52 -> 0 | Y21: =LOOKUP(X21,Names!$A$2:$A$161,Names!$B$2:$B$161) ->  | AB21: =AA80 -> 0
D22: 13 | K22: 14 | R22: 15 | Y22: 16
D23: Names | E23: Sc. | F23: Tab | K23: Names | L23: Sc. | M23: Tab | R23: Names | S23: Sc. | T23: Tab | Y23: Names | Z23: Sc. | AA23: Tab
A24: N | B24: 1 | C24: =Score!I53 -> 0 | D24: =LOOKUP(C24,Names!$A$2:$A$161,Names!$B$2:$B$161) ->  | E24: 0 | F24: =Sheet1!$M$4 -> 4.75 | G24: =F81 -> 0 | H24: N | I24: 1 | J24: =Score!I57 -> 0 | K24: =LOOKUP(J24,Names!$A$2:$A$161,Names!$B$2:$B$161) ->  | L24: 0 | M24: =Sheet1!$M$4 -> 4.75 | N24: =F82 -> 0 | O24: N | P24: 1 | Q24: =Score!I61 -> 0 | R24: =LOOKUP(Q24,Names!$A$2:$A$161,Names!$B$2:$B$161) ->  | S24: 0 | T24: =Sheet1!$M$4 -> 4.75 | U24: =F83 -> 0 | V24: N | W24: 1 | X24: =Score!I65 -> 0 | Y24: =LOOKUP(X24,Names!$A$2:$A$161,Names!$B$2:$B$161) ->  | Z24: 0 | AA24: =Sheet1!$M$4 -> 4.75 | AB24: =F84 -> 0
A25: W | B25: 2 | C25: =Score!I54 -> 0 | D25: =LOOKUP(C25,Names!$A$2:$A$161,Names!$B$2:$B$161) ->  | E25: 0 | F25: =Sheet1!$M$5 -> 2.85 | G25: =M81 -> 0 | H25: W | I25: 2 | J25: =Score!I58 -> 0 | K25: =LOOKUP(J25,Names!$A$2:$A$161,Names!$B$2:$B$161) ->  | L25: 0 | M25: =Sheet1!$M$5 -> 2.85 | N25: =M82 -> 0 | O25: W | P25: 2 | Q25: =Score!I62 -> 0 | R25: =LOOKUP(Q25,Names!$A$2:$A$161,Names!$B$2:$B$161) ->  | S25: 0 | T25: =Sheet1!$M$5 -> 2.85 | U25: =M83 -> 0 | V25: W | W25: 2 | X25: =Score!I66 -> 0 | Y25: =LOOKUP(X25,Names!$A$2:$A$161,Names!$B$2:$B$161) ->  | Z25: 0 | AA25: =Sheet1!$M$5 -> 2.85 | AB25: =M84 -> 0
A26: S | B26: 3 | C26: =Score!I55 -> 0 | D26: =LOOKUP(C26,Names!$A$2:$A$161,Names!$B$2:$B$161) ->  | E26: 0 | F26: =Sheet1!$M$6 -> 1.9 | G26: =T81 -> 0 | H26: S | I26: 3 | J26: =Score!I59 -> 0 | K26: =LOOKUP(J26,Names!$A$2:$A$161,Names!$B$2:$B$161) ->  | L26: 0 | M26: =Sheet1!$M$6 -> 1.9 | N26: =T82 -> 0 | O26: S | P26: 3 | Q26: =Score!I63 -> 0 | R26: =LOOKUP(Q26,Names!$A$2:$A$161,Names!$B$2:$B$161) ->  | S26: 0 | T26: =Sheet1!$M$6 -> 1.9 | U26: =T83 -> 0 | V26: S | W26: 3 | X26: =Score!I67 -> 0 | Y26: =LOOKUP(X26,Names!$A$2:$A$161,Names!$B$2:$B$161) ->  | Z26: 0 | AA26: =Sheet1!$M$6 -> 1.9 | AB26: =T84 -> 0
A27: E | B27: 4 | C27: =Score!I56 -> 0 | D27: =LOOKUP(C27,Names!$A$2:$A$161,Names!$B$2:$B$161) ->  | E27: 0 | F27: =Sheet1!$M$7 -> 0 | G27: =AA81 -> 0 | H27: E | I27: 4 | J27: =Score!I60 -> 0 | K27: =LOOKUP(J27,Names!$A$2:$A$161,Names!$B$2:$B$161) ->  | L27: 0 | M27: =Sheet1!$M$7 -> 0 | N27: =AA82 -> 0 | O27: E | P27: 4 | Q27: =Score!I64 -> 0 | R27: =LOOKUP(Q27,Names!$A$2:$A$161,Names!$B$2:$B$161) ->  | S27: 0 | T27: =Sheet1!$M$7 -> 0 | U27: =AA83 -> 0 | V27: E | W27: 4 | X27: =Score!I68 -> 0 | Y27: =LOOKUP(X27,Names!$A$2:$A$161,Names!$B$2:$B$161) ->  | Z27: 0 | AA27: =Sheet1!$M$7 -> 0 | AB27: =AA84 -> 0
D28: 17 | K28: 18 | R28: 19 | Y28: 20
D29: Names | E29: Sc. | F29: Tab | K29: Names | L29: Sc. | M29: Tab | R29: Names | S29: Sc. | T29: Tab | Y29: Names | Z29: Sc. | AA29: Tab
A30: N | B30: 1 | C30: =Score!I69 -> 0 | D30: =LOOKUP(C30,Names!$A$2:$A$161,Names!$B$2:$B$161) ->  | E30: 0 | F30: =Sheet1!$M$4 -> 4.75 | G30: =F85 -> 0 | H30: N | I30: 1 | J30: =Score!I73 -> 0 | K30: =LOOKUP(J30,Names!$A$2:$A$161,Names!$B$2:$B$161) ->  | L30: 0 | M30: =Sheet1!$M$4 -> 4.75 | N30: =F86 -> 0 | O30: N | P30: 1 | Q30: =Score!I77 -> 0 | R30: =LOOKUP(Q30,Names!$A$2:$A$161,Names!$B$2:$B$161) ->  | S30: 0 | T30: =Sheet1!$M$4 -> 4.75 | U30: =F87 -> 0 | V30: N | W30: 1 | X30: =Score!I81 -> 0 | Y30: =LOOKUP(X30,Names!$A$2:$A$161,Names!$B$2:$B$161) ->  | Z30: 0 | AA30: =Sheet1!$M$4 -> 4.75 | AB30: =F88 -> 0
A31: W | B31: 2 | C31: =Score!I70 -> 0 | D31: =LOOKUP(C31,Names!$A$2:$A$161,Names!$B$2:$B$161) ->  | E31: 0 | F31: =Sheet1!$M$5 -> 2.85 | G31: =M85 -> 0 | H31: W | I31: 2 | J31: =Score!I74 -> 0 | K31: =LOOKUP(J31,Names!$A$2:$A$161,Names!$B$2:$B$161) ->  | L31: 0 | M31: =Sheet1!$M$5 -> 2.85 | N31: =M86 -> 0 | O31: W | P31: 2 | Q31: =Score!I78 -> 0 | R31: =LOOKUP(Q31,Names!$A$2:$A$161,Names!$B$2:$B$161) ->  | S31: 0 | T31: =Sheet1!$M$5 -> 2.85 | U31: =M87 -> 0 | V31: W | W31: 2 | X31: =Score!I82 -> 0 | Y31: =LOOKUP(X31,Names!$A$2:$A$161,Names!$B$2:$B$161) ->  | Z31: 0 | AA31: =Sheet1!$M$5 -> 2.85 | AB31: =M88 -> 0
A32: S | B32: 3 | C32: =Score!I71 -> 0 | D32: =LOOKUP(C32,Names!$A$2:$A$161,Names!$B$2:$B$161) ->  | E32: 0 | F32: =Sheet1!$M$6 -> 1.9 | G32: =T85 -> 0 | H32: S | I32: 3 | J32: =Score!I75 -> 0 | K32: =LOOKUP(J32,Names!$A$2:$A$161,Names!$B$2:$B$161) ->  | L32: 0 | M32: =Sheet1!$M$6 -> 1.9 | N32: =T86 -> 0 | O32: S | P32: 3 | Q32: =Score!I79 -> 0 | R32: =LOOKUP(Q32,Names!$A$2:$A$161,Names!$B$2:$B$161) ->  | S32: 0 | T32: =Sheet1!$M$6 -> 1.9 | U32: =T87 -> 0 | V32: S | W32: 3 | X32: =Score!I83 -> 0 | Y32: =LOOKUP(X32,Names!$A$2:$A$161,Names!$B$2:$B$161) ->  | Z32: 0 | AA32: =Sheet1!$M$6 -> 1.9 | AB32: =T88 -> 0
A33: E | B33: 4 | C33: =Score!I72 -> 0 | D33: =LOOKUP(C33,Names!$A$2:$A$161,Names!$B$2:$B$161) ->  | E33: 0 | F33: =Sheet1!$M$7 -> 0 | G33: =AA85 -> 0 | H33: E | I33: 4 | J33: =Score!I76 -> 0 | K33: =LOOKUP(J33,Names!$A$2:$A$161,Names!$B$2:$B$161) ->  | L33: 0 | M33: =Sheet1!$M$7 -> 0 | N33: =AA86 -> 0 | O33: E | P33: 4 | Q33: =Score!I80 -> 0 | R33: =LOOKUP(Q33,Names!$A$2:$A$161,Names!$B$2:$B$161) ->  | S33: 0 | T33: =Sheet1!$M$7 -> 0 | U33: =AA87 -> 0 | V33: E | W33: 4 | X33: =Score!I84 -> 0 | Y33: =LOOKUP(X33,Names!$A$2:$A$161,Names!$B$2:$B$161) ->  | Z33: 0 | AA33: =Sheet1!$M$7 -> 0 | AB33: =AA88 -> 0
D35: 21 | K35: 22 | R35: 23 | Y35: 24
D36: Names | E36: Sc. | F36: Tab | K36: Names | L36: Sc. | M36: Tab | R36: Names | S36: Sc. | T36: Tab | Y36: Names | Z36: Sc. | AA36: Tab
A37: N | B37: 1 | C37: =Score!I85 -> 81 | D37: =LOOKUP(C37,Names!$A$2:$A$161,Names!$B$2:$B$161) -> راجي محمد صبحي | E37: 113 | F37: =Sheet1!$M$6 -> 1.9 | G37: =F89 -> 2 | H37: N | I37: 1 | J37: =Score!I89 -> 97 | K37: =LOOKUP(J37,Names!$A$2:$A$161,Names!$B$2:$B$161) -> خالد محمد شبارة | L37: 167 | M37: =Sheet1!$M$6 -> 1.9 | N37: =F90 -> 12 | O37: N | P37: 1 | Q37: =Score!I93 -> 113 | R37: =LOOKUP(Q37,Names!$A$2:$A$161,Names!$B$2:$B$161) -> محمد حسن فهيم | S37: 181 | T37: =Sheet1!$M$5 -> 2.85 | U37: =F91 -> 13 | V37: N | W37: 1 | X37: =Score!I97 -> 94 | Y37: =LOOKUP(X37,Names!$A$2:$A$161,Names!$B$2:$B$161) -> محمد عصام الدين القاضي | Z37: 250 | AA37: =Sheet1!$M$4 -> 4.75 | AB37: =F92 -> 19
A38: W | B38: 2 | C38: =Score!I86 -> 85 | D38: =LOOKUP(C38,Names!$A$2:$A$161,Names!$B$2:$B$161) -> محمد عبد الهادي أبو القاسم | E38: 109 | F38: =Sheet1!$M$7 -> 0 | G38: =M89 -> 2 | H38: W | I38: 2 | J38: =Score!I90 -> 101 | K38: =LOOKUP(J38,Names!$A$2:$A$161,Names!$B$2:$B$161) -> أحمد محمد شوقى عبد الحميد | L38: 136 | M38: =Sheet1!$M$7 -> 0 | N38: =M90 -> 7 | O38: W | P38: 2 | Q38: =Score!I94 -> 82 | R38: =LOOKUP(Q38,Names!$A$2:$A$161,Names!$B$2:$B$161) -> أحمد صلاح الدين دياب | S38: 118 | T38: =Sheet1!$M$7 -> 0 | U38: =M91 -> 4 | V38: W | W38: 2 | X38: =Score!I98 -> 98 | Y38: =LOOKUP(X38,Names!$A$2:$A$161,Names!$B$2:$B$161) -> محمد محمود شعبان رمضان | Z38: 205 | AA38: =Sheet1!$M$5 -> 2.85 | AB38: =M92 -> 16
A39: S | B39: 3 | C39: =Score!I87 -> 89 | D39: =LOOKUP(C39,Names!$A$2:$A$161,Names!$B$2:$B$161) -> محمد بلبع | E39: 128 | F39: =Sheet1!$M$5 -> 2.85 | G39: =T89 -> 10 | H39: S | I39: 3 | J39: =Score!I91 -> 105 | K39: =LOOKUP(J39,Names!$A$2:$A$161,Names!$B$2:$B$161) -> مصطفى عبد الحفيظ علي | L39: 175 | M39: =Sheet1!$M$5 -> 2.85 | N39: =T90 -> 15 | O39: S | P39: 3 | Q39: =Score!I95 -> 86 | R39: =LOOKUP(Q39,Names!$A$2:$A$161,Names!$B$2:$B$161) -> ايهاب يوسف عمارة | S39: 173 | T39: =Sheet1!$M$6 -> 1.9 | U39: =T91 -> 14 | V39: S | W39: 3 | X39: =Score!I99 -> 102 | Y39: =LOOKUP(X39,Names!$A$2:$A$161,Names!$B$2:$B$161) -> سامي محمود الفولي | Z39: 97 | AA39: =Sheet1!$M$7 -> 0 | AB39: =T92 -> 5
A40: E | B40: 4 | C40: =Score!I88 -> 93 | D40: =LOOKUP(C40,Names!$A$2:$A$161,Names!$B$2:$B$161) -> جمال السيد توفيق | E40: 172 | F40: =Sheet1!$M$4 -> 4.75 | G40: =AA89 -> 14 | H40: E | I40: 4 | J40: =Score!I92 -> 109 | K40: =LOOKUP(J40,Names!$A$2:$A$161,Names!$B$2:$B$161) -> نبيل خلف زكي | L40: 206 | M40: =Sheet1!$M$4 -> 4.75 | N40: =AA90 -> 16 | O40: E | P40: 4 | Q40: =Score!I96 -> 90 | R40: =LOOKUP(Q40,Names!$A$2:$A$161,Names!$B$2:$B$161) -> محمد علي حسن طه الأمام | S40: 217 | T40: =Sheet1!$M$4 -> 4.75 | U40: =AA91 -> 17 | V40: E | W40: 4 | X40: =Score!I100 -> 106 | Y40: =LOOKUP(X40,Names!$A$2:$A$161,Names!$B$2:$B$161) -> أحمد عبد العزيز العطار | Z40: 113 | AA40: =Sheet1!$M$6 -> 1.9 | AB40: =AA92 -> 6
D41: 25 | K41: 26 | R41: 27 | Y41: 28
D42: Names | E42: Sc. | F42: Tab | K42: Names | L42: Sc. | M42: Tab | R42: Names | S42: Sc. | T42: Tab | Y42: Names | Z42: Sc. | AA42: Tab
A43: N | B43: 1 | C43: =Score!I101 -> 110 | D43: =LOOKUP(C43,Names!$A$2:$A$161,Names!$B$2:$B$161) -> أسامة أحمد زكي | E43: 224 | F43: =Sheet1!$M$4 -> 4.75 | G43: =F93 -> 15 | H43: N | I43: 1 | J43: =Score!I105 -> 91 | K43: =LOOKUP(J43,Names!$A$2:$A$161,Names!$B$2:$B$161) -> عماد محمد فؤاد مرسي | L43: 164 | M43: =Sheet1!$M$4 -> 4.75 | N43: =F94 -> 9 | O43: N | P43: 1 | Q43: =Score!I109 -> 107 | R43: =LOOKUP(Q43,Names!$A$2:$A$161,Names!$B$2:$B$161) -> شادي أحمد محمود وهبة | S43: 130 | T43: =Sheet1!$M$6 -> 1.9 | U43: =F95 -> 3 | V43: N | W43: 1 | X43: =Score!I113 -> 88 | Y43: =LOOKUP(X43,Names!$A$2:$A$161,Names!$B$2:$B$161) -> أحمد علي خليل حسن | Z43: 143 | AA43: =Sheet1!$M$7 -> 0 | AB43: =F96 -> 5 | AE43: 164
A44: W | B44: 2 | C44: =Score!I102 -> 114 | D44: =LOOKUP(C44,Names!$A$2:$A$161,Names!$B$2:$B$161) -> احمد سردينة | E44: 183 | F44: =Sheet1!$M$5 -> 2.85 | G44: =M93 -> 14 | H44: W | I44: 2 | J44: =Score!I106 -> 95 | K44: =LOOKUP(J44,Names!$A$2:$A$161,Names!$B$2:$B$161) -> احمد طنطاوى | L44: 135 | M44: =Sheet1!$M$6 -> 1.9 | N44: =M94 -> 6 | O44: W | P44: 2 | Q44: =Score!I110 -> 111 | R44: =LOOKUP(Q44,Names!$A$2:$A$161,Names!$B$2:$B$161) -> عادل محمد أبو زيد | S44: 206 | T44: =Sheet1!$M$5 -> 2.85 | U44: =M95 -> 17 | V44: W | W44: 2 | X44: =Score!I114 -> 92 | Y44: =LOOKUP(X44,Names!$A$2:$A$161,Names!$B$2:$B$161) -> أحمد مصطفى راشد | Z44: 146 | AA44: =Sheet1!$M$6 -> 1.9 | AB44: =M96 -> 9 | AE44: 135
A45: S | B45: 3 | C45: =Score!I103 -> 83 | D45: =LOOKUP(C45,Names!$A$2:$A$161,Names!$B$2:$B$161) -> أسامة لطفى نجيب | E45: 111 | F45: =Sheet1!$M$7 -> 0 | G45: =T93 -> 7 | H45: S | I45: 3 | J45: =Score!I107 -> 99 | K45: =LOOKUP(J45,Names!$A$2:$A$161,Names!$B$2:$B$161) -> ماجد محمد فكري | L45: 130 | M45: =Sheet1!$M$5 -> 2.85 | N45: =T94 -> 12 | O45: S | P45: 3 | Q45: =Score!I111 -> 115 | R45: =LOOKUP(Q45,Names!$A$2:$A$161,Names!$B$2:$B$161) -> خالد عبد العظيم | S45: 77 | T45: =Sheet1!$M$7 -> 0 | U45: =T95 -> 4 | V45: S | W45: 3 | X45: =Score!I115 -> 96 | Y45: =LOOKUP(X45,Names!$A$2:$A$161,Names!$B$2:$B$161) -> أحمد رمزي الديب | Z45: 201 | AA45: =Sheet1!$M$5 -> 2.85 | AB45: =T96 -> 17 | AE45: 130
A46: E | B46: 4 | C46: =Score!I104 -> 87 | D46: =LOOKUP(C46,Names!$A$2:$A$161,Names!$B$2:$B$161) -> ياسر شاهين | E46: 160 | F46: =Sheet1!$M$6 -> 1.9 | G46: =AA93 -> 12 | H46: E | I46: 4 | J46: =Score!I108 -> 103 | K46: =LOOKUP(J46,Names!$A$2:$A$161,Names!$B$2:$B$161) -> عمرو عماد الدين أبو العلا | L46: 34 | M46: =Sheet1!$M$7 -> 0 | N46: =AA94 -> 2 | O46: E | P46: 4 | Q46: =Score!I112 -> 84 | R46: =LOOKUP(Q46,Names!$A$2:$A$161,Names!$B$2:$B$161) -> أحمد عز العرب السماحي | S46: 229 | T46: =Sheet1!$M$4 -> 4.75 | U46: =AA95 -> 19 | V46: E | W46: 4 | X46: =Score!I116 -> 100 | Y46: =LOOKUP(X46,Names!$A$2:$A$161,Names!$B$2:$B$161) -> عبد الرحمن الدمراوى | Z46: 205 | AA46: =Sheet1!$M$4 -> 4.75 | AB46: =AA96 -> 15 | AE46: 34
D47: 29 | K47: 30 | R47: 31 | Y47: 32
D48: Names | E48: Sc. | F48: Tab | K48: Names | L48: Sc. | M48: Tab | R48: Names | S48: Sc. | T48: Tab | Y48: Names | Z48: Sc. | AA48: Tab
A49: N | B49: 1 | C49: =Score!I117 -> 104 | D49: =LOOKUP(C49,Names!$A$2:$A$161,Names!$B$2:$B$161) -> كريم إيهاب عامر | E49: 221 | F49: =Sheet1!$M$4 -> 4.75 | G49: =F97 -> 14 | H49: N | I49: 1 | J49: =Score!I121 -> 0 | K49: =LOOKUP(J49,Names!$A$2:$A$161,Names!$B$2:$B$161) ->  | N49: =F98 -> 0 | O49: N | P49: 1 | Q49: =Score!I125 -> 0 | R49: =LOOKUP(Q49,Names!$A$2:$A$161,Names!$B$2:$B$161) ->  | U49: =F99 -> 0 | V49: N | W49: 1 | X49: =Score!I129 -> 0 | Y49: =LOOKUP(X49,Names!$A$2:$A$161,Names!$B$2:$B$161) ->  | AB49: =F100 -> 0
A50: W | B50: 2 | C50: =Score!I118 -> 108 | D50: =LOOKUP(C50,Names!$A$2:$A$161,Names!$B$2:$B$161) -> كريم احمد ناصر | E50: 137 | F50: =Sheet1!$M$5 -> 2.85 | G50: =M97 -> 8 | H50: W | I50: 2 | J50: =Score!I122 -> 0 | K50: =LOOKUP(J50,Names!$A$2:$A$161,Names!$B$2:$B$161) ->  | N50: =M98 -> 0 | O50: W | P50: 2 | Q50: =Score!I126 -> 0 | R50: =LOOKUP(Q50,Names!$A$2:$A$161,Names!$B$2:$B$161) ->  | U50: =M99 -> 0 | V50: W | W50: 2 | X50: =Score!I130 -> 0 | Y50: =LOOKUP(X50,Names!$A$2:$A$161,Names!$B$2:$B$161) ->  | AB50: =M100 -> 0
A51: S | B51: 3 | C51: =Score!I119 -> 112 | D51: =LOOKUP(C51,Names!$A$2:$A$161,Names!$B$2:$B$161) -> عمرو محمد محسن | E51: 129 | F51: =Sheet1!$M$6 -> 1.9 | G51: =T97 -> 11 | H51: S | I51: 3 | J51: =Score!I123 -> 0 | K51: =LOOKUP(J51,Names!$A$2:$A$161,Names!$B$2:$B$161) ->  | N51: =T98 -> 0 | O51: S | P51: 3 | Q51: =Score!I127 -> 0 | R51: =LOOKUP(Q51,Names!$A$2:$A$161,Names!$B$2:$B$161) ->  | U51: =T99 -> 0 | V51: S | W51: 3 | X51: =Score!I131 -> 0 | Y51: =LOOKUP(X51,Names!$A$2:$A$161,Names!$B$2:$B$161) ->  | AB51: =T100 -> 0
A52: E | B52: 4 | C52: =Score!I120 -> 116 | D52: =LOOKUP(C52,Names!$A$2:$A$161,Names!$B$2:$B$161) -> اسامة قاسم | E52: 88 | F52: =Sheet1!$M$7 -> 0 | G52: =AA97 -> 4 | H52: E | I52: 4 | J52: =Score!I124 -> 0 | K52: =LOOKUP(J52,Names!$A$2:$A$161,Names!$B$2:$B$161) ->  | N52: =AA98 -> 0 | O52: E | P52: 4 | Q52: =Score!I128 -> 0 | R52: =LOOKUP(Q52,Names!$A$2:$A$161,Names!$B$2:$B$161) ->  | U52: =AA99 -> 0 | V52: E | W52: 4 | X52: =Score!I132 -> 0 | Y52: =LOOKUP(X52,Names!$A$2:$A$161,Names!$B$2:$B$161) ->  | AB52: =AA100 -> 0
D53: 33 | K53: 34 | R53: 35 | Y53: 36
D54: Names | E54: Sc. | F54: Tab | K54: Names | L54: Sc. | M54: Tab | R54: Names | S54: Sc. | T54: Tab | Y54: Names | Z54: Sc. | AA54: Tab
A55: N | B55: 1 | C55: =Score!I133 -> 0 | D55: =LOOKUP(C55,Names!$A$2:$A$161,Names!$B$2:$B$161) ->  | E55: 0 | F55: =Sheet1!$M$4 -> 4.75 | G55: =F101 -> 0 | H55: N | I55: 1 | J55: =Score!I137 -> 0 | K55: =LOOKUP(J55,Names!$A$2:$A$161,Names!$B$2:$B$161) ->  | L55: 0 | M55: =Sheet1!$M$4 -> 4.75 | N55: =F102 -> 0 | O55: N | P55: 1 | Q55: =Score!I141 -> 0 | R55: =LOOKUP(Q55,Names!$A$2:$A$161,Names!$B$2:$B$161) ->  | S55: 0 | T55: =Sheet1!$M$4 -> 4.75 | U55: =F103 -> 0 | V55: N | W55: 1 | X55: =Score!I145 -> 0 | Y55: =LOOKUP(X55,Names!$A$2:$A$161,Names!$B$2:$B$161) ->  | Z55: 0 | AA55: =Sheet1!$M$4 -> 4.75 | AB55: =F104 -> 0
A56: W | B56: 2 | C56: =Score!I134 -> 0 | D56: =LOOKUP(C56,Names!$A$2:$A$161,Names!$B$2:$B$161) ->  | E56: 0 | F56: =Sheet1!$M$5 -> 2.85 | G56: =M101 -> 0 | H56: W | I56: 2 | J56: =Score!I138 -> 0 | K56: =LOOKUP(J56,Names!$A$2:$A$161,Names!$B$2:$B$161) ->  | L56: 0 | M56: =Sheet1!$M$5 -> 2.85 | N56: =M102 -> 0 | O56: W | P56: 2 | Q56: =Score!I142 -> 0 | R56: =LOOKUP(Q56,Names!$A$2:$A$161,Names!$B$2:$B$161) ->  | S56: 0 | T56: =Sheet1!$M$5 -> 2.85 | U56: =M103 -> 0 | V56: W | W56: 2 | X56: =Score!I146 -> 0 | Y56: =LOOKUP(X56,Names!$A$2:$A$161,Names!$B$2:$B$161) ->  | Z56: 0 | AA56: =Sheet1!$M$5 -> 2.85 | AB56: =M104 -> 0
A57: S | B57: 3 | C57: =Score!I135 -> 0 | D57: =LOOKUP(C57,Names!$A$2:$A$161,Names!$B$2:$B$161) ->  | E57: 0 | F57: =Sheet1!$M$6 -> 1.9 | G57: =T101 -> 0 | H57: S | I57: 3 | J57: =Score!I139 -> 0 | K57: =LOOKUP(J57,Names!$A$2:$A$161,Names!$B$2:$B$161) ->  | L57: 0 | M57: =Sheet1!$M$6 -> 1.9 | N57: =T102 -> 0 | O57: S | P57: 3 | Q57: =Score!I143 -> 0 | R57: =LOOKUP(Q57,Names!$A$2:$A$161,Names!$B$2:$B$161) ->  | S57: 0 | T57: =Sheet1!$M$6 -> 1.9 | U57: =T103 -> 0 | V57: S | W57: 3 | X57: =Score!I147 -> 0 | Y57: =LOOKUP(X57,Names!$A$2:$A$161,Names!$B$2:$B$161) ->  | Z57: 0 | AA57: =Sheet1!$M$6 -> 1.9 | AB57: =T104 -> 0
A58: E | B58: 4 | C58: =Score!I136 -> 0 | D58: =LOOKUP(C58,Names!$A$2:$A$161,Names!$B$2:$B$161) ->  | E58: 0 | F58: =Sheet1!$M$7 -> 0 | G58: =AA101 -> 0 | H58: E | I58: 4 | J58: =Score!I140 -> 0 | K58: =LOOKUP(J58,Names!$A$2:$A$161,Names!$B$2:$B$161) ->  | L58: 0 | M58: =Sheet1!$M$7 -> 0 | N58: =AA102 -> 0 | O58: E | P58: 4 | Q58: =Score!I144 -> 0 | R58: =LOOKUP(Q58,Names!$A$2:$A$161,Names!$B$2:$B$161) ->  | S58: 0 | T58: =Sheet1!$M$7 -> 0 | U58: =AA103 -> 0 | V58: E | W58: 4 | X58: =Score!I148 -> 0 | Y58: =LOOKUP(X58,Names!$A$2:$A$161,Names!$B$2:$B$161) ->  | Z58: 0 | AA58: =Sheet1!$M$7 -> 0 | AB58: =AA104 -> 0
D59: 37 | K59: 38 | R59: 39 | Y59: 40
D60: Names | E60: Sc. | F60: Tab | K60: Names | L60: Sc. | M60: Tab | R60: Names | S60: Sc. | T60: Tab | Y60: Names | Z60: Sc. | AA60: Tab
A61: N | B61: 1 | C61: =Score!I149 -> 0 | D61: =LOOKUP(C61,Names!$A$2:$A$161,Names!$B$2:$B$161) ->  | E61: 0 | F61: =Sheet1!$M$4 -> 4.75 | G61: =F105 -> 0 | H61: N | I61: 1 | J61: =Score!I153 -> 0 | K61: =LOOKUP(J61,Names!$A$2:$A$161,Names!$B$2:$B$161) ->  | L61: 0 | M61: =Sheet1!$M$4 -> 4.75 | N61: =F106 -> 0 | O61: N | P61: 1 | Q61: =Score!I157 -> 0 | R61: =LOOKUP(Q61,Names!$A$2:$A$161,Names!$B$2:$B$161) ->  | S61: 0 | T61: =Sheet1!$M$4 -> 4.75 | U61: =F107 -> 0 | V61: N | W61: 1 | X61: =Score!I161 -> 0 | Y61: =LOOKUP(X61,Names!$A$2:$A$161,Names!$B$2:$B$161) ->  | Z61: 0 | AA61: =Sheet1!$M$4 -> 4.75 | AB61: =F108 -> 0
A62: W | B62: 2 | C62: =Score!I150 -> 0 | D62: =LOOKUP(C62,Names!$A$2:$A$161,Names!$B$2:$B$161) ->  | E62: 0 | F62: =Sheet1!$M$5 -> 2.85 | G62: =M105 -> 0 | H62: W | I62: 2 | J62: =Score!I154 -> 0 | K62: =LOOKUP(J62,Names!$A$2:$A$161,Names!$B$2:$B$161) ->  | L62: 0 | M62: =Sheet1!$M$5 -> 2.85 | N62: =M106 -> 0 | O62: W | P62: 2 | Q62: =Score!I158 -> 0 | R62: =LOOKUP(Q62,Names!$A$2:$A$161,Names!$B$2:$B$161) ->  | S62: 0 | T62: =Sheet1!$M$5 -> 2.85 | U62: =M107 -> 0 | V62: W | W62: 2 | X62: =Score!I162 -> 0 | Y62: =LOOKUP(X62,Names!$A$2:$A$161,Names!$B$2:$B$161) ->  | Z62: 0 | AA62: =Sheet1!$M$5 -> 2.85 | AB62: =M108 -> 0
A63: S | B63: 3 | C63: =Score!I151 -> 0 | D63: =LOOKUP(C63,Names!$A$2:$A$161,Names!$B$2:$B$161) ->  | E63: 0 | F63: =Sheet1!$M$6 -> 1.9 | G63: =T105 -> 0 | H63: S | I63: 3 | J63: =Score!I155 -> 0 | K63: =LOOKUP(J63,Names!$A$2:$A$161,Names!$B$2:$B$161) ->  | L63: 0 | M63: =Sheet1!$M$6 -> 1.9 | N63: =T106 -> 0 | O63: S | P63: 3 | Q63: =Score!I159 -> 0 | R63: =LOOKUP(Q63,Names!$A$2:$A$161,Names!$B$2:$B$161) ->  | S63: 0 | T63: =Sheet1!$M$6 -> 1.9 | U63: =T107 -> 0 | V63: S | W63: 3 | X63: =Score!I163 -> 0 | Y63: =LOOKUP(X63,Names!$A$2:$A$161,Names!$B$2:$B$161) ->  | Z63: 0 | AA63: =Sheet1!$M$6 -> 1.9 | AB63: =T108 -> 0
A64: E | B64: 4 | C64: =Score!I152 -> 0 | D64: =LOOKUP(C64,Names!$A$2:$A$161,Names!$B$2:$B$161) ->  | E64: 0 | F64: =Sheet1!$M$7 -> 0 | G64: =AA105 -> 0 | H64: E | I64: 4 | J64: =Score!I156 -> 0 | K64: =LOOKUP(J64,Names!$A$2:$A$161,Names!$B$2:$B$161) ->  | L64: 0 | M64: =Sheet1!$M$7 -> 0 | N64: =AA106 -> 0 | O64: E | P64: 4 | Q64: =Score!I160 -> 0 | R64: =LOOKUP(Q64,Names!$A$2:$A$161,Names!$B$2:$B$161) ->  | S64: 0 | T64: =Sheet1!$M$7 -> 0 | U64: =AA107 -> 0 | V64: E | W64: 4 | X64: =Score!I164 -> 0 | Y64: =LOOKUP(X64,Names!$A$2:$A$161,Names!$B$2:$B$161) ->  | Z64: 0 | AA64: =Sheet1!$M$7 -> 0 | AB64: =AA108 -> 0
K66: Axe
D67: North | K67: West | R67: South | Y67: East
D68: Names | E68: Sc. | F68: Axe | K68: Names | L68: Sc. | M68: Axe | R68: Names | S68: Sc. | T68: Axe | Y68: Names | Z68: Sc. | AA68: Axe
A69: 1 | B69: 1 | C69: =$C$6 -> 1 | D69: =LOOKUP(C69,Names!$A$2:$A$161,Names!$B$2:$B$161) -> إبراهيم عرفان السقا | E69: =$E$6 -> 165 | F69: 10.5 | I69: 1 | J69: =$C$7 -> 5 | K69: =LOOKUP(J69,Names!$A$2:$A$161,Names!$B$2:$B$161) -> أحمد محمد أمين | L69: =$E$7 -> 154 | M69: 13 | P69: 1 | Q69: =$C$8 -> 9 | R69: =LOOKUP(Q69,Names!$A$2:$A$161,Names!$B$2:$B$161) -> عمرو محمد مصطفى | S69: =$E$8 -> 68 | T69: 3 | W69: 1 | X69: =$C$9 -> 13 | Y69: =LOOKUP(X69,Names!$A$2:$A$161,Names!$B$2:$B$161) -> عمرو سمير دسوقي | Z69: =$E$9 -> 143 | AA69: 10
A70: 2 | B70: 2 | C70: =$J$6 -> 17 | D70: =LOOKUP(C70,Names!$A$2:$A$161,Names!$B$2:$B$161) -> مينا ناجح صبحي | E70: =$L$6 -> 228 | F70: 16 | I70: 2 | J70: =$J$7 -> 21 | K70: =LOOKUP(J70,Names!$A$2:$A$161,Names!$B$2:$B$161) -> محمد طارق عبد الله | L70: =$L$7 -> 102 | M70: 1 | P70: 2 | Q70: =$J$8 -> 25 | R70: =LOOKUP(Q70,Names!$A$2:$A$161,Names!$B$2:$B$161) -> خالد حمدي محمد السيد | S70: =$L$8 -> 127 | T70: 9 | W70: 2 | X70: =$J$9 -> 29 | Y70: =LOOKUP(X70,Names!$A$2:$A$161,Names!$B$2:$B$161) -> اسلام نصر الغنام | Z70: =$L$9 -> 29 | AA70: 1
A71: 3 | B71: 3 | C71: =$Q$6 -> 33 | D71: =LOOKUP(C71,Names!$A$2:$A$161,Names!$B$2:$B$161) -> أحمد إبراهيم غانم | E71: =$S$6 -> 165 | F71: 10.5 | I71: 3 | J71: =$Q$7 -> 2 | K71: =LOOKUP(J71,Names!$A$2:$A$161,Names!$B$2:$B$161) -> مصطفى محمد علي شرف | L71: =$S$7 -> 190 | M71: 15 | P71: 3 | Q71: =$Q$8 -> 6 | R71: =LOOKUP(Q71,Names!$A$2:$A$161,Names!$B$2:$B$161) -> معتز محمد عبد المنعم | S71: =$S$8 -> 60 | T71: 2 | W71: 3 | X71: =$Q$9 -> 10 | Y71: =LOOKUP(X71,Names!$A$2:$A$161,Names!$B$2:$B$161) -> تامر تيمور شكري | Z71: =$S$9 -> 159 | AA71: 11
A72: 4 | B72: 4 | C72: =$X$6 -> 14 | D72: =LOOKUP(C72,Names!$A$2:$A$161,Names!$B$2:$B$161) -> أحمد محمد محمدي | E72: =$Z$6 -> 146 | F72: 6.5 | I72: 4 | J72: =$X$7 -> 18 | K72: =LOOKUP(J72,Names!$A$2:$A$161,Names!$B$2:$B$161) -> وليد شعبان إسماعيل علي | L72: =$Z$7 -> 148 | M72: 10 | P72: 4 | Q72: =$X$8 -> 22 | R72: =LOOKUP(Q72,Names!$A$2:$A$161,Names!$B$2:$B$161) -> يوسف مسعد فراج | S72: =$Z$8 -> 184 | T72: 16 | W72: 4 | X72: =$X$9 -> 26 | Y72: =LOOKUP(X72,Names!$A$2:$A$161,Names!$B$2:$B$161) -> علاء شوقي جبريل | Z72: =$Z$9 -> 105 | AA72: 5
A73: 5 | B73: 5 | C73: =$C$12 -> 30 | D73: =LOOKUP(C73,Names!$A$2:$A$161,Names!$B$2:$B$161) -> محمد سعيد الفطاطري | E73: =$E$12 -> 146 | F73: 6.5 | I73: 5 | J73: =$C$13 -> 34 | K73: =LOOKUP(J73,Names!$A$2:$A$161,Names!$B$2:$B$161) -> شريف حلمي | L73: =$E$13 -> 153 | M73: 12 | P73: 5 | Q73: =$C$14 -> 3 | R73: =LOOKUP(Q73,Names!$A$2:$A$161,Names!$B$2:$B$161) -> أحمد محمد حمدي صالح | S73: =$E$14 -> 112 | T73: 8 | W73: 5 | X73: =$C$15 -> 7 | Y73: =LOOKUP(X73,Names!$A$2:$A$161,Names!$B$2:$B$161) -> هيثم محمد شبانة | Z73: =$E$15 -> 120 | AA73: 7
A74: 6 | B74: 6 | C74: =$J$12 -> 11 | D74: =LOOKUP(C74,Names!$A$2:$A$161,Names!$B$2:$B$161) -> هيثم العشماوي | E74: =$L$12 -> 140 | F74: 4 | I74: 6 | J74: =$J$13 -> 15 | K74: =LOOKUP(J74,Names!$A$2:$A$161,Names!$B$2:$B$161) -> حسام الدين صلاح أبو الفتوح | L74: =$L$13 -> 114 | M74: 3 | P74: 6 | Q74: =$J$14 -> 19 | R74: =LOOKUP(Q74,Names!$A$2:$A$161,Names!$B$2:$B$161) -> محمد أحمد محمد عبد الله | S74: =$L$14 -> 203 | T74: 19 | W74: 6 | X74: =$J$15 -> 23 | Y74: =LOOKUP(X74,Names!$A$2:$A$161,Names!$B$2:$B$161) -> جمال احمد محمد جمال | Z74: =$L$15 -> 134 | AA74: 9
A75: 7 | B75: 7 | C75: =$Q$12 -> 27 | D75: =LOOKUP(C75,Names!$A$2:$A$161,Names!$B$2:$B$161) -> أحمد سمير خلف على | E75: =$S$12 -> 233 | F75: 17 | I75: 7 | J75: =$Q$13 -> 31 | K75: =LOOKUP(J75,Names!$A$2:$A$161,Names!$B$2:$B$161) -> أحمد بسيوني | L75: =$S$13 -> 121 | M75: 5 | P75: 7 | Q75: =$Q$14 -> 35 | R75: =LOOKUP(Q75,Names!$A$2:$A$161,Names!$B$2:$B$161) -> أحمد فؤاد حسنين | S75: =$S$14 -> 43 | T75: 1 | W75: 7 | X75: =$Q$15 -> 4 | Y75: =LOOKUP(X75,Names!$A$2:$A$161,Names!$B$2:$B$161) -> أحمد جميل السيد | Z75: =$S$15 -> 163 | AA75: 13
A76: 8 | B76: 8 | C76: =$X$12 -> 8 | D76: =LOOKUP(C76,Names!$A$2:$A$161,Names!$B$2:$B$161) -> عبد الرحمن محمود عثمان | E76: =$Z$12 -> 94 | F76: 1 | I76: 8 | J76: =$X$13 -> 12 | K76: =LOOKUP(J76,Names!$A$2:$A$161,Names!$B$2:$B$161) -> أحمد علي السيد شرع | L76: =$Z$13 -> 149 | M76: 11 | P76: 8 | Q76: =$X$14 -> 16 | R76: =LOOKUP(Q76,Names!$A$2:$A$161,Names!$B$2:$B$161) -> طارق عبد الغني السحار | S76: =$Z$14 -> 99 | T76: 6 | W76: 8 | X76: =$X$15 -> 20 | Y76: =LOOKUP(X76,Names!$A$2:$A$161,Names!$B$2:$B$161) -> عصام الدين محمد عبد العاطي | Z76: =$Z$15 -> 127 | AA76: 8
A77: 9 | B77: 9 | C77: =$C$18 -> 24 | D77: =LOOKUP(C77,Names!$A$2:$A$161,Names!$B$2:$B$161) -> يامن محمد حسن | E77: =$E$18 -> 160 | F77: 8 | I77: 9 | J77: =$C$19 -> 28 | K77: =LOOKUP(J77,Names!$A$2:$A$161,Names!$B$2:$B$161) -> محمد حسن عبد القادر | L77: =$E$19 -> 237 | M77: 19 | P77: 9 | Q77: =$C$20 -> 32 | R77: =LOOKUP(Q77,Names!$A$2:$A$161,Names!$B$2:$B$161) -> أمير محمد خطاب | S77: =$E$20 -> 131 | T77: 13 | W77: 9 | X77: =$C$21 -> 36 | Y77: =LOOKUP(X77,Names!$A$2:$A$161,Names!$B$2:$B$161) -> محمد محمود فضل | Z77: =$E$21 -> 84 | AA77: 3
A78: 10 | B78: 10 | C78: =$J$18 -> 0 | D78: =LOOKUP(C78,Names!$A$2:$A$161,Names!$B$2:$B$161) ->  | E78: =$L$18 -> 0 | I78: 10 | J78: =$J$19 -> 0 | K78: =LOOKUP(J78,Names!$A$2:$A$161,Names!$B$2:$B$161) ->  | L78: =$L$19 -> 0 | P78: 10 | Q78: =$J$20 -> 0 | R78: =LOOKUP(Q78,Names!$A$2:$A$161,Names!$B$2:$B$161) ->  | S78: =$L$20 -> 0 | W78: 10 | X78: =$J$21 -> 0 | Y78: =LOOKUP(X78,Names!$A$2:$A$161,Names!$B$2:$B$161) ->  | Z78: =$L$21 -> 0
A79: 11 | B79: 11 | C79: =$Q$18 -> 0 | D79: =LOOKUP(C79,Names!$A$2:$A$161,Names!$B$2:$B$161) ->  | I79: 11 | J79: =$Q$19 -> 0 | K79: =LOOKUP(J79,Names!$A$2:$A$161,Names!$B$2:$B$161) ->  | P79: 11 | Q79: =$Q$20 -> 0 | R79: =LOOKUP(Q79,Names!$A$2:$A$161,Names!$B$2:$B$161) ->  | W79: 11 | X79: =$Q$21 -> 0 | Y79: =LOOKUP(X79,Names!$A$2:$A$161,Names!$B$2:$B$161) -> 
A80: 12 | B80: 12 | C80: =$X$18 -> 0 | D80: =LOOKUP(C80,Names!$A$2:$A$161,Names!$B$2:$B$161) ->  | I80: 12 | J80: =$X$19 -> 0 | K80: =LOOKUP(J80,Names!$A$2:$A$161,Names!$B$2:$B$161) ->  | P80: 12 | Q80: =$X$20 -> 0 | R80: =LOOKUP(Q80,Names!$A$2:$A$161,Names!$B$2:$B$161) ->  | W80: 12 | X80: =$X$21 -> 0 | Y80: =LOOKUP(X80,Names!$A$2:$A$161,Names!$B$2:$B$161) -> 
A81: 13 | B81: 13 | C81: =$C$24 -> 0 | D81: =LOOKUP(C81,Names!$A$2:$A$161,Names!$B$2:$B$161) ->  | I81: 13 | J81: =$C$25 -> 0 | K81: =LOOKUP(J81,Names!$A$2:$A$161,Names!$B$2:$B$161) ->  | P81: 13 | Q81: =$C$26 -> 0 | R81: =LOOKUP(Q81,Names!$A$2:$A$161,Names!$B$2:$B$161) ->  | W81: 13 | X81: =$C$27 -> 0 | Y81: =LOOKUP(X81,Names!$A$2:$A$161,Names!$B$2:$B$161) -> 
A82: 14 | B82: 14 | C82: =$J$24 -> 0 | D82: =LOOKUP(C82,Names!$A$2:$A$161,Names!$B$2:$B$161) ->  | I82: 14 | J82: =$J$25 -> 0 | K82: =LOOKUP(J82,Names!$A$2:$A$161,Names!$B$2:$B$161) ->  | P82: 14 | Q82: =$J$26 -> 0 | R82: =LOOKUP(Q82,Names!$A$2:$A$161,Names!$B$2:$B$161) ->  | W82: 14 | X82: =$J$27 -> 0 | Y82: =LOOKUP(X82,Names!$A$2:$A$161,Names!$B$2:$B$161) -> 
A83: 15 | B83: 15 | C83: =$Q$24 -> 0 | D83: =LOOKUP(C83,Names!$A$2:$A$161,Names!$B$2:$B$161) ->  | I83: 15 | J83: =$Q$25 -> 0 | K83: =LOOKUP(J83,Names!$A$2:$A$161,Names!$B$2:$B$161) ->  | P83: 15 | Q83: =$Q$26 -> 0 | R83: =LOOKUP(Q83,Names!$A$2:$A$161,Names!$B$2:$B$161) ->  | W83: 15 | X83: =$Q$27 -> 0 | Y83: =LOOKUP(X83,Names!$A$2:$A$161,Names!$B$2:$B$161) -> 
A84: 16 | B84: 16 | C84: =$X$24 -> 0 | D84: =LOOKUP(C84,Names!$A$2:$A$161,Names!$B$2:$B$161) ->  | I84: 16 | J84: =$X$25 -> 0 | K84: =LOOKUP(J84,Names!$A$2:$A$161,Names!$B$2:$B$161) ->  | P84: 16 | Q84: =$X$26 -> 0 | R84: =LOOKUP(Q84,Names!$A$2:$A$161,Names!$B$2:$B$161) ->  | W84: 16 | X84: =$X$27 -> 0 | Y84: =LOOKUP(X84,Names!$A$2:$A$161,Names!$B$2:$B$161) -> 
A85: 17 | B85: 17 | C85: =$C$30 -> 0 | D85: =LOOKUP(C85,Names!$A$2:$A$161,Names!$B$2:$B$161) ->  | I85: 17 | J85: =$C$31 -> 0 | K85: =LOOKUP(J85,Names!$A$2:$A$161,Names!$B$2:$B$161) ->  | P85: 17 | Q85: =$C$32 -> 0 | R85: =LOOKUP(Q85,Names!$A$2:$A$161,Names!$B$2:$B$161) ->  | W85: 17 | X85: =$C$33 -> 0 | Y85: =LOOKUP(X85,Names!$A$2:$A$161,Names!$B$2:$B$161) -> 
A86: 18 | B86: 18 | C86: =$J$30 -> 0 | D86: =LOOKUP(C86,Names!$A$2:$A$161,Names!$B$2:$B$161) ->  | I86: 18 | J86: =$J$31 -> 0 | K86: =LOOKUP(J86,Names!$A$2:$A$161,Names!$B$2:$B$161) ->  | P86: 18 | Q86: =$J$32 -> 0 | R86: =LOOKUP(Q86,Names!$A$2:$A$161,Names!$B$2:$B$161) ->  | W86: 18 | X86: =$J$33 -> 0 | Y86: =LOOKUP(X86,Names!$A$2:$A$161,Names!$B$2:$B$161) -> 
A87: 19 | B87: 19 | C87: =$Q$30 -> 0 | D87: =LOOKUP(C87,Names!$A$2:$A$161,Names!$B$2:$B$161) ->  | I87: 19 | J87: =$Q$31 -> 0 | K87: =LOOKUP(J87,Names!$A$2:$A$161,Names!$B$2:$B$161) ->  | P87: 19 | Q87: =$Q$32 -> 0 | R87: =LOOKUP(Q87,Names!$A$2:$A$161,Names!$B$2:$B$161) ->  | W87: 19 | X87: =$Q$33 -> 0 | Y87: =LOOKUP(X87,Names!$A$2:$A$161,Names!$B$2:$B$161) -> 
A88: 20 | B88: 20 | C88: =$X$30 -> 0 | D88: =LOOKUP(C88,Names!$A$2:$A$161,Names!$B$2:$B$161) ->  | I88: 20 | J88: =$X$31 -> 0 | K88: =LOOKUP(J88,Names!$A$2:$A$161,Names!$B$2:$B$161) ->  | P88: 20 | Q88: =$X$32 -> 0 | R88: =LOOKUP(Q88,Names!$A$2:$A$161,Names!$B$2:$B$161) ->  | W88: 20 | X88: =$X$33 -> 0 | Y88: =LOOKUP(X88,Names!$A$2:$A$161,Names!$B$2:$B$161) -> 
A89: 21 | B89: 21 | C89: =$C$37 -> 81 | D89: =LOOKUP(C89,Names!$A$2:$A$161,Names!$B$2:$B$161) -> راجي محمد صبحي | E89: =$E$37 -> 113 | F89: 2 | I89: 21 | J89: =$C$38 -> 85 | K89: =LOOKUP(J89,Names!$A$2:$A$161,Names!$B$2:$B$161) -> محمد عبد الهادي أبو القاسم | L89: =$E$38 -> 109 | M89: 2 | P89: 21 | Q89: =$C$39 -> 89 | R89: =LOOKUP(Q89,Names!$A$2:$A$161,Names!$B$2:$B$161) -> محمد بلبع | S89: =$E$39 -> 128 | T89: 10 | W89: 21 | X89: =$C$40 -> 93 | Y89: =LOOKUP(X89,Names!$A$2:$A$161,Names!$B$2:$B$161) -> جمال السيد توفيق | Z89: =$E$40 -> 172 | AA89: 14
A90: 22 | B90: 22 | C90: =$J$37 -> 97 | D90: =LOOKUP(C90,Names!$A$2:$A$161,Names!$B$2:$B$161) -> خالد محمد شبارة | E90: =$L$37 -> 167 | F90: 12 | I90: 22 | J90: =$J$38 -> 101 | K90: =LOOKUP(J90,Names!$A$2:$A$161,Names!$B$2:$B$161) -> أحمد محمد شوقى عبد الحميد | L90: =$L$38 -> 136 | M90: 7 | P90: 22 | Q90: =$J$39 -> 105 | R90: =LOOKUP(Q90,Names!$A$2:$A$161,Names!$B$2:$B$161) -> مصطفى عبد الحفيظ علي | S90: =$L$39 -> 175 | T90: 15 | W90: 22 | X90: =$J$40 -> 109 | Y90: =LOOKUP(X90,Names!$A$2:$A$161,Names!$B$2:$B$161) -> نبيل خلف زكي | Z90: =$L$40 -> 206 | AA90: 16
A91: 23 | B91: 23 | C91: =$Q$37 -> 113 | D91: =LOOKUP(C91,Names!$A$2:$A$161,Names!$B$2:$B$161) -> محمد حسن فهيم | E91: =$S$37 -> 181 | F91: 13 | I91: 23 | J91: =$Q$38 -> 82 | K91: =LOOKUP(J91,Names!$A$2:$A$161,Names!$B$2:$B$161) -> أحمد صلاح الدين دياب | L91: =$S$38 -> 118 | M91: 4 | P91: 23 | Q91: =$Q$39 -> 86 | R91: =LOOKUP(Q91,Names!$A$2:$A$161,Names!$B$2:$B$161) -> ايهاب يوسف عمارة | S91: =$S$39 -> 173 | T91: 14 | W91: 23 | X91: =$Q$40 -> 90 | Y91: =LOOKUP(X91,Names!$A$2:$A$161,Names!$B$2:$B$161) -> محمد علي حسن طه الأمام | Z91: =$S$40 -> 217 | AA91: 17
A92: 24 | B92: 24 | C92: =$X$37 -> 94 | D92: =LOOKUP(C92,Names!$A$2:$A$161,Names!$B$2:$B$161) -> محمد عصام الدين القاضي | E92: =$Z$37 -> 250 | F92: 19 | I92: 24 | J92: =$X$38 -> 98 | K92: =LOOKUP(J92,Names!$A$2:$A$161,Names!$B$2:$B$161) -> محمد محمود شعبان رمضان | L92: =$Z$38 -> 205 | M92: 16 | P92: 24 | Q92: =$X$39 -> 102 | R92: =LOOKUP(Q92,Names!$A$2:$A$161,Names!$B$2:$B$161) -> سامي محمود الفولي | S92: =$Z$39 -> 97 | T92: 5 | W92: 24 | X92: =$X$40 -> 106 | Y92: =LOOKUP(X92,Names!$A$2:$A$161,Names!$B$2:$B$161) -> أحمد عبد العزيز العطار | Z92: =$Z$40 -> 113 | AA92: 6
A93: 25 | B93: 25 | C93: =$C$43 -> 110 | D93: =LOOKUP(C93,Names!$A$2:$A$161,Names!$B$2:$B$161) -> أسامة أحمد زكي | E93: =$E$43 -> 224 | F93: 15 | I93: 25 | J93: =$C$44 -> 114 | K93: =LOOKUP(J93,Names!$A$2:$A$161,Names!$B$2:$B$161) -> احمد سردينة | L93: =$E$44 -> 183 | M93: 14 | P93: 25 | Q93: =$C$45 -> 83 | R93: =LOOKUP(Q93,Names!$A$2:$A$161,Names!$B$2:$B$161) -> أسامة لطفى نجيب | S93: =$E$45 -> 111 | T93: 7 | W93: 25 | X93: =$C$46 -> 87 | Y93: =LOOKUP(X93,Names!$A$2:$A$161,Names!$B$2:$B$161) -> ياسر شاهين | Z93: =$E$46 -> 160 | AA93: 12
A94: 26 | B94: 26 | C94: =$J$43 -> 91 | D94: =LOOKUP(C94,Names!$A$2:$A$161,Names!$B$2:$B$161) -> عماد محمد فؤاد مرسي | E94: =$L$43 -> 164 | F94: 9 | I94: 26 | J94: =$J$44 -> 95 | K94: =LOOKUP(J94,Names!$A$2:$A$161,Names!$B$2:$B$161) -> احمد طنطاوى | L94: =$L$44 -> 135 | M94: 6 | P94: 26 | Q94: =$J$45 -> 99 | R94: =LOOKUP(Q94,Names!$A$2:$A$161,Names!$B$2:$B$161) -> ماجد محمد فكري | S94: =$L$45 -> 130 | T94: 12 | W94: 26 | X94: =$J$46 -> 103 | Y94: =LOOKUP(X94,Names!$A$2:$A$161,Names!$B$2:$B$161) -> عمرو عماد الدين أبو العلا | Z94: =$L$46 -> 34 | AA94: 2
A95: 27 | B95: 27 | C95: =$Q$43 -> 107 | D95: =LOOKUP(C95,Names!$A$2:$A$161,Names!$B$2:$B$161) -> شادي أحمد محمود وهبة | E95: =$S$43 -> 130 | F95: 3 | I95: 27 | J95: =$Q$44 -> 111 | K95: =LOOKUP(J95,Names!$A$2:$A$161,Names!$B$2:$B$161) -> عادل محمد أبو زيد | L95: =$S$44 -> 206 | M95: 17 | P95: 27 | Q95: =$Q$45 -> 115 | R95: =LOOKUP(Q95,Names!$A$2:$A$161,Names!$B$2:$B$161) -> خالد عبد العظيم | S95: =$S$45 -> 77 | T95: 4 | W95: 27 | X95: =$Q$46 -> 84 | Y95: =LOOKUP(X95,Names!$A$2:$A$161,Names!$B$2:$B$161) -> أحمد عز العرب السماحي | Z95: =$S$46 -> 229 | AA95: 19
A96: 28 | B96: 28 | C96: =$X$43 -> 88 | D96: =LOOKUP(C96,Names!$A$2:$A$161,Names!$B$2:$B$161) -> أحمد علي خليل حسن | E96: =$Z$43 -> 143 | F96: 5 | I96: 28 | J96: =$X$44 -> 92 | K96: =LOOKUP(J96,Names!$A$2:$A$161,Names!$B$2:$B$161) -> أحمد مصطفى راشد | L96: =$Z$44 -> 146 | M96: 9 | P96: 28 | Q96: =$X$45 -> 96 | R96: =LOOKUP(Q96,Names!$A$2:$A$161,Names!$B$2:$B$161) -> أحمد رمزي الديب | S96: =$Z$45 -> 201 | T96: 17 | W96: 28 | X96: =$X$46 -> 100 | Y96: =LOOKUP(X96,Names!$A$2:$A$161,Names!$B$2:$B$161) -> عبد الرحمن الدمراوى | Z96: =$Z$46 -> 205 | AA96: 15
A97: 29 | B97: 29 | C97: =$C$49 -> 104 | D97: =LOOKUP(C97,Names!$A$2:$A$161,Names!$B$2:$B$161) -> كريم إيهاب عامر | E97: =$E$49 -> 221 | F97: 14 | I97: 29 | J97: =$C$50 -> 108 | K97: =LOOKUP(J97,Names!$A$2:$A$161,Names!$B$2:$B$161) -> كريم احمد ناصر | L97: =$E$50 -> 137 | M97: 8 | P97: 29 | Q97: =$C$51 -> 112 | R97: =LOOKUP(Q97,Names!$A$2:$A$161,Names!$B$2:$B$161) -> عمرو محمد محسن | S97: =$E$51 -> 129 | T97: 11 | W97: 29 | X97: =$C$52 -> 116 | Y97: =LOOKUP(X97,Names!$A$2:$A$161,Names!$B$2:$B$161) -> اسامة قاسم | Z97: =$E$52 -> 88 | AA97: 4
A98: 30 | B98: 30 | C98: =$J$49 -> 0 | D98: =LOOKUP(C98,Names!$A$2:$A$161,Names!$B$2:$B$161) ->  | I98: 30 | J98: =$J$50 -> 0 | K98: =LOOKUP(J98,Names!$A$2:$A$161,Names!$B$2:$B$161) ->  | P98: 30 | Q98: =$J$51 -> 0 | R98: =LOOKUP(Q98,Names!$A$2:$A$161,Names!$B$2:$B$161) ->  | W98: 30 | X98: =$J$52 -> 0 | Y98: =LOOKUP(X98,Names!$A$2:$A$161,Names!$B$2:$B$161) -> 
A99: 31 | B99: 31 | C99: =$Q$49 -> 0 | D99: =LOOKUP(C99,Names!$A$2:$A$161,Names!$B$2:$B$161) ->  | I99: 31 | J99: =$Q$50 -> 0 | K99: =LOOKUP(J99,Names!$A$2:$A$161,Names!$B$2:$B$161) ->  | P99: 31 | Q99: =$Q$51 -> 0 | R99: =LOOKUP(Q99,Names!$A$2:$A$161,Names!$B$2:$B$161) ->  | W99: 31 | X99: =$Q$52 -> 0 | Y99: =LOOKUP(X99,Names!$A$2:$A$161,Names!$B$2:$B$161) -> 
A100: 32 | B100: 32 | C100: =$X$49 -> 0 | D100: =LOOKUP(C100,Names!$A$2:$A$161,Names!$B$2:$B$161) ->  | I100: 32 | J100: =$X$50 -> 0 | K100: =LOOKUP(J100,Names!$A$2:$A$161,Names!$B$2:$B$161) ->  | P100: 32 | Q100: =$X$51 -> 0 | R100: =LOOKUP(Q100,Names!$A$2:$A$161,Names!$B$2:$B$161) ->  | W100: 32 | X100: =$X$52 -> 0 | Y100: =LOOKUP(X100,Names!$A$2:$A$161,Names!$B$2:$B$161) -> 
A101: 33 | B101: 33 | C101: =$C$55 -> 0 | D101: =LOOKUP(C101,Names!$A$2:$A$161,Names!$B$2:$B$161) ->  | I101: 33 | J101: =$C$56 -> 0 | K101: =LOOKUP(J101,Names!$A$2:$A$161,Names!$B$2:$B$161) ->  | P101: 33 | Q101: =$C$57 -> 0 | R101: =LOOKUP(Q101,Names!$A$2:$A$161,Names!$B$2:$B$161) ->  | W101: 33 | X101: =$C$58 -> 0 | Y101: =LOOKUP(X101,Names!$A$2:$A$161,Names!$B$2:$B$161) -> 
A102: 34 | B102: 34 | C102: =$J$55 -> 0 | D102: =LOOKUP(C102,Names!$A$2:$A$161,Names!$B$2:$B$161) ->  | I102: 34 | J102: =$J$56 -> 0 | K102: =LOOKUP(J102,Names!$A$2:$A$161,Names!$B$2:$B$161) ->  | P102: 34 | Q102: =$J$57 -> 0 | R102: =LOOKUP(Q102,Names!$A$2:$A$161,Names!$B$2:$B$161) ->  | W102: 34 | X102: =$J$58 -> 0 | Y102: =LOOKUP(X102,Names!$A$2:$A$161,Names!$B$2:$B$161) -> 
A103: 35 | B103: 35 | C103: =$Q$55 -> 0 | D103: =LOOKUP(C103,Names!$A$2:$A$161,Names!$B$2:$B$161) ->  | I103: 35 | J103: =$Q$56 -> 0 | K103: =LOOKUP(J103,Names!$A$2:$A$161,Names!$B$2:$B$161) ->  | P103: 35 | Q103: =$Q$57 -> 0 | R103: =LOOKUP(Q103,Names!$A$2:$A$161,Names!$B$2:$B$161) ->  | W103: 35 | X103: =$Q$58 -> 0 | Y103: =LOOKUP(X103,Names!$A$2:$A$161,Names!$B$2:$B$161) -> 
A104: 36 | B104: 36 | C104: =$X$55 -> 0 | D104: =LOOKUP(C104,Names!$A$2:$A$161,Names!$B$2:$B$161) ->  | I104: 36 | J104: =$X$56 -> 0 | K104: =LOOKUP(J104,Names!$A$2:$A$161,Names!$B$2:$B$161) ->  | P104: 36 | Q104: =$X$57 -> 0 | R104: =LOOKUP(Q104,Names!$A$2:$A$161,Names!$B$2:$B$161) ->  | W104: 36 | X104: =$X$58 -> 0 | Y104: =LOOKUP(X104,Names!$A$2:$A$161,Names!$B$2:$B$161) -> 
A105: 37 | B105: 37 | C105: =$C$61 -> 0 | D105: =LOOKUP(C105,Names!$A$2:$A$161,Names!$B$2:$B$161) ->  | I105: 37 | J105: =$C$62 -> 0 | K105: =LOOKUP(J105,Names!$A$2:$A$161,Names!$B$2:$B$161) ->  | P105: 37 | Q105: =$C$63 -> 0 | R105: =LOOKUP(Q105,Names!$A$2:$A$161,Names!$B$2:$B$161) ->  | W105: 37 | X105: =$C$64 -> 0 | Y105: =LOOKUP(X105,Names!$A$2:$A$161,Names!$B$2:$B$161) -> 
A106: 38 | B106: 38 | C106: =$J$61 -> 0 | D106: =LOOKUP(C106,Names!$A$2:$A$161,Names!$B$2:$B$161) ->  | I106: 38 | J106: =$J$62 -> 0 | K106: =LOOKUP(J106,Names!$A$2:$A$161,Names!$B$2:$B$161) ->  | P106: 38 | Q106: =$J$63 -> 0 | R106: =LOOKUP(Q106,Names!$A$2:$A$161,Names!$B$2:$B$161) ->  | W106: 38 | X106: =$J$64 -> 0 | Y106: =LOOKUP(X106,Names!$A$2:$A$161,Names!$B$2:$B$161) -> 
A107: 39 | B107: 39 | C107: =$Q$61 -> 0 | D107: =LOOKUP(C107,Names!$A$2:$A$161,Names!$B$2:$B$161) ->  | I107: 39 | J107: =$Q$62 -> 0 | K107: =LOOKUP(J107,Names!$A$2:$A$161,Names!$B$2:$B$161) ->  | P107: 39 | Q107: =$Q$63 -> 0 | R107: =LOOKUP(Q107,Names!$A$2:$A$161,Names!$B$2:$B$161) ->  | W107: 39 | X107: =$Q$64 -> 0 | Y107: =LOOKUP(X107,Names!$A$2:$A$161,Names!$B$2:$B$161) -> 
A108: 40 | B108: 40 | C108: =$X$61 -> 0 | D108: =LOOKUP(C108,Names!$A$2:$A$161,Names!$B$2:$B$161) ->  | I108: 40 | J108: =$X$62 -> 0 | K108: =LOOKUP(J108,Names!$A$2:$A$161,Names!$B$2:$B$161) ->  | P108: 40 | Q108: =$X$63 -> 0 | R108: =LOOKUP(Q108,Names!$A$2:$A$161,Names!$B$2:$B$161) ->  | W108: 40 | X108: =$X$64 -> 0 | Y108: =LOOKUP(X108,Names!$A$2:$A$161,Names!$B$2:$B$161) -> 

Sheet R3
L1: Round ( 3 ) | Y1: =Score!Q1 -> بطولة الاتحاد الثامنة للفردي المفتوح
L3: Tab.
D4: 1 | K4: 2 | R4: 3 | Y4: 4
D5: Names | E5: Sc. | F5: Tab | K5: Names | L5: Sc. | M5: Tab | R5: Names | S5: Sc. | T5: Tab | Y5: Names | Z5: Sc. | AA5: Tab
A6: N | B6: 1 | C6: =Score!O5 -> 1 | D6: =LOOKUP(C6,Names!$A$2:$A$161,Names!$B$2:$B$161) -> إبراهيم عرفان السقا | E6: 166 | F6: =Sheet1!$M$5 -> 2.85 | G6: =F69 -> 11 | H6: N | I6: 1 | J6: =Score!O9 -> 5 | K6: =LOOKUP(J6,Names!$A$2:$A$161,Names!$B$2:$B$161) -> أحمد محمد أمين | L6: 51 | M6: =Sheet1!$M$7 -> 0 | N6: =F70 -> 2 | O6: N | P6: 1 | Q6: =Score!O13 -> 9 | R6: =LOOKUP(Q6,Names!$A$2:$A$161,Names!$B$2:$B$161) -> عمرو محمد مصطفى | S6: 82 | T6: =Sheet1!$M$6 -> 1.9 | U6: =F71 -> 4 | V6: N | W6: 1 | X6: =Score!O17 -> 13 | Y6: =LOOKUP(X6,Names!$A$2:$A$161,Names!$B$2:$B$161) -> عمرو سمير دسوقي | Z6: 115 | AA6: =Sheet1!$M$7 -> 0 | AB6: =F72 -> 7
A7: W | B7: 2 | C7: =Score!O6 -> 2 | D7: =LOOKUP(C7,Names!$A$2:$A$161,Names!$B$2:$B$161) -> مصطفى محمد علي شرف | E7: 135 | F7: =Sheet1!$M$7 -> 0 | G7: =M69 -> 4 | H7: W | I7: 2 | J7: =Score!O10 -> 6 | K7: =LOOKUP(J7,Names!$A$2:$A$161,Names!$B$2:$B$161) -> معتز محمد عبد المنعم | L7: 163 | M7: =Sheet1!$M$5 -> 2.85 | N7: =M70 -> 9 | O7: W | P7: 2 | Q7: =Score!O14 -> 10 | R7: =LOOKUP(Q7,Names!$A$2:$A$161,Names!$B$2:$B$161) -> تامر تيمور شكري | S7: 43 | T7: =Sheet1!$M$7 -> 0 | U7: =M71 -> 1 | V7: W | W7: 2 | X7: =Score!O18 -> 14 | Y7: =LOOKUP(X7,Names!$A$2:$A$161,Names!$B$2:$B$161) -> أحمد محمد محمدي | Z7: 154 | AA7: 3.8 | AB7: =M72 -> 7
A8: S | B8: 3 | C8: =Score!O7 -> 3 | D8: =LOOKUP(C8,Names!$A$2:$A$161,Names!$B$2:$B$161) -> أحمد محمد حمدي صالح | E8: 187 | F8: =Sheet1!$M$4 -> 4.75 | G8: =T69 -> 17 | H8: S | I8: 3 | J8: =Score!O11 -> 7 | K8: =LOOKUP(J8,Names!$A$2:$A$161,Names!$B$2:$B$161) -> هيثم محمد شبانة | L8: 180 | M8: =Sheet1!$M$4 -> 4.75 | N8: =T70 -> 14 | O8: S | P8: 3 | Q8: =Score!O15 -> 11 | R8: =LOOKUP(Q8,Names!$A$2:$A$161,Names!$B$2:$B$161) -> هيثم العشماوي | S8: 230 | T8: =Sheet1!$M$4 -> 4.75 | U8: =T71 -> 19 | V8: S | W8: 3 | X8: =Score!O19 -> 15 | Y8: =LOOKUP(X8,Names!$A$2:$A$161,Names!$B$2:$B$161) -> حسام الدين صلاح أبو الفتوح | Z8: 144 | AA8: =Sheet1!$M$6 -> 1.9 | AB8: =T72 -> 11
A9: E | B9: 4 | C9: =Score!O8 -> 4 | D9: =LOOKUP(C9,Names!$A$2:$A$161,Names!$B$2:$B$161) -> أحمد جميل السيد | E9: 149 | F9: =Sheet1!$M$6 -> 1.9 | G9: =AA69 -> 10 | H9: E | I9: 4 | J9: =Score!O12 -> 8 | K9: =LOOKUP(J9,Names!$A$2:$A$161,Names!$B$2:$B$161) -> عبد الرحمن محمود عثمان | L9: 101 | M9: =Sheet1!$M$6 -> 1.9 | N9: =AA70 -> 3 | O9: E | P9: 4 | Q9: =Score!O16 -> 12 | R9: =LOOKUP(Q9,Names!$A$2:$A$161,Names!$B$2:$B$161) -> أحمد علي السيد شرع | S9: 128 | T9: =Sheet1!$M$5 -> 2.85 | U9: =AA71 -> 6 | V9: E | W9: 4 | X9: =Score!O20 -> 16 | Y9: =LOOKUP(X9,Names!$A$2:$A$161,Names!$B$2:$B$161) -> طارق عبد الغني السحار | Z9: 154 | AA9: 3.8 | AB9: =AA72 -> 12
D10: 5 | K10: 6 | R10: 7 | Y10: 8
D11: Names | E11: Sc. | F11: Tab | K11: Names | L11: Sc. | M11: Tab | R11: Names | S11: Sc. | T11: Tab | Y11: Names | Z11: Sc. | AA11: Tab
A12: N | B12: 1 | C12: =Score!O21 -> 17 | D12: =LOOKUP(C12,Names!$A$2:$A$161,Names!$B$2:$B$161) -> مينا ناجح صبحي | E12: 145 | F12: =Sheet1!$M$6 -> 1.9 | G12: =F73 -> 9 | H12: N | I12: 1 | J12: =Score!O25 -> 21 | K12: =LOOKUP(J12,Names!$A$2:$A$161,Names!$B$2:$B$161) -> محمد طارق عبد الله | L12: 249 | M12: =Sheet1!$M$4 -> 4.75 | N12: =F74 -> 17 | O12: N | P12: 1 | Q12: =Score!O29 -> 25 | R12: =LOOKUP(Q12,Names!$A$2:$A$161,Names!$B$2:$B$161) -> خالد حمدي محمد السيد | S12: 25 | T12: =Sheet1!$M$7 -> 0 | U12: =F75 -> 1 | V12: N | W12: 1 | X12: =Score!O33 -> 29 | Y12: =LOOKUP(X12,Names!$A$2:$A$161,Names!$B$2:$B$161) -> اسلام نصر الغنام | Z12: 106 | AA12: =Sheet1!$M$6 -> 1.9 | AB12: =F76 -> 5
A13: W | B13: 2 | C13: =Score!O22 -> 18 | D13: =LOOKUP(C13,Names!$A$2:$A$161,Names!$B$2:$B$161) -> وليد شعبان إسماعيل علي | E13: 155 | F13: =Sheet1!$M$5 -> 2.85 | G13: =M73 -> 8 | H13: W | I13: 2 | J13: =Score!O26 -> 22 | K13: =LOOKUP(J13,Names!$A$2:$A$161,Names!$B$2:$B$161) -> يوسف مسعد فراج | L13: 215 | M13: =Sheet1!$M$5 -> 2.85 | N13: =M74 -> 19 | O13: W | P13: 2 | Q13: =Score!O30 -> 26 | R13: =LOOKUP(Q13,Names!$A$2:$A$161,Names!$B$2:$B$161) -> علاء شوقي جبريل | S13: 132 | T13: =Sheet1!$M$6 -> 1.9 | U13: =M75 -> 3 | V13: W | W13: 2 | X13: =Score!O34 -> 30 | Y13: =LOOKUP(X13,Names!$A$2:$A$161,Names!$B$2:$B$161) -> محمد سعيد الفطاطري | Z13: 167 | AA13: =Sheet1!$M$4 -> 4.75 | AB13: =M76 -> 11
A14: S | B14: 3 | C14: =Score!O23 -> 19 | D14: =LOOKUP(C14,Names!$A$2:$A$161,Names!$B$2:$B$161) -> محمد أحمد محمد عبد الله | E14: 69 | F14: =Sheet1!$M$7 -> 0 | G14: =T73 -> 4 | H14: S | I14: 3 | J14: =Score!O27 -> 23 | K14: =LOOKUP(J14,Names!$A$2:$A$161,Names!$B$2:$B$161) -> جمال احمد محمد جمال | L14: 70 | M14: =Sheet1!$M$7 -> 0 | N14: =T74 -> 5 | O14: S | P14: 3 | Q14: =Score!O31 -> 27 | R14: =LOOKUP(Q14,Names!$A$2:$A$161,Names!$B$2:$B$161) -> أحمد سمير خلف على | S14: 186 | T14: =Sheet1!$M$4 -> 4.75 | U14: =T75 -> 16 | V14: S | W14: 3 | X14: =Score!O35 -> 31 | Y14: =LOOKUP(X14,Names!$A$2:$A$161,Names!$B$2:$B$161) -> أحمد بسيوني | Z14: 42 | AA14: =Sheet1!$M$7 -> 0 | AB14: =T76 -> 3
A15: E | B15: 4 | C15: =Score!O24 -> 20 | D15: =LOOKUP(C15,Names!$A$2:$A$161,Names!$B$2:$B$161) -> عصام الدين محمد عبد العاطي | E15: 161 | F15: =Sheet1!$M$4 -> 4.75 | G15: =AA73 -> 15 | H15: E | I15: 4 | J15: =Score!O28 -> 24 | K15: =LOOKUP(J15,Names!$A$2:$A$161,Names!$B$2:$B$161) -> يامن محمد حسن | L15: 126 | M15: =Sheet1!$M$6 -> 1.9 | N15: =AA74 -> 5 | O15: E | P15: 4 | Q15: =Score!O32 -> 28 | R15: =LOOKUP(Q15,Names!$A$2:$A$161,Names!$B$2:$B$161) -> محمد حسن عبد القادر | S15: 133 | T15: =Sheet1!$M$5 -> 2.85 | U15: =AA75 -> 7 | V15: E | W15: 4 | X15: =Score!O36 -> 32 | Y15: =LOOKUP(X15,Names!$A$2:$A$161,Names!$B$2:$B$161) -> أمير محمد خطاب | Z15: 144 | AA15: =Sheet1!$M$5 -> 2.85 | AB15: =AA76 -> 9
D16: 9 | K16: 10 | R16: 11 | Y16: 12
D17: Names | E17: Sc. | F17: Tab | K17: Names | L17: Sc. | M17: Tab | R17: Names | S17: Sc. | T17: Tab | Y17: Names | Z17: Sc. | AA17: Tab
A18: N | B18: 1 | C18: =Score!O37 -> 33 | D18: =LOOKUP(C18,Names!$A$2:$A$161,Names!$B$2:$B$161) -> أحمد إبراهيم غانم | E18: 176 | F18: =Sheet1!$M$4 -> 4.75 | G18: =F77 -> 12 | H18: N | I18: 1 | J18: =Score!O41 -> 37 | K18: =LOOKUP(J18,Names!$A$2:$A$161,Names!$B$2:$B$161) -> 0 | N18: =F78 -> 0 | O18: N | P18: 1 | Q18: =Score!O45 -> 41 | R18: =LOOKUP(Q18,Names!$A$2:$A$161,Names!$B$2:$B$161) -> 0 | U18: =F79 -> 0 | V18: N | W18: 1 | X18: =Score!O49 -> 45 | Y18: =LOOKUP(X18,Names!$A$2:$A$161,Names!$B$2:$B$161) -> 0 | AB18: =F80 -> 0
A19: W | B19: 2 | C19: =Score!O38 -> 34 | D19: =LOOKUP(C19,Names!$A$2:$A$161,Names!$B$2:$B$161) -> شريف حلمي | E19: 167 | F19: =Sheet1!$M$5 -> 2.85 | G19: =M77 -> 11 | H19: W | I19: 2 | J19: =Score!O42 -> 38 | K19: =LOOKUP(J19,Names!$A$2:$A$161,Names!$B$2:$B$161) -> 0 | N19: =M78 -> 0 | O19: W | P19: 2 | Q19: =Score!O46 -> 42 | R19: =LOOKUP(Q19,Names!$A$2:$A$161,Names!$B$2:$B$161) -> 0 | U19: =M79 -> 0 | V19: W | W19: 2 | X19: =Score!O50 -> 46 | Y19: =LOOKUP(X19,Names!$A$2:$A$161,Names!$B$2:$B$161) -> 0 | AB19: =M80 -> 0
A20: S | B20: 3 | C20: =Score!O39 -> 35 | D20: =LOOKUP(C20,Names!$A$2:$A$161,Names!$B$2:$B$161) -> أحمد فؤاد حسنين | E20: 72 | F20: =Sheet1!$M$7 -> 0 | G20: =T77 -> 6 | H20: S | I20: 3 | J20: =Score!O43 -> 39 | K20: =LOOKUP(J20,Names!$A$2:$A$161,Names!$B$2:$B$161) -> 0 | N20: =T78 -> 0 | O20: S | P20: 3 | Q20: =Score!O47 -> 43 | R20: =LOOKUP(Q20,Names!$A$2:$A$161,Names!$B$2:$B$161) -> 0 | U20: =T79 -> 0 | V20: S | W20: 3 | X20: =Score!O51 -> 47 | Y20: =LOOKUP(X20,Names!$A$2:$A$161,Names!$B$2:$B$161) -> 0 | AB20: =T80 -> 0
A21: E | B21: 4 | C21: =Score!O40 -> 36 | D21: =LOOKUP(C21,Names!$A$2:$A$161,Names!$B$2:$B$161) -> محمد محمود فضل | E21: 164 | F21: =Sheet1!$M$6 -> 1.9 | G21: =AA77 -> 16 | H21: E | I21: 4 | J21: =Score!O44 -> 40 | K21: =LOOKUP(J21,Names!$A$2:$A$161,Names!$B$2:$B$161) -> 0 | N21: =AA78 -> 0 | O21: E | P21: 4 | Q21: =Score!O48 -> 44 | R21: =LOOKUP(Q21,Names!$A$2:$A$161,Names!$B$2:$B$161) -> 0 | U21: =AA79 -> 0 | V21: E | W21: 4 | X21: =Score!O52 -> 48 | Y21: =LOOKUP(X21,Names!$A$2:$A$161,Names!$B$2:$B$161) -> 0 | AB21: =AA80 -> 0
D22: 13 | K22: 14 | R22: 15 | Y22: 16
D23: Names | E23: Sc. | F23: Tab | K23: Names | L23: Sc. | M23: Tab | R23: Names | S23: Sc. | T23: Tab | Y23: Names | Z23: Sc. | AA23: Tab
A24: N | B24: 1 | C24: =Score!O53 -> 49 | D24: =LOOKUP(C24,Names!$A$2:$A$161,Names!$B$2:$B$161) -> 0 | E24: 0 | F24: =Sheet1!$M$4 -> 4.75 | G24: =F81 -> 0 | H24: N | I24: 1 | J24: =Score!O57 -> 53 | K24: =LOOKUP(J24,Names!$A$2:$A$161,Names!$B$2:$B$161) -> 0 | L24: 0 | M24: =Sheet1!$M$4 -> 4.75 | N24: =F82 -> 0 | O24: N | P24: 1 | Q24: =Score!O61 -> 57 | R24: =LOOKUP(Q24,Names!$A$2:$A$161,Names!$B$2:$B$161) -> 0 | S24: 0 | T24: =Sheet1!$M$4 -> 4.75 | U24: =F83 -> 0 | V24: N | W24: 1 | X24: =Score!O65 -> 61 | Y24: =LOOKUP(X24,Names!$A$2:$A$161,Names!$B$2:$B$161) -> 0 | Z24: 0 | AA24: =Sheet1!$M$4 -> 4.75 | AB24: =F84 -> 0
A25: W | B25: 2 | C25: =Score!O54 -> 50 | D25: =LOOKUP(C25,Names!$A$2:$A$161,Names!$B$2:$B$161) -> 0 | E25: 0 | F25: =Sheet1!$M$5 -> 2.85 | G25: =M81 -> 0 | H25: W | I25: 2 | J25: =Score!O58 -> 54 | K25: =LOOKUP(J25,Names!$A$2:$A$161,Names!$B$2:$B$161) -> 0 | L25: 0 | M25: =Sheet1!$M$5 -> 2.85 | N25: =M82 -> 0 | O25: W | P25: 2 | Q25: =Score!O62 -> 58 | R25: =LOOKUP(Q25,Names!$A$2:$A$161,Names!$B$2:$B$161) -> 0 | S25: 0 | T25: =Sheet1!$M$5 -> 2.85 | U25: =M83 -> 0 | V25: W | W25: 2 | X25: =Score!O66 -> 62 | Y25: =LOOKUP(X25,Names!$A$2:$A$161,Names!$B$2:$B$161) -> 0 | Z25: 0 | AA25: =Sheet1!$M$5 -> 2.85 | AB25: =M84 -> 0
A26: S | B26: 3 | C26: =Score!O55 -> 51 | D26: =LOOKUP(C26,Names!$A$2:$A$161,Names!$B$2:$B$161) -> 0 | E26: 0 | F26: =Sheet1!$M$6 -> 1.9 | G26: =T81 -> 0 | H26: S | I26: 3 | J26: =Score!O59 -> 55 | K26: =LOOKUP(J26,Names!$A$2:$A$161,Names!$B$2:$B$161) -> 0 | L26: 0 | M26: =Sheet1!$M$6 -> 1.9 | N26: =T82 -> 0 | O26: S | P26: 3 | Q26: =Score!O63 -> 59 | R26: =LOOKUP(Q26,Names!$A$2:$A$161,Names!$B$2:$B$161) -> 0 | S26: 0 | T26: =Sheet1!$M$6 -> 1.9 | U26: =T83 -> 0 | V26: S | W26: 3 | X26: =Score!O67 -> 63 | Y26: =LOOKUP(X26,Names!$A$2:$A$161,Names!$B$2:$B$161) -> 0 | Z26: 0 | AA26: =Sheet1!$M$6 -> 1.9 | AB26: =T84 -> 0
A27: E | B27: 4 | C27: =Score!O56 -> 52 | D27: =LOOKUP(C27,Names!$A$2:$A$161,Names!$B$2:$B$161) -> 0 | E27: 0 | F27: =Sheet1!$M$7 -> 0 | G27: =AA81 -> 0 | H27: E | I27: 4 | J27: =Score!O60 -> 56 | K27: =LOOKUP(J27,Names!$A$2:$A$161,Names!$B$2:$B$161) -> 0 | L27: 0 | M27: =Sheet1!$M$7 -> 0 | N27: =AA82 -> 0 | O27: E | P27: 4 | Q27: =Score!O64 -> 60 | R27: =LOOKUP(Q27,Names!$A$2:$A$161,Names!$B$2:$B$161) -> 0 | S27: 0 | T27: =Sheet1!$M$7 -> 0 | U27: =AA83 -> 0 | V27: E | W27: 4 | X27: =Score!O68 -> 64 | Y27: =LOOKUP(X27,Names!$A$2:$A$161,Names!$B$2:$B$161) -> 0 | Z27: 0 | AA27: =Sheet1!$M$7 -> 0 | AB27: =AA84 -> 0
D28: 17 | K28: 18 | R28: 19 | Y28: 20
D29: Names | E29: Sc. | F29: Tab | K29: Names | L29: Sc. | M29: Tab | R29: Names | S29: Sc. | T29: Tab | Y29: Names | Z29: Sc. | AA29: Tab
A30: N | B30: 1 | C30: =Score!O69 -> 65 | D30: =LOOKUP(C30,Names!$A$2:$A$161,Names!$B$2:$B$161) -> 0 | E30: 0 | F30: =Sheet1!$M$4 -> 4.75 | G30: =F85 -> 0 | H30: N | I30: 1 | J30: =Score!O73 -> 69 | K30: =LOOKUP(J30,Names!$A$2:$A$161,Names!$B$2:$B$161) -> 0 | L30: 0 | M30: =Sheet1!$M$4 -> 4.75 | N30: =F86 -> 0 | O30: N | P30: 1 | Q30: =Score!O77 -> 73 | R30: =LOOKUP(Q30,Names!$A$2:$A$161,Names!$B$2:$B$161) -> 0 | S30: 0 | T30: =Sheet1!$M$4 -> 4.75 | U30: =F87 -> 0 | V30: N | W30: 1 | X30: =Score!O81 -> 77 | Y30: =LOOKUP(X30,Names!$A$2:$A$161,Names!$B$2:$B$161) -> 0 | Z30: 0 | AA30: =Sheet1!$M$4 -> 4.75 | AB30: =F88 -> 0
A31: W | B31: 2 | C31: =Score!O70 -> 66 | D31: =LOOKUP(C31,Names!$A$2:$A$161,Names!$B$2:$B$161) -> 0 | E31: 0 | F31: =Sheet1!$M$5 -> 2.85 | G31: =M85 -> 0 | H31: W | I31: 2 | J31: =Score!O74 -> 70 | K31: =LOOKUP(J31,Names!$A$2:$A$161,Names!$B$2:$B$161) -> 0 | L31: 0 | M31: =Sheet1!$M$5 -> 2.85 | N31: =M86 -> 0 | O31: W | P31: 2 | Q31: =Score!O78 -> 74 | R31: =LOOKUP(Q31,Names!$A$2:$A$161,Names!$B$2:$B$161) -> 0 | S31: 0 | T31: =Sheet1!$M$5 -> 2.85 | U31: =M87 -> 0 | V31: W | W31: 2 | X31: =Score!O82 -> 78 | Y31: =LOOKUP(X31,Names!$A$2:$A$161,Names!$B$2:$B$161) -> 0 | Z31: 0 | AA31: =Sheet1!$M$5 -> 2.85 | AB31: =M88 -> 0
A32: S | B32: 3 | C32: =Score!O71 -> 67 | D32: =LOOKUP(C32,Names!$A$2:$A$161,Names!$B$2:$B$161) -> 0 | E32: 0 | F32: =Sheet1!$M$6 -> 1.9 | G32: =T85 -> 0 | H32: S | I32: 3 | J32: =Score!O75 -> 71 | K32: =LOOKUP(J32,Names!$A$2:$A$161,Names!$B$2:$B$161) -> 0 | L32: 0 | M32: =Sheet1!$M$6 -> 1.9 | N32: =T86 -> 0 | O32: S | P32: 3 | Q32: =Score!O79 -> 75 | R32: =LOOKUP(Q32,Names!$A$2:$A$161,Names!$B$2:$B$161) -> 0 | S32: 0 | T32: =Sheet1!$M$6 -> 1.9 | U32: =T87 -> 0 | V32: S | W32: 3 | X32: =Score!O83 -> 79 | Y32: =LOOKUP(X32,Names!$A$2:$A$161,Names!$B$2:$B$161) -> 0 | Z32: 0 | AA32: =Sheet1!$M$6 -> 1.9 | AB32: =T88 -> 0
A33: E | B33: 4 | C33: =Score!O72 -> 68 | D33: =LOOKUP(C33,Names!$A$2:$A$161,Names!$B$2:$B$161) -> 0 | E33: 0 | F33: =Sheet1!$M$7 -> 0 | G33: =AA85 -> 0 | H33: E | I33: 4 | J33: =Score!O76 -> 72 | K33: =LOOKUP(J33,Names!$A$2:$A$161,Names!$B$2:$B$161) -> 0 | L33: 0 | M33: =Sheet1!$M$7 -> 0 | N33: =AA86 -> 0 | O33: E | P33: 4 | Q33: =Score!O80 -> 76 | R33: =LOOKUP(Q33,Names!$A$2:$A$161,Names!$B$2:$B$161) -> 0 | S33: 0 | T33: =Sheet1!$M$7 -> 0 | U33: =AA87 -> 0 | V33: E | W33: 4 | X33: =Score!O84 -> 80 | Y33: =LOOKUP(X33,Names!$A$2:$A$161,Names!$B$2:$B$161) -> 0 | Z33: 0 | AA33: =Sheet1!$M$7 -> 0 | AB33: =AA88 -> 0
D35: 21 | K35: 22 | R35: 23 | Y35: 24
D36: Names | E36: Sc. | F36: Tab | K36: Names | L36: Sc. | M36: Tab | R36: Names | S36: Sc. | T36: Tab | Y36: Names | Z36: Sc. | AA36: Tab
A37: N | B37: 1 | C37: =Score!O85 -> 81 | D37: =LOOKUP(C37,Names!$A$2:$A$161,Names!$B$2:$B$161) -> راجي محمد صبحي | E37: 107 | F37: =Sheet1!$M$6 -> 1.9 | G37: =F89 -> 6 | H37: N | I37: 1 | J37: =Score!O89 -> 110 | K37: =LOOKUP(J37,Names!$A$2:$A$161,Names!$B$2:$B$161) -> أسامة أحمد زكي | L37: 181 | M37: =Sheet1!$M$5 -> 2.85 | N37: =F90 -> 13 | O37: N | P37: 1 | Q37: =Score!O93 -> 104 | R37: =LOOKUP(Q37,Names!$A$2:$A$161,Names!$B$2:$B$161) -> كريم إيهاب عامر | S37: 186 | T37: =Sheet1!$M$4 -> 4.75 | U37: =F91 -> 14 | V37: N | W37: 1 | X37: =Score!O97 -> 101 | Y37: =LOOKUP(X37,Names!$A$2:$A$161,Names!$B$2:$B$161) -> أحمد محمد شوقى عبد الحميد | Z37: 55 | AA37: =Sheet1!$M$7 -> 0 | AB37: =F92 -> 3
A38: W | B38: 2 | C38: =Score!O86 -> 97 | D38: =LOOKUP(C38,Names!$A$2:$A$161,Names!$B$2:$B$161) -> خالد محمد شبارة | E38: 167 | F38: =Sheet1!$M$4 -> 4.75 | G38: =M89 -> 11 | H38: W | I38: 2 | J38: =Score!O90 -> 91 | K38: =LOOKUP(J38,Names!$A$2:$A$161,Names!$B$2:$B$161) -> عماد محمد فؤاد مرسي | L38: 184 | M38: =Sheet1!$M$4 -> 4.75 | N38: =M90 -> 14.5 | O38: W | P38: 2 | Q38: =Score!O94 -> 85 | R38: =LOOKUP(Q38,Names!$A$2:$A$161,Names!$B$2:$B$161) -> محمد عبد الهادي أبو القاسم | S38: 185 | T38: =Sheet1!$M$5 -> 2.85 | U38: =M91 -> 16 | V38: W | W38: 2 | X38: =Score!O98 -> 114 | Y38: =LOOKUP(X38,Names!$A$2:$A$161,Names!$B$2:$B$161) -> احمد سردينة | Z38: 184 | AA38: =Sheet1!$M$4 -> 4.75 | AB38: =M92 -> 14.5
A39: S | B39: 3 | C39: =Score!O87 -> 113 | D39: =LOOKUP(C39,Names!$A$2:$A$161,Names!$B$2:$B$161) -> محمد حسن فهيم | E39: 159 | F39: =Sheet1!$M$5 -> 2.85 | G39: =T89 -> 12 | H39: S | I39: 3 | J39: =Score!O91 -> 107 | K39: =LOOKUP(J39,Names!$A$2:$A$161,Names!$B$2:$B$161) -> شادي أحمد محمود وهبة | L39: 92 | M39: =Sheet1!$M$7 -> 0 | N39: =T90 -> 7 | O39: S | P39: 3 | Q39: =Score!O95 -> 98 | R39: =LOOKUP(Q39,Names!$A$2:$A$161,Names!$B$2:$B$161) -> محمد محمود شعبان رمضان | S39: 96 | T39: =Sheet1!$M$7 -> 0 | U39: =T91 -> 8 | V39: S | W39: 3 | X39: =Score!O99 -> 95 | Y39: =LOOKUP(X39,Names!$A$2:$A$161,Names!$B$2:$B$161) -> احمد طنطاوى | Z39: 169 | AA39: =Sheet1!$M$5 -> 2.85 | AB39: =T92 -> 13
A40: E | B40: 4 | C40: =Score!O88 -> 94 | D40: =LOOKUP(C40,Names!$A$2:$A$161,Names!$B$2:$B$161) -> محمد عصام الدين القاضي | E40: 106 | F40: =Sheet1!$M$7 -> 0 | G40: =AA89 -> 4 | H40: E | I40: 4 | J40: =Score!O92 -> 88 | K40: =LOOKUP(J40,Names!$A$2:$A$161,Names!$B$2:$B$161) -> أحمد علي خليل حسن | L40: 178 | M40: =Sheet1!$M$6 -> 1.9 | N40: =AA90 -> 17 | O40: E | P40: 4 | Q40: =Score!O96 -> 82 | R40: =LOOKUP(Q40,Names!$A$2:$A$161,Names!$B$2:$B$161) -> أحمد صلاح الدين دياب | S40: 152 | T40: =Sheet1!$M$6 -> 1.9 | U40: =AA91 -> 11 | V40: E | W40: 4 | X40: =Score!O100 -> 111 | Y40: =LOOKUP(X40,Names!$A$2:$A$161,Names!$B$2:$B$161) -> عادل محمد أبو زيد | Z40: 160 | AA40: =Sheet1!$M$6 -> 1.9 | AB40: =AA92 -> 14
D41: 25 | K41: 26 | R41: 27 | Y41: 28
D42: Names | E42: Sc. | F42: Tab | K42: Names | L42: Sc. | M42: Tab | R42: Names | S42: Sc. | T42: Tab | Y42: Names | Z42: Sc. | AA42: Tab
A43: N | B43: 1 | C43: =Score!O101 -> 92 | D43: =LOOKUP(C43,Names!$A$2:$A$161,Names!$B$2:$B$161) -> أحمد مصطفى راشد | E43: 198 | F43: =Sheet1!$M$4 -> 4.75 | G43: =F93 -> 15 | H43: N | I43: 1 | J43: =Score!O105 -> 83 | K43: =LOOKUP(J43,Names!$A$2:$A$161,Names!$B$2:$B$161) -> أسامة لطفى نجيب | L43: 162 | M43: =Sheet1!$M$5 -> 2.85 | N43: =F94 -> 10 | O43: N | P43: 1 | Q43: =Score!O109 -> 112 | R43: =LOOKUP(Q43,Names!$A$2:$A$161,Names!$B$2:$B$161) -> عمرو محمد محسن | S43: 202 | T43: =Sheet1!$M$5 -> 2.85 | U43: =F95 -> 16 | V43: N | W43: 1 | X43: =Score!O113 -> 87 | Y43: =LOOKUP(X43,Names!$A$2:$A$161,Names!$B$2:$B$161) -> ياسر شاهين | Z43: 370 | AA43: =Sheet1!$M$4 -> 4.75 | AB43: =F96 -> 19
A44: W | B44: 2 | C44: =Score!O102 -> 108 | D44: =LOOKUP(C44,Names!$A$2:$A$161,Names!$B$2:$B$161) -> كريم احمد ناصر | E44: 173 | F44: =Sheet1!$M$5 -> 2.85 | G44: =M93 -> 13 | H44: W | I44: 2 | J44: =Score!O106 -> 99 | K44: =LOOKUP(J44,Names!$A$2:$A$161,Names!$B$2:$B$161) -> ماجد محمد فكري | L44: 152 | M44: =Sheet1!$M$6 -> 1.9 | N44: =M94 -> 6 | O44: W | P44: 2 | Q44: =Score!O110 -> 93 | R44: =LOOKUP(Q44,Names!$A$2:$A$161,Names!$B$2:$B$161) -> جمال السيد توفيق | S44: 141 | T44: =Sheet1!$M$6 -> 1.9 | U44: =M95 -> 5 | V44: W | W44: 2 | X44: =Score!O114 -> 103 | Y44: =LOOKUP(X44,Names!$A$2:$A$161,Names!$B$2:$B$161) -> عمرو عماد الدين أبو العلا | Z44: 65 | AA44: =Sheet1!$M$6 -> 1.9 | AB44: =M96 -> 2
A45: S | B45: 3 | C45: =Score!O103 -> 86 | D45: =LOOKUP(C45,Names!$A$2:$A$161,Names!$B$2:$B$161) -> ايهاب يوسف عمارة | E45: 121 | F45: =Sheet1!$M$7 -> 0 | G45: =T93 -> 10 | H45: S | I45: 3 | J45: =Score!O107 -> 115 | K45: =LOOKUP(J45,Names!$A$2:$A$161,Names!$B$2:$B$161) -> خالد عبد العظيم | L45: 185 | M45: =Sheet1!$M$4 -> 4.75 | N45: =T94 -> 15 | O45: S | P45: 3 | Q45: =Score!O111 -> 90 | R45: =LOOKUP(Q45,Names!$A$2:$A$161,Names!$B$2:$B$161) -> محمد علي حسن طه الأمام | S45: 27 | T45: =Sheet1!$M$7 -> 0 | U45: =T95 -> 1 | V45: S | W45: 3 | X45: =Score!O115 -> 84 | Y45: =LOOKUP(X45,Names!$A$2:$A$161,Names!$B$2:$B$161) -> أحمد عز العرب السماحي | Z45: 30 | AA45: =Sheet1!$M$7 -> 0 | AB45: =T96 -> 2
A46: E | B46: 4 | C46: =Score!O104 -> 102 | D46: =LOOKUP(C46,Names!$A$2:$A$161,Names!$B$2:$B$161) -> سامي محمود الفولي | E46: 135 | F46: =Sheet1!$M$6 -> 1.9 | G46: =AA93 -> 8 | H46: E | I46: 4 | J46: =Score!O108 -> 96 | K46: =LOOKUP(J46,Names!$A$2:$A$161,Names!$B$2:$B$161) -> أحمد رمزي الديب | L46: 15 | M46: =Sheet1!$M$7 -> 0 | N46: =AA94 -> 1 | O46: E | P46: 4 | Q46: =Score!O112 -> 106 | R46: =LOOKUP(Q46,Names!$A$2:$A$161,Names!$B$2:$B$161) -> أحمد عبد العزيز العطار | S46: 204 | T46: =Sheet1!$M$4 -> 4.75 | U46: =AA95 -> 19 | V46: E | W46: 4 | X46: =Score!O116 -> 109 | Y46: =LOOKUP(X46,Names!$A$2:$A$161,Names!$B$2:$B$161) -> نبيل خلف زكي | Z46: 80 | AA46: =Sheet1!$M$5 -> 2.85 | AB46: =AA96 -> 2
D47: 29 | K47: 30 | R47: 31 | Y47: 32
D48: Names | E48: Sc. | F48: Tab | K48: Names | L48: Sc. | M48: Tab | R48: Names | S48: Sc. | T48: Tab | Y48: Names | Z48: Sc. | AA48: Tab
A49: N | B49: 1 | C49: =Score!O117 -> 100 | D49: =LOOKUP(C49,Names!$A$2:$A$161,Names!$B$2:$B$161) -> عبد الرحمن الدمراوى | E49: 125 | F49: =Sheet1!$M$6 -> 1.9 | G49: =F97 -> 8 | H49: N | I49: 1 | J49: =Score!O121 -> 0 | K49: =LOOKUP(J49,Names!$A$2:$A$161,Names!$B$2:$B$161) ->  | N49: =F98 -> 0 | O49: N | P49: 1 | Q49: =Score!O125 -> 0 | R49: =LOOKUP(Q49,Names!$A$2:$A$161,Names!$B$2:$B$161) ->  | U49: =F99 -> 0 | V49: N | W49: 1 | X49: =Score!O129 -> 0 | Y49: =LOOKUP(X49,Names!$A$2:$A$161,Names!$B$2:$B$161) ->  | AB49: =F100 -> 0
A50: W | B50: 2 | C50: =Score!O118 -> 89 | D50: =LOOKUP(C50,Names!$A$2:$A$161,Names!$B$2:$B$161) -> محمد بلبع | E50: 206 | F50: =Sheet1!$M$4 -> 4.75 | G50: =M97 -> 17 | H50: W | I50: 2 | J50: =Score!O122 -> 0 | K50: =LOOKUP(J50,Names!$A$2:$A$161,Names!$B$2:$B$161) ->  | N50: =M98 -> 0 | O50: W | P50: 2 | Q50: =Score!O126 -> 0 | R50: =LOOKUP(Q50,Names!$A$2:$A$161,Names!$B$2:$B$161) ->  | U50: =M99 -> 0 | V50: W | W50: 2 | X50: =Score!O130 -> 0 | Y50: =LOOKUP(X50,Names!$A$2:$A$161,Names!$B$2:$B$161) ->  | AB50: =M100 -> 0
A51: S | B51: 3 | C51: =Score!O119 -> 105 | D51: =LOOKUP(C51,Names!$A$2:$A$161,Names!$B$2:$B$161) -> مصطفى عبد الحفيظ علي | E51: 104 | F51: =Sheet1!$M$7 -> 0 | G51: =T97 -> 9 | H51: S | I51: 3 | J51: =Score!O123 -> 0 | K51: =LOOKUP(J51,Names!$A$2:$A$161,Names!$B$2:$B$161) ->  | N51: =T98 -> 0 | O51: S | P51: 3 | Q51: =Score!O127 -> 0 | R51: =LOOKUP(Q51,Names!$A$2:$A$161,Names!$B$2:$B$161) ->  | U51: =T99 -> 0 | V51: S | W51: 3 | X51: =Score!O131 -> 0 | Y51: =LOOKUP(X51,Names!$A$2:$A$161,Names!$B$2:$B$161) ->  | AB51: =T100 -> 0
A52: E | B52: 4 | C52: =Score!O120 -> 116 | D52: =LOOKUP(C52,Names!$A$2:$A$161,Names!$B$2:$B$161) -> اسامة قاسم | E52: 156 | F52: =Sheet1!$M$5 -> 2.85 | G52: =AA97 -> 13 | H52: E | I52: 4 | J52: =Score!O124 -> 0 | K52: =LOOKUP(J52,Names!$A$2:$A$161,Names!$B$2:$B$161) ->  | N52: =AA98 -> 0 | O52: E | P52: 4 | Q52: =Score!O128 -> 0 | R52: =LOOKUP(Q52,Names!$A$2:$A$161,Names!$B$2:$B$161) ->  | U52: =AA99 -> 0 | V52: E | W52: 4 | X52: =Score!O132 -> 0 | Y52: =LOOKUP(X52,Names!$A$2:$A$161,Names!$B$2:$B$161) ->  | AB52: =AA100 -> 0
D53: 33 | K53: 34 | R53: 35 | Y53: 36
D54: Names | E54: Sc. | F54: Tab | K54: Names | L54: Sc. | M54: Tab | R54: Names | S54: Sc. | T54: Tab | Y54: Names | Z54: Sc. | AA54: Tab
A55: N | B55: 1 | C55: =Score!O133 -> 0 | D55: =LOOKUP(C55,Names!$A$2:$A$161,Names!$B$2:$B$161) ->  | E55: 0 | F55: =Sheet1!$M$4 -> 4.75 | G55: =F101 -> 0 | H55: N | I55: 1 | J55: =Score!O137 -> 0 | K55: =LOOKUP(J55,Names!$A$2:$A$161,Names!$B$2:$B$161) ->  | L55: 0 | M55: =Sheet1!$M$4 -> 4.75 | N55: =F102 -> 0 | O55: N | P55: 1 | Q55: =Score!O141 -> 0 | R55: =LOOKUP(Q55,Names!$A$2:$A$161,Names!$B$2:$B$161) ->  | S55: 0 | T55: =Sheet1!$M$4 -> 4.75 | U55: =F103 -> 0 | V55: N | W55: 1 | X55: =Score!O145 -> 0 | Y55: =LOOKUP(X55,Names!$A$2:$A$161,Names!$B$2:$B$161) ->  | Z55: 0 | AA55: =Sheet1!$M$4 -> 4.75 | AB55: =F104 -> 0
A56: W | B56: 2 | C56: =Score!O134 -> 0 | D56: =LOOKUP(C56,Names!$A$2:$A$161,Names!$B$2:$B$161) ->  | E56: 0 | F56: =Sheet1!$M$5 -> 2.85 | G56: =M101 -> 0 | H56: W | I56: 2 | J56: =Score!O138 -> 0 | K56: =LOOKUP(J56,Names!$A$2:$A$161,Names!$B$2:$B$161) ->  | L56: 0 | M56: =Sheet1!$M$5 -> 2.85 | N56: =M102 -> 0 | O56: W | P56: 2 | Q56: =Score!O142 -> 0 | R56: =LOOKUP(Q56,Names!$A$2:$A$161,Names!$B$2:$B$161) ->  | S56: 0 | T56: =Sheet1!$M$5 -> 2.85 | U56: =M103 -> 0 | V56: W | W56: 2 | X56: =Score!O146 -> 0 | Y56: =LOOKUP(X56,Names!$A$2:$A$161,Names!$B$2:$B$161) ->  | Z56: 0 | AA56: =Sheet1!$M$5 -> 2.85 | AB56: =M104 -> 0
A57: S | B57: 3 | C57: =Score!O135 -> 0 | D57: =LOOKUP(C57,Names!$A$2:$A$161,Names!$B$2:$B$161) ->  | E57: 0 | F57: =Sheet1!$M$6 -> 1.9 | G57: =T101 -> 0 | H57: S | I57: 3 | J57: =Score!O139 -> 0 | K57: =LOOKUP(J57,Names!$A$2:$A$161,Names!$B$2:$B$161) ->  | L57: 0 | M57: =Sheet1!$M$6 -> 1.9 | N57: =T102 -> 0 | O57: S | P57: 3 | Q57: =Score!O143 -> 0 | R57: =LOOKUP(Q57,Names!$A$2:$A$161,Names!$B$2:$B$161) ->  | S57: 0 | T57: =Sheet1!$M$6 -> 1.9 | U57: =T103 -> 0 | V57: S | W57: 3 | X57: =Score!O147 -> 0 | Y57: =LOOKUP(X57,Names!$A$2:$A$161,Names!$B$2:$B$161) ->  | Z57: 0 | AA57: =Sheet1!$M$6 -> 1.9 | AB57: =T104 -> 0
A58: E | B58: 4 | C58: =Score!O136 -> 0 | D58: =LOOKUP(C58,Names!$A$2:$A$161,Names!$B$2:$B$161) ->  | E58: 0 | F58: =Sheet1!$M$7 -> 0 | G58: =AA101 -> 0 | H58: E | I58: 4 | J58: =Score!O140 -> 0 | K58: =LOOKUP(J58,Names!$A$2:$A$161,Names!$B$2:$B$161) ->  | L58: 0 | M58: =Sheet1!$M$7 -> 0 | N58: =AA102 -> 0 | O58: E | P58: 4 | Q58: =Score!O144 -> 0 | R58: =LOOKUP(Q58,Names!$A$2:$A$161,Names!$B$2:$B$161) ->  | S58: 0 | T58: =Sheet1!$M$7 -> 0 | U58: =AA103 -> 0 | V58: E | W58: 4 | X58: =Score!O148 -> 0 | Y58: =LOOKUP(X58,Names!$A$2:$A$161,Names!$B$2:$B$161) ->  | Z58: 0 | AA58: =Sheet1!$M$7 -> 0 | AB58: =AA104 -> 0
D59: 37 | K59: 38 | R59: 39 | Y59: 40
D60: Names | E60: Sc. | F60: Tab | K60: Names | L60: Sc. | M60: Tab | R60: Names | S60: Sc. | T60: Tab | Y60: Names | Z60: Sc. | AA60: Tab
A61: N | B61: 1 | C61: =Score!O149 -> 0 | D61: =LOOKUP(C61,Names!$A$2:$A$161,Names!$B$2:$B$161) ->  | E61: 0 | F61: =Sheet1!$M$4 -> 4.75 | G61: =F105 -> 0 | H61: N | I61: 1 | J61: =Score!O153 -> 0 | K61: =LOOKUP(J61,Names!$A$2:$A$161,Names!$B$2:$B$161) ->  | L61: 0 | M61: =Sheet1!$M$4 -> 4.75 | N61: =F106 -> 0 | O61: N | P61: 1 | Q61: =Score!O157 -> 0 | R61: =LOOKUP(Q61,Names!$A$2:$A$161,Names!$B$2:$B$161) ->  | S61: 0 | T61: =Sheet1!$M$4 -> 4.75 | U61: =F107 -> 0 | V61: N | W61: 1 | X61: =Score!O161 -> 0 | Y61: =LOOKUP(X61,Names!$A$2:$A$161,Names!$B$2:$B$161) ->  | Z61: 0 | AA61: =Sheet1!$M$4 -> 4.75 | AB61: =F108 -> 0
A62: W | B62: 2 | C62: =Score!O150 -> 0 | D62: =LOOKUP(C62,Names!$A$2:$A$161,Names!$B$2:$B$161) ->  | E62: 0 | F62: =Sheet1!$M$5 -> 2.85 | G62: =M105 -> 0 | H62: W | I62: 2 | J62: =Score!O154 -> 0 | K62: =LOOKUP(J62,Names!$A$2:$A$161,Names!$B$2:$B$161) ->  | L62: 0 | M62: =Sheet1!$M$5 -> 2.85 | N62: =M106 -> 0 | O62: W | P62: 2 | Q62: =Score!O158 -> 0 | R62: =LOOKUP(Q62,Names!$A$2:$A$161,Names!$B$2:$B$161) ->  | S62: 0 | T62: =Sheet1!$M$5 -> 2.85 | U62: =M107 -> 0 | V62: W | W62: 2 | X62: =Score!O162 -> 0 | Y62: =LOOKUP(X62,Names!$A$2:$A$161,Names!$B$2:$B$161) ->  | Z62: 0 | AA62: =Sheet1!$M$5 -> 2.85 | AB62: =M108 -> 0
A63: S | B63: 3 | C63: =Score!O151 -> 0 | D63: =LOOKUP(C63,Names!$A$2:$A$161,Names!$B$2:$B$161) ->  | E63: 0 | F63: =Sheet1!$M$6 -> 1.9 | G63: =T105 -> 0 | H63: S | I63: 3 | J63: =Score!O155 -> 0 | K63: =LOOKUP(J63,Names!$A$2:$A$161,Names!$B$2:$B$161) ->  | L63: 0 | M63: =Sheet1!$M$6 -> 1.9 | N63: =T106 -> 0 | O63: S | P63: 3 | Q63: =Score!O159 -> 0 | R63: =LOOKUP(Q63,Names!$A$2:$A$161,Names!$B$2:$B$161) ->  | S63: 0 | T63: =Sheet1!$M$6 -> 1.9 | U63: =T107 -> 0 | V63: S | W63: 3 | X63: =Score!O163 -> 0 | Y63: =LOOKUP(X63,Names!$A$2:$A$161,Names!$B$2:$B$161) ->  | Z63: 0 | AA63: =Sheet1!$M$6 -> 1.9 | AB63: =T108 -> 0
A64: E | B64: 4 | C64: =Score!O152 -> 0 | D64: =LOOKUP(C64,Names!$A$2:$A$161,Names!$B$2:$B$161) ->  | E64: 0 | F64: =Sheet1!$M$7 -> 0 | G64: =AA105 -> 0 | H64: E | I64: 4 | J64: =Score!O156 -> 0 | K64: =LOOKUP(J64,Names!$A$2:$A$161,Names!$B$2:$B$161) ->  | L64: 0 | M64: =Sheet1!$M$7 -> 0 | N64: =AA106 -> 0 | O64: E | P64: 4 | Q64: =Score!O160 -> 0 | R64: =LOOKUP(Q64,Names!$A$2:$A$161,Names!$B$2:$B$161) ->  | S64: 0 | T64: =Sheet1!$M$7 -> 0 | U64: =AA107 -> 0 | V64: E | W64: 4 | X64: =Score!O164 -> 0 | Y64: =LOOKUP(X64,Names!$A$2:$A$161,Names!$B$2:$B$161) ->  | Z64: 0 | AA64: =Sheet1!$M$7 -> 0 | AB64: =AA108 -> 0
K66: Axe
D67: North | K67: West | R67: South | Y67: East
D68: Names | E68: Sc. | F68: Axe | K68: Names | L68: Sc. | M68: Axe | R68: Names | S68: Sc. | T68: Axe | Y68: Names | Z68: Sc. | AA68: Axe
A69: 1 | B69: 1 | C69: =$C$6 -> 1 | D69: =LOOKUP(C69,Names!$A$2:$A$161,Names!$B$2:$B$161) -> إبراهيم عرفان السقا | E69: =$E$6 -> 166 | F69: =Sheet1!L10 -> 11 | I69: 1 | J69: =$C$7 -> 2 | K69: =LOOKUP(J69,Names!$A$2:$A$161,Names!$B$2:$B$161) -> مصطفى محمد علي شرف | L69: =$E$7 -> 135 | M69: =Sheet1!L17 -> 4 | P69: 1 | Q69: =$C$8 -> 3 | R69: =LOOKUP(Q69,Names!$A$2:$A$161,Names!$B$2:$B$161) -> أحمد محمد حمدي صالح | S69: =$E$8 -> 187 | T69: =Sheet1!L4 -> 17 | W69: 1 | X69: =$C$9 -> 4 | Y69: =LOOKUP(X69,Names!$A$2:$A$161,Names!$B$2:$B$161) -> أحمد جميل السيد | Z69: =$E$9 -> 149 | AA69: =Sheet1!L11 -> 10
A70: 2 | B70: 2 | C70: =$J$6 -> 5 | D70: =LOOKUP(C70,Names!$A$2:$A$161,Names!$B$2:$B$161) -> أحمد محمد أمين | E70: =$L$6 -> 51 | F70: =Sheet1!L19 -> 2 | I70: 2 | J70: =$J$7 -> 6 | K70: =LOOKUP(J70,Names!$A$2:$A$161,Names!$B$2:$B$161) -> معتز محمد عبد المنعم | L70: =$L$7 -> 163 | M70: =Sheet1!L12 -> 9 | P70: 2 | Q70: =$J$8 -> 7 | R70: =LOOKUP(Q70,Names!$A$2:$A$161,Names!$B$2:$B$161) -> هيثم محمد شبانة | S70: =$L$8 -> 180 | T70: =Sheet1!L7 -> 14 | W70: 2 | X70: =$J$9 -> 8 | Y70: =LOOKUP(X70,Names!$A$2:$A$161,Names!$B$2:$B$161) -> عبد الرحمن محمود عثمان | Z70: =$L$9 -> 101 | AA70: =Sheet1!L18 -> 3
A71: 3 | B71: 3 | C71: =$Q$6 -> 9 | D71: =LOOKUP(C71,Names!$A$2:$A$161,Names!$B$2:$B$161) -> عمرو محمد مصطفى | E71: =$S$6 -> 82 | F71: =Sheet1!L17 -> 4 | I71: 3 | J71: =$Q$7 -> 10 | K71: =LOOKUP(J71,Names!$A$2:$A$161,Names!$B$2:$B$161) -> تامر تيمور شكري | L71: =$S$7 -> 43 | M71: =Sheet1!L20 -> 1 | P71: 3 | Q71: =$Q$8 -> 11 | R71: =LOOKUP(Q71,Names!$A$2:$A$161,Names!$B$2:$B$161) -> هيثم العشماوي | S71: =$S$8 -> 230 | T71: =Sheet1!L3 -> 19 | W71: 3 | X71: =$Q$9 -> 12 | Y71: =LOOKUP(X71,Names!$A$2:$A$161,Names!$B$2:$B$161) -> أحمد علي السيد شرع | Z71: =$S$9 -> 128 | AA71: =Sheet1!L15 -> 6
A72: 4 | B72: 4 | C72: =$X$6 -> 13 | D72: =LOOKUP(C72,Names!$A$2:$A$161,Names!$B$2:$B$161) -> عمرو سمير دسوقي | E72: =$Z$6 -> 115 | F72: =Sheet1!L14 -> 7 | I72: 4 | J72: =$X$7 -> 14 | K72: =LOOKUP(J72,Names!$A$2:$A$161,Names!$B$2:$B$161) -> أحمد محمد محمدي | L72: =$Z$7 -> 154 | M72: =Sheet1!L14 -> 7 | P72: 4 | Q72: =$X$8 -> 15 | R72: =LOOKUP(Q72,Names!$A$2:$A$161,Names!$B$2:$B$161) -> حسام الدين صلاح أبو الفتوح | S72: =$Z$8 -> 144 | T72: =Sheet1!L10 -> 11 | W72: 4 | X72: =$X$9 -> 16 | Y72: =LOOKUP(X72,Names!$A$2:$A$161,Names!$B$2:$B$161) -> طارق عبد الغني السحار | Z72: =$Z$9 -> 154 | AA72: =Sheet1!L9 -> 12
A73: 5 | B73: 5 | C73: =$C$12 -> 17 | D73: =LOOKUP(C73,Names!$A$2:$A$161,Names!$B$2:$B$161) -> مينا ناجح صبحي | E73: =$E$12 -> 145 | F73: =Sheet1!L12 -> 9 | I73: 5 | J73: =$C$13 -> 18 | K73: =LOOKUP(J73,Names!$A$2:$A$161,Names!$B$2:$B$161) -> وليد شعبان إسماعيل علي | L73: =$E$13 -> 155 | M73: =Sheet1!L13 -> 8 | P73: 5 | Q73: =$C$14 -> 19 | R73: =LOOKUP(Q73,Names!$A$2:$A$161,Names!$B$2:$B$161) -> محمد أحمد محمد عبد الله | S73: =$E$14 -> 69 | T73: =Sheet1!L17 -> 4 | W73: 5 | X73: =$C$15 -> 20 | Y73: =LOOKUP(X73,Names!$A$2:$A$161,Names!$B$2:$B$161) -> عصام الدين محمد عبد العاطي | Z73: =$E$15 -> 161 | AA73: =Sheet1!L6 -> 15
A74: 6 | B74: 6 | C74: =$J$12 -> 21 | D74: =LOOKUP(C74,Names!$A$2:$A$161,Names!$B$2:$B$161) -> محمد طارق عبد الله | E74: =$L$12 -> 249 | F74: =Sheet1!L4 -> 17 | I74: 6 | J74: =$J$13 -> 22 | K74: =LOOKUP(J74,Names!$A$2:$A$161,Names!$B$2:$B$161) -> يوسف مسعد فراج | L74: =$L$13 -> 215 | M74: =Sheet1!L3 -> 19 | P74: 6 | Q74: =$J$14 -> 23 | R74: =LOOKUP(Q74,Names!$A$2:$A$161,Names!$B$2:$B$161) -> جمال احمد محمد جمال | S74: =$L$14 -> 70 | T74: =Sheet1!L16 -> 5 | W74: 6 | X74: =$J$15 -> 24 | Y74: =LOOKUP(X74,Names!$A$2:$A$161,Names!$B$2:$B$161) -> يامن محمد حسن | Z74: =$L$15 -> 126 | AA74: =Sheet1!L16 -> 5
A75: 7 | B75: 7 | C75: =$Q$12 -> 25 | D75: =LOOKUP(C75,Names!$A$2:$A$161,Names!$B$2:$B$161) -> خالد حمدي محمد السيد | E75: =$S$12 -> 25 | F75: =Sheet1!L20 -> 1 | I75: 7 | J75: =$Q$13 -> 26 | K75: =LOOKUP(J75,Names!$A$2:$A$161,Names!$B$2:$B$161) -> علاء شوقي جبريل | L75: =$S$13 -> 132 | M75: =Sheet1!L18 -> 3 | P75: 7 | Q75: =$Q$14 -> 27 | R75: =LOOKUP(Q75,Names!$A$2:$A$161,Names!$B$2:$B$161) -> أحمد سمير خلف على | S75: =$S$14 -> 186 | T75: =Sheet1!L5 -> 16 | W75: 7 | X75: =$Q$15 -> 28 | Y75: =LOOKUP(X75,Names!$A$2:$A$161,Names!$B$2:$B$161) -> محمد حسن عبد القادر | Z75: =$S$15 -> 133 | AA75: =Sheet1!L14 -> 7
A76: 8 | B76: 8 | C76: =$X$12 -> 29 | D76: =LOOKUP(C76,Names!$A$2:$A$161,Names!$B$2:$B$161) -> اسلام نصر الغنام | E76: =$Z$12 -> 106 | F76: =Sheet1!L16 -> 5 | I76: 8 | J76: =$X$13 -> 30 | K76: =LOOKUP(J76,Names!$A$2:$A$161,Names!$B$2:$B$161) -> محمد سعيد الفطاطري | L76: =$Z$13 -> 167 | M76: 11 | P76: 8 | Q76: =$X$14 -> 31 | R76: =LOOKUP(Q76,Names!$A$2:$A$161,Names!$B$2:$B$161) -> أحمد بسيوني | S76: =$Z$14 -> 42 | T76: =Sheet1!L18 -> 3 | W76: 8 | X76: =$X$15 -> 32 | Y76: =LOOKUP(X76,Names!$A$2:$A$161,Names!$B$2:$B$161) -> أمير محمد خطاب | Z76: =$Z$15 -> 144 | AA76: =Sheet1!L12 -> 9
A77: 9 | B77: 9 | C77: =$C$18 -> 33 | D77: =LOOKUP(C77,Names!$A$2:$A$161,Names!$B$2:$B$161) -> أحمد إبراهيم غانم | E77: =$E$18 -> 176 | F77: =Sheet1!L9 -> 12 | I77: 9 | J77: =$C$19 -> 34 | K77: =LOOKUP(J77,Names!$A$2:$A$161,Names!$B$2:$B$161) -> شريف حلمي | L77: =$E$19 -> 167 | M77: =Sheet1!L10 -> 11 | P77: 9 | Q77: =$C$20 -> 35 | R77: =LOOKUP(Q77,Names!$A$2:$A$161,Names!$B$2:$B$161) -> أحمد فؤاد حسنين | S77: =$E$20 -> 72 | T77: =Sheet1!L15 -> 6 | W77: 9 | X77: =$C$21 -> 36 | Y77: =LOOKUP(X77,Names!$A$2:$A$161,Names!$B$2:$B$161) -> محمد محمود فضل | Z77: =$E$21 -> 164 | AA77: =Sheet1!L5 -> 16
A78: 10 | B78: 10 | C78: =$J$18 -> 37 | D78: =LOOKUP(C78,Names!$A$2:$A$161,Names!$B$2:$B$161) -> 0 | E78: =$L$18 -> 0 | F78: =Sheet1!L21 -> 0 | I78: 10 | J78: =$J$19 -> 38 | K78: =LOOKUP(J78,Names!$A$2:$A$161,Names!$B$2:$B$161) -> 0 | L78: =$L$19 -> 0 | M78: =Sheet1!L21 -> 0 | P78: 10 | Q78: =$J$20 -> 39 | R78: =LOOKUP(Q78,Names!$A$2:$A$161,Names!$B$2:$B$161) -> 0 | S78: =$L$20 -> 0 | T78: =Sheet1!L21 -> 0 | W78: 10 | X78: =$J$21 -> 40 | Y78: =LOOKUP(X78,Names!$A$2:$A$161,Names!$B$2:$B$161) -> 0 | Z78: =$L$21 -> 0 | AA78: =Sheet1!L21 -> 0
A79: 11 | B79: 11 | C79: =$Q$18 -> 41 | D79: =LOOKUP(C79,Names!$A$2:$A$161,Names!$B$2:$B$161) -> 0 | I79: 11 | J79: =$Q$19 -> 42 | K79: =LOOKUP(J79,Names!$A$2:$A$161,Names!$B$2:$B$161) -> 0 | P79: 11 | Q79: =$Q$20 -> 43 | R79: =LOOKUP(Q79,Names!$A$2:$A$161,Names!$B$2:$B$161) -> 0 | W79: 11 | X79: =$Q$21 -> 44 | Y79: =LOOKUP(X79,Names!$A$2:$A$161,Names!$B$2:$B$161) -> 0
A80: 12 | B80: 12 | C80: =$X$18 -> 45 | D80: =LOOKUP(C80,Names!$A$2:$A$161,Names!$B$2:$B$161) -> 0 | I80: 12 | J80: =$X$19 -> 46 | K80: =LOOKUP(J80,Names!$A$2:$A$161,Names!$B$2:$B$161) -> 0 | P80: 12 | Q80: =$X$20 -> 47 | R80: =LOOKUP(Q80,Names!$A$2:$A$161,Names!$B$2:$B$161) -> 0 | W80: 12 | X80: =$X$21 -> 48 | Y80: =LOOKUP(X80,Names!$A$2:$A$161,Names!$B$2:$B$161) -> 0
A81: 13 | B81: 13 | C81: =$C$24 -> 49 | D81: =LOOKUP(C81,Names!$A$2:$A$161,Names!$B$2:$B$161) -> 0 | I81: 13 | J81: =$C$25 -> 50 | K81: =LOOKUP(J81,Names!$A$2:$A$161,Names!$B$2:$B$161) -> 0 | P81: 13 | Q81: =$C$26 -> 51 | R81: =LOOKUP(Q81,Names!$A$2:$A$161,Names!$B$2:$B$161) -> 0 | W81: 13 | X81: =$C$27 -> 52 | Y81: =LOOKUP(X81,Names!$A$2:$A$161,Names!$B$2:$B$161) -> 0
A82: 14 | B82: 14 | C82: =$J$24 -> 53 | D82: =LOOKUP(C82,Names!$A$2:$A$161,Names!$B$2:$B$161) -> 0 | I82: 14 | J82: =$J$25 -> 54 | K82: =LOOKUP(J82,Names!$A$2:$A$161,Names!$B$2:$B$161) -> 0 | P82: 14 | Q82: =$J$26 -> 55 | R82: =LOOKUP(Q82,Names!$A$2:$A$161,Names!$B$2:$B$161) -> 0 | W82: 14 | X82: =$J$27 -> 56 | Y82: =LOOKUP(X82,Names!$A$2:$A$161,Names!$B$2:$B$161) -> 0
A83: 15 | B83: 15 | C83: =$Q$24 -> 57 | D83: =LOOKUP(C83,Names!$A$2:$A$161,Names!$B$2:$B$161) -> 0 | I83: 15 | J83: =$Q$25 -> 58 | K83: =LOOKUP(J83,Names!$A$2:$A$161,Names!$B$2:$B$161) -> 0 | P83: 15 | Q83: =$Q$26 -> 59 | R83: =LOOKUP(Q83,Names!$A$2:$A$161,Names!$B$2:$B$161) -> 0 | W83: 15 | X83: =$Q$27 -> 60 | Y83: =LOOKUP(X83,Names!$A$2:$A$161,Names!$B$2:$B$161) -> 0
A84: 16 | B84: 16 | C84: =$X$24 -> 61 | D84: =LOOKUP(C84,Names!$A$2:$A$161,Names!$B$2:$B$161) -> 0 | I84: 16 | J84: =$X$25 -> 62 | K84: =LOOKUP(J84,Names!$A$2:$A$161,Names!$B$2:$B$161) -> 0 | P84: 16 | Q84: =$X$26 -> 63 | R84: =LOOKUP(Q84,Names!$A$2:$A$161,Names!$B$2:$B$161) -> 0 | W84: 16 | X84: =$X$27 -> 64 | Y84: =LOOKUP(X84,Names!$A$2:$A$161,Names!$B$2:$B$161) -> 0
A85: 17 | B85: 17 | C85: =$C$30 -> 65 | D85: =LOOKUP(C85,Names!$A$2:$A$161,Names!$B$2:$B$161) -> 0 | I85: 17 | J85: =$C$31 -> 66 | K85: =LOOKUP(J85,Names!$A$2:$A$161,Names!$B$2:$B$161) -> 0 | P85: 17 | Q85: =$C$32 -> 67 | R85: =LOOKUP(Q85,Names!$A$2:$A$161,Names!$B$2:$B$161) -> 0 | W85: 17 | X85: =$C$33 -> 68 | Y85: =LOOKUP(X85,Names!$A$2:$A$161,Names!$B$2:$B$161) -> 0
A86: 18 | B86: 18 | C86: =$J$30 -> 69 | D86: =LOOKUP(C86,Names!$A$2:$A$161,Names!$B$2:$B$161) -> 0 | I86: 18 | J86: =$J$31 -> 70 | K86: =LOOKUP(J86,Names!$A$2:$A$161,Names!$B$2:$B$161) -> 0 | P86: 18 | Q86: =$J$32 -> 71 | R86: =LOOKUP(Q86,Names!$A$2:$A$161,Names!$B$2:$B$161) -> 0 | W86: 18 | X86: =$J$33 -> 72 | Y86: =LOOKUP(X86,Names!$A$2:$A$161,Names!$B$2:$B$161) -> 0
A87: 19 | B87: 19 | C87: =$Q$30 -> 73 | D87: =LOOKUP(C87,Names!$A$2:$A$161,Names!$B$2:$B$161) -> 0 | I87: 19 | J87: =$Q$31 -> 74 | K87: =LOOKUP(J87,Names!$A$2:$A$161,Names!$B$2:$B$161) -> 0 | P87: 19 | Q87: =$Q$32 -> 75 | R87: =LOOKUP(Q87,Names!$A$2:$A$161,Names!$B$2:$B$161) -> 0 | W87: 19 | X87: =$Q$33 -> 76 | Y87: =LOOKUP(X87,Names!$A$2:$A$161,Names!$B$2:$B$161) -> 0
A88: 20 | B88: 20 | C88: =$X$30 -> 77 | D88: =LOOKUP(C88,Names!$A$2:$A$161,Names!$B$2:$B$161) -> 0 | I88: 20 | J88: =$X$31 -> 78 | K88: =LOOKUP(J88,Names!$A$2:$A$161,Names!$B$2:$B$161) -> 0 | P88: 20 | Q88: =$X$32 -> 79 | R88: =LOOKUP(Q88,Names!$A$2:$A$161,Names!$B$2:$B$161) -> 0 | W88: 20 | X88: =$X$33 -> 80 | Y88: =LOOKUP(X88,Names!$A$2:$A$161,Names!$B$2:$B$161) -> 0
A89: 21 | B89: 21 | C89: =$C$37 -> 81 | D89: =LOOKUP(C89,Names!$A$2:$A$161,Names!$B$2:$B$161) -> راجي محمد صبحي | E89: =$E$37 -> 107 | F89: =Sheet1!L15 -> 6 | I89: 21 | J89: =$C$38 -> 97 | K89: =LOOKUP(J89,Names!$A$2:$A$161,Names!$B$2:$B$161) -> خالد محمد شبارة | L89: =$E$38 -> 167 | M89: 11 | P89: 21 | Q89: =$C$39 -> 113 | R89: =LOOKUP(Q89,Names!$A$2:$A$161,Names!$B$2:$B$161) -> محمد حسن فهيم | S89: =$E$39 -> 159 | T89: =Sheet1!L9 -> 12 | W89: 21 | X89: =$C$40 -> 94 | Y89: =LOOKUP(X89,Names!$A$2:$A$161,Names!$B$2:$B$161) -> محمد عصام الدين القاضي | Z89: =$E$40 -> 106 | AA89: =Sheet1!L17 -> 4
A90: 22 | B90: 22 | C90: =$J$37 -> 110 | D90: =LOOKUP(C90,Names!$A$2:$A$161,Names!$B$2:$B$161) -> أسامة أحمد زكي | E90: =$L$37 -> 181 | F90: =Sheet1!L8 -> 13 | I90: 22 | J90: =$J$38 -> 91 | K90: =LOOKUP(J90,Names!$A$2:$A$161,Names!$B$2:$B$161) -> عماد محمد فؤاد مرسي | L90: =$L$38 -> 184 | M90: 14.5 | P90: 22 | Q90: =$J$39 -> 107 | R90: =LOOKUP(Q90,Names!$A$2:$A$161,Names!$B$2:$B$161) -> شادي أحمد محمود وهبة | S90: =$L$39 -> 92 | T90: =Sheet1!L14 -> 7 | W90: 22 | X90: =$J$40 -> 88 | Y90: =LOOKUP(X90,Names!$A$2:$A$161,Names!$B$2:$B$161) -> أحمد علي خليل حسن | Z90: =$L$40 -> 178 | AA90: =Sheet1!L4 -> 17
A91: 23 | B91: 23 | C91: =$Q$37 -> 104 | D91: =LOOKUP(C91,Names!$A$2:$A$161,Names!$B$2:$B$161) -> كريم إيهاب عامر | E91: =$S$37 -> 186 | F91: =Sheet1!L7 -> 14 | I91: 23 | J91: =$Q$38 -> 85 | K91: =LOOKUP(J91,Names!$A$2:$A$161,Names!$B$2:$B$161) -> محمد عبد الهادي أبو القاسم | L91: =$S$38 -> 185 | M91: =Sheet1!L5 -> 16 | P91: 23 | Q91: =$Q$39 -> 98 | R91: =LOOKUP(Q91,Names!$A$2:$A$161,Names!$B$2:$B$161) -> محمد محمود شعبان رمضان | S91: =$S$39 -> 96 | T91: =Sheet1!L13 -> 8 | W91: 23 | X91: =$Q$40 -> 82 | Y91: =LOOKUP(X91,Names!$A$2:$A$161,Names!$B$2:$B$161) -> أحمد صلاح الدين دياب | Z91: =$S$40 -> 152 | AA91: =Sheet1!L10 -> 11
A92: 24 | B92: 24 | C92: =$X$37 -> 101 | D92: =LOOKUP(C92,Names!$A$2:$A$161,Names!$B$2:$B$161) -> أحمد محمد شوقى عبد الحميد | E92: =$Z$37 -> 55 | F92: =Sheet1!L18 -> 3 | I92: 24 | J92: =$X$38 -> 114 | K92: =LOOKUP(J92,Names!$A$2:$A$161,Names!$B$2:$B$161) -> احمد سردينة | L92: =$Z$38 -> 184 | M92: 14.5 | P92: 24 | Q92: =$X$39 -> 95 | R92: =LOOKUP(Q92,Names!$A$2:$A$161,Names!$B$2:$B$161) -> احمد طنطاوى | S92: =$Z$39 -> 169 | T92: =Sheet1!L8 -> 13 | W92: 24 | X92: =$X$40 -> 111 | Y92: =LOOKUP(X92,Names!$A$2:$A$161,Names!$B$2:$B$161) -> عادل محمد أبو زيد | Z92: =$Z$40 -> 160 | AA92: =Sheet1!L7 -> 14
A93: 25 | B93: 25 | C93: =$C$43 -> 92 | D93: =LOOKUP(C93,Names!$A$2:$A$161,Names!$B$2:$B$161) -> أحمد مصطفى راشد | E93: =$E$43 -> 198 | F93: =Sheet1!L6 -> 15 | I93: 25 | J93: =$C$44 -> 108 | K93: =LOOKUP(J93,Names!$A$2:$A$161,Names!$B$2:$B$161) -> كريم احمد ناصر | L93: =$E$44 -> 173 | M93: =Sheet1!L8 -> 13 | P93: 25 | Q93: =$C$45 -> 86 | R93: =LOOKUP(Q93,Names!$A$2:$A$161,Names!$B$2:$B$161) -> ايهاب يوسف عمارة | S93: =$E$45 -> 121 | T93: =Sheet1!L11 -> 10 | W93: 25 | X93: =$C$46 -> 102 | Y93: =LOOKUP(X93,Names!$A$2:$A$161,Names!$B$2:$B$161) -> سامي محمود الفولي | Z93: =$E$46 -> 135 | AA93: =Sheet1!L13 -> 8
A94: 26 | B94: 26 | C94: =$J$43 -> 83 | D94: =LOOKUP(C94,Names!$A$2:$A$161,Names!$B$2:$B$161) -> أسامة لطفى نجيب | E94: =$L$43 -> 162 | F94: =Sheet1!L11 -> 10 | I94: 26 | J94: =$J$44 -> 99 | K94: =LOOKUP(J94,Names!$A$2:$A$161,Names!$B$2:$B$161) -> ماجد محمد فكري | L94: =$L$44 -> 152 | M94: =Sheet1!L15 -> 6 | P94: 26 | Q94: =$J$45 -> 115 | R94: =LOOKUP(Q94,Names!$A$2:$A$161,Names!$B$2:$B$161) -> خالد عبد العظيم | S94: =$L$45 -> 185 | T94: =Sheet1!L6 -> 15 | W94: 26 | X94: =$J$46 -> 96 | Y94: =LOOKUP(X94,Names!$A$2:$A$161,Names!$B$2:$B$161) -> أحمد رمزي الديب | Z94: =$L$46 -> 15 | AA94: =Sheet1!L20 -> 1
A95: 27 | B95: 27 | C95: =$Q$43 -> 112 | D95: =LOOKUP(C95,Names!$A$2:$A$161,Names!$B$2:$B$161) -> عمرو محمد محسن | E95: =$S$43 -> 202 | F95: =Sheet1!L5 -> 16 | I95: 27 | J95: =$Q$44 -> 93 | K95: =LOOKUP(J95,Names!$A$2:$A$161,Names!$B$2:$B$161) -> جمال السيد توفيق | L95: =$S$44 -> 141 | M95: =Sheet1!L16 -> 5 | P95: 27 | Q95: =$Q$45 -> 90 | R95: =LOOKUP(Q95,Names!$A$2:$A$161,Names!$B$2:$B$161) -> محمد علي حسن طه الأمام | S95: =$S$45 -> 27 | T95: =Sheet1!L20 -> 1 | W95: 27 | X95: =$Q$46 -> 106 | Y95: =LOOKUP(X95,Names!$A$2:$A$161,Names!$B$2:$B$161) -> أحمد عبد العزيز العطار | Z95: =$S$46 -> 204 | AA95: =Sheet1!L3 -> 19
A96: 28 | B96: 28 | C96: =$X$43 -> 87 | D96: =LOOKUP(C96,Names!$A$2:$A$161,Names!$B$2:$B$161) -> ياسر شاهين | E96: =$Z$43 -> 370 | F96: =Sheet1!L3 -> 19 | I96: 28 | J96: =$X$44 -> 103 | K96: =LOOKUP(J96,Names!$A$2:$A$161,Names!$B$2:$B$161) -> عمرو عماد الدين أبو العلا | L96: =$Z$44 -> 65 | M96: =Sheet1!L19 -> 2 | P96: 28 | Q96: =$X$45 -> 84 | R96: =LOOKUP(Q96,Names!$A$2:$A$161,Names!$B$2:$B$161) -> أحمد عز العرب السماحي | S96: =$Z$45 -> 30 | T96: =Sheet1!L19 -> 2 | W96: 28 | X96: =$X$46 -> 109 | Y96: =LOOKUP(X96,Names!$A$2:$A$161,Names!$B$2:$B$161) -> نبيل خلف زكي | Z96: =$Z$46 -> 80 | AA96: =Sheet1!L19 -> 2
A97: 29 | B97: 29 | C97: =$C$49 -> 100 | D97: =LOOKUP(C97,Names!$A$2:$A$161,Names!$B$2:$B$161) -> عبد الرحمن الدمراوى | E97: =$E$49 -> 125 | F97: =Sheet1!L13 -> 8 | I97: 29 | J97: =$C$50 -> 89 | K97: =LOOKUP(J97,Names!$A$2:$A$161,Names!$B$2:$B$161) -> محمد بلبع | L97: =$E$50 -> 206 | M97: =Sheet1!L4 -> 17 | P97: 29 | Q97: =$C$51 -> 105 | R97: =LOOKUP(Q97,Names!$A$2:$A$161,Names!$B$2:$B$161) -> مصطفى عبد الحفيظ علي | S97: =$E$51 -> 104 | T97: =Sheet1!L12 -> 9 | W97: 29 | X97: =$C$52 -> 116 | Y97: =LOOKUP(X97,Names!$A$2:$A$161,Names!$B$2:$B$161) -> اسامة قاسم | Z97: =$E$52 -> 156 | AA97: =Sheet1!L8 -> 13
A98: 30 | B98: 30 | C98: =$J$49 -> 0 | D98: =LOOKUP(C98,Names!$A$2:$A$161,Names!$B$2:$B$161) ->  | I98: 30 | J98: =$J$50 -> 0 | K98: =LOOKUP(J98,Names!$A$2:$A$161,Names!$B$2:$B$161) ->  | P98: 30 | Q98: =$J$51 -> 0 | R98: =LOOKUP(Q98,Names!$A$2:$A$161,Names!$B$2:$B$161) ->  | W98: 30 | X98: =$J$52 -> 0 | Y98: =LOOKUP(X98,Names!$A$2:$A$161,Names!$B$2:$B$161) -> 
A99: 31 | B99: 31 | C99: =$Q$49 -> 0 | D99: =LOOKUP(C99,Names!$A$2:$A$161,Names!$B$2:$B$161) ->  | I99: 31 | J99: =$Q$50 -> 0 | K99: =LOOKUP(J99,Names!$A$2:$A$161,Names!$B$2:$B$161) ->  | P99: 31 | Q99: =$Q$51 -> 0 | R99: =LOOKUP(Q99,Names!$A$2:$A$161,Names!$B$2:$B$161) ->  | W99: 31 | X99: =$Q$52 -> 0 | Y99: =LOOKUP(X99,Names!$A$2:$A$161,Names!$B$2:$B$161) -> 
A100: 32 | B100: 32 | C100: =$X$49 -> 0 | D100: =LOOKUP(C100,Names!$A$2:$A$161,Names!$B$2:$B$161) ->  | I100: 32 | J100: =$X$50 -> 0 | K100: =LOOKUP(J100,Names!$A$2:$A$161,Names!$B$2:$B$161) ->  | P100: 32 | Q100: =$X$51 -> 0 | R100: =LOOKUP(Q100,Names!$A$2:$A$161,Names!$B$2:$B$161) ->  | W100: 32 | X100: =$X$52 -> 0 | Y100: =LOOKUP(X100,Names!$A$2:$A$161,Names!$B$2:$B$161) -> 
A101: 33 | B101: 33 | C101: =$C$55 -> 0 | D101: =LOOKUP(C101,Names!$A$2:$A$161,Names!$B$2:$B$161) ->  | I101: 33 | J101: =$C$56 -> 0 | K101: =LOOKUP(J101,Names!$A$2:$A$161,Names!$B$2:$B$161) ->  | P101: 33 | Q101: =$C$57 -> 0 | R101: =LOOKUP(Q101,Names!$A$2:$A$161,Names!$B$2:$B$161) ->  | W101: 33 | X101: =$C$58 -> 0 | Y101: =LOOKUP(X101,Names!$A$2:$A$161,Names!$B$2:$B$161) -> 
A102: 34 | B102: 34 | C102: =$J$55 -> 0 | D102: =LOOKUP(C102,Names!$A$2:$A$161,Names!$B$2:$B$161) ->  | I102: 34 | J102: =$J$56 -> 0 | K102: =LOOKUP(J102,Names!$A$2:$A$161,Names!$B$2:$B$161) ->  | P102: 34 | Q102: =$J$57 -> 0 | R102: =LOOKUP(Q102,Names!$A$2:$A$161,Names!$B$2:$B$161) ->  | W102: 34 | X102: =$J$58 -> 0 | Y102: =LOOKUP(X102,Names!$A$2:$A$161,Names!$B$2:$B$161) -> 
A103: 35 | B103: 35 | C103: =$Q$55 -> 0 | D103: =LOOKUP(C103,Names!$A$2:$A$161,Names!$B$2:$B$161) ->  | I103: 35 | J103: =$Q$56 -> 0 | K103: =LOOKUP(J103,Names!$A$2:$A$161,Names!$B$2:$B$161) ->  | P103: 35 | Q103: =$Q$57 -> 0 | R103: =LOOKUP(Q103,Names!$A$2:$A$161,Names!$B$2:$B$161) ->  | W103: 35 | X103: =$Q$58 -> 0 | Y103: =LOOKUP(X103,Names!$A$2:$A$161,Names!$B$2:$B$161) -> 
A104: 36 | B104: 36 | C104: =$X$55 -> 0 | D104: =LOOKUP(C104,Names!$A$2:$A$161,Names!$B$2:$B$161) ->  | I104: 36 | J104: =$X$56 -> 0 | K104: =LOOKUP(J104,Names!$A$2:$A$161,Names!$B$2:$B$161) ->  | P104: 36 | Q104: =$X$57 -> 0 | R104: =LOOKUP(Q104,Names!$A$2:$A$161,Names!$B$2:$B$161) ->  | W104: 36 | X104: =$X$58 -> 0 | Y104: =LOOKUP(X104,Names!$A$2:$A$161,Names!$B$2:$B$161) -> 
A105: 37 | B105: 37 | C105: =$C$61 -> 0 | D105: =LOOKUP(C105,Names!$A$2:$A$161,Names!$B$2:$B$161) ->  | I105: 37 | J105: =$C$62 -> 0 | K105: =LOOKUP(J105,Names!$A$2:$A$161,Names!$B$2:$B$161) ->  | P105: 37 | Q105: =$C$63 -> 0 | R105: =LOOKUP(Q105,Names!$A$2:$A$161,Names!$B$2:$B$161) ->  | W105: 37 | X105: =$C$64 -> 0 | Y105: =LOOKUP(X105,Names!$A$2:$A$161,Names!$B$2:$B$161) -> 
A106: 38 | B106: 38 | C106: =$J$61 -> 0 | D106: =LOOKUP(C106,Names!$A$2:$A$161,Names!$B$2:$B$161) ->  | I106: 38 | J106: =$J$62 -> 0 | K106: =LOOKUP(J106,Names!$A$2:$A$161,Names!$B$2:$B$161) ->  | P106: 38 | Q106: =$J$63 -> 0 | R106: =LOOKUP(Q106,Names!$A$2:$A$161,Names!$B$2:$B$161) ->  | W106: 38 | X106: =$J$64 -> 0 | Y106: =LOOKUP(X106,Names!$A$2:$A$161,Names!$B$2:$B$161) -> 
A107: 39 | B107: 39 | C107: =$Q$61 -> 0 | D107: =LOOKUP(C107,Names!$A$2:$A$161,Names!$B$2:$B$161) ->  | I107: 39 | J107: =$Q$62 -> 0 | K107: =LOOKUP(J107,Names!$A$2:$A$161,Names!$B$2:$B$161) ->  | P107: 39 | Q107: =$Q$63 -> 0 | R107: =LOOKUP(Q107,Names!$A$2:$A$161,Names!$B$2:$B$161) ->  | W107: 39 | X107: =$Q$64 -> 0 | Y107: =LOOKUP(X107,Names!$A$2:$A$161,Names!$B$2:$B$161) -> 
A108: 40 | B108: 40 | C108: =$X$61 -> 0 | D108: =LOOKUP(C108,Names!$A$2:$A$161,Names!$B$2:$B$161) ->  | I108: 40 | J108: =$X$62 -> 0 | K108: =LOOKUP(J108,Names!$A$2:$A$161,Names!$B$2:$B$161) ->  | P108: 40 | Q108: =$X$63 -> 0 | R108: =LOOKUP(Q108,Names!$A$2:$A$161,Names!$B$2:$B$161) ->  | W108: 40 | X108: =$X$64 -> 0 | Y108: =LOOKUP(X108,Names!$A$2:$A$161,Names!$B$2:$B$161) -> 

Sheet Sheet1
A3: 1 | B3: 81 | C3: 1 | E3: 1 | F3: =LOOKUP(E3,$C$3:$C$82,$B$3:$B$82) -> 81 | H3: 1 | I3: 1 | L3: =$M$3+1 -> 19 | M3: 18 | N3: عدد الطاولات
B4: 82 | C4: 2 | E4: 17 | F4: =LOOKUP(E4,$C$3:$C$82,$B$3:$B$82) -> 97 | H4: 2 | I4: 2 | L4: =L3-2 -> 17 | M4: =N4*($M$3+1) -> 4.75 | N4: 0.25 | O4: الأول
B5: 83 | C5: 3 | E5: 33 | F5: 113 | H5: 3 | I5: 3 | L5: =L4-1 -> 16 | M5: =N5*($M$3+1) -> 2.85 | N5: 0.15 | O5: الثاني
B6: 84 | C6: 4 | E6: 14 | F6: 94 | H6: 4 | I6: 4 | L6: 15 | M6: 1.9 | N6: 0.1 | O6: الثالث
A7: 2 | B7: 85 | C7: 5 | E7: 30 | F7: 110 | H7: 5 | I7: 5 | L7: 14 | M7: 0 | N7: 0 | O7: الرابع
B8: 86 | C8: 6 | E8: 11 | F8: 91 | H8: 6 | I8: 6 | L8: 13
B9: 87 | C9: 7 | E9: 27 | F9: 107 | H9: 7 | I9: 7 | L9: 12
B10: 88 | C10: 8 | E10: 8 | F10: 88 | H10: 8 | I10: 8 | L10: 11
A11: 3 | B11: 89 | C11: 9 | E11: 24 | F11: 104 | H11: 9 | I11: 9 | L11: 10
B12: 90 | C12: 10 | E12: 5 | F12: 85 | H12: 10 | I12: 10 | L12: 9
B13: 91 | C13: 11 | E13: 18 | F13: 98 | H13: 11 | I13: 11 | L13: 8
B14: 92 | C14: 12 | E14: 2 | F14: 82 | H14: 12 | I14: 12 | L14: 7
A15: 4 | B15: 93 | C15: 13 | E15: 21 | F15: 101 | H15: 13 | I15: 13 | L15: 6
B16: 94 | C16: 14 | E16: 34 | F16: 114 | H16: 14 | I16: 14 | L16: 5
B17: 95 | C17: 15 | E17: 15 | F17: 95 | H17: 15 | I17: 15 | L17: 4
B18: 96 | C18: 16 | E18: 31 | F18: 111 | H18: 16 | I18: 16 | L18: 3
A19: 5 | B19: 97 | C19: 17 | E19: 12 | F19: 92 | H19: 17 | I19: 17 | L19: 2
B20: 98 | C20: 18 | E20: 28 | F20: =LOOKUP(E20,$C$3:$C$82,$B$3:$B$82) -> 108 | H20: 18 | I20: 18 | L20: 1
B21: 99 | C21: 19 | E21: 6 | F21: 86 | H21: 19 | I21: 19 | L21: 0
B22: 100 | C22: 20 | E22: 22 | F22: 102 | H22: 20 | I22: 20 | L22: -1
A23: 6 | B23: 101 | C23: 21 | E23: 3 | F23: 83 | H23: 21 | I23: 21 | L23: -2
B24: 102 | C24: 22 | E24: 19 | F24: 99 | H24: 22 | I24: 22 | L24: -3
B25: 103 | C25: 23 | E25: 35 | F25: 115 | H25: 23 | I25: 23 | L25: -4
B26: 104 | C26: 24 | E26: 16 | F26: 96 | H26: 24 | I26: 24 | L26: -5
A27: 7 | B27: 105 | C27: 25 | E27: 32 | F27: 112 | H27: 25 | I27: 25 | L27: -6
B28: 106 | C28: 26 | E28: 13 | F28: 93 | H28: 26 | I28: 26 | L28: -7
B29: 107 | C29: 27 | E29: 10 | F29: 90 | H29: 27 | I29: 27 | L29: -8
B30: 108 | C30: 28 | E30: 26 | F30: 106 | H30: 28 | I30: 28 | L30: -9
A31: 8 | B31: 109 | C31: 29 | E31: 7 | F31: 87 | H31: 29 | I31: 29 | L31: -10
B32: 110 | C32: 30 | E32: 23 | F32: 103 | H32: 30 | I32: 30 | L32: -11
B33: 111 | C33: 31 | E33: 4 | F33: 84 | H33: 31 | I33: 31 | L33: -12
B34: 112 | C34: 32 | E34: 29 | F34: 109 | H34: 32 | I34: 32 | L34: -13
A35: 9 | B35: 113 | C35: 33 | E35: 20 | F35: 100 | H35: 33 | I35: 33 | L35: -14
B36: 114 | C36: 34 | E36: 9 | F36: =LOOKUP(E36,$C$3:$C$82,$B$3:$B$82) -> 89 | H36: 34 | I36: 34 | L36: -15
B37: 115 | C37: 35 | E37: 25 | F37: 105 | H37: 35 | I37: 35 | L37: -16
B38: 116 | C38: 36 | E38: 36 | F38: 116 | H38: 36 | I38: 36 | L38: -17
A39: 10 | B39: 117 | C39: 37 | H39: 37 | I39: 37 | L39: -18
B40: 118 | C40: 38 | H40: 38 | I40: 38 | L40: -19
B41: 119 | C41: 39 | H41: 39 | I41: 39 | L41: -20
B42: 120 | C42: 40 | H42: 40 | I42: 40 | L42: -21
A43: 11 | B43: 121 | C43: 41 | H43: 41 | I43: 41
B44: 122 | C44: 42 | H44: 42 | I44: 42
B45: 123 | C45: 43 | H45: 43 | I45: 43
B46: 124 | C46: 44 | H46: 44 | I46: 44
A47: 12 | B47: 125 | C47: 45 | H47: 45 | I47: 45
B48: 126 | C48: 46 | H48: 46 | I48: 46
B49: 127 | C49: 47 | H49: 47 | I49: 47
B50: 128 | C50: 48 | H50: 48 | I50: 48
A51: 13 | B51: 129 | C51: 49 | H51: 49 | I51: 49
B52: 130 | C52: 50 | F52: =LOOKUP(E52,$C$3:$C$82,$B$3:$B$82) ->  | H52: 50 | I52: 50
B53: 131 | C53: 51 | H53: 51 | I53: 51
B54: 132 | C54: 52 | H54: 52 | I54: 52
A55: 14 | B55: 133 | C55: 53 | H55: 53 | I55: 53
B56: 134 | C56: 54 | H56: 54 | I56: 54
B57: 135 | C57: 55 | H57: 55 | I57: 55
B58: 136 | C58: 56 | H58: 56 | I58: 56
A59: 15 | C59: 57 | H59: 57 | I59: 57
C60: 58 | H60: 58 | I60: 58
C61: 59 | H61: 59 | I61: 59
C62: 60 | H62: 60 | I62: 60
A63: 16 | C63: 61 | H63: 61 | I63: 61
C64: 62 | H64: 62 | I64: 62
C65: 63 | H65: 63 | I65: 63
C66: 64 | H66: 64 | I66: 64
A67: 17 | C67: 65 | H67: 65 | I67: 65
C68: 66 | F68: =LOOKUP(E68,$C$3:$C$82,$B$3:$B$82) ->  | H68: 66 | I68: 66
C69: 67 | H69: 67 | I69: 67
C70: 68 | H70: 68 | I70: 68
A71: 18 | C71: 69 | H71: 69 | I71: 69
C72: 70 | H72: 70 | I72: 70
C73: 71 | H73: 71 | I73: 71
C74: 72 | H74: 72 | I74: 72
A75: 19 | C75: 73 | H75: 73 | I75: 73
C76: 74 | H76: 74 | I76: 74
C77: 75 | I77: 75
C78: 76 | I78: 76
A79: 20 | C79: 77 | H79: 77 | I79: 77
C80: 78 | H80: 78 | I80: 78
C81: 79 | I81: 79
C82: 80 | I82: 80

Sheet MP_PP
A1: P. No. | B1: Names | C1: رقم العضوية | D1: R.
A3: 27 | B3: =LOOKUP(A3,Names!$A$2:$A$161,Names!$B$2:$B$161) -> أحمد سمير خلف على | C3: =LOOKUP(A3,Names!$A$2:$A$161,Names!$C$2:$C$161) -> 706 | D3: 1 | E3: 400 | F3: 4
A4: 104 | B4: =LOOKUP(A4,Names!$A$2:$A$161,Names!$B$2:$B$161) -> كريم إيهاب عامر | C4: =LOOKUP(A4,Names!$A$2:$A$161,Names!$C$2:$C$161) -> 606 | D4: 2 | E4: 320 | F4: 2
A5: 87 | B5: =LOOKUP(A5,Names!$A$2:$A$161,Names!$B$2:$B$161) -> ياسر شاهين | C5: =LOOKUP(A5,Names!$A$2:$A$161,Names!$C$2:$C$161) -> 660 | D5: 3 | E5: 280 | F5: 1
A6: 33 | B6: =LOOKUP(A6,Names!$A$2:$A$161,Names!$B$2:$B$161) -> أحمد إبراهيم غانم | C6: =LOOKUP(A6,Names!$A$2:$A$161,Names!$C$2:$C$161) -> 366 | D6: 4 | E6: 200
A7: 97 | B7: =LOOKUP(A7,Names!$A$2:$A$161,Names!$B$2:$B$161) -> خالد محمد شبارة | C7: =LOOKUP(A7,Names!$A$2:$A$161,Names!$C$2:$C$161) -> 6 | D7: 5 | E7: 186.12
A8: 113 | B8: =LOOKUP(A8,Names!$A$2:$A$161,Names!$B$2:$B$161) -> محمد حسن فهيم | C8: =LOOKUP(A8,Names!$A$2:$A$161,Names!$C$2:$C$161) -> جديد | D8: 6 | E8: 183.34
A9: 106 | B9: =LOOKUP(A9,Names!$A$2:$A$161,Names!$B$2:$B$161) -> أحمد عبد العزيز العطار | C9: =LOOKUP(A9,Names!$A$2:$A$161,Names!$C$2:$C$161) -> 572 | D9: 7 | E9: 180.56
A10: 114 | B10: =LOOKUP(A10,Names!$A$2:$A$161,Names!$B$2:$B$161) -> احمد سردينة | C10: =LOOKUP(A10,Names!$A$2:$A$161,Names!$C$2:$C$161) -> 317 | D10: 8 | E10: 177.78
A11: 19 | B11: =LOOKUP(A11,Names!$A$2:$A$161,Names!$B$2:$B$161) -> محمد أحمد محمد عبد الله | C11: =LOOKUP(A11,Names!$A$2:$A$161,Names!$C$2:$C$161) -> 360 | D11: 9 | E11: 175
A12: 94 | B12: =LOOKUP(A12,Names!$A$2:$A$161,Names!$B$2:$B$161) -> محمد عصام الدين القاضي | C12: =LOOKUP(A12,Names!$A$2:$A$161,Names!$C$2:$C$161) -> 304 | D12: 10 | E12: 172.23
A13: 34 | B13: =LOOKUP(A13,Names!$A$2:$A$161,Names!$B$2:$B$161) -> شريف حلمي | C13: =LOOKUP(A13,Names!$A$2:$A$161,Names!$C$2:$C$161) -> 501 | D13: 11 | E13: 169.45
A14: 111 | B14: =LOOKUP(A14,Names!$A$2:$A$161,Names!$B$2:$B$161) -> عادل محمد أبو زيد | C14: =LOOKUP(A14,Names!$A$2:$A$161,Names!$C$2:$C$161) -> 757 | D14: 12 | E14: 166.67
A15: 22 | B15: =LOOKUP(A15,Names!$A$2:$A$161,Names!$B$2:$B$161) -> يوسف مسعد فراج | C15: =LOOKUP(A15,Names!$A$2:$A$161,Names!$C$2:$C$161) -> 735 | D15: 13 | E15: 163.89
A16: 28 | B16: =LOOKUP(A16,Names!$A$2:$A$161,Names!$B$2:$B$161) -> محمد حسن عبد القادر | C16: =LOOKUP(A16,Names!$A$2:$A$161,Names!$C$2:$C$161) -> 310 | D16: 14 | E16: 161.12
A17: 112 | B17: =LOOKUP(A17,Names!$A$2:$A$161,Names!$B$2:$B$161) -> عمرو محمد محسن | C17: =LOOKUP(A17,Names!$A$2:$A$161,Names!$C$2:$C$161) -> 390 | D17: 15 | E17: 158.34
A18: 21 | B18: =LOOKUP(A18,Names!$A$2:$A$161,Names!$B$2:$B$161) -> محمد طارق عبد الله | C18: =LOOKUP(A18,Names!$A$2:$A$161,Names!$C$2:$C$161) -> 367 | D18: 16 | E18: 155.56
A19: 3 | B19: =LOOKUP(A19,Names!$A$2:$A$161,Names!$B$2:$B$161) -> أحمد محمد حمدي صالح | C19: =LOOKUP(A19,Names!$A$2:$A$161,Names!$C$2:$C$161) -> 396 | D19: 17 | E19: 152.78
A20: 89 | B20: =LOOKUP(A20,Names!$A$2:$A$161,Names!$B$2:$B$161) -> محمد بلبع | C20: =LOOKUP(A20,Names!$A$2:$A$161,Names!$C$2:$C$161) -> 324 | D20: 18 | E20: 150
A21: 108 | B21: =LOOKUP(A21,Names!$A$2:$A$161,Names!$B$2:$B$161) -> كريم احمد ناصر | C21: =LOOKUP(A21,Names!$A$2:$A$161,Names!$C$2:$C$161) -> -- | D21: 19 | E21: 147.23
A22: 30 | B22: =LOOKUP(A22,Names!$A$2:$A$161,Names!$B$2:$B$161) -> محمد سعيد الفطاطري | C22: =LOOKUP(A22,Names!$A$2:$A$161,Names!$C$2:$C$161) -> 550 | D22: 20 | E22: 144.45
A23: 91 | B23: =LOOKUP(A23,Names!$A$2:$A$161,Names!$B$2:$B$161) -> عماد محمد فؤاد مرسي | C23: =LOOKUP(A23,Names!$A$2:$A$161,Names!$C$2:$C$161) -> 681 | D23: 21 | E23: 141.67
A24: 36 | B24: =LOOKUP(A24,Names!$A$2:$A$161,Names!$B$2:$B$161) -> محمد محمود فضل | C24: =LOOKUP(A24,Names!$A$2:$A$161,Names!$C$2:$C$161) -> 379 | D24: 22 | E24: 138.89
A25: 4 | B25: =LOOKUP(A25,Names!$A$2:$A$161,Names!$B$2:$B$161) -> أحمد جميل السيد | C25: =LOOKUP(A25,Names!$A$2:$A$161,Names!$C$2:$C$161) -> 368 | D25: 23 | E25: 136.12
A26: 12 | B26: =LOOKUP(A26,Names!$A$2:$A$161,Names!$B$2:$B$161) -> أحمد علي السيد شرع | C26: =LOOKUP(A26,Names!$A$2:$A$161,Names!$C$2:$C$161) -> 536 | D26: 24 | E26: 133.34
A27: 84 | B27: =LOOKUP(A27,Names!$A$2:$A$161,Names!$B$2:$B$161) -> أحمد عز العرب السماحي | C27: =LOOKUP(A27,Names!$A$2:$A$161,Names!$C$2:$C$161) -> 655 | D27: 24 | E27: 133.34
A28: 96 | B28: =LOOKUP(A28,Names!$A$2:$A$161,Names!$B$2:$B$161) -> أحمد رمزي الديب | C28: =LOOKUP(A28,Names!$A$2:$A$161,Names!$C$2:$C$161) -> 547 | D28: 26 | E28: 127.78
A29: 109 | B29: =LOOKUP(A29,Names!$A$2:$A$161,Names!$B$2:$B$161) -> نبيل خلف زكي | C29: =LOOKUP(A29,Names!$A$2:$A$161,Names!$C$2:$C$161) -> 392 | D29: 27 | E29: 125
A30: 1 | B30: =LOOKUP(A30,Names!$A$2:$A$161,Names!$B$2:$B$161) -> إبراهيم عرفان السقا | C30: =LOOKUP(A30,Names!$A$2:$A$161,Names!$C$2:$C$161) -> 721 | D30: 28 | E30: 122.23
A31: 2 | B31: =LOOKUP(A31,Names!$A$2:$A$161,Names!$B$2:$B$161) -> مصطفى محمد علي شرف | C31: =LOOKUP(A31,Names!$A$2:$A$161,Names!$C$2:$C$161) -> 449 | D31: 29 | E31: 119.45
A32: 90 | B32: =LOOKUP(A32,Names!$A$2:$A$161,Names!$B$2:$B$161) -> محمد علي حسن طه الأمام | C32: =LOOKUP(A32,Names!$A$2:$A$161,Names!$C$2:$C$161) -> 305 | D32: 29 | E32: 119.45
A33: 95 | B33: =LOOKUP(A33,Names!$A$2:$A$161,Names!$B$2:$B$161) -> احمد طنطاوى | C33: =LOOKUP(A33,Names!$A$2:$A$161,Names!$C$2:$C$161) -> 670 | D33: 29 | E33: 119.45
A34: 110 | B34: =LOOKUP(A34,Names!$A$2:$A$161,Names!$B$2:$B$161) -> أسامة أحمد زكي | C34: =LOOKUP(A34,Names!$A$2:$A$161,Names!$C$2:$C$161) -> 603 | D34: 32 | E34: 111.12
A35: 83 | B35: =LOOKUP(A35,Names!$A$2:$A$161,Names!$B$2:$B$161) -> أسامة لطفى نجيب | C35: =LOOKUP(A35,Names!$A$2:$A$161,Names!$C$2:$C$161) -> 751 | D35: 32 | E35: 111.12
A36: 105 | B36: =LOOKUP(A36,Names!$A$2:$A$161,Names!$B$2:$B$161) -> مصطفى عبد الحفيظ علي | C36: =LOOKUP(A36,Names!$A$2:$A$161,Names!$C$2:$C$161) -> 669 | D36: 34 | E36: 105.56
A37: 17 | B37: =LOOKUP(A37,Names!$A$2:$A$161,Names!$B$2:$B$161) -> مينا ناجح صبحي | C37: =LOOKUP(A37,Names!$A$2:$A$161,Names!$C$2:$C$161) -> 611 | D37: 35 | E37: 102.78
A38: 86 | B38: =LOOKUP(A38,Names!$A$2:$A$161,Names!$B$2:$B$161) -> ايهاب يوسف عمارة | C38: =LOOKUP(A38,Names!$A$2:$A$161,Names!$C$2:$C$161) -> 756 | D38: 36 | E38: 100
A39: 100 | B39: =LOOKUP(A39,Names!$A$2:$A$161,Names!$B$2:$B$161) -> عبد الرحمن الدمراوى | C39: =LOOKUP(A39,Names!$A$2:$A$161,Names!$C$2:$C$161) -> - | D39: 37 | E39: 97.23
A40: 13 | B40: =LOOKUP(A40,Names!$A$2:$A$161,Names!$B$2:$B$161) -> عمرو سمير دسوقي | C40: =LOOKUP(A40,Names!$A$2:$A$161,Names!$C$2:$C$161) -> 709 | D40: 38 | E40: 94.45
A41: 85 | B41: =LOOKUP(A41,Names!$A$2:$A$161,Names!$B$2:$B$161) -> محمد عبد الهادي أبو القاسم | C41: =LOOKUP(A41,Names!$A$2:$A$161,Names!$C$2:$C$161) -> 393 | D41: 39 | E41: 91.67
A42: 18 | B42: =LOOKUP(A42,Names!$A$2:$A$161,Names!$B$2:$B$161) -> وليد شعبان إسماعيل علي | C42: =LOOKUP(A42,Names!$A$2:$A$161,Names!$C$2:$C$161) -> 450 | D42: 40 | E42: 88.89
A43: 7 | B43: =LOOKUP(A43,Names!$A$2:$A$161,Names!$B$2:$B$161) -> هيثم محمد شبانة | C43: =LOOKUP(A43,Names!$A$2:$A$161,Names!$C$2:$C$161) -> 668 | D43: 40 | E43: 88.89
A44: 11 | B44: =LOOKUP(A44,Names!$A$2:$A$161,Names!$B$2:$B$161) -> هيثم العشماوي | C44: =LOOKUP(A44,Names!$A$2:$A$161,Names!$C$2:$C$161) -> 300 | D44: 42 | E44: 83.34
A45: 20 | B45: =LOOKUP(A45,Names!$A$2:$A$161,Names!$B$2:$B$161) -> عصام الدين محمد عبد العاطي | C45: =LOOKUP(A45,Names!$A$2:$A$161,Names!$C$2:$C$161) -> 467 | D45: 43 | E45: 80.56
A46: 82 | B46: =LOOKUP(A46,Names!$A$2:$A$161,Names!$B$2:$B$161) -> أحمد صلاح الدين دياب | C46: =LOOKUP(A46,Names!$A$2:$A$161,Names!$C$2:$C$161) -> 510 | D46: 44 | E46: 77.78
A47: 98 | B47: =LOOKUP(A47,Names!$A$2:$A$161,Names!$B$2:$B$161) -> محمد محمود شعبان رمضان | C47: =LOOKUP(A47,Names!$A$2:$A$161,Names!$C$2:$C$161) -> 486 | D47: 45 | E47: 75
A48: 88 | B48: =LOOKUP(A48,Names!$A$2:$A$161,Names!$B$2:$B$161) -> أحمد علي خليل حسن | C48: =LOOKUP(A48,Names!$A$2:$A$161,Names!$C$2:$C$161) -> 664 | D48: 46 | E48: 72.23
A49: 92 | B49: =LOOKUP(A49,Names!$A$2:$A$161,Names!$B$2:$B$161) -> أحمد مصطفى راشد | C49: =LOOKUP(A49,Names!$A$2:$A$161,Names!$C$2:$C$161) -> 306 | D49: 47 | E49: 69.45
A50: 14 | B50: =LOOKUP(A50,Names!$A$2:$A$161,Names!$B$2:$B$161) -> أحمد محمد محمدي | C50: =LOOKUP(A50,Names!$A$2:$A$161,Names!$C$2:$C$161) -> 356 | D50: 48 | E50: 66.67
A51: 116 | B51: =LOOKUP(A51,Names!$A$2:$A$161,Names!$B$2:$B$161) -> اسامة قاسم | C51: =LOOKUP(A51,Names!$A$2:$A$161,Names!$C$2:$C$161) -> - | D51: 49 | E51: 63.89
A52: 93 | B52: =LOOKUP(A52,Names!$A$2:$A$161,Names!$B$2:$B$161) -> جمال السيد توفيق | C52: =LOOKUP(A52,Names!$A$2:$A$161,Names!$C$2:$C$161) -> 758 | D52: 50 | E52: 61.12
A53: 81 | B53: =LOOKUP(A53,Names!$A$2:$A$161,Names!$B$2:$B$161) -> راجي محمد صبحي | C53: =LOOKUP(A53,Names!$A$2:$A$161,Names!$C$2:$C$161) -> 111 | D53: 51 | E53: 58.34
A54: 99 | B54: =LOOKUP(A54,Names!$A$2:$A$161,Names!$B$2:$B$161) -> ماجد محمد فكري | C54: =LOOKUP(A54,Names!$A$2:$A$161,Names!$C$2:$C$161) -> 649 | D54: 52 | E54: 55.56
A55: 10 | B55: =LOOKUP(A55,Names!$A$2:$A$161,Names!$B$2:$B$161) -> تامر تيمور شكري | C55: =LOOKUP(A55,Names!$A$2:$A$161,Names!$C$2:$C$161) -> 318 | D55: 53 | E55: 52.78
A56: 32 | B56: =LOOKUP(A56,Names!$A$2:$A$161,Names!$B$2:$B$161) -> أمير محمد خطاب | C56: =LOOKUP(A56,Names!$A$2:$A$161,Names!$C$2:$C$161) -> 200 | D56: 54 | E56: 50
A57: 35 | B57: =LOOKUP(A57,Names!$A$2:$A$161,Names!$B$2:$B$161) -> أحمد فؤاد حسنين | C57: =LOOKUP(A57,Names!$A$2:$A$161,Names!$C$2:$C$161) -> 363 | D57: 54 | E57: 50
A58: 16 | B58: =LOOKUP(A58,Names!$A$2:$A$161,Names!$B$2:$B$161) -> طارق عبد الغني السحار | C58: =LOOKUP(A58,Names!$A$2:$A$161,Names!$C$2:$C$161) -> 671 | D58: 56 | E58: 44.45
A59: 26 | B59: =LOOKUP(A59,Names!$A$2:$A$161,Names!$B$2:$B$161) -> علاء شوقي جبريل | C59: =LOOKUP(A59,Names!$A$2:$A$161,Names!$C$2:$C$161) -> 361 | D59: 57 | E59: 41.67
A60: 23 | B60: =LOOKUP(A60,Names!$A$2:$A$161,Names!$B$2:$B$161) -> جمال احمد محمد جمال | C60: =LOOKUP(A60,Names!$A$2:$A$161,Names!$C$2:$C$161) -> -- | D60: 58 | E60: 38.89
A61: 15 | B61: =LOOKUP(A61,Names!$A$2:$A$161,Names!$B$2:$B$161) -> حسام الدين صلاح أبو الفتوح | C61: =LOOKUP(A61,Names!$A$2:$A$161,Names!$C$2:$C$161) -> 362 | D61: 59 | E61: 36.12
A62: 115 | B62: =LOOKUP(A62,Names!$A$2:$A$161,Names!$B$2:$B$161) -> خالد عبد العظيم | C62: =LOOKUP(A62,Names!$A$2:$A$161,Names!$C$2:$C$161) -> - | D62: 60 | E62: 33.34
A63: 6 | B63: =LOOKUP(A63,Names!$A$2:$A$161,Names!$B$2:$B$161) -> معتز محمد عبد المنعم | C63: =LOOKUP(A63,Names!$A$2:$A$161,Names!$C$2:$C$161) -> 351 | D63: 61 | E63: 30.56
A64: 5 | B64: =LOOKUP(A64,Names!$A$2:$A$161,Names!$B$2:$B$161) -> أحمد محمد أمين | C64: =LOOKUP(A64,Names!$A$2:$A$161,Names!$C$2:$C$161) -> 358 | D64: 61 | E64: 30.56
A65: 102 | B65: =LOOKUP(A65,Names!$A$2:$A$161,Names!$B$2:$B$161) -> سامي محمود الفولي | C65: =LOOKUP(A65,Names!$A$2:$A$161,Names!$C$2:$C$161) -> 383 | D65: 63 | E65: 25
A66: 24 | B66: =LOOKUP(A66,Names!$A$2:$A$161,Names!$B$2:$B$161) -> يامن محمد حسن | C66: =LOOKUP(A66,Names!$A$2:$A$161,Names!$C$2:$C$161) -> 350 | D66: 64 | E66: 22.23
A67: 9 | B67: =LOOKUP(A67,Names!$A$2:$A$161,Names!$B$2:$B$161) -> عمرو محمد مصطفى | C67: =LOOKUP(A67,Names!$A$2:$A$161,Names!$C$2:$C$161) -> -- | D67: 64 | E67: 22.23
A68: 103 | B68: =LOOKUP(A68,Names!$A$2:$A$161,Names!$B$2:$B$161) -> عمرو عماد الدين أبو العلا | C68: =LOOKUP(A68,Names!$A$2:$A$161,Names!$C$2:$C$161) -> 454 | D68: 64 | E68: 22.23
A69: 101 | B69: =LOOKUP(A69,Names!$A$2:$A$161,Names!$B$2:$B$161) -> أحمد محمد شوقى عبد الحميد | C69: =LOOKUP(A69,Names!$A$2:$A$161,Names!$C$2:$C$161) -> 477 | D69: 67 | E69: 13.89
A70: 25 | B70: =LOOKUP(A70,Names!$A$2:$A$161,Names!$B$2:$B$161) -> خالد حمدي محمد السيد | C70: =LOOKUP(A70,Names!$A$2:$A$161,Names!$C$2:$C$161) -> 316 | D70: 68 | E70: 11.12
A71: 31 | B71: =LOOKUP(A71,Names!$A$2:$A$161,Names!$B$2:$B$161) -> أحمد بسيوني | C71: =LOOKUP(A71,Names!$A$2:$A$161,Names!$C$2:$C$161) -> 399 | D71: 69 | E71: 8.34
A72: 107 | B72: =LOOKUP(A72,Names!$A$2:$A$161,Names!$B$2:$B$161) -> شادي أحمد محمود وهبة | C72: =LOOKUP(A72,Names!$A$2:$A$161,Names!$C$2:$C$161) -> 458 | D72: 70 | E72: 5.56
A73: 29 | B73: =LOOKUP(A73,Names!$A$2:$A$161,Names!$B$2:$B$161) -> اسلام نصر الغنام | C73: =LOOKUP(A73,Names!$A$2:$A$161,Names!$C$2:$C$161) -> -- | D73: 71 | E73: 2.78
A74: 8 | B74: =LOOKUP(A74,Names!$A$2:$A$161,Names!$B$2:$B$161) -> عبد الرحمن محمود عثمان | C74: =LOOKUP(A74,Names!$A$2:$A$161,Names!$C$2:$C$161) -> 596 | D74: 72 | E74: 2.78
B75: =LOOKUP(A75,Names!$A$2:$A$161,Names!$B$2:$B$161) ->  | C75: =LOOKUP(A75,Names!$A$2:$A$161,Names!$C$2:$C$161) -> 
B76: =LOOKUP(A76,Names!$A$2:$A$161,Names!$B$2:$B$161) ->  | C76: =LOOKUP(A76,Names!$A$2:$A$161,Names!$C$2:$C$161) -> 
B77: =LOOKUP(A77,Names!$A$2:$A$161,Names!$B$2:$B$161) ->  | C77: =LOOKUP(A77,Names!$A$2:$A$161,Names!$C$2:$C$161) -> 
B78: =LOOKUP(A78,Names!$A$2:$A$161,Names!$B$2:$B$161) ->  | C78: =LOOKUP(A78,Names!$A$2:$A$161,Names!$C$2:$C$161) -> 
B79: =LOOKUP(A79,Names!$A$2:$A$161,Names!$B$2:$B$161) ->  | C79: =LOOKUP(A79,Names!$A$2:$A$161,Names!$C$2:$C$161) -> 
B80: =LOOKUP(A80,Names!$A$2:$A$161,Names!$B$2:$B$161) ->  | C80: =LOOKUP(A80,Names!$A$2:$A$161,Names!$C$2:$C$161) -> 
B81: =LOOKUP(A81,Names!$A$2:$A$161,Names!$B$2:$B$161) ->  | C81: =LOOKUP(A81,Names!$A$2:$A$161,Names!$C$2:$C$161) -> 
B82: =LOOKUP(A82,Names!$A$2:$A$161,Names!$B$2:$B$161) ->  | C82: =LOOKUP(A82,Names!$A$2:$A$161,Names!$C$2:$C$161) -> 
B83: =LOOKUP(A83,Names!$A$2:$A$161,Names!$B$2:$B$161) ->  | C83: =LOOKUP(A83,Names!$A$2:$A$161,Names!$C$2:$C$161) -> 
B84: =LOOKUP(A84,Names!$A$2:$A$161,Names!$B$2:$B$161) ->  | C84: =LOOKUP(A84,Names!$A$2:$A$161,Names!$C$2:$C$161) -> 
B85: =LOOKUP(A85,Names!$A$2:$A$161,Names!$B$2:$B$161) ->  | C85: =LOOKUP(A85,Names!$A$2:$A$161,Names!$C$2:$C$161) -> 
B86: =LOOKUP(A86,Names!$A$2:$A$161,Names!$B$2:$B$161) ->  | C86: =LOOKUP(A86,Names!$A$2:$A$161,Names!$C$2:$C$161) -> 
B87: =LOOKUP(A87,Names!$A$2:$A$161,Names!$B$2:$B$161) ->  | C87: =LOOKUP(A87,Names!$A$2:$A$161,Names!$C$2:$C$161) -> 
B88: =LOOKUP(A88,Names!$A$2:$A$161,Names!$B$2:$B$161) ->  | C88: =LOOKUP(A88,Names!$A$2:$A$161,Names!$C$2:$C$161) -> 
B89: =LOOKUP(A89,Names!$A$2:$A$161,Names!$B$2:$B$161) ->  | C89: =LOOKUP(A89,Names!$A$2:$A$161,Names!$C$2:$C$161) -> 
B90: =LOOKUP(A90,Names!$A$2:$A$161,Names!$B$2:$B$161) ->  | C90: =LOOKUP(A90,Names!$A$2:$A$161,Names!$C$2:$C$161) -> 
B91: =LOOKUP(A91,Names!$A$2:$A$161,Names!$B$2:$B$161) ->  | C91: =LOOKUP(A91,Names!$A$2:$A$161,Names!$C$2:$C$161) -> 
B92: =LOOKUP(A92,Names!$A$2:$A$161,Names!$B$2:$B$161) ->  | C92: =LOOKUP(A92,Names!$A$2:$A$161,Names!$C$2:$C$161) -> 
B93: =LOOKUP(A93,Names!$A$2:$A$161,Names!$B$2:$B$161) ->  | C93: =LOOKUP(A93,Names!$A$2:$A$161,Names!$C$2:$C$161) -> 
B94: =LOOKUP(A94,Names!$A$2:$A$161,Names!$B$2:$B$161) ->  | C94: =LOOKUP(A94,Names!$A$2:$A$161,Names!$C$2:$C$161) -> 
B95: =LOOKUP(A95,Names!$A$2:$A$161,Names!$B$2:$B$161) ->  | C95: =LOOKUP(A95,Names!$A$2:$A$161,Names!$C$2:$C$161) -> 
B96: =LOOKUP(A96,Names!$A$2:$A$161,Names!$B$2:$B$161) ->  | C96: =LOOKUP(A96,Names!$A$2:$A$161,Names!$C$2:$C$161) -> 
B97: =LOOKUP(A97,Names!$A$2:$A$161,Names!$B$2:$B$161) ->  | C97: =LOOKUP(A97,Names!$A$2:$A$161,Names!$C$2:$C$161) -> 
B98: =LOOKUP(A98,Names!$A$2:$A$161,Names!$B$2:$B$161) ->  | C98: =LOOKUP(A98,Names!$A$2:$A$161,Names!$C$2:$C$161) -> 
B99: =LOOKUP(A99,Names!$A$2:$A$161,Names!$B$2:$B$161) ->  | C99: =LOOKUP(A99,Names!$A$2:$A$161,Names!$C$2:$C$161) -> 
B100: =LOOKUP(A100,Names!$A$2:$A$161,Names!$B$2:$B$161) ->  | C100: =LOOKUP(A100,Names!$A$2:$A$161,Names!$C$2:$C$161) -> 
B101: =LOOKUP(A101,Names!$A$2:$A$161,Names!$B$2:$B$161) ->  | C101: =LOOKUP(A101,Names!$A$2:$A$161,Names!$C$2:$C$161) -> 
B102: =LOOKUP(A102,Names!$A$2:$A$161,Names!$B$2:$B$161) ->  | C102: =LOOKUP(A102,Names!$A$2:$A$161,Names!$C$2:$C$161) -> 
B103: =LOOKUP(A103,Names!$A$2:$A$161,Names!$B$2:$B$161) ->  | C103: =LOOKUP(A103,Names!$A$2:$A$161,Names!$C$2:$C$161) -> 
B104: =LOOKUP(A104,Names!$A$2:$A$161,Names!$B$2:$B$161) ->  | C104: =LOOKUP(A104,Names!$A$2:$A$161,Names!$C$2:$C$161) -> 
B105: =LOOKUP(A105,Names!$A$2:$A$161,Names!$B$2:$B$161) ->  | C105: =LOOKUP(A105,Names!$A$2:$A$161,Names!$C$2:$C$161) -> 
B106: =LOOKUP(A106,Names!$A$2:$A$161,Names!$B$2:$B$161) ->  | C106: =LOOKUP(A106,Names!$A$2:$A$161,Names!$C$2:$C$161) -> 
B107: =LOOKUP(A107,Names!$A$2:$A$161,Names!$B$2:$B$161) ->  | C107: =LOOKUP(A107,Names!$A$2:$A$161,Names!$C$2:$C$161) -> 
B108: =LOOKUP(A108,Names!$A$2:$A$161,Names!$B$2:$B$161) ->  | C108: =LOOKUP(A108,Names!$A$2:$A$161,Names!$C$2:$C$161) -> 
B109: =LOOKUP(A109,Names!$A$2:$A$161,Names!$B$2:$B$161) ->  | C109: =LOOKUP(A109,Names!$A$2:$A$161,Names!$C$2:$C$161) -> 
B110: =LOOKUP(A110,Names!$A$2:$A$161,Names!$B$2:$B$161) ->  | C110: =LOOKUP(A110,Names!$A$2:$A$161,Names!$C$2:$C$161) -> 
B111: =LOOKUP(A111,Names!$A$2:$A$161,Names!$B$2:$B$161) ->  | C111: =LOOKUP(A111,Names!$A$2:$A$161,Names!$C$2:$C$161) -> 
B112: =LOOKUP(A112,Names!$A$2:$A$161,Names!$B$2:$B$161) ->  | C112: =LOOKUP(A112,Names!$A$2:$A$161,Names!$C$2:$C$161) -> 
B113: =LOOKUP(A113,Names!$A$2:$A$161,Names!$B$2:$B$161) ->  | C113: =LOOKUP(A113,Names!$A$2:$A$161,Names!$C$2:$C$161) -> 
B114: =LOOKUP(A114,Names!$A$2:$A$161,Names!$B$2:$B$161) ->  | C114: =LOOKUP(A114,Names!$A$2:$A$161,Names!$C$2:$C$161) -> 
B115: =LOOKUP(A115,Names!$A$2:$A$161,Names!$B$2:$B$161) ->  | C115: =LOOKUP(A115,Names!$A$2:$A$161,Names!$C$2:$C$161) -> 
B116: =LOOKUP(A116,Names!$A$2:$A$161,Names!$B$2:$B$161) ->  | C116: =LOOKUP(A116,Names!$A$2:$A$161,Names!$C$2:$C$161) -> 
B117: =LOOKUP(A117,Names!$A$2:$A$161,Names!$B$2:$B$161) ->  | C117: =LOOKUP(A117,Names!$A$2:$A$161,Names!$C$2:$C$161) -> 
B118: =LOOKUP(A118,Names!$A$2:$A$161,Names!$B$2:$B$161) ->  | C118: =LOOKUP(A118,Names!$A$2:$A$161,Names!$C$2:$C$161) -> 
B119: =LOOKUP(A119,Names!$A$2:$A$161,Names!$B$2:$B$161) ->  | C119: =LOOKUP(A119,Names!$A$2:$A$161,Names!$C$2:$C$161) -> 
B120: =LOOKUP(A120,Names!$A$2:$A$161,Names!$B$2:$B$161) ->  | C120: =LOOKUP(A120,Names!$A$2:$A$161,Names!$C$2:$C$161) -> 
B121: =LOOKUP(A121,Names!$A$2:$A$161,Names!$B$2:$B$161) ->  | C121: =LOOKUP(A121,Names!$A$2:$A$161,Names!$C$2:$C$161) -> 
B122: =LOOKUP(A122,Names!$A$2:$A$161,Names!$B$2:$B$161) ->  | C122: =LOOKUP(A122,Names!$A$2:$A$161,Names!$C$2:$C$161) -> 
B123: =LOOKUP(A123,Names!$A$2:$A$161,Names!$B$2:$B$161) ->  | C123: =LOOKUP(A123,Names!$A$2:$A$161,Names!$C$2:$C$161) -> 
B124: =LOOKUP(A124,Names!$A$2:$A$161,Names!$B$2:$B$161) ->  | C124: =LOOKUP(A124,Names!$A$2:$A$161,Names!$C$2:$C$161) -> 
B125: =LOOKUP(A125,Names!$A$2:$A$161,Names!$B$2:$B$161) ->  | C125: =LOOKUP(A125,Names!$A$2:$A$161,Names!$C$2:$C$161) -> 
B126: =LOOKUP(A126,Names!$A$2:$A$161,Names!$B$2:$B$161) ->  | C126: =LOOKUP(A126,Names!$A$2:$A$161,Names!$C$2:$C$161) -> 
B127: =LOOKUP(A127,Names!$A$2:$A$161,Names!$B$2:$B$161) ->  | C127: =LOOKUP(A127,Names!$A$2:$A$161,Names!$C$2:$C$161) -> 
B128: =LOOKUP(A128,Names!$A$2:$A$161,Names!$B$2:$B$161) ->  | C128: =LOOKUP(A128,Names!$A$2:$A$161,Names!$C$2:$C$161) -> 
B129: =LOOKUP(A129,Names!$A$2:$A$161,Names!$B$2:$B$161) ->  | C129: =LOOKUP(A129,Names!$A$2:$A$161,Names!$C$2:$C$161) -> 
B130: =LOOKUP(A130,Names!$A$2:$A$161,Names!$B$2:$B$161) ->  | C130: =LOOKUP(A130,Names!$A$2:$A$161,Names!$C$2:$C$161) -> 
B131: =LOOKUP(A131,Names!$A$2:$A$161,Names!$B$2:$B$161) ->  | C131: =LOOKUP(A131,Names!$A$2:$A$161,Names!$C$2:$C$161) -> 
B132: =LOOKUP(A132,Names!$A$2:$A$161,Names!$B$2:$B$161) ->  | C132: =LOOKUP(A132,Names!$A$2:$A$161,Names!$C$2:$C$161) -> 
B133: =LOOKUP(A133,Names!$A$2:$A$161,Names!$B$2:$B$161) ->  | C133: =LOOKUP(A133,Names!$A$2:$A$161,Names!$C$2:$C$161) -> 
B134: =LOOKUP(A134,Names!$A$2:$A$161,Names!$B$2:$B$161) ->  | C134: =LOOKUP(A134,Names!$A$2:$A$161,Names!$C$2:$C$161) -> 
B135: =LOOKUP(A135,Names!$A$2:$A$161,Names!$B$2:$B$161) ->  | C135: =LOOKUP(A135,Names!$A$2:$A$161,Names!$C$2:$C$161) -> 
B136: =LOOKUP(A136,Names!$A$2:$A$161,Names!$B$2:$B$161) ->  | C136: =LOOKUP(A136,Names!$A$2:$A$161,Names!$C$2:$C$161) -> 
B137: =LOOKUP(A137,Names!$A$2:$A$161,Names!$B$2:$B$161) ->  | C137: =LOOKUP(A137,Names!$A$2:$A$161,Names!$C$2:$C$161) -> 
B138: =LOOKUP(A138,Names!$A$2:$A$161,Names!$B$2:$B$161) ->  | C138: =LOOKUP(A138,Names!$A$2:$A$161,Names!$C$2:$C$161) -> 
B139: =LOOKUP(A139,Names!$A$2:$A$161,Names!$B$2:$B$161) ->  | C139: =LOOKUP(A139,Names!$A$2:$A$161,Names!$C$2:$C$161) -> 
B140: =LOOKUP(A140,Names!$A$2:$A$161,Names!$B$2:$B$161) ->  | C140: =LOOKUP(A140,Names!$A$2:$A$161,Names!$C$2:$C$161) -> 
B141: =LOOKUP(A141,Names!$A$2:$A$161,Names!$B$2:$B$161) ->  | C141: =LOOKUP(A141,Names!$A$2:$A$161,Names!$C$2:$C$161) -> 
B142: =LOOKUP(A142,Names!$A$2:$A$161,Names!$B$2:$B$161) ->  | C142: =LOOKUP(A142,Names!$A$2:$A$161,Names!$C$2:$C$161) -> 
B143: =LOOKUP(A143,Names!$A$2:$A$161,Names!$B$2:$B$161) ->  | C143: =LOOKUP(A143,Names!$A$2:$A$161,Names!$C$2:$C$161) -> 
B144: =LOOKUP(A144,Names!$A$2:$A$161,Names!$B$2:$B$161) ->  | C144: =LOOKUP(A144,Names!$A$2:$A$161,Names!$C$2:$C$161) -> 
B145: =LOOKUP(A145,Names!$A$2:$A$161,Names!$B$2:$B$161) ->  | C145: =LOOKUP(A145,Names!$A$2:$A$161,Names!$C$2:$C$161) -> 
B146: =LOOKUP(A146,Names!$A$2:$A$161,Names!$B$2:$B$161) ->  | C146: =LOOKUP(A146,Names!$A$2:$A$161,Names!$C$2:$C$161) -> 
B147: =LOOKUP(A147,Names!$A$2:$A$161,Names!$B$2:$B$161) ->  | C147: =LOOKUP(A147,Names!$A$2:$A$161,Names!$C$2:$C$161) -> 
B148: =LOOKUP(A148,Names!$A$2:$A$161,Names!$B$2:$B$161) ->  | C148: =LOOKUP(A148,Names!$A$2:$A$161,Names!$C$2:$C$161) -> 
B149: =LOOKUP(A149,Names!$A$2:$A$161,Names!$B$2:$B$161) ->  | C149: =LOOKUP(A149,Names!$A$2:$A$161,Names!$C$2:$C$161) -> 
B150: =LOOKUP(A150,Names!$A$2:$A$161,Names!$B$2:$B$161) ->  | C150: =LOOKUP(A150,Names!$A$2:$A$161,Names!$C$2:$C$161) -> 
B151: =LOOKUP(A151,Names!$A$2:$A$161,Names!$B$2:$B$161) ->  | C151: =LOOKUP(A151,Names!$A$2:$A$161,Names!$C$2:$C$161) -> 
B152: =LOOKUP(A152,Names!$A$2:$A$161,Names!$B$2:$B$161) ->  | C152: =LOOKUP(A152,Names!$A$2:$A$161,Names!$C$2:$C$161) -> 
B153: =LOOKUP(A153,Names!$A$2:$A$161,Names!$B$2:$B$161) ->  | C153: =LOOKUP(A153,Names!$A$2:$A$161,Names!$C$2:$C$161) -> 
B154: =LOOKUP(A154,Names!$A$2:$A$161,Names!$B$2:$B$161) ->  | C154: =LOOKUP(A154,Names!$A$2:$A$161,Names!$C$2:$C$161) -> 
B155: =LOOKUP(A155,Names!$A$2:$A$161,Names!$B$2:$B$161) ->  | C155: =LOOKUP(A155,Names!$A$2:$A$161,Names!$C$2:$C$161) -> 
B156: =LOOKUP(A156,Names!$A$2:$A$161,Names!$B$2:$B$161) ->  | C156: =LOOKUP(A156,Names!$A$2:$A$161,Names!$C$2:$C$161) -> 
B157: =LOOKUP(A157,Names!$A$2:$A$161,Names!$B$2:$B$161) ->  | C157: =LOOKUP(A157,Names!$A$2:$A$161,Names!$C$2:$C$161) -> 
B158: =LOOKUP(A158,Names!$A$2:$A$161,Names!$B$2:$B$161) ->  | C158: =LOOKUP(A158,Names!$A$2:$A$161,Names!$C$2:$C$161) -> 
B159: =LOOKUP(A159,Names!$A$2:$A$161,Names!$B$2:$B$161) ->  | C159: =LOOKUP(A159,Names!$A$2:$A$161,Names!$C$2:$C$161) -> 
B160: =LOOKUP(A160,Names!$A$2:$A$161,Names!$B$2:$B$161) ->  | C160: =LOOKUP(A160,Names!$A$2:$A$161,Names!$C$2:$C$161) -> 
B161: =LOOKUP(A161,Names!$A$2:$A$161,Names!$B$2:$B$161) ->  | C161: =LOOKUP(A161,Names!$A$2:$A$161,Names!$C$2:$C$161) -> 
B162: =LOOKUP(A162,Names!$A$2:$A$161,Names!$B$2:$B$161) ->  | C162: =LOOKUP(A162,Names!$A$2:$A$161,Names!$C$2:$C$161) -> 
